Workbook

Sheet LDC Info
Z3: 1 | AA3: Algoma Power Inc.
Z4: 2 | AA4: Atikokan Hydro Inc.
Z5: 3 | AA5: Attawapiskat Power Corporation
Z6: 4 | AA6: Bluewater Power Distribution Corporation
Z7: 5 | AA7: Brantford Power Inc.
Z8: 6 | AA8: Burlington Hydro Inc.
Z9: 7 | AA9: Canadian Niagara Power Inc.
Z10: 8 | AA10: Centre Wellington Hydro Ltd.
Z11: 9 | AA11: Chapleau Public Utilities Corporation
Z12: 10 | AA12: COLLUS PowerStream Corp.
Z13: 11 | AA13: Cooperative Hydro Embrun Inc.
D14: Utility Name | E14: Welland Hydro-Electric System Corp. | Z14: 12 | AA14: E.L.K. Energy Inc.
Z15: 13 | AA15: Energy + Inc.
D16: Assigned EB Number | E16: EB-2016-0110 | Z16: 14 | AA16: Enersource Hydro Mississauga Inc.
Z17: 15 | AA17: Entegrus Powerlines Inc.
D18: Name of Contact and Title | E18: Wayne Armstrong - Director of Finance & Chief Operating Officer | Z18: 16 | AA18: ENWIN Utilities Ltd.
Z19: 17 | AA19: Erie Thames Powerlines Corporation
D20: Phone Number | E20: 905-732-1381 Ext 234 | Z20: 18 | AA20: Espanola Regional Hydro Distribution Corporation
Z21: 19 | AA21: Essex Powerlines Corporation
D22: Email Address | E22: warmstrong@wellandhydro.com | Z22: 20 | AA22: Festival Hydro Inc.
Z23: 21 | AA23: Fort Albany Power Corporation
D24: Test Year | E24: 2017 | Z24: 22 | AA24: Fort Frances Power Corporation
Z25: 23 | AA25: Greater Sudbury Hydro Inc.
D26: Bridge Year | E26: =IF(ISBLANK(E24), "", E24-1) -> 2016 | Z26: 24 | AA26: Grimsby Power Inc.
Z27: 25 | AA27: Guelph Hydro Electric Systems Inc.
D28: Last Rebasing Year | E28: 2013 | Z28: 26 | AA28: Haldimand County Hydro Inc.
Z29: 27 | AA29: Halton Hills Hydro Inc.
A30: Identify the accounting standard used for the test year | Z30: 28 | AA30: Hearst Power Distribution Company Limited
E31: MIFRS | Z31: 29 | AA31: Horizon Utilities Corporation
Z32: 30 | AA32: Hydro 2000 Inc.
A33: Did you update your depreciation and capitalization policies and reflect the changes in policies in a prior rebasing application? | Z33: 31 | AA33: Hydro Hawkesbury Inc.
E34: Yes | Z34: 32 | AA34: Hydro One Brampton Networks Inc.
Z35: 33 | AA35: Hydro One Networks Inc.
A36: When did you update your actual depreciation and capitalization policies? | Z36: 34 | AA36: Hydro One Networks Inc. - Norfolk
E37: 2001-01-01 | F37: 2012 | Z37: 35 | AA37: Hydro One Remote Communities Inc.
Z38: 36 | AA38: Hydro Ottawa Limited
A39: Identify the year the applicant adopted IFRS for financial reporting purposes | Z39: 37 | AA39: Innpower Corporation
E40: 2015 | Z40: 38 | AA40: Kashechewan Power Corporation
Z41: 39 | AA41: Kenora Hydro Electric Corporation Ltd.
Z42: 40 | AA42: Kingston Hydro Corporation
A43: Are you applying for cost recovery for the test and/or future year(s) for Green Energy initiatives? | Z43: 41 | AA43: Kitchener-Wilmot Hydro Inc.
E44: Yes | Z44: 42 | AA44: Lakefront Utilities Inc.
Z45: 43 | AA45: Lakeland Power Distribution Ltd.
A46: ="Is " & E14 & " an embedded distributor?" -> Is Welland Hydro-Electric System Corp. an embedded distributor? | E46: No | Z46: 44 | AA46: London Hydro Inc.
Z47: 45 | AA47: Midland Power Utility Corporation
Z48: 46 | AA48: Milton Hydro Distribution Inc.
B49: Notes | Z49: 47 | AA49: Newmarket-Tay Power Distribution Ltd.
Z50: 48 | AA50: Niagara Peninsula Energy Inc.
C51: Pale green cells represent input cells. | Z51: 49 | AA51: Niagara-on-the-Lake Hydro Inc.
Z52: 50 | AA52: North Bay Hydro Distribution Limited
C53: Pale blue cells represent drop-down lists. The applicant should select the appropriate item from the drop-down list. | Z53: 51 | AA53: Northern Ontario Wires Inc.
Z54: 52 | AA54: Oakville Hydro Electricity Distribution Inc.
C55: White cells contain fixed values, automatically generated values or formulae. | N55: =IF(LEN($G55)>1, (SUMPRODUCT(--($C$78:$C$1000=$C55),--($A$78:$A$1000=$D55), --($B$78:$B$1000=$B55&"_TOTAL"), $L$78:$L$1000)), "") ->  | O55: =IF(LEN($G55)>1, (SUMPRODUCT(--($C$78:$C$1000=$C55),--($A$78:$A$1000=$D55), --($B$78:$B$1000=$B55&"_TOTAL"), $M$78:$M$1000)), "") ->  | Z55: 53 | AA55: Orangeville Hydro Limited
N56: =IF(LEN($G56)>1, (SUMPRODUCT(--($C$78:$C$1000=$C56),--($A$78:$A$1000=$D56), --($B$78:$B$1000=$B56&"_TOTAL"), $L$78:$L$1000)), "") ->  | O56: =IF(LEN($G56)>1, (SUMPRODUCT(--($C$78:$C$1000=$C56),--($A$78:$A$1000=$D56), --($B$78:$B$1000=$B56&"_TOTAL"), $M$78:$M$1000)), "") ->  | Z56: 54 | AA56: Orillia Power Distribution Corporation
Z57: 55 | AA57: Oshawa PUC Networks Inc.
Z58: 56 | AA58: Ottawa River Power Corporation
Z59: 57 | AA59: Peterborough Distribution Inc.
Z60: 58 | AA60: PowerStream Inc.
Z61: 59 | AA61: PUC Distribution Inc.
Z62: 60 | AA62: Renfrew Hydro Inc.
Z63: 61 | AA63: Rideau St. Lawrence Distribution Inc.
Z64: 62 | AA64: Sioux Lookout Hydro Inc.
Z65: 63 | AA65: St. Thomas Energy Inc.
Z66: 64 | AA66: Thunder Bay Hydro Electricity Distribution Inc.
Z67: 65 | AA67: Tillsonburg Hydro Inc.
Z68: 66 | AA68: Toronto Hydro-Electric System Limited
Z69: 67 | AA69: Veridian Connections Inc.
Z70: 68 | AA70: Wasaga Distribution Inc.
Z71: 69 | AA71: Waterloo North Hydro Inc.
Z72: 70 | AA72: Welland Hydro-Electric System Corp.
Z73: 71 | AA73: Wellington North Power Inc.
Z74: 72 | AA74: West Coast Huron Energy Inc.
Z75: 73 | AA75: Westario Power Inc.
Z76: 74 | AA76: Whitby Hydro Electric Corporation
Z77: 75 | AA77: Woodstock Hydro Services Inc.

Sheet Index
A15: 1 | B15: LDC Information Sheet | E15: 27 | F15: App.2-G: Service Reliability Indicators
A16: 2 | B16: Index | E16: 28 | F16: App.2-H: Other Operating Revenue
A17: 3 | B17: Cost of Service Application Flowchart | E17: 29 | F17: App.2-I: Load Forecast CDM Adjustment Workform
A18: 4 | B18: List of Key References | E18: 30 | F18: App.2-IA: Load Forecast Data Instructions
A19: 5 | B19: App.2-A: List of Requested Approvals | E19: 31 | F19: App.2-IB: Actual and Forecast Load and Customer Data
A20: 6 | B20: App.2-AA: Capital Projects Table | E20: 32 | F20: App.2-JA: OM&A Summary Analysis
A21: 7 | B21: App.2-AB: Capital Expenditures | E21: 33 | F21: App.2-JB: Recoverable OM&A Cost Driver Table
A22: 8 | B22: App. 2-AC: Customer Engagement Worksheet | E22: 34 | F22: App.2-JC: OM&A Programs Table
A23: 9 | B23: App.2-B: General Accounting Instructions | E23: 35 | F23: App.2-K: Employee Costs
A24: 10 | B24: App.2-BA: Fixed Asset Continuity Schedule | E24: 36 | F24: App.2-KA: OPEBs (Other Post-Employment Benefits) Costs
A25: 11 | B25: Appendix 2-BB: Service Life Comparison | E25: 37 | F25: App.2-L: Recoverable OM&A Cost per Customer and per FTE
A26: 12 | B26: App.2-CA: Year 1 Depreciation and Amortization Expense (Old CGAAP) | E26: 38 | F26: App.2-M: Regulatory Costs Schedule
A27: 13 | B27: App.2-CB: Year 1 Depreciation and Amortization Expense (New CGAAP) | E27: 39 | F27: App.2-N: Shared Services and Corporate Cost Allocation
A28: 14 | B28: App.2-CC: Year 2 Depreciation and Amortization Expense (New CGAAP) | E28: 40 | F28: App.2-OA: Capital Structure and Cost of Capital
A29: 15 | B29: App.2-CD: Year 3 Depreciation and Amortization Expense (New CGAAP or MIFRS) | E29: 41 | F29: App.2-OB: Debt Instruments
A30: 16 | B30: App.2-CE: Year 4 Depreciation and Amortization Expense (MIFRS) | E30: 42 | F30: App.2-Q: Cost of Serving Embedded Distributor(s)
A31: 17 | B31: App.2-CF: Year 5 Depreciation and Amortization Expense (MIFRS) | E31: 43 | F31: App.2-R: Loss Factors
A32: 18 | B32: App.2-CG: Year 6 Depreciation and Amortization Expense (Old CGAAP) | E32: 44 | F32: App.2-S: Stranded Meter Treatment
A33: 19 | B33: App.2-CH: Depreciation and Amortization Expense (MIFRS) | E33: 45 | F33: App.2-Y: Transition to MIFRS Summary Impact
A34: 20 | B34: App.2-D: Overhead Expenses | E34: 46 | F34: App.2-YA: One-Time Incremental IFRS Transition Costs
A35: 21 | B35: App.2-EA: Account 1575 PP&E Deferral Account (2015 IFRS Adopters)
A36: 22 | B36: App.2-EB: Account 1576 - Accounting Changes Under CGAAP (2012 Changes)
A37: 23 | B37: App.2-EC: Account 1576 - Accounting Changes Under CGAAP (2013 Changes)
A38: 24 | B38: App.2-FA: Renewable Generation Connection Investment Summary
A39: 25 | B39: App.2-FB: Calculation of Renewable Generation Connection Direct Benefits/Provincial Amount: Renewable Enabling Improvement Investments
A40: 26 | B40: App.2-FC: Calculation of Renewable Generation Connection Direct Benefits/Provincial Amount: Renewable Expansion Investments
A42: Note: | B42: Appendices for the Tariff of Rates and Charges at Current and Proposed Rates, and for the Bill Impacts are now in a separate spreadsheet model. These appendices were formerly 2-Z and 2-W.

Sheet COS Flowchart
B4: Cost of Service Rate Application Schematic
B6: The Cost of Service Rate Application Schematic is a flowchart that is included as a guide for the components of an application. The schematic demonstrates how demand and costs interrelate to derive the revenue requirement and how the revenue requirement is allocated between classes and through fixed/variable splits to derive rates that will be compensatory for the annual revenue requirement, based on the the forecasted demand. There is no form to be filled out; therefore, this Schedule is not required to be filed.

Sheet List of Key References
B3: List of Key References
A5: A list of key references for understanding the Filing Requirements has been embedded in the document below. To access the list of references and associated hyperlinks double-click the icon below.

Sheet App.2-A_Requested_Approvals
G1: File Number: | H1: =EBNUMBER -> EB-2016-0110
G2: Exhibit: | H2: 1
G3: Tab: | H3: Appendix 1-D
G4: Schedule:
G5: Page:
G7: Date: | H7: 2016-10-28
B9: Appendix 2-A
B10: List of Requested Approvals
B12: The distributor must fill out the following sheet with the complete list of specific approvals requested and relevant section(s) of the legislation must be provided. All approvals, including accounting orders (deferral and variance accounts) new rate classes, revised specific service charges or retail service charges which the applicant is seeking, must be separately identified, as well being clearly documented in the appropriate sections of the application.
B14: Additional requests may be added by copying and pasting blank input rows, as needed.
B16: If additional requests arise, or requested approvals are removed, during the processing of the application, the distributor should update this list.
B18: =CONCATENATE('LDC Info'!E14," is seeking the following approvals in this application:") -> Welland Hydro-Electric System Corp. is seeking the following approvals in this application:
B20: 1 | F20: Approval to charge distribution rates effective May 1, 2017 to recover a service revenue requirement of $10,636,334 which includes a revenue deficiency of $1,056,407 as detailed in Exhibit 6. The schedule of proposed rates is set out in Exhibit 8.
B22: 2 | F22: Approval of the Distribution System Plan as outlined in Exhibit 2 Appendix 2-A.
B24: 3 | F24: Approval of a revised Microfit monthly service charge as outlined in Exhibit 7.
B26: 4 | F26: Approval to adjust the Retail Transmission Rates – Network and Connection as detailed in Exhibit 8.
B28: 5 | F28: Approval to eliminate separate Retail Transmission Rates for Interval versus Non-Interval customers within the General Service 50 to 4,999 kW class.
B30: 6 | F30: Approval to continue to charge Wholesale Market and Rural Rate Protection Charges approved in the Board Decision and Order in the matter of WHESC’s 2016 Distribution Rates (EB-2015-0109).
B32: 7 | F32: Approval to continue the Specific Service Charges, Retail Service Charges, and Transformer Allowance approved in the Board Decision and Order in the matter of WHESC’s 2016 Distribution Rates (EB-2015-0109).
B34: 8 | F34: Approval of two new Specific Service Charges as outlined in Exhibit 8.
B36: 9 | F36: Approval of the proposed loss factors as detailed in Exhibit 8.
B38: 10 | F38: Approval of the rate riders for a one year disposition of the Group 1 and Group 2 and Other Deferral and Variance Accounts as detailed in Exhibit 9.
B40: 11 | F40: Approval of the rate riders for a one year period to dispose of the difference from 2014-2016 in Net Book Value of Property, Plant and Equipment, as a result of WHESC’s changes to early retirement of assets which are no longer subject to pooling under IFRS. These adjustments are recorded in Account 1575, IFRS-CGAAP Transitional PP&E Amounts as explained in Exhibit 9.
B42: 12 | F42: Approval of the rate riders for a one year disposition of the Lost Revenue Adjustment Mechanism Variance Account ("LRAMVA") for lost revenue from 2013 to 2014 resulting from 2011 to 2015 OPA programs as detailed in Exhibit 4.
B44: 13 | F44: Approval to continue to use Deferral and Variance Account 1557 MIST Meters Capital and OM&A until WHESC’s next Cost of Service Rate Application.
B46: 14 | F46: Approval to obtain payment from the IESO for Ratepayer Protection under O. Reg. 330/09 in the amount of $5,172 annually by payment of $431 monthly for Renewable Generation Connection-Provincial Amount as detailed in Exhibit 2. Start date of date with effect January 1, 2017.
B48: 15 | F48: Approval to obtain a one-time payment from the IESO for Ratepayer Protecton under O. Reg. 330/0 in the amount of $8,136 for Renewable Generation Connection-Provincial Amounts as detailed in Exhibit 2. Cummulative Provincial Amounts to December 31, 2016.

Sheet App.2-AA_Capital Projects
G1: File Number: | H1: =EBNUMBER -> EB-2016-0110
G2: Exhibit: | H2: 2
G3: Tab:
G4: Schedule:
G5: Page: | H5: 47-51
G7: Date: | H7: 2016-10-28
A9: Appendix 2-AA
A10: Capital Projects Table
A13: Projects | B13: 2012 Revised | C13: 2013 Revised | D13: 2014 | E13: =BridgeYear - 1 -> 2015 | F13: =BridgeYear & " Bridge Year" -> 2016 Bridge Year | G13: =TestYear & " Test Year" -> 2017 Test Year | H13: 2018 Forecast | I13: 2019 Forecast | J13: 2020 Forecast | K13: 2021 Forecast
A14: Reporting Basis | B14: CGAAP | C14: CGAAP | D14: MIFRS | E14: MIFRS | F14: MIFRS | G14: MIFRS | H14: MIFRS | I14: MIFRS | J14: MIFRS | K14: MIFRS
A15: System Access
A16: Municipal Relocations
A17: Woodlawn Road Widening Rice to First Avenue | B17: 287848
A18: Contributed Capital Region of Niagara - Woodlawn | B18: -124159
A19: Wellington Street Road Widening | E19: 32821
A20: Contributed Capital City of Welland - Wellington | F20: -3000
A21: System Expansion - Generation | G21: 14501
A22: Sub-Total Municipal Relocations | B22: =SUM(B17:B21) -> 163689 | C22: =SUM(C17:C21) -> 0 | D22: 0 | E22: 32821 | F22: -3000 | G22: 14501 | H22: 0 | I22: 0 | J22: 0 | K22: 0
A23: Customer Connections
A24: New Overhead/Underground Service Connections | B24: 39404 | C24: 9908 | D24: 40922 | E24: 42577 | F24: 40000 | G24: 40000 | H24: 40000 | I24: 40000 | J24: 40000 | K24: 40000
A25: Expansions (Subdivisions)
A26: Clare Estates 1 | B26: 9160
A27: Elmwood Estates | B27: 28368
A28: Hunter's Pointe - Galloway | B28: 26515
A29: Hunter's Pointe - Block 150 | B29: 2316
A30: Shipview Court | B30: 10175
A31: Webber Estates | C31: 28503
A32: Blue Rive Estates | C32: 16214
A33: Hunter's Pointe - Masters | C33: 9864
A34: Hunter's Pointe - Highlands | C34: 14820
A35: Coyle Creek 2 & 3 | D35: 6800
A36: Pine Creek | D36: 6919
A37: Clare Estates 2 | D37: 1902
A38: Coyle Creek 4 | D38: 8112
A39: Tetherwood 2 | D39: 6583
A40: Michael Drive | E40: 4230
A41: Clare Estates 3 | E41: 10068
A42: Lochness North 1 | E42: 10112
A43: Sub Total Subdivisions - Plan | B43: =SUM(B26:B42) -> 76534 | C43: =SUM(C26:C42) -> 69401 | D43: 30316 | E43: 24410 | F43: 50000 | G43: 50000 | H43: 50000 | I43: 50000 | J43: 50000 | K43: 50000
A44: Expansions (Transformers/Meters)
A45: Contributed Capital Sale of Transformers/Meters | B45: -74519 | C45: -59359 | D45: -29240 | E45: -56586 | F45: 0 | G45: 0 | H45: 0 | I45: 0 | J45: 0 | K45: 0
A46: Retail Meters
A47: Smart Meters | B47: 17202 | C47: 65532 | D47: 63482 | E47: 50857 | F47: 60000 | G47: 100000 | H47: 100000 | I47: 100000 | J47: 100000 | K47: 60000
A48: Communication Equipment - Metro Collector | B48: 3456
A49: Computer Equipment - Smart Meter Diagnostics | D49: 5873
A50: MIST Meter Replacements | H50: 60000 | I50: 60000
A51: Sub-Total Retail Meters | B51: =SUM(B47:B50) -> 20658 | C51: =SUM(C47:C50) -> 65532 | D51: 69355 | E51: 50857 | F51: 60000 | G51: 100000 | H51: 160000 | I51: 160000 | J51: 100000 | K51: 60000
A52: Sub-Total System Access | B52: =B51+B45+B43+B24+B22 -> 225766 | C52: =C51+C45+C43+C24+C22 -> 85482 | D52: 111353 | E52: 94079 | F52: 147000 | G52: 204501 | H52: 250000 | I52: 250000 | J52: 190000 | K52: 150000
A53: System Renewal Projects
A54: Substation Renewal
A55: MS 3 Battery Charger Replacement | E55: 8227
A56: MS 4 Primary Cabling | C56: 3532
A57: MS 5 Fencing | B57: 6627
A58: MS 5 HV Switchgear - 5T2 | B58: 46065
A59: MS 5 HV Switchgear - 5T1 | E59: 51032
A60: MS 6 Transformer & Primary Cabling | B60: 100995
A61: MS 7 Switchgear & Primary Cabling | B61: 828 | F61: 200000
A62: MS 8 Transformer/Switchgear/Primary Cabling | G62: 50000 | H62: 100000 | I62: 100000
A63: MS 9 Switchgear & Primary Cabling | I63: 50000 | J63: 50000 | K63: 100000
A64: MS 10 HV Switchgear & Primary Cabling | H64: 125000
A65: MS 12 Transformer & Primary Cabling | B65: 47270 | E65: 30290
A66: MS 14 Transformer/Switchgear/Primary Cabling | E66: 48350 | G66: 120000
A67: Sub-Total Substation Renewal | B67: =SUM(B55:B66) -> 201785 | C67: =SUM(C55:C66) -> 3532 | D67: 0 | E67: 137899 | F67: 200000 | G67: 170000 | H67: 225000 | I67: 150000 | J67: 50000 | K67: 100000
A68: Overhead Line Renewal
A69: Pole Replacement 4.16kV First Ave-College Park to Woodland | B69: 37692
A70: Pole Replacement 4.16kV Summitt Ave | B70: 17011
A71: Aqueduct Area 4.16kV Rebuild-Birch,Cedar,Beechwood | B71: 73440
A72: Pole Replacement 4.16kV Market Square | B72: 17473
A73: Regent Street Rebuild/Conversion 2.4kV to 16kV | B73: 292255
A74: Mayfair Estates Rebuild/Conversion 2.4kV to 16kV | B74: 69810
A75: Niagara Street South of Quaker Rebuild/Conversion 4.16kV to 27.6kV | B75: 33324
A76: Plymouth Road-St. Mary's School Rebuild/Conversion 4.16kV to 27.6kV | B76: 25473
A77: Netherby Road @ Townline Tunnel Rebuild/Conversion 2.4kV to 16kV | B77: 17375 | C77: 20185
A78: Maple,Bald,Denistoun,Hooker Rebuild/Conversion 4.16kV to 27.6kV | B78: 193692 | C78: 2992
A79: PCB Transformer Replacements | B79: 13660 | C79: 51238
A80: Cohoe Street 4.16kV Rebuild | C80: 12538
A81: Pine Street 4.16kV Rebuild | C81: 28469
A82: Circuit North of Crowland TS 27.6kV Rebuild | C82: 12305
A83: Pole Replacement 4.16kV Woodview Estates-Trent Avenue | C83: 29178
A84: Garner Avenue 4.16kV Rebuild | C84: 83995 | D84: 4318
A85: Fitch Street-First Ave to Prince Charles Rebuild/Conversion 2.4kV to 16kV | C85: 31326
A86: Wilton & Riverside Rebuild/Conversion 4.16kV to 27.6kV | C86: 262157
A87: McCormick & Dufferin Rebuild/Conversion 2.4kV to 16kV | C87: 66862
A88: Cady Street Rebuild/Conversion 2.4kV to 16kV | C88: 22122
A89: Southworth Rebuild/Conversion 4.16kV to 27.6kV | C89: 335986
A90: Lancaster Drive Rebuild/Conversion 4.16kV to 27.6kV | C90: 54193
A91: Major Street 27.6kV Rebuild | D91: 323827
A92: Division & Burger Rebuild/Conversion 4.16kV to 27.6kV | D92: 295502
A93: Bald St West and Denistoun Rebuild/Conversion 2.4kV to 16kV | D93: 32978
A94: Clare Avenue & Woodlawn Rebuild/Conversion 4.16kV to 27.6kV | D94: 112907
A95: Harriet Street Rebuild/Conversion 2.4kV to 16kV | D95: 27181
A96: Wallace Avenue Rebuild/Conversion 2.4kV to 16kV | D96: 45980
A97: James Street 4.16kV Rebuild | D97: 5393 | E97: 13477
A98: Orchard,Wright,Deere Rebuild/Conversion 2.4kV to 16kV | D98: 156366 | E98: 175959
A99: Lincoln,Wilton,Riverside Rebuild/Conversion 4.16kV to 27.6kV | D99: 4475 | E99: 61145
A100: Grange Avenue 4.16kV Rebuild | E100: 37806
A101: Southworth Rebuild 8F3 Feeder | E101: 69369
A102: Fitch Street & Westdale Rebuild/Conversion 2.4kV to 16kV | E102: 70026
A103: Hellems Ave-King Street Conversion 4.16kV to 27.6kV | E103: 97672
A104: Hellems Ave- Dorothy to Park Rebuild/Conversion 4.16kV to 27.6kV | E104: 269045 | F104: 300000
A105: Fitch Street @ MS7 4.17/27.6kV Rebuild to accommodate upgrade | F105: 75000
A106: Lincoln Street east of Denistoun 27.6kV Rebuild | F106: 50000
A107: Church St/Niagara Street Rebuild/Conversion 4.16kV to 27.6kV | F107: 450000 | G107: 300000
A108: Wellington Street-East Main to Eastdale Rebuild/Conversion 4.16kV to 27.6kV | F108: 88000 | G108: 250000
A109: Bradley Ave 4.16kV Rebuild to accommodate Robert St U/G | G109: 49485
A110: Ross Street/Kennedy Street Rebuild/Conversion 4.16kV to 27.6kV | G110: 150000 | H110: 100000
A111: Ontario Road Corridor to Canal Rebuild/Conversion 4.16kV to 27.6kV | H111: 300000
A112: Lincoln Street-Coventry to Schoelfield Rebuild/Conversion 4.16kV to 27.6kV | I112: 440000
A113: Duncan Street-Hagar to East Main Rebuild/Conversion 4.16kV to 27.6kV | I113: 300000 | J113: 320000
A114: Clare-Thorold to Steven Rebuild/Conversion 4.16kV to 27.6kV | J114: 100000
A115: Dorothy Street-River Road to Ross St Rebuild/Conversion 2.4kV to 16kV | J115: 100000
A116: Denistoun Street-Hooker to Welland River Rebuild/Conversion 4.16kV to 27.6kV | J116: 250000
A117: Myrtle Avenue Rebuild/Conversion 4.16kV to 27.6kV | J117: 165000
A118: Rusholme Road 27.6kV Rebuild | K118: 150000
A119: Classic/Lewis Street Rebuild/Conversion 2.4kV to 16kV | K119: 350000
A120: King Street-Lincoln to Regent Rebuild/Conversion 4.16kV to 27.6kV | K120: 300000
A121: Hellems Ave-Park to Lincoln Rebuild/Conversion 4.16kV to 27.6kV | K121: 310000
A122: Sub-Total Overhead Line Renewal | B122: =SUM(B69:B121) -> 791205 | C122: =SUM(C69:C121) -> 1013546 | D122: 1008927 | E122: 794499 | F122: 963000 | G122: 749485 | H122: 400000 | I122: 740000 | J122: 935000 | K122: 1110000
A123: Underground Line Renewal
A124: Preston Place 4.16kV Rebuild | B124: 23178
A125: Whiteoak Cr 4.16kV Rebuild | B125: 21629
A126: McComb 4.16kV Rebuild | B126: 79076 | C126: 5503
A127: Oak Street Rebuild/Conversion 2.4kV to 16kV | B127: 21791 | C127: 45650
A128: Ontario Road Canal Crossing-Backup Cable | C128: 20075
A129: Woodlawn/Lincoln/Division Canal Crossing-Backup Cable | C129: 41856
A130: Preston,Wiltshire,McColl 4.16kV Rebuild | C130: 171993
A131: Graystone Area Rebuild/Conversion 2.4kV to 16kV | C131: 17970 | D131: 380376 | E131: 54285
A132: Clairmount/Bettes Rebuild/Conversion 2.4kV to 16kV | C132: 30590 | D132: 31397
A133: Birch & Linwood Rebuild/Conversion 2.4kV to 16kV | D133: 38603
A134: Rice Road Rebuild/Conversion 4.16kV to 27.6kV | D134: 85950 | E134: 17256
A135: Humberstone/Townline Tunnel 27.6 kV Rebuild | E135: 345567
A136: Regatta Drive-Primary Loop 2.4kV Rebuild | E136: 23771
A137: Wilson Road to New Seniors Residence Rebuild/Conversion 4.16kV to 27.6kV | E137: 133567
A138: Woodington/Champlain 2.4kV Rebuild | F138: 100000
A139: Silvan/Newleaf Phase 1 Rebuild/Conversion 2.4kV to 16kV | F139: 210000
A140: Maureen Ave 2.4kV Rebuild | G140: 125000
A141: Riverview Drive Rebuild/Conversion 4.16kV to 27.6kV | G141: 150000
A142: Robert Street Rebuild/Conversion 2.4kV to 16kV | G142: 150000
A143: Silvan/Newleaf Phase 2 Rebuild/Conversion 2.4kV to 16kV | G143: 280000
A144: Royal Oak 2.4kV Rebuild | H144: 160000
A145: Page Drive-Whiteoak Cr 2.4kV Rebuild | H145: 250000
A146: Loyalist/Lisa/Jennifer Rebuild/Conversion 2.4kV to 16kV | H146: 300000
A147: Glenayr/McGill 2.4kV Rebuild | I147: 300000
A148: Glen Park Drive/Court Rebuild/Conversion 2.4kV to 16kV | I148: 300000
A149: Centennial Drive Rebuild/Conversion 2.4kV to 16kV | I149: 125000
A150: Rolling Acres 2.4kV Rebuild | J150: 200000
A151: Bridlewood/Chapel Hill Rebuild/Conversion 2.4kV to 16kV | J151: 300000
A152: Apple/Brant Rebuild/Conversion 2.4kV to 16kV | J152: 125000
A153: Erin & Steven Rebuild/Conversion 2.4kV to 16kV | J153: 150000 | K153: 150000
A154: Nottingham Ave 2.4kV Rebuild | K154: 250000
A155: Sub-Total Underground Line Renewal | B155: =SUM(B124:B154) -> 145674 | C155: =SUM(C124:C154) -> 333637 | D155: 536326 | E155: 574446 | F155: 310000 | G155: 705000 | H155: 710000 | I155: 725000 | J155: 775000 | K155: 400000
A156: Miscellaneous Renewal
A157: Miscellaneous Pole Replacements | B157: 78259 | C157: 89289 | D157: 107968 | E157: 101094 | F157: 100000 | G157: 100000 | H157: 50000 | I157: 50000 | J157: 50000 | K157: 50000
A158: Miscellaneous Transformer Replacements | B158: 27771 | C158: 81026 | D158: 39399 | E158: 73031 | F158: 50000 | G158: 50000 | H158: 50000 | I158: 50000 | J158: 50000 | K158: 50000
A159: Transformers New Developments | B159: 74519 | C159: 59359 | D159: 29240 | E159: 56586 | F159: 0 | G159: 0 | H159: 0 | I159: 0 | J159: 0 | K159: 0
A160: Change in Transformer Inventory | B160: -128126 | C160: -117628 | D160: -43991 | E160: 36030 | F160: 0 | G160: 0 | H160: 0 | I160: 0 | J160: 0 | K160: 0
A161: Miscellaneous Underground Rebuild | B161: 30926 | C161: 582 | D161: 32436 | E161: 0 | F161: 30000 | G161: 30000 | H161: 30000 | I161: 30000 | J161: 30000 | K161: 30000
A162: Miscellaneous Overhead Primary | B162: 11288 | C162: 41357 | D162: 0 | E162: 0 | F162: 30000 | G162: 30000 | H162: 30000 | I162: 30000 | J162: 30000 | K162: 30000
A163: Sub-Total Miscellaneous Renewal | B163: =SUM(B157:B162) -> 94637 | C163: =SUM(C157:C162) -> 153985 | D163: 165052 | E163: 266741 | F163: 210000 | G163: 210000 | H163: 160000 | I163: 160000 | J163: 160000 | K163: 160000
A164: Sub-Total System Renewal Projects | B164: =B163+B155+B122+B67 -> 1233301 | C164: =C163+C155+C122+C67 -> 1504700 | D164: 1710305 | E164: 1773585 | F164: 1683000 | G164: 1834485 | H164: 1495000 | I164: 1775000 | J164: 1920000 | K164: 1770000
A165: System Service
A166: Scada/Substation System Service
A167: Scada Switches/Remote Fault Indicators/Radio Systems | B167: 8300 | C167: 4047 | E167: 5326 | G167: 60000 | H167: 35000 | I167: 35000 | J167: 35000 | K167: 35000
A168: MS1 - RTU/Relay Replacements | H168: 100000
A169: MS5 - RTU/Relay Replacements | H169: 75000
A170: Scada SmartVU/Server Upgrade | G170: 50000 | H170: 50000
A171: Scada Software ICCP | D171: 55500 | E171: 27911
A172: Sub-Total System Service | B172: =SUM(B166:B171) -> 8300 | C172: 4047 | D172: 55500 | E172: 33237 | F172: 0 | G172: 110000 | H172: 260000 | I172: 35000 | J172: 35000 | K172: 35000
A173: General Plant
A174: Furniture & Equipment
A175: Furniture & Equipment | B175: 11025 | C175: 1403 | D175: 0 | E175: 0 | F175: 0 | G175: 0 | H175: 0 | I175: 0 | J175: 0 | K175: 0
A176: Computer Hardware
A177: Computer Equipment Miscellaneous | B177: 13289 | C177: 14809 | D177: 14064 | E177: 42657 | F177: 25000 | G177: 25000 | H177: 25000 | I177: 25000 | J177: 25000 | K177: 25000
A178: Computer Equipment FileNexus Test Server | D178: 7645
A179: Computer Equipment HP Scanners (4) | D179: 6536
A180: Computer Equipment Cisco Firewall | D180: 9705
A181: Computer Equipment Server/Lan/Battery Backup | D181: 45922
A182: Computer Equipment Engineering Server | D182: 13353
A183: Computer Equipment Engineering Plotter | D183: 7839
A184: Computer Equipment Mcare Tablets (4) | D184: 7560 | E184: 8984
A185: Computer Equipment Backup Server from Tape to Disk | E185: 15683
A186: Sub-Total Computer Equipment | B186: =SUM(B177:B185) -> 13289 | C186: =SUM(C177:C185) -> 14809 | D186: 112624 | E186: 67324 | F186: 25000 | G186: 25000 | H186: 25000 | I186: 25000 | J186: 25000 | K186: 25000
A187: Computer Software
A188: Computer Software Northstar Customer Connect | B188: 11250 | D188: 3750
A189: Computer Software Northstar CIS Version 6.4 | D189: 42844 | E189: -3427
A190: Computer Software Northstar CIS Automation Platform | E190: 8400
A191: Computer Software Northstar CIS Cognos License | E191: 5667
A192: Computer Software Cayenta Financials Implementation | B192: 58433
A193: Computer Software Cayenta Financials Fixed Assets Module/Upgrade | E193: 35490 | F193: 25000
A194: Computer Software Spidaweb | B194: 4411
A195: Computer Software Autocad | B195: 4620
A196: Computer Software FileNexus Document Storage License/Modules | C196: 68401 | D196: =1000+3486+3600+6760+8340+8306 -> 31492
A197: Computer Software FileNexus Customer Online Forms | F197: 40000 | G197: 40000
A198: Computer Software Multispeak Outage Manager | C198: 16621
A199: Sub Total Computer Software - Plan | B199: =SUM(B188:B198) -> 78714 | C199: 85022 | D199: 78086 | E199: 46130 | F199: 65000 | G199: 40000 | H199: 50000 | I199: 50000 | J199: 50000 | K199: 50000
A200: Communication Equipment
A201: Communication Equipment - New Phone System | B201: 0 | C201: 68771 | D201: 3495 | E201: 0 | F201: 0 | G201: 0 | H201: 0 | I201: 0 | J201: 0 | K201: 0
A202: Measurement & Testing Equipment
A203: Measurement & Testing Equipment | B203: 2996 | C203: -711 | D203: 0 | E203: 0 | F203: 0 | G203: 0 | H203: 0 | I203: 0 | J203: 0 | K203: 0
A204: Tools
... 44 more rows

Sheet App.2-AB_Capital Expenditures
S1: File Number: | U1: =EBNUMBER -> EB-2016-0110
S2: Exhibit: | U2: 2
S3: Tab:
S4: Schedule:
S5: Page: | U5: 40
S7: Date: | U7: 2016-10-28
A9: Appendix 2-AB
A10: Table 2 - Capital Expenditure Summary from Chapter 5 Consolidated Distribution System Plan Filing Requirements
A12: First year of Forecast Period: | B12: 2017
A13: CATEGORY | B13: Historical Period (previous plan1 & actual) | Q13: Forecast Period (planned)
B14: =E14-1 -> 2012 | E14: =H14-1 -> 2013 | H14: =K14-1 -> 2014 | K14: =N14-1 -> 2015 | N14: =Q14-1 -> 2016 | Q14: =B12 -> 2017 | R14: =Q14+1 -> 2018 | S14: =R14+1 -> 2019 | T14: =S14+1 -> 2020 | U14: =T14+1 -> 2021
B15: Plan | C15: Actual | D15: Var | E15: Plan | F15: Actual | G15: Var | H15: Plan | I15: Actual | J15: Var | K15: Plan | L15: Actual | M15: Var | N15: Plan | O15: Actual2 | P15: Var
B16: $ '000 | D16: % | E16: $ '000 | G16: % | H16: $ '000 | J16: % | K16: $ '000 | M16: % | N16: $ '000 | P16: % | Q16: $ '000
A17: System Access | C17: 225766 | D17: =IF(ISERROR((C17-B17)/B17),"--",(C17-B17)/B17) -> -- | E17: =35000+50000+50000 -> 135000 | F17: 85482 | G17: =IF(ISERROR((F17-E17)/E17),"--",(F17-E17)/E17) -> -0.3668 | I17: 111353 | J17: =IF(ISERROR((I17-H17)/H17),"--",(I17-H17)/H17) -> -- | L17: 94079 | M17: =IF(ISERROR((L17-K17)/K17),"--",(L17-K17)/K17) -> -- | N17: 147000 | O17: 147000 | P17: =IF(ISERROR((O17-N17)/N17),"--",(O17-N17)/N17) -> 0 | Q17: 204501 | R17: 250000 | S17: 250000 | T17: 190000 | U17: 150000
A18: System Renewal | C18: 1233301 | D18: -- | E18: =1369200-35000 -> 1334200 | F18: 1504700 | G18: 0.1277919352 | I18: 1710305 | J18: -- | L18: 1773585 | M18: -- | N18: 1683000 | O18: 1683000 | P18: 0 | Q18: 1834485 | R18: 1495000 | S18: 1775000 | T18: 1920000 | U18: 1770000
A19: System Service | C19: 8300 | D19: -- | E19: 35000 | F19: 4047 | G19: -0.8843714286 | I19: 55500 | J19: -- | L19: 33237 | M19: -- | N19: 0 | O19: 0 | P19: -- | Q19: 110000 | R19: 260000 | S19: 35000 | T19: 35000 | U19: 35000
A20: General Plant | C20: =499350-81719 -> 417631 | D20: -- | E20: =30000+5000+5000+52000+10000+325165+5000+17500+2500+20000 -> 472165 | F20: =515118+1958 -> 517076 | G20: 0.09511717302 | I20: 322389 | J20: -- | L20: 281463 | M20: -- | N20: 801800 | O20: 801800 | P20: 0 | Q20: 265000 | R20: 305000 | S20: 400000 | T20: 295000 | U20: 525000
A21: TOTAL EXPENDITURE | B21: 1887015 | C21: =SUM(C17:C20) -> 1884998 | D21: -0.001068883925 | E21: 1976365 | F21: 2111305 | G21: 0.06827686181 | H21: 2002500 | I21: 2199547 | J21: 0.09840049938 | K21: 2027500 | L21: 2182364 | M21: 0.07638175092 | N21: 2631800 | O21: 2631800 | P21: 0 | Q21: 2413986 | R21: 2310000 | S21: 2460000 | T21: 2440000 | U21: =SUM(U17:U20) -> 2480000
A22: System O&M | C22: 2978610 | D22: -- | E22: 3013809 | F22: 2886152 | G22: -0.04235736239 | I22: 2926724 | J22: -- | L22: 3154558 | M22: -- | N22: 3255419 | O22: 3255419 | P22: 0 | Q22: 3392703
A24: Notes to the Table:
A25: 1. Historical “previous plan” data is not required unless a plan has previously been filed. However, use the last Board-approved, at least on a Total (Capital) Expenditure basis for the last cost of service rebasing year, and the applicant should include their planned budget in each subsequent historical year up to and including the Bridge Year.
A26: 2. Indicate the number of months of 'actual' data included in the last year of the Historical Period (normally a 'bridge' year): | J26: 0
A28: Explanatory Notes on Variances (complete only if applicable)
A29: Notes on shifts in forecast vs. historical budgets by category
A30: The Budget amounts from 2013 to 2015 represents the total capital from the Asset Management Plan included in the 2013 Cost of Service Application ("COS"). As no Distribution System Plan was included in the 2013 COS there is no breakout available by category for the budget from 2012 to 2015. The Budget for 2012 represents the final amount approved in the 2013 Cost of Service Rate Application as detailed in the final Chapter 2 Appendices 2012 Continuity MIFRS.
A32: Notes on year over year Plan vs. Actual variances for Total Expenditures
A33: Actual capital expenditures exceeded plan from 5% to 10% per year over the 2013 to 2015 period. Actuals are within the plus/minus 10% target WHESC has determined for Capital Expenditures. General Plant increased significantly in the 2016 Bridge Year as a result of the purchase of two new trucks at a cost of approximatley $650K.
A35: Notes on Plan vs. Actual variance trends for individual expenditure categories

Sheet App.2-AC_Customer Engagement
B1: File Number: | C1: =EBNUMBER -> EB-2016-0110
B2: Exhibit: | C2: 1
B3: Tab:
B4: Schedule:
B5: Page:
B7: Date: | C7: 2016-10-28
A9: Appendix 2-AC
A10: Customer Engagement Activities Summary
A12: Provide a list of customer engagement activities | B12: Provide a list of customer needs and preferences identified through each engagement activity | C12: Actions taken to respond to identified needs and preferences. If no action was taken, explain why.
A13: Meetings with City of Welland and Region of Niagara Scattered Load rates in 2017 Rate Application and bill impacts. | B13: Region of Niagara advised that scattered load has very little impact on their costs. City of Welland were also advised of scattered load bill impacts. | C13: WHESC explained impact of scattered load rates in rate application and impact on future bills for the City of Welland and the Region of Niagara as they represent the majority of the scattered load customers.
A15: City of Welland Corporate Calls for Commercial Customers Welland Hydro is part of the City of Welland team which meets with individual commercial customers (13-15 customers) annually in 2014, 2015 and 2016. | B15: Customer needs identified were issues with momentary outages, power quality, e-billing, Class A vs Class B in regard to Global adjustment, electricity usage and CDM questions. | C15: Customer follow up meetings were held to discuss and resolve issues in regard to outages and power quality, assist with registration for e-billing, review Class A and Class B, electricity usage and CDM.
A17: Meetings with two large industrial customers (GS>50kW) Welland Forge and Welded Tube. | B17: Meetings were held with Welded Tube to assist with power quality issues. Meetings were held with Welland Forge to review Class A and B status and options. | C17: Power quality meetings were held with Welded Tube as well as contact information to dedicated staff for any future issues. Welland Forge has become a Class A customer after reviewing all variables and options through meetings with WHESC and the IESO.
A19: IESO and WHESC Focus Group Meetings July 27/28, 2015 IESO organized Focus Group meetings for Residential, Commercial, and Contractors from WHESC regarding CDM SaveONenergy Programs. | B19: Residential customers and commercial customers advised that they complete CDM projects as a concern for the environment. Customers are aware of CDM Programs, believe they will reduce consumption, but probably only maintain cost as rates are increasing. Customers believe electricity cost is expensive and cannot afford a lot of increases in their electricity bills. Customers would like to see higher incentives for they CDM Programs. For the most part they mistrust of the Ontario government in regards to the electricity market. | C19: WHESC markets programs through newspaper and social media to assist customers with program information, WHESC completes applications to make the process easier for customers when required. Customer Connect is used to assist customers with understanding usage and costs and TOU rate impacts. WHESC is a member of the Welland Pelham Chamber of Commerce, Niagara Industrial Association (NIA), and SEART (Special Events Application Review Team) to understand potential growth, address customer questions, and understand the needs of customers.
A21: Meeting with Region of Niagara - August 2015 | B21: Review the Region of Niagara projects over the next 5 years and any concerns in regards to service issues. Projects discussed included lighting projects at water pump sights and a retrofit project at the Water Treatment Plant. | C21: WHESC assisted with applications for Water Treatment Plant retrofit that is currently taking place and provided information for the lighting retrofit projects.
A23: Customer Engagement Focus Group Residential Customers August 25, 2015 - 13 customers attended | B23: Customers want accurate bills, Pre-Authorized Payment options, communication by telephone, and reliable power. However, they do not want to pay higher electricity rates. They like the online Customer Connect tool and overall are happy with WHESC Customer Service. Customers were made aware of what to do around downed wires and to call before digging. One customer requested a visit from Welland Hydro staff in regards to an old service at their site. | C23: WHESC maintains +99% accuracy for billing. WHESC developed an online PAP portal now used by customers. Automated calls are sent for any planned or emergency outages and 48 hour calls for non payment issues. WHESC is currently updating its Customer Connect to enhance online site (test system currently). Safety Advertising on radio is taken out twice per year along with continuing Elementary School Safety and Conservation programs. WHESC is currently developing Customer Connect and Outage Management App for mobile devices.
A25: Hope Centre Meetings (LEAP and OESP Agency) WHESC meetings with HOPE Centre Executive Director and Hope Centre staff to review issues with LEAP, OESP, Low Income Customers and Senior Citizens | B25: Customers are concerned with high costs and want to access information online. Customers are having some difficulty understanding OESP and seniors are sometimes too proud to come to the Hope Centre for assistance. | C25: WHESC and the Hope Centre held two special days, one at City Hall in Welland and one at WHESC to register and explain LEAP, OESP and Customer Connect (online billing presentation information and e-billing) to customers.
A27: Customer Engagement 2016 Rate Application WHESC worked with Marketing Innovations to create a Customer Engagement Plan to present rate changes and bill impacts to WHESC Customers via- Telephone Surveys, Two Focus Group Sessions and Individual Meetings with 5 GS> 50 kW customers. reference is Customer Consultation Report 2017 Rate Application Review | B27: Please refer to Customer Consultation Report 2017 Rate Application Exhibit 1 for a Review for Customers needs and preferences identified. | C27: Please refer to Customer Consultation Report 2017 Rate Application Exhibit 1 for a Review for Customers needs and preferences identified.
A45: Note: Use "ALT-ENTER" to go to the next line within a cell

Sheet App.2-B_Acctg Instructions
A1: General Instructions to MIFRS Appendices
A2: Types of Schedules to File
A4: The purpose of this tab is to provide general instructions. The specific instructions to each appendix are listed in footnotes of each appendix.
A6: The typical applicant is expected to have made capitalization and depreciation policy changes under CGAAP as permitted by the Board on January 1, 2012 or mandated by the Board by January 1, 2013, and adopted IFRS for reporting purposes on January 1, 2015 (transition date January 1, 2014). Some distributors filing for 2017 rates have rebased with these accounting changes reflected in a prior rebasing application. If that is the case, information relating to pre-accounting policy changes is not generally required. The information to be provided by applicants will depend on when the accounting policy changes were made and when they last rebased. In general, applicants should provide the following information in the appendices:
E9: Reflecting Accounting Policy Changes in Current Application | G9: Reflected Accounting Policy Changes in Prior Application3
E10: Accounting Policy Changes in 2012 and Adopted IFRS in 2015 | F10: Accounting Policy Changes in 2013 and Adopted IFRS in 2015 | G10: Adopted IFRS in 2015
A11: Information to be filed in 2017 CoS Application | B11: 2017 | C11: Test | E11: MIFRS | F11: MIFRS | G11: MIFRS
B12: 2016 | C12: Bridge | E12: MIFRS | F12: MIFRS | G12: MIFRS
B13: 2015 | C13: Historical | E13: MIFRS | F13: MIFRS | G13: MIFRS
B14: 2014 | C14: Historical | E14: MIFRS and Revised CGAAP1 | F14: MIFRS and Revised CGAAP1 | G14: MIFRS and Revised CGAAP1
B15: 2013 | C15: Historical | E15: Revised CGAAP | F15: CGAAP and Revised CGAAP2 | G15: Rebased under Revised CGAAP
B16: 2012 | C16: Historical | E16: CGAAP and Revised CGAAP2 | F16: CGAAP | G16: Rebased under Revised CGAAP
B17: Prior | C17: Historicals | E17: Rebased under CGAAP | F17: Rebased under CGAAP | G17: N/A
A19: 1) For the transition year (2014), the applicant may file two appendices, one under Revised CGAAP and one under MIFRS, depending on the materiality of impacts. See the specific instructions under each appendix below for further details.
A20: 2) For applicants that are reflecting accounting policy changes for the first time in a rebasing application, the applicant must file two appendices in the year that the applicant implemented changes to its capitalization and depreciation policies (2012 or 2013), one before and one after the policy changes.
A21: 3) Applicants should provide CGGAP and Revised CGAAP schedules (i.e. as indicated in the first two columns of the above table) to support balances in Account 1576 if the account has yet to be disposed of.
A23: Appendix 2-BA - Fixed Asset Schedule
A25: Applicants are to provide Appendix 2-BA in accordance with the years and corresponding accounting standards noted in the above table to provide a year over year continuity in fixed assets.
A26: For the transition year (2014), the applicant should file two appendices, one under Revised CGAAP and one under MIFRS if the change between Revised CGAAP and MIFRS is material. If the change from the accounting standards is not material, the applicant may choose to only provide one appendix under MIFRS. However, the applicant must also indicate the fixed asset net book value balance under Revised CGAAP, the total dollar value of the change and explain why it is not material.
A30: Regulatory Gross Assets of Property, Plant and Equipment
A32: For an applicant that adopted IFRS on January 1, 2015 for financial reporting purposes, the applicant must establish the continuity of historic cost by using the December 31, 2013 regulatory gross assets of property, plant and equipment as the opening January 1, 2014 regulatory gross assets. The applicant must provide schedules (including Appendix 2-BA, Fixed Asset Continuity Schedule) which must identify the following details to substantiate the continuity of historic cost for regulatory purposes:
A35: · December 31, 2013 regulatory gross assets of property, plant and equipment, by asset class; and
A36: · January 1, 2014 regulatory gross assets of property, plant and equipment, by asset class.
A38: Accumulated Depreciation
A40: For an applicant that adopted IFRS on January 1, 2015 for financial reporting purposes, the applicant must establish the continuity of historic cost by using the December 31, 2013 regulatory accumulated depreciation as the opening January 1, 2014 regulatory accumulated depreciation. The applicant must provide schedules (including Appendix 2-BA, Fixed Asset Continuity Schedule) which must identify the following details to substantiate the continuity of historic cost for regulatory purposes:
A43: · December 31, 2013 regulatory accumulated depreciation, by asset class; and
A44: · January 1, 2014 regulatory accumulated depreciation, by asset class.
A46: Appendix 2-Cx - Depreciation and Amortization
A48: Applicants are to provide Appendix 2-Cx in accordance with the years and corresponding accounting standards listed in the above table.
A49: · | B49: If an applicant is reflecting changes to its depreciation policies for the first time in a rebasing application, the applicant should complete Appendix 2-CA to 2-CG (changes made in 2012) or Appendix 2-CA to 2-CF (changes made in 2013). In this set of appendices, the applicant will need to indicate the year it made the accounting policy changes. The applicant must provide data starting from the year it made changes to its capitalization and depreciation policies.
B52: *Depreciation accounting policy changes were mandated by the Board by January 1, 2013. In general, no further changes to an applicant's depreciation policy (i.e. assets' service lives) are expected after the Board mandated changes by January 1, 2013. The set of Appendix 2-CA to 2-CG assumes this to be the case. If the applicant has made any changes to its depreciation policy subsequent to the Board mandated changes, applicants must identify the change, explain the nature of the change, the reason for the change, quantify the impact of the change, and quantify the depreciation expense before and after the change.
A53: · | B53: If an applicant changed depreciation policies and reflected these changes in a prior rebasing application, the applicant should complete Appendix 2-CH. The applicant must provide data starting from the earlier of 1) all historical years back to its last rebasing; or 2) at least three years of historical actuals, in addition to Bridge Year and Test Year forecasts.
A56: Appendix 2-E - Account 1575, IFRS-CGAAP Transitional PP&E Amounts (2-EA), Account 1576, Accounting Changes Under CGAAP (2-EB, 2-EC)
A58: 1) For an applicant that has a balance in Account 1576 to dispose:
A59: · | B59: If an applicant changed capitalization and depreciation policies effective January 1, 2012, the applicant must complete Appendix 2-EB
A60: · | B60: If an applicant changed capitalization and depreciation policies effective January 1, 2013, the applicant must complete Appendix 2-EC
A62: 2) For an applicant that has a balance in Account 1575 to dispose:
A63: · | B63: The applicant must complete 2-EA
A64: If the applicant did not make any further PP&E accounting policy changes beyond the capitalization and depreciation policy changes as mandated by the Board by January 1, 2013 (i.e. no further changes made on transition to IFRS), the applicant must indicate this and does not need to complete Appendix 2-EA.
A69: Please refer to section 2.12.4 and 2.12.5 of the Filing Requirements for further details.
A71: Appendix 2-Y - Summary of Impacts to Revenue Requirement from Transition to MIFRS
A73: An applicant must provide a summary of the dollar impacts of MIFRS to each component of the revenue requirement (e.g. rate base, operating costs, etc.), including the overall impact on the proposed revenue requirement. Accordingly, the applicant must identify financial differences and resulting revenue requirement impacts arising from the adoption of MIFRS as compared to CGAAP. If the applicant is reflecting the changes in capitalization and depreciation policies for the first time in a rebasing application, then a comparison between MIFRS and CGAAP before the change in accounting policies should be completed. If the applicant changed capitalization and depreciation policies and reflected these changes in a prior rebasing application, then a comparison between MIFRS and CGAAP after the change in accounting policies should be completed.

Sheet App.2-BA_Fixed Asset Cont
L1: File Number: | M1: =EBNUMBER -> EB-2016-0110
L2: Exhibit: | M2: 2
L3: Tab:
L4: Schedule:
L5: Page: | M5: 19-23
L7: Date: | M7: 2016-10-28
A9: Appendix 2-BA
A10: Fixed Asset Continuity Schedule 1
G12: Accounting Standard | H12: CGAAP | I12: Revised
G13: Year | H13: 2013
D15: Cost | N15: Accumulated Depreciation
A16: CCA Class 2 | B16: OEB Account 3 | C16: Description 3 | D16: Opening Balance | G16: Additions 4 | H16: Disposals 6 | I16: Closing Balance | K16: Opening Balance | N16: Additions | O16: Disposals 6 | P16: Closing Balance | Q16: Net Book Value
A17: 12 | B17: 1611 | C17: Computer Software (Formally known as Account 1925) | D17: 1089119 | G17: 16621 | H17: -364897 | I17: =D17+G17+H17 -> 740843 | K17: -553375 | N17: -140667 | O17: 364897 | P17: =K17+N17+O17 -> -329145 | Q17: =I17+P17 -> 411698
A18: CEC | B18: 1612 | C18: Land Rights (Formally known as Account 1806) | D18: 70296 | I18: =D18+G18+H18 -> 70296 | K18: -59631 | N18: -640 | P18: =K18+N18+O18 -> -60271 | Q18: =I18+P18 -> 10025
A19: N/A | B19: 1805 | C19: Land | D19: 158686 | I19: =D19+G19+H19 -> 158686 | P19: =K19+N19+O19 -> 0 | Q19: =I19+P19 -> 158686
A20: 47 | B20: 1808 | C20: Buildings | D20: 96568 | I20: =D20+G20+H20 -> 96568 | K20: -59993 | N20: -1236 | P20: =K20+N20+O20 -> -61229 | Q20: =I20+P20 -> 35339
A21: 13 | B21: 1810 | C21: Leasehold Improvements | I21: 0 | P21: 0 | Q21: 0
A22: 47 | B22: 1815 | C22: Transformer Station Equipment >50 kV | D22: 467359 | I22: 467359 | K22: -37847 | N22: -14857 | P22: -52704 | Q22: 414655
A23: 47 | B23: 1820 | C23: Distribution Station Equipment <50 kV | D23: 4223152 | G23: 3532 | H23: -199818 | I23: 4026866 | K23: -2545494 | N23: -86093 | O23: 199818 | P23: -2431769 | Q23: 1595097
A24: 47 | B24: 1825 | C24: Storage Battery Equipment | I24: 0 | P24: 0 | Q24: 0
A25: 47 | B25: 1830 | C25: Poles, Towers & Fixtures | D25: 7201902 | G25: 786758 | I25: 7988660 | K25: -1175216 | N25: -140076 | P25: -1315292 | Q25: 6673368
A26: 47 | B26: 1835 | C26: Overhead Conductors & Devices | D26: 12748640 | G26: 174979 | I26: 12923619 | K26: -8305774 | N26: -122746 | P26: -8428520 | Q26: 4495099
A27: 47 | B27: 1840 | C27: Underground Conduit | D27: 916576 | G27: 154014 | I27: 1070590 | K27: -129886 | N27: -18603 | P27: -148489 | Q27: 922101
A28: 47 | B28: 1845 | C28: Underground Conductors & Devices | D28: 11873205 | G28: 666205 | I28: 12539410 | K28: -7430028 | N28: -232479 | P28: -7662507 | Q28: 4876903
A29: 47 | B29: 1850 | C29: Line Transformers | D29: 6781896 | G29: 337635 | H29: -40018 | I29: 7079513 | K29: -3417552 | N29: -113827 | O29: 38230 | P29: -3493149 | Q29: 3586364
A30: 47 | B30: 1855 | C30: Services (Overhead & Underground) | D30: 699038 | G30: 27157 | I30: 726195 | K30: -121581 | N30: -16631 | P30: -138212 | Q30: 587983
A31: 47 | B31: 1860 | C31: Meters | D31: 97019 | H31: -58242 | I31: 38777 | K31: -97019 | O31: 58242 | P31: -38777 | Q31: 0
A32: 47 | B32: 1860 | C32: Meters (Smart Meters) | D32: 2899712 | G32: 65532 | I32: 2965244 | K32: -566780 | N32: -195498 | P32: -762278 | Q32: 2202966
A33: N/A | B33: 1865 | C33: Other Installations on Customer Premises | D33: 8010 | H33: -8010 | I33: 0 | K33: -8010 | O33: 8010 | P33: 0 | Q33: 0
A34: N/A | B34: 1905 | C34: Land | I34: 0 | P34: 0 | Q34: 0
A35: 47 | B35: 1908 | C35: Buildings & Fixtures | D35: 2485177 | G35: 22165 | H35: -4088 | I35: 2503254 | K35: -1022867 | N35: -69916 | O35: 4088 | P35: -1088695 | Q35: 1414559
A36: 13 | B36: 1910 | C36: Leasehold Improvements | I36: 0 | P36: 0 | Q36: 0
A37: 8 | B37: 1915 | C37: Office Furniture & Equipment (10 years) | D37: 101345 | G37: 1403 | I37: 102748 | K37: -58530 | N37: -9014 | P37: -67544 | Q37: 35204
A38: 8 | B38: 1915 | C38: Office Furniture & Equipment (5 years) | I38: 0 | P38: 0 | Q38: 0
A39: 10 | B39: 1920 | C39: Computer Equipment - Hardware | D39: 301070 | G39: 14809 | H39: -169507 | I39: 146372 | K39: -260140 | N39: -18704 | O39: 169507 | P39: -109337 | Q39: 37035
A40: 45 | B40: 1920 | C40: Computer Equip.-Hardware(Post Mar. 22/04) | I40: 0 | P40: 0 | Q40: 0
A41: 45.1 | B41: 1920 | C41: Computer Equip.-Hardware(Post Mar. 19/07) | I41: 0 | P41: 0 | Q41: 0
A42: 10 | B42: 1930 | C42: Transportation Equipment | D42: 1391448 | G42: 325615 | H42: -132851 | I42: 1584212 | K42: -1154944 | N42: -40672 | O42: 132851 | P42: -1062765 | Q42: 521447
A43: 8 | B43: 1935 | C43: Stores Equipment | D43: 30023 | I43: 30023 | K43: -27852 | N43: -760 | P43: -28612 | Q43: 1411
A44: 8 | B44: 1940 | C44: Tools, Shop & Garage Equipment | D44: 114950 | H44: -35269 | I44: 79681 | K44: -87313 | N44: -6748 | O44: 35269 | P44: -58792 | Q44: 20889
A45: 8 | B45: 1945 | C45: Measurement & Testing Equipment | D45: 26058 | G45: -711 | H45: -4896 | I45: 20451 | K45: -17328 | N45: -1699 | O45: 4896 | P45: -14131 | Q45: 6320
A46: 8 | B46: 1950 | C46: Power Operated Equipment | I46: 0 | P46: 0 | Q46: 0
A47: 8 | B47: 1955 | C47: Communications Equipment | D47: 282461 | H47: -56496 | I47: 225965 | K47: -143637 | N47: -22100 | O47: 56496 | P47: -109241 | Q47: 116724
A48: 8 | B48: 1955 | C48: Communication Equipment (Smart Meters) | I48: 0 | P48: 0 | Q48: 0
A49: 8 | B49: 1960 | C49: Miscellaneous Equipment | D49: 315235 | I49: 315235 | K49: -81551 | N49: -11128 | P49: -92679 | Q49: 222556
A50: 47 | B50: 1970 | C50: Load Management Controls Customer Premises | I50: 0 | P50: 0 | Q50: 0
A51: 47 | B51: 1975 | C51: Load Management Controls Utility Premises | I51: 0 | P51: 0 | Q51: 0
A52: 47 | B52: 1980 | C52: System Supervisor Equipment | D52: 1143045 | G52: 4047 | H52: -459096 | I52: 687996 | K52: -914874 | N52: -35701 | O52: 459096 | P52: -491479 | Q52: 196517
A53: 47 | B53: 1985 | C53: Miscellaneous Fixed Assets | I53: 0 | P53: 0 | Q53: 0
A54: 47 | B54: 1990 | C54: Other Tangible Property | I54: 0 | P54: 0 | Q54: 0
A55: 47 | B55: 1995 | C55: Contributions & Grants | D55: -2563013 | G55: -625629 | I55: -3188642 | K55: 431835 | N55: 86571 | P55: 518406 | Q55: -2670236
A56: 47 | B56: 2440 | C56: Deferred Revenue5 | I56: 0 | P56: 0 | Q56: 0
C58: Sub-Total | D58: =SUM(D17:D57)+1 -> 52958978 | G58: =SUM(G17:G57)+1 -> 1974133 | H58: =SUM(H17:H57)-1 -> -1533189 | I58: =SUM(I17:I57)+1 -> 53399922 | K58: =SUM(K17:K57) -> -27845387 | N58: =SUM(N17:N57) -> -1213224 | O58: =SUM(O17:O57) -> 1531400 | P58: =SUM(P17:P57)-1 -> -27527212 | Q58: =SUM(Q17:Q57) -> 25872710
C59: Less Socialized Renewable Energy Generation Investments (input as negative) | I59: =D59+G59+H59 -> 0 | P59: =K59+N59+O59 -> 0 | Q59: =I59+P59 -> 0
C60: Less Other Non Rate-Regulated Utility Assets (input as negative) | I60: 0 | P60: =K60+N60+O60 -> 0 | Q60: 0
C61: Total PP&E | D61: =SUM(D58:D60) -> 52958978 | G61: =SUM(G58:G60) -> 1974133 | H61: =SUM(H58:H60) -> -1533189 | I61: =SUM(I58:I60) -> 53399922 | K61: =SUM(K58:K60) -> -27845387 | N61: -1213224 | O61: 1531400 | P61: -27527212 | Q61: 25872710
C62: Depreciation Expense adj. from gain or loss on the retirement of assets (pool of like assets), if applicable6
C63: Total | N63: =N61+N62 -> -1213224
K65: Less: Fully Allocated Depreciation
A66: 10 | C66: Transportation | K66: Transportation
A67: 8 | C67: Stores Equipment | K67: Stores Equipment
K68: Net Depreciation | O68: =N63-O66-O67 -> -1213224
P70: File Number: | Q70: =EBNUMBER -> EB-2016-0110
P71: Exhibit: | Q71: 2
P72: Tab:
P73: Schedule:
P74: Page:
P76: Date:
A78: Appendix 2-BA
A79: Fixed Asset Continuity Schedule 1
G81: Accounting Standard | H81: MIFRS
G82: Year | H82: 2014
D84: Cost | N84: Accumulated Depreciation
A85: CCA Class 2 | B85: OEB Account 3 | C85: Description 3 | D85: Opening Balance | G85: Additions 4 | H85: Disposals 6 | I85: Closing Balance | K85: Opening Balance | N85: Additions | O85: Disposals 6 | P85: Closing Balance | Q85: Net Book Value
A86: 12 | B86: 1611 | C86: Computer Software (Formally known as Account 1925) | D86: =I17 -> 740843 | G86: 146486 | I86: =D86+G86+H86 -> 887329 | K86: =P17 -> -329145 | N86: -137287 | P86: =K86+N86+O86 -> -466432 | Q86: =I86+P86 -> 420897
A87: CEC | B87: 1612 | C87: Land Rights (Formally known as Account 1806) | D87: =I18 -> 70296 | I87: =D87+G87+H87 -> 70296 | K87: =P18 -> -60271 | N87: -640 | P87: =K87+N87+O87 -> -60911 | Q87: =I87+P87 -> 9385
A88: N/A | B88: 1805 | C88: Land | D88: 158686 | I88: =D88+G88+H88 -> 158686 | K88: 0 | P88: =K88+N88+O88 -> 0 | Q88: =I88+P88 -> 158686
A89: 47 | B89: 1808 | C89: Buildings | D89: 96568 | I89: =D89+G89+H89 -> 96568 | K89: -61229 | N89: -1236 | P89: =K89+N89+O89 -> -62465 | Q89: =I89+P89 -> 34103
A90: 13 | B90: 1810 | C90: Leasehold Improvements | D90: 0 | I90: 0 | K90: 0 | P90: 0 | Q90: 0
A91: 47 | B91: 1815 | C91: Transformer Station Equipment >50 kV | D91: 467359 | I91: 467359 | K91: -52704 | N91: -14857 | P91: -67561 | Q91: 399798
A92: 47 | B92: 1820 | C92: Distribution Station Equipment <50 kV | D92: 4026866 | I92: 4026866 | K92: -2431769 | N92: -76134 | P92: -2507903 | Q92: 1518963
A93: 47 | B93: 1825 | C93: Storage Battery Equipment | D93: 0 | I93: 0 | K93: 0 | P93: 0 | Q93: 0
A94: 47 | B94: 1830 | C94: Poles, Towers & Fixtures | D94: 7988660 | G94: 973203 | I94: 8961863 | K94: -1315292 | N94: -157676 | P94: -1472968 | Q94: 7488895
A95: 47 | B95: 1835 | C95: Overhead Conductors & Devices | D95: 12923619 | G95: 202465 | I95: 13126084 | K95: -8428520 | N95: -126520 | P95: -8555040 | Q95: 4571044
A96: 47 | B96: 1840 | C96: Underground Conduit | D96: 1070590 | G96: 72305 | I96: 1142895 | K96: -148489 | N96: -20866 | P96: -169355 | Q96: 973540
A97: 47 | B97: 1845 | C97: Underground Conductors & Devices | D97: 12539410 | G97: 280038 | I97: 12819448 | K97: -7662507 | N97: -227357 | P97: -7889864 | Q97: 4929584
A98: 47 | B98: 1850 | C98: Line Transformers | D98: 7079513 | G98: 319776 | H98: -49635 | I98: 7349654 | K98: -3493149 | N98: -121999 | O98: 43340 | P98: -3571808 | Q98: 3777846
A99: 47 | B99: 1855 | C99: Services (Overhead & Underground) | D99: 726195 | G99: 82721 | I99: 808916 | K99: -138212 | N99: -18005 | P99: -156217 | Q99: 652699
A100: 47 | B100: 1860 | C100: Meters | D100: 38777 | I100: 38777 | K100: -38777 | P100: -38777 | Q100: 0
A101: 47 | B101: 1860 | C101: Meters (Smart Meters) | D101: 2965244 | G101: 63482 | I101: 3028726 | K101: -762278 | N101: -199799 | P101: -962077 | Q101: 2066649
A102: N/A | B102: 1865 | C102: Other Installations on Customer Premises | D102: 0 | I102: 0 | K102: 0 | P102: 0 | Q102: 0
A103: N/A | B103: 1905 | C103: Land | D103: 0 | I103: 0 | K103: 0 | P103: 0 | Q103: 0
A104: 47 | B104: 1908 | C104: Buildings & Fixtures | D104: 2503254 | G104: 33433 | I104: 2536687 | K104: -1088695 | N104: -70862 | P104: -1159557 | Q104: 1377130
A105: 13 | B105: 1910 | C105: Leasehold Improvements | D105: 0 | I105: 0 | K105: 0 | P105: 0 | Q105: 0
A106: 8 | B106: 1915 | C106: Office Furniture & Equipment (10 years) | D106: 102748 | H106: -12302 | I106: 90446 | K106: -67544 | N106: -8924 | O106: 12302 | P106: -64166 | Q106: 26280
A107: 8 | B107: 1915 | C107: Office Furniture & Equipment (5 years) | D107: 0 | I107: 0 | K107: 0 | P107: 0 | Q107: 0
A108: 10 | B108: 1920 | C108: Computer Equipment - Hardware | D108: 146372 | G108: 118498 | H108: -80441 | I108: 184429 | K108: -109337 | N108: -32764 | O108: 80441 | P108: -61660 | Q108: 122769
A109: 45 | B109: 1920 | C109: Computer Equip.-Hardware(Post Mar. 22/04) | D109: 0 | I109: 0 | K109: 0 | P109: 0 | Q109: 0
A110: 45.1 | B110: 1920 | C110: Computer Equip.-Hardware(Post Mar. 19/07) | D110: 0 | I110: 0 | K110: 0 | P110: 0 | Q110: 0
A111: 10 | B111: 1930 | C111: Transportation Equipment | D111: 1584212 | G111: 88771 | I111: 1672983 | K111: -1062765 | N111: -57223 | P111: -1119988 | Q111: 552995
A112: 8 | B112: 1935 | C112: Stores Equipment | D112: 30023 | I112: 30023 | K112: -28612 | N112: -707 | P112: -29319 | Q112: 704
A113: 8 | B113: 1940 | C113: Tools, Shop & Garage Equipment | D113: 79681 | G113: 5980 | H113: -2618 | I113: 83043 | K113: -58792 | N113: -8786 | O113: 2618 | P113: -64960 | Q113: 18083
A114: 8 | B114: 1945 | C114: Measurement & Testing Equipment | D114: 20451 | I114: 20451 | K114: -14131 | N114: -1146 | P114: -15277 | Q114: 5174
A115: 8 | B115: 1950 | C115: Power Operated Equipment | D115: 0 | I115: 0 | K115: 0 | P115: 0 | Q115: 0
A116: 8 | B116: 1955 | C116: Communications Equipment | D116: 225965 | G116: 72266 | I116: 298231 | K116: -109241 | N116: -22394 | P116: -131635 | Q116: 166596
A117: 8 | B117: 1955 | C117: Communication Equipment (Smart Meters) | D117: 0 | I117: 0 | K117: 0 | P117: 0 | Q117: 0
A118: 8 | B118: 1960 | C118: Miscellaneous Equipment | D118: 315235 | I118: 315235 | K118: -92679 | N118: -11128 | P118: -103807 | Q118: 211428
A119: 47 | B119: 1970 | C119: Load Management Controls Customer Premises | D119: 0 | I119: 0 | K119: 0 | P119: 0 | Q119: 0
A120: 47 | B120: 1975 | C120: Load Management Controls Utility Premises | D120: 0 | I120: 0 | K120: 0 | P120: 0 | Q120: 0
A121: 47 | B121: 1980 | C121: System Supervisor Equipment | D121: 687996 | I121: 687996 | K121: -491479 | N121: -35802 | P121: -527281 | Q121: 160715
A122: 47 | B122: 1985 | C122: Miscellaneous Fixed Assets | D122: 0 | I122: 0 | K122: 0 | P122: 0 | Q122: 0
A123: 47 | B123: 1990 | C123: Other Tangible Property | D123: 0 | I123: 0 | K123: 0 | P123: 0 | Q123: 0
A124: 47 | B124: 1995 | C124: Contributions & Grants | D124: -3188642 | G124: -178205 | I124: -3366847 | K124: 518406 | N124: 98797 | P124: 617203 | Q124: -2749644
A125: 47 | B125: 2440 | C125: Deferred Revenue5 | D125: 0 | I125: 0 | K125: 0 | P125: 0 | Q125: 0
C127: Sub-Total | D127: =SUM(D86:D126)+1 -> 53399922 | G127: =SUM(G86:G126)-1 -> 2281218 | H127: =SUM(H86:H126)-1 -> -144997 | I127: =SUM(I86:I126)-1 -> 55536143 | K127: =SUM(K86:K126)-1 -> -27527212 | N127: =SUM(N86:N126) -> -1253315 | O127: =SUM(O86:O126)+1 -> 138702 | P127: =SUM(P86:P126) -> -28641825 | Q127: =SUM(Q86:Q126) -> 26894319
C128: Less Socialized Renewable Energy Generation Investments (input as negative) | I128: =D128+G128+H128 -> 0 | P128: =K128+N128+O128 -> 0 | Q128: =I128+P128 -> 0
C129: Less Other Non Rate-Regulated Utility Assets (input as negative) | I129: =D129+G129+H129 -> 0 | P129: =K129+N129+O129 -> 0 | Q129: =I129+P129 -> 0
C130: Total PP&E | D130: =SUM(D127:D129) -> 53399922 | G130: =SUM(G127:G129) -> 2281218 | H130: =SUM(H127:H129) -> -144997 | I130: =SUM(I127:I129) -> 55536143 | K130: =SUM(K127:K129) -> -27527212 | N130: -1253315 | O130: 138702 | P130: -28641825 | Q130: 26894319
C131: Depreciation Expense adj. from gain or loss on the retirement of assets (pool of like assets), if applicable6
C132: Total | N132: =N130+N131 -> -1253315
K134: Less: Fully Allocated Depreciation
A135: 10 | C135: Transportation | K135: Transportation
A136: 8 | C136: Stores Equipment | K136: Stores Equipment
K137: Net Depreciation | O137: =N132-O135-O136 -> -1253315
P140: File Number: | Q140: =EBNUMBER -> EB-2016-0110
P141: Exhibit: | Q141: 2
P142: Tab:
P143: Schedule:
P144: Page:
P146: Date:
A148: Appendix 2-BA
A149: Fixed Asset Continuity Schedule 1
G151: Accounting Standard | H151: MIFRS
G152: Year | H152: 2015
D154: Cost | N154: Accumulated Depreciation
A155: CCA Class 2 | B155: OEB Account 3 | C155: Description 3 | D155: Opening Balance | E155: Pole Line Generation Adjustment | F155: Contributed Capital Adjustment | G155: Additions 4 | H155: Disposals 6 | I155: Closing Balance | K155: Opening Balance | L155: Pole Line Generation Adjustment | M155: Contributed Capital Adjustment | N155: Additions | O155: Disposals 6 | P155: Closing Balance | Q155: Net Book Value
A156: 12 | B156: 1611 | C156: Computer Software (Formally known as Account 1925) | D156: =I86 -> 887329 | G156: 10640 | I156: =D156+G156+H156+E156+F156 -> 897969 | K156: =P86 -> -466432 | N156: -107665 | P156: =K156+N156+O156+L156+M156 -> -574097 | Q156: =I156+P156 -> 323872
A157: CEC | B157: 1612 | C157: Land Rights (Formally known as Account 1806) | D157: =I87 -> 70296 | I157: =D157+G157+H157+E157+F157 -> 70296 | K157: -60911 | N157: -640 | P157: =K157+N157+O157+L157+M157 -> -61551 | Q157: =I157+P157 -> 8745
A158: N/A | B158: 1805 | C158: Land | D158: 158686 | I158: 158686 | K158: 0 | P158: 0 | Q158: =I158+P158 -> 158686
A159: 47 | B159: 1808 | C159: Buildings | D159: 96568 | I159: 96568 | K159: -62465 | N159: -1236 | P159: -63701 | Q159: =I159+P159 -> 32867
A160: 13 | B160: 1810 | C160: Leasehold Improvements | D160: 0 | I160: 0 | K160: 0 | P160: 0 | Q160: 0
A161: 47 | B161: 1815 | C161: Transformer Station Equipment >50 kV | D161: 467359 | I161: 467359 | K161: -67561 | N161: -14857 | P161: -82418 | Q161: 384941
A162: 47 | B162: 1820 | C162: Distribution Station Equipment <50 kV | D162: 4026866 | G162: 137899 | I162: 4164765 | K162: -2507903 | N162: -89148 | P162: -2597051 | Q162: 1567714
A163: 47 | B163: 1825 | C163: Storage Battery Equipment | D163: 0 | I163: 0 | K163: 0 | P163: 0 | Q163: 0
A164: 47 | B164: 1830 | C164: Poles, Towers & Fixtures | D164: 8961863 | E164: -88852 | F164: -304761 | G164: 715872 | H164: -921 | I164: 9283201 | K164: -1472968 | L164: 889 | M164: 45290 | N164: -167017 | O164: 183 | P164: -1593623 | Q164: 7689578
A165: 47 | B165: 1835 | C165: Overhead Conductors & Devices | D165: 13126084 | G165: 291539 | I165: 13417623 | K165: -8555040 | N165: -131460 | P165: -8686500 | Q165: 4731123
A166: 47 | B166: 1840 | C166: Underground Conduit | D166: 1142895 | G166: 175209 | I166: 1318104 | K166: -169355 | N166: -23341 | P166: -192696 | Q166: 1125408
A167: 47 | B167: 1845 | C167: Underground Conductors & Devices | D167: 12819448 | F167: -2144360 | G167: 518127 | I167: 11193215 | K167: -7889864 | M167: 444741 | N167: -167769 | P167: -7612892 | Q167: 3580323
A168: 47 | B168: 1850 | C168: Line Transformers | D168: 7349654 | F168: -736211 | G168: 348934 | H168: -20940 | I168: 6941437 | K168: -3571808 | M168: 124462 | N168: -112667 | O168: 11847 | P168: -3548166 | Q168: 3393271
A169: 47 | B169: 1855 | C169: Services (Overhead & Underground) | D169: 808916 | G169: 51055 | I169: 859971 | K169: -156217 | N169: -19677 | P169: -175894 | Q169: 684077
A170: 47 | B170: 1860 | C170: Meters | D170: 38777 | I170: 38777 | K170: -38777 | P170: -38777 | Q170: 0
A171: 47 | B171: 1860 | C171: Meters (Smart Meters) | D171: 3028726 | F171: -3310 | G171: 50858 | H171: -59324 | I171: 3016950 | K171: -962077 | M171: 331 | N171: -203390 | O171: 24776 | P171: -1140360 | Q171: 1876590
A172: N/A | B172: 1865 | C172: Other Installations on Customer Premises | D172: 0 | I172: 0 | K172: 0 | P172: 0 | Q172: 0
A173: N/A | B173: 1905 | C173: Land | D173: 0 | I173: 0 | K173: 0 | P173: 0 | Q173: 0
A174: 47 | B174: 1908 | C174: Buildings & Fixtures | D174: 2536687 | G174: 18710 | I174: 2555397 | K174: -1159557 | N174: -72466 | P174: -1232023 | Q174: 1323374
A175: 13 | B175: 1910 | C175: Leasehold Improvements | D175: 0 | I175: 0 | K175: 0 | P175: 0 | Q175: 0
A176: 8 | B176: 1915 | C176: Office Furniture & Equipment (10 years) | D176: 90446 | I176: 90446 | K176: -64166 | N176: -8540 | P176: -72706 | Q176: 17740
A177: 8 | B177: 1915 | C177: Office Furniture & Equipment (5 years) | D177: 0 | I177: 0 | K177: 0 | P177: 0 | Q177: 0
A178: 10 | B178: 1920 | C178: Computer Equipment - Hardware | D178: 184429 | G178: 67324 | I178: 251753 | K178: -61660 | N178: -46697 | P178: -108357 | Q178: 143396
A179: 45 | B179: 1920 | C179: Computer Equip.-Hardware(Post Mar. 22/04) | D179: 0 | I179: 0 | K179: 0 | P179: 0 | Q179: 0
A180: 45.1 | B180: 1920 | C180: Computer Equip.-Hardware(Post Mar. 19/07) | D180: 0 | I180: 0 | K180: 0 | P180: 0 | Q180: 0
A181: 10 | B181: 1930 | C181: Transportation Equipment | D181: 1672983 | G181: 31498 | I181: 1704481 | K181: -1119988 | N181: -63281 | P181: -1183269 | Q181: 521212
A182: 8 | B182: 1935 | C182: Stores Equipment | D182: 30023 | I182: 30023 | K182: -29319 | N182: -704 | P182: -30023 | Q182: 0
A183: 8 | B183: 1940 | C183: Tools, Shop & Garage Equipment | D183: 83043 | I183: 83043 | K183: -64960 | N183: -5878 | P183: -70838 | Q183: 12205
A184: 8 | B184: 1945 | C184: Measurement & Testing Equipment | D184: 20451 | I184: 20451 | K184: -15277 | N184: -771 | P184: -16048 | Q184: 4403
A185: 8 | B185: 1950 | C185: Power Operated Equipment | D185: 0 | I185: 0 | K185: 0 | P185: 0 | Q185: 0
A186: 8 | B186: 1955 | C186: Communications Equipment | D186: 298231 | I186: 298231 | K186: -131635 | N186: -28678 | P186: -160313 | Q186: 137918
A187: 8 | B187: 1955 | C187: Communication Equipment (Smart Meters) | D187: 0 | I187: 0 | K187: 0 | P187: 0 | Q187: 0
A188: 8 | B188: 1960 | C188: Miscellaneous Equipment | D188: 315235 | I188: 315235 | K188: -103807 | N188: -11128 | P188: -114935 | Q188: 200300
A189: 47 | B189: 1970 | C189: Load Management Controls Customer Premises | D189: 0 | I189: 0 | K189: 0 | P189: 0 | Q189: 0
A190: 47 | B190: 1975 | C190: Load Management Controls Utility Premises | D190: 0 | I190: 0 | K190: 0 | P190: 0 | Q190: 0
A191: 47 | B191: 1980 | C191: System Supervisor Equipment | D191: 687996 | G191: 88737 | I191: 776733 | K191: -527281 | N191: -36802 | P191: -564083 | Q191: 212650
A192: 47 | B192: 1985 | C192: Miscellaneous Fixed Assets | D192: 0 | I192: 0 | K192: 0 | P192: 0 | Q192: 0
A193: 47 | B193: 1990 | C193: Other Tangible Property | D193: 0 | I193: 0 | K193: 0 | P193: 0 | Q193: 0
A194: 47 | B194: 1995/2440 | C194: Contributions & Grants/Deferred Revenue | D194: -3366847 | E194: 88852 | F194: 3188642 | G194: -421828 | I194: -511181 | K194: 617203 | L194: -889 | M194: -614824 | N194: 9603 | P194: 11093 | Q194: -500088
A195: 47 | B195: 2440 | C195: Deferred Revenue5 | D195: 0 | I195: 0 | K195: 0 | P195: 0 | Q195: 0
C197: Sub-Total | D197: =SUM(D156:D196)-1 -> 55536143 | E197: =SUM(E156:E196) -> 0 | F197: =SUM(F156:F196) -> 0 | G197: =SUM(G156:G196) -> 2084574 | H197: =SUM(H156:H196) -> -81185 | I197: =SUM(I156:I196)-1 -> 57539532 | K197: =SUM(K156:K196) -> -28641825 | L197: =SUM(L156:L196) -> 0 | M197: =SUM(M156:M196) -> 0 | N197: =SUM(N156:N196) -> -1304209 | O197: =SUM(O156:O196) -> 36806 | P197: =SUM(P156:P196)-3 -> -29909231 | Q197: =SUM(Q156:Q196)-3 -> 27630302
C198: Less Socialized Renewable Energy Generation Investments (input as negative) | I198: =D198+G198+H198 -> 0 | P198: =K198+N198+O198 -> 0 | Q198: =I198+P198 -> 0
C199: Less Other Non Rate-Regulated Utility Assets (input as negative) | I199: =D199+G199+H199 -> 0 | P199: =K199+N199+O199 -> 0 | Q199: =I199+P199 -> 0
C200: Total PP&E | D200: =SUM(D197:D199) -> 55536143 | E200: 0 | F200: 0 | G200: 2084574 | H200: -81185 | I200: 57539532 | K200: =SUM(K197:K199) -> -28641825 | L200: 0 | M200: 0 | N200: -1304209 | O200: 36806 | P200: -29909231 | Q200: 27630302
C201: Depreciation Expense adj. from gain or loss on the retirement of assets (pool of like assets), if applicable6
C202: Total | N202: =N200+N201 -> -1304209
K204: Less: Fully Allocated Depreciation
A205: 10 | C205: Transportation | K205: Transportation
A206: 8 | C206: Stores Equipment | K206: Stores Equipment
K207: Net Depreciation | O207: =N202-O205-O206 -> -1304209
P210: File Number: | Q210: =EBNUMBER -> EB-2016-0110
P211: Exhibit: | Q211: 2
P212: Tab:
P213: Schedule:
P214: Page:
P216: Date:
A218: Appendix 2-BA
A219: Fixed Asset Continuity Schedule 1
G221: Accounting Standard | H221: MIFRS
G222: Year | H222: 2016
D224: Cost | N224: Accumulated Depreciation
A225: CCA Class 2 | B225: OEB Account 3 | C225: Description 3 | D225: Opening Balance | F225: Deferred Revenue | G225: Additions 4 | H225: Disposals 6 | I225: Closing Balance | K225: Opening Balance | M225: Deferred Revenue | N225: Additions | O225: Disposals 6 | P225: Closing Balance | Q225: Net Book Value
A226: 12 | B226: 1611 | C226: Computer Software (Formally known as Account 1925) | D226: =I156 -> 897969 | G226: 100490 | I226: =D226+G226+H226+E226+F226 -> 998459 | K226: =P156 -> -574097 | N226: -105364 | P226: =K226+N226+O226+L226+M226 -> -679461 | Q226: =I226+P226 -> 318998
A227: CEC | B227: 1612 | C227: Land Rights (Formally known as Account 1806) | D227: =I157 -> 70296 | I227: =D227+G227+H227+E227+F227 -> 70296 | K227: -61551 | N227: -640 | P227: =K227+N227+O227+L227+M227 -> -62191 | Q227: =I227+P227 -> 8105
... 117 more rows

Sheet Appendix 2-BB Service Life
N1: File Number: | P1: 0
N2: Exhibit: | P2: 4
N3: Tab:
N4: Schedule:
N5: Page: | P5: 48
N7: Date: | P7: 2016-10-28
A9: Appendix 2-BB
A10: Service Life Comparison
A11: Table F-1 from Kinetrics Report1
C15: Asset Details | F15: Useful Life | J15: USoA Account Number | K15: USoA Account Description | L15: Current | N15: Proposed | P15: Outside Range of Min, Max TUL?
A16: Parent* | B16: # | C16: Category| Component | Type | F16: MIN UL | G16: TUL | H16: MAX UL | L16: Years | M16: Rate | N16: Years | O16: Rate | P16: Below Min TUL | Q16: Above Max TUL
A17: OH | B17: 1 | C17: Fully Dressed Wood Poles | D17: Overall | F17: 35 | G17: 45 | H17: 75 | J17: 1830 | K17: Poles, Towers & Fixtures | L17: 50 | M17: =IF(ISERROR(1/L17), "", 1/L17) -> 0.02 | N17: 50 | O17: =IF(ISERROR(1/N17), "", 1/N17) -> 0.02 | P17: =IF(ISBLANK(N17),"",IF(N17<F17,"Yes","No")) -> No | Q17: =IF(ISBLANK(N17),"",IF(N17>H17,"Yes","No")) -> No
D18: Cross Arm | E18: Wood | F18: 20 | G18: 40 | H18: 55 | M18: =IF(ISERROR(1/L18), "", 1/L18) ->  | O18: =IF(ISERROR(1/N18), "", 1/N18) ->  | P18: =IF(ISBLANK(N18),"",IF(N18<F18,"Yes","No")) ->  | Q18: =IF(ISBLANK(N18),"",IF(N18>H18,"Yes","No")) -> 
E19: Steel | F19: 30 | G19: 70 | H19: 95
B20: 2 | C20: Fully Dressed Concrete Poles | D20: Overall | F20: 50 | G20: 60 | H20: 80
D21: Cross Arm | E21: Wood | F21: 20 | G21: 40 | H21: 55
E22: Steel | F22: 30 | G22: 70 | H22: 95
B23: 3 | C23: Fully Dressed Steel Poles | D23: Overall | F23: 60 | G23: 60 | H23: 80
D24: Cross Arm | E24: Wood | F24: 20 | G24: 40 | H24: 55
E25: Steel | F25: 30 | G25: 70 | H25: 95
B26: 4 | C26: OH Line Switch | F26: 30 | G26: 45 | H26: 55
B27: 5 | C27: OH Line Switch Motor | F27: 15 | G27: 25 | H27: 25
B28: 6 | C28: OH Line Switch RTU | F28: 15 | G28: 20 | H28: 20 | J28: 1980 | K28: System Supervisory Equipment | L28: 20 | M28: 0.05 | N28: 20 | O28: 0.05 | P28: No | Q28: No
B29: 7 | C29: OH Integral Switches | F29: 35 | G29: 45 | H29: 60
B30: 8 | C30: OH Conductors | F30: 50 | G30: 60 | H30: 75 | J30: 1835 | K30: Overhead Conductors & Devices | L30: 50 | M30: 0.02 | N30: 50 | O30: 0.02 | P30: No | Q30: No
B31: 9 | C31: OH Transformers & Voltage Regulators | F31: 30 | G31: 40 | H31: 60 | J31: 1850 | K31: Overhead Line Transformers | L31: 40 | M31: 0.025 | N31: 40 | O31: 0.025 | P31: No | Q31: No
B32: 10 | C32: OH Shunt Capacitor Banks | F32: 25 | G32: 30 | H32: 40
B33: 11 | C33: Reclosers | F33: 25 | G33: 40 | H33: 55
A34: TS & MS | B34: 12 | C34: Power Transformers | D34: Overall | F34: 30 | G34: 45 | H34: 60 | J34: 1820 | K34: Distribution Station Equipment < 50kV | L34: 45 | M34: 0.02222222222 | N34: 45 | O34: 0.02222222222 | P34: No | Q34: No
D35: Bushing | F35: 10 | G35: 20 | H35: 30
D36: Tap Changer | F36: 20 | G36: 30 | H36: 60
B37: 13 | C37: Station Service Transformer | F37: 30 | G37: 45 | H37: 55
B38: 14 | C38: Station Grounding Transformer | F38: 30 | G38: 40 | H38: 40
B39: 15 | C39: Station DC System | D39: Overall | F39: 10 | G39: 20 | H39: 30
D40: Battery Bank | F40: 10 | G40: 15 | H40: 15 | J40: 1820 | K40: Distribution Station Equipment < 50kV | L40: 5 | M40: 0.2 | N40: 5 | O40: 0.2 | P40: Yes | Q40: No
D41: Charger | F41: 20 | G41: 20 | H41: 30 | J41: 1820 | K41: Distribution Station Equipment < 50kV | L41: 5 | M41: 0.2 | N41: 5 | O41: 0.2 | P41: Yes | Q41: No
B42: 16 | C42: Station Metal Clad Switchgear | D42: Overall | F42: 30 | G42: 40 | H42: 60 | J42: 1820 | K42: Distribution Station Equipment < 50kV | L42: 35 | M42: 0.02857142857 | N42: 35 | O42: 0.02857142857 | P42: No | Q42: No
D43: Removable Breaker | F43: 25 | G43: 40 | H43: 60
B44: 17 | C44: Station Independent Breakers | F44: 35 | G44: 45 | H44: 65
B45: 18 | C45: Station Switch | F45: 30 | G45: 50 | H45: 60 | J45: 1820 | K45: Distribution Station Equipment < 50kV | L45: 30 | M45: 0.03333333333 | N45: 30 | O45: 0.03333333333 | P45: No | Q45: No
B46: 19 | C46: Electromechanical Relays | F46: 25 | G46: 35 | H46: 50
B47: 20 | C47: Solid State Relays | F47: 10 | G47: 30 | H47: 45 | J47: 1820 | K47: Distribution Station Equipment < 50kV | L47: 20 | M47: 0.05 | N47: 20 | O47: 0.05 | P47: No | Q47: No
B48: 21 | C48: Digital & Numeric Relays | F48: 15 | G48: 20 | H48: 20
B49: 22 | C49: Rigid Busbars | F49: 30 | G49: 55 | H49: 60
B50: 23 | C50: Steel Structure | F50: 35 | G50: 50 | H50: 90
A51: UG | B51: 24 | C51: Primary Paper Insulated Lead Covered (PILC) Cables | F51: 60 | G51: 65 | H51: 75
B52: 25 | C52: Primary Ethylene-Propylene Rubber (EPR) Cables | F52: 20 | G52: 25 | H52: 25
B53: 26 | C53: Primary Non-Tree Retardant (TR) Cross Linked Polyethylene (XLPE) Cables Direct Buried | F53: 20 | G53: 25 | H53: 30
B54: 27 | C54: Primary Non-TR XLPE Cables in Duct | F54: 20 | G54: 25 | H54: 30 | J54: 1845 | K54: UG Conductors & Devices | L54: 25 | M54: 0.04 | N54: 25 | O54: 0.04 | P54: No | Q54: No
B55: 29 | C55: Primary TR XLPE Cables in Duct | F55: 35 | G55: 40 | H55: 55 | J55: 1845 | K55: UG Conductors & Devices | L55: 30 | M55: 0.03333333333 | N55: 30 | O55: 0.03333333333 | P55: Yes | Q55: No
B56: 30 | C56: Secondary PILC Cables | F56: 70 | G56: 75 | H56: 80
B57: 31 | C57: Secondary Cables Direct Buried | F57: 25 | G57: 35 | H57: 40 | J57: 1855 | K57: Services | L57: 40 | M57: 0.025 | N57: 40 | O57: 0.025 | P57: No | Q57: No
B58: 32 | C58: Secondary Cables in Duct | F58: 35 | G58: 40 | H58: 60
B59: 33 | C59: Network Tranformers | D59: Overall | F59: 20 | G59: 35 | H59: 50
D60: Protector | F60: 20 | G60: 35 | H60: 40
B61: 34 | C61: Pad-Mounted Transformers | F61: 25 | G61: 40 | H61: 45 | J61: 1850 | K61: Pad-Mount Line Transformers | L61: 40 | M61: 0.025 | N61: 40 | O61: 0.025 | P61: No | Q61: No
B62: 35 | C62: Submersible/Vault Transformers | F62: 25 | G62: 35 | H62: 45
B63: 36 | C63: UG Foundation | F63: 35 | G63: 55 | H63: 70
B64: 37 | C64: UG Vaults | D64: Overall | F64: 40 | G64: 60 | H64: 80
D65: Roof | F65: 20 | G65: 30 | H65: 45
B66: 38 | C66: UG Vault Switches | F66: 20 | G66: 35 | H66: 50
B67: 39 | C67: Pad-Mounted Switchgear | F67: 20 | G67: 30 | H67: 45
B68: 40 | C68: Ducts | F68: 30 | G68: 50 | H68: 85 | J68: 1840 | K68: Underground Conduit | L68: 50 | M68: 0.02 | N68: 50 | O68: 0.02 | P68: No | Q68: No
B69: 41 | C69: Concrete Encased Duct Banks | F69: 35 | G69: 55 | H69: 80
B70: 42 | C70: Cable Chambers | F70: 50 | G70: 60 | H70: 80
A71: S | B71: 43 | C71: Remote SCADA | F71: 15 | G71: 20 | H71: 30
A74: Table F-2 from Kinetrics Report1
C76: Asset Details | F76: Useful Life Range | J76: USoA Account Number | K76: USoA Account Description | L76: Current | N76: Proposed | P76: Outside Range of Min, Max TUL?
B77: # | C77: Category| Component | Type | L77: Years | M77: Rate | N77: Years | O77: Rate | P77: Below Min Range | Q77: Above Max Range
B78: 1 | C78: Office Equipment | F78: 5 | G78: 15 | J78: 1915 | K78: Office Furniture & Equipment | L78: 10 | M78: =IF(ISERROR(1/L78), "", 1/L78) -> 0.1 | N78: 10 | O78: =IF(ISERROR(1/N78), "", 1/N78) -> 0.1 | P78: =IF(ISBLANK(N78),"",IF(N78<F78,"Yes","No")) -> No | Q78: =IF(ISBLANK(N78),"",IF(N78>G78,"Yes","No")) -> No
B79: 2 | C79: Vehicles | D79: Trucks & Buckets | F79: 5 | G79: 15 | J79: 1930 | K79: Transportation Equipment | L79: 15 | M79: =IF(ISERROR(1/L79), "", 1/L79) -> 0.06666666667 | N79: 15 | O79: =IF(ISERROR(1/N79), "", 1/N79) -> 0.06666666667 | P79: No | Q79: No
D80: Trailers | F80: 5 | G80: 20 | J80: 1930 | K80: Transportation Equipment | L80: 20 | M80: 0.05 | N80: 20 | O80: 0.05 | P80: No | Q80: No
D81: Vans | F81: 5 | G81: 10 | J81: 1930 | K81: Transportation Equipment | L81: 10 | M81: 0.1 | N81: 10 | O81: 0.1 | P81: No | Q81: No
B82: 3A | C82: Administrative Buildings | F82: 50 | G82: 75 | J82: 1908 | K82: Buildings & Fixtures | L82: 60 | M82: 0.01666666667 | N82: 60 | O82: 0.01666666667 | P82: No | Q82: No
B83: 3B | C83: Administrative Buildings Fencing | F83: 25 | G83: 60 | J83: 1908 | K83: Buildings & Fixtures | L83: 30 | M83: 0.03333333333 | N83: 30 | O83: 0.03333333333 | P83: No | Q83: No
B84: 3C | C84: Administrative Buildings Backup Generator | J84: 1960 | K84: Miscellaneous Equipment | L84: 25 | M84: 0.04 | N84: 25 | O84: 0.04
B85: 4 | C85: Leasehold Improvements | F85: Lease dependent
B86: 5 | C86: Station Buildings | D86: Station Buildings | F86: 50 | G86: 75 | J86: 1808 | K86: Station Buildings & Fixtures | L86: 60 | M86: 0.01666666667 | N86: 60 | O86: 0.01666666667 | P86: =IF(ISBLANK(N86),"",IF(N86<F86,"Yes","No")) -> No | Q86: =IF(ISBLANK(N86),"",IF(N86>G86,"Yes","No")) -> No
D87: Parking | F87: 25 | G87: 30
D88: Fence | F88: 25 | G88: 60
D89: Roof | F89: 20 | G89: 30
B90: 6 | C90: Computer Equipment | D90: Hardware | F90: 3 | G90: 5 | J90: 1920 | K90: Computer Equipment - Hardware | L90: 4 | M90: 0.25 | N90: 4 | O90: 0.25 | P90: No | Q90: No
D91: Software | F91: 2 | G91: 5 | J91: 1925/1611 | K91: Computer Equipment - Software | L91: 5 | M91: 0.2 | N91: 5 | O91: 0.2 | P91: No | Q91: No
B92: 7 | C92: Equipment | D92: Power Operated | F92: 5 | G92: 10
D93: Stores | F93: 5 | G93: 10 | J93: 1935 | K93: Stores Equipment | L93: 10 | M93: 0.1 | N93: 10 | O93: 0.1 | P93: No | Q93: No
D94: Tools, Shop, Garage Equipment | F94: 5 | G94: 10 | J94: 1940 | K94: Tools, Shop and Garage Equipment | L94: 10 | M94: 0.1 | N94: 10 | O94: 0.1 | P94: No | Q94: No
D95: Measurement & Testing Equipment | F95: 5 | G95: 10 | J95: 1945 | K95: Measurement and Testing Equipment | L95: 10 | M95: 0.1 | N95: 10 | O95: 0.1 | P95: No | Q95: No
B96: 8 | C96: Communication | D96: Towers | F96: 60 | G96: 70 | J96: 1955 | K96: Communication Equipment | L96: 60 | M96: 0.01666666667 | N96: 60 | O96: 0.01666666667 | P96: No | Q96: No
D97: Wireless | F97: 2 | G97: 10 | J97: 1955 | K97: Communication Equipment | L97: 10 | M97: 0.1 | N97: 10 | O97: 0.1 | P97: No | Q97: No
B98: 9 | C98: Residential Energy Meters | F98: 25 | G98: 35
B99: 10 | C99: Industrial/Commercial Energy Meters | F99: 25 | G99: 35 | J99: 1860 | K99: Non Smart Meters | L99: 25 | M99: 0.04 | N99: 25 | O99: 0.04 | P99: No | Q99: No
B100: 11A | C100: Wholesale Energy Meters at TS (Hydro One) | F100: 15 | G100: 30 | J100: 1815 | K100: Distribution Station Equipment > 50kV | L100: 15 | M100: 0.06666666667 | N100: 15 | O100: 0.06666666667 | P100: No | Q100: No
B101: 11B | C101: Wholesale Current & Potential Transformers at TS (Hydro One) | F101: 35 | G101: 50 | J101: 1815 | K101: Distribution Station Equipment > 50kV | L101: 35 | M101: 0.02857142857 | N101: 35 | O101: 0.02857142857 | P101: No | Q101: No
B102: 12 | C102: Current & Potential Transformer (CT & PT) | F102: 35 | G102: 50
B103: 13 | C103: Smart Meters | F103: 5 | G103: 15 | J103: 1860 | K103: Smart Meters | L103: 15 | M103: 0.06666666667 | N103: 15 | O103: 0.06666666667 | P103: No | Q103: No
B104: 14 | C104: Repeaters - Smart Metering | F104: 10 | G104: 15
B105: 15 | C105: Data Collectors - Smart Metering | F105: 15 | G105: 20
A108: * TS & MS = Transformer and Municipal Stations UG = Underground Systems S = Monitoring and Control Systems
A110: Note 1: | B110: Tables F-1 and F-2 above are to be used as a reference in order to complete columns J, K, L and N.

Sheet App.2-CA_OldCGAAPDepExp_Yr1
K1: File Number: | L1: =EBNUMBER -> EB-2016-0110
K2: Exhibit: | L2: Not Applicable
K3: Tab: | L3: to WHESC
K4: Schedule:
K5: Page:
K7: Date: | L7: 2016-10-28
A9: Appendix 2-CA
A10: Depreciation and Amortization Expense
B11: Former CGAAP (Year 1)
A13: Select the set of appendices that apply | K13: Year Reflected in Schedule Below | L13: Accounting Standard
A14: 2012 Set of Appendices (2-CA to 2-CG) | C14: Assumes the applicant made capitalization and depreciation expense accounting policy changes under CGAAP effective January 1, 2012 and has adopted IFRS for financial reporting purposes effective January 1, 2015. Assumes that the applicant is reflecting these changes in a rebasing application for the first time. | K14: 2012 | L14: Former CGAAP
A15: 2013 Set of Appendices (2-CA to 2-CF) | C15: Assumes the applicant made capitalization and depreciation expense accounting policy changes under CGAAP effective January 1, 2013 and has adopted IFRS for financial reporting purposes effective January 1, 2015. Assumes that the applicant is reflecting these changes in a rebasing application for the first time. | K15: 2013 | L15: Former CGAAP
A18: Account | B18: Description | C18: Opening Regulatory Gross PP&E as at Jan. 1 | D18: Less Fully Depreciated | E18: Net for Depreciation | F18: Additions | G18: Total for Depreciation 1 | H18: Years | I18: Depreciation Rate | J18: Current Year Depreciation Expense | K18: Depreciation Expense per Appendix 2-BA Fixed Assets, Column J (l) | L18: Variance 2
C19: (a) | D19: (b) | E19: (c) | F19: (d) | G19: (e) = (c) + ½ x (d) | H19: (f) | I19: (g) = 1 / (f) | J19: (h) = (e) / (f) | L19: (m) = (h) - (l)
A20: 1611 | B20: Computer Software (Formally known as Account 1925) | E20: =C20-D20 -> 0 | G20: =E20+0.5*F20 -> 0 | I20: =IF(H20=0,0,1/H20) -> 0 | J20: =IF(H20=0,0,G20/H20) -> 0 | L20: =IF(ISERROR(+J20-K20), 0, +J20-K20) -> 0
A21: 1612 | B21: Land Rights (Formally known as Account 1906) | E21: =C21-D21 -> 0 | G21: =E21+0.5*F21 -> 0 | I21: 0 | J21: 0 | L21: 0
A22: 1805 | B22: Land | E22: 0 | G22: 0 | I22: 0 | J22: 0 | L22: 0
A23: 1808 | B23: Buildings | E23: 0 | G23: 0 | I23: 0 | J23: 0 | L23: 0
A24: 1810 | B24: Leasehold Improvements | E24: 0 | G24: 0 | I24: 0 | J24: 0 | L24: 0
A25: 1815 | B25: Transformer Station Equipment >50 kV | E25: 0 | G25: 0 | I25: 0 | J25: 0 | L25: 0
A26: 1820 | B26: Distribution Station Equipment <50 kV | E26: 0 | G26: 0 | I26: 0 | J26: 0 | L26: 0
A27: 1825 | B27: Storage Battery Equipment | E27: 0 | G27: 0 | I27: 0 | J27: 0 | L27: 0
A28: 1830 | B28: Poles, Towers & Fixtures | E28: 0 | G28: 0 | I28: 0 | J28: 0 | L28: 0
A29: 1835 | B29: Overhead Conductors & Devices | E29: 0 | G29: 0 | I29: 0 | J29: 0 | L29: 0
A30: 1840 | B30: Underground Conduit | E30: 0 | G30: 0 | I30: 0 | J30: 0 | L30: 0
A31: 1845 | B31: Underground Conductors & Devices | E31: 0 | G31: 0 | I31: 0 | J31: 0 | L31: 0
A32: 1850 | B32: Line Transformers | E32: 0 | G32: 0 | I32: 0 | J32: 0 | L32: 0
A33: 1855 | B33: Services (Overhead & Underground) | E33: 0 | G33: 0 | I33: 0 | J33: 0 | L33: 0
A34: 1860 | B34: Meters | E34: 0 | G34: 0 | I34: 0 | J34: 0 | L34: 0
A35: 1860 | B35: Meters (Smart Meters) | E35: 0 | G35: 0 | I35: 0 | J35: 0 | L35: 0
A36: 1905 | B36: Land | E36: 0 | G36: 0 | I36: 0 | J36: 0 | L36: 0
A37: 1908 | B37: Buildings & Fixtures | E37: 0 | G37: 0 | I37: 0 | J37: 0 | L37: 0
A38: 1910 | B38: Leasehold Improvements | E38: 0 | G38: 0 | I38: 0 | J38: 0 | L38: 0
A39: 1915 | B39: Office Furniture & Equipment (10 years) | E39: 0 | G39: 0 | I39: 0 | J39: 0 | L39: 0
A40: 1915 | B40: Office Furniture & Equipment (5 years) | E40: 0 | G40: 0 | I40: 0 | J40: 0 | L40: 0
A41: 1920 | B41: Computer Equipment - Hardware | E41: 0 | G41: 0 | I41: 0 | J41: 0 | L41: 0
A42: 1920 | B42: Computer Equip.-Hardware(Post Mar. 22/04) | E42: 0 | G42: 0 | I42: 0 | J42: 0 | L42: 0
A43: 1920 | B43: Computer Equip.-Hardware(Post Mar. 19/07) | E43: 0 | G43: 0 | I43: 0 | J43: 0 | L43: 0
A44: 1930 | B44: Transportation Equipment | E44: 0 | G44: 0 | I44: 0 | J44: 0 | L44: 0
A45: 1935 | B45: Stores Equipment | E45: 0 | G45: 0 | I45: 0 | J45: 0 | L45: 0
A46: 1940 | B46: Tools, Shop & Garage Equipment | E46: 0 | G46: 0 | I46: 0 | J46: 0 | L46: 0
A47: 1945 | B47: Measurement & Testing Equipment | E47: 0 | G47: 0 | I47: 0 | J47: 0 | L47: 0
A48: 1950 | B48: Power Operated Equipment | E48: 0 | G48: 0 | I48: 0 | J48: 0 | L48: 0
A49: 1955 | B49: Communications Equipment | E49: 0 | G49: 0 | I49: 0 | J49: 0 | L49: 0
A50: 1955 | B50: Communication Equipment (Smart Meters) | E50: 0 | G50: 0 | I50: 0 | J50: 0 | L50: 0
A51: 1960 | B51: Miscellaneous Equipment | E51: 0 | G51: 0 | I51: 0 | J51: 0 | L51: 0
A52: 1970 | B52: Load Management Controls Customer Premises | E52: 0 | G52: 0 | I52: 0 | J52: 0 | L52: 0
A53: 1975 | B53: Load Management Controls Utility Premises | E53: 0 | G53: 0 | I53: 0 | J53: 0 | L53: 0
A54: 1980 | B54: System Supervisor Equipment | E54: 0 | G54: 0 | I54: 0 | J54: 0 | L54: 0
A55: 1985 | B55: Miscellaneous Fixed Assets | E55: 0 | G55: 0 | I55: 0 | J55: 0 | L55: 0
A56: 1990 | B56: Other Tangible Property | E56: 0 | G56: 0 | I56: 0 | J56: 0 | L56: 0
A57: 1995 | B57: Contributions & Grants | E57: 0 | G57: 0 | I57: 0 | J57: 0 | L57: 0
B58: Total | C58: =SUM(C20:C57) -> 0 | D58: =SUM(D20:D57) -> 0 | E58: =SUM(E20:E57) -> 0 | F58: =SUM(F20:F57) -> 0 | G58: =SUM(G20:G57) -> 0 | J58: =SUM(J20:J57) -> 0 | K58: =SUM(K20:K57) -> 0 | L58: =SUM(L20:L57) -> 0
A60: Notes:
A62: 1 | B62: Board policy of the "half-year" rule - the applicant must ensure that additions in the year attract a half-year depreciation expense in the first year. Deviations from this standard practice must be supported in the application.
A63: 2 | B63: The applicant must provide an explanation of material variances.
A65: General | B65: Applicants must provide a breakdown of depreciation and amortization expense in the above format for all relevant accounts. Asset Retirement Obligations (AROs), depreciation and accretion expense should be disclosed separately consistent with the Notes of historical Audited Financial Statements.

Sheet App.2-CB_NewCGAAP_DepExp_Yr1
N1: File Number: | O1: =EBNUMBER -> EB-2016-0110
N2: Exhibit: | O2: Not Applicable
N3: Tab: | O3: to WHECS
N4: Schedule:
N5: Page:
N7: Date: | O7: 2016-10-28
A9: Appendix 2-CB
A10: Depreciation and Amortization Expense
A11: Revised CGAAP (Year 1)
A13: Select the set of appendices that apply | L13: Year Reflected in Schedule Below | N13: Accounting Standard
A14: 2012 Set of Appendices (2-CA to 2-CG) | C14: Assumes the applicant made capitalization and depreciation expense accounting policy changes under CGAAP effective January 1, 2012 and has adopted IFRS for financial reporting purposes effective January 1, 2015. Assumes that the applicant is reflecting these changes in a rebasing application for the first time. | L14: 2012 | N14: Revised CGAAP
A15: 2013 Set of Appendices (2-CA to 2-CF) | C15: Assumes the applicant made capitalization and depreciation expense accounting policy changes under CGAAP effective January 1, 2013 and has adopted IFRS for financial reporting purposes effective January 1, 2015. Assumes that the applicant is reflecting these changes in a rebasing application for the first time. | L15: 2013 | N15: Revised CGAAP
A18: Account | B18: Description | C18: Opening NBV as at Jan 15 | D18: Additions | E18: Average Remaining Life of Opening NBV 4 | F18: Years (new additions only) 3 | G18: Depreciation Rate on New Additions | H18: Depreciation Expense on Opening NBV | I18: Depreciation Expense on Additions 1 | J18: Current Year Depreciation Expense | K18: Depreciation Expense per Appendix 2-BA Fixed Assets, Column J (l) | L18: Variance 2 | M18: Depreciation Expense on Current Full Year Additions | N18: Less Depreciation Expense on Assets Fully Depreciated During the Year (o) | O18: Current Full Year Depreciation 6
C19: (a) | D19: (d) | E19: (i) | F19: (f) | G19: (g) = 1 / (f) | H19: (j) = (a) / (i) | I19: (h)=((d)*0.5)/(f) | J19: (k) = (j) + (h) | L19: (m) = (k) - (l) | M19: (n) = (d)/(f) | O19: (p) = (j) + (n) - (o)
A20: 1611 | B20: Computer Software (Formally known as Account 1925) | G20: =IF(F20=0,0,1/F20) -> 0 | H20: =IF(E20=0,0,+C20/E20) -> 0 | I20: =IF(F20=0,0,+(D20*0.5)/F20) -> 0 | J20: =IF(ISERROR(+H20+I20), 0, +H20+I20) -> 0 | L20: =IF(ISERROR(+J20-K20), 0, +J20-K20) -> 0 | M20: =IF(F20=0,0,+(D20)/F20) -> 0 | O20: =IF(ISERROR(+M20+H20-N20), 0, +M20+H20-N20) -> 0
A21: 1612 | B21: Land Rights (Formally known as Account 1906) | G21: 0 | H21: 0 | I21: 0 | J21: 0 | L21: 0 | M21: 0 | O21: =IF(ISERROR(+M21+H21-N21), 0, +M21+H21-N21) -> 0
A22: 1805 | B22: Land | G22: 0 | H22: 0 | I22: 0 | J22: 0 | L22: 0 | M22: 0 | O22: 0
A23: 1808 | B23: Buildings | G23: 0 | H23: 0 | I23: 0 | J23: 0 | L23: 0 | M23: 0 | O23: 0
A24: 1810 | B24: Leasehold Improvements | G24: 0 | H24: 0 | I24: 0 | J24: 0 | L24: 0 | M24: 0 | O24: 0
A25: 1815 | B25: Transformer Station Equipment >50 kV | G25: 0 | H25: 0 | I25: 0 | J25: 0 | L25: 0 | M25: 0 | O25: 0
A26: 1820 | B26: Distribution Station Equipment <50 kV | G26: 0 | H26: 0 | I26: 0 | J26: 0 | L26: 0 | M26: 0 | O26: 0
A27: 1825 | B27: Storage Battery Equipment | G27: 0 | H27: 0 | I27: 0 | J27: 0 | L27: 0 | M27: 0 | O27: 0
A28: 1830 | B28: Poles, Towers & Fixtures | G28: 0 | H28: 0 | I28: 0 | J28: 0 | L28: 0 | M28: 0 | O28: 0
A29: 1835 | B29: Overhead Conductors & Devices | G29: 0 | H29: 0 | I29: 0 | J29: 0 | L29: 0 | M29: 0 | O29: 0
A30: 1840 | B30: Underground Conduit | G30: 0 | H30: 0 | I30: 0 | J30: 0 | L30: 0 | M30: 0 | O30: 0
A31: 1845 | B31: Underground Conductors & Devices | G31: 0 | H31: 0 | I31: 0 | J31: 0 | L31: 0 | M31: 0 | O31: 0
A32: 1850 | B32: Line Transformers | G32: 0 | H32: 0 | I32: 0 | J32: 0 | L32: 0 | M32: 0 | O32: 0
A33: 1855 | B33: Services (Overhead & Underground) | G33: 0 | H33: 0 | I33: 0 | J33: 0 | L33: 0 | M33: 0 | O33: 0
A34: 1860 | B34: Meters | G34: 0 | H34: 0 | I34: 0 | J34: 0 | L34: 0 | M34: 0 | O34: 0
A35: 1860 | B35: Meters (Smart Meters) | G35: 0 | H35: 0 | I35: 0 | J35: 0 | L35: 0 | M35: 0 | O35: 0
A36: 1905 | B36: Land | G36: 0 | H36: 0 | I36: 0 | J36: 0 | L36: 0 | M36: 0 | O36: 0
A37: 1908 | B37: Buildings & Fixtures | G37: 0 | H37: 0 | I37: 0 | J37: 0 | L37: 0 | M37: 0 | O37: 0
A38: 1910 | B38: Leasehold Improvements | G38: 0 | H38: 0 | I38: 0 | J38: 0 | L38: 0 | M38: 0 | O38: 0
A39: 1915 | B39: Office Furniture & Equipment (10 years) | G39: 0 | H39: 0 | I39: 0 | J39: 0 | L39: 0 | M39: 0 | O39: 0
A40: 1915 | B40: Office Furniture & Equipment (5 years) | G40: 0 | H40: 0 | I40: 0 | J40: 0 | L40: 0 | M40: 0 | O40: 0
A41: 1920 | B41: Computer Equipment - Hardware | G41: 0 | H41: 0 | I41: 0 | J41: 0 | L41: 0 | M41: 0 | O41: 0
A42: 1920 | B42: Computer Equip.-Hardware(Post Mar. 22/04) | G42: 0 | H42: 0 | I42: 0 | J42: 0 | L42: 0 | M42: 0 | O42: 0
A43: 1920 | B43: Computer Equip.-Hardware(Post Mar. 19/07) | G43: 0 | H43: 0 | I43: 0 | J43: 0 | L43: 0 | M43: 0 | O43: 0
A44: 1930 | B44: Transportation Equipment | G44: 0 | H44: 0 | I44: 0 | J44: 0 | L44: 0 | M44: 0 | O44: 0
A45: 1935 | B45: Stores Equipment | G45: 0 | H45: 0 | I45: 0 | J45: 0 | L45: 0 | M45: 0 | O45: 0
A46: 1940 | B46: Tools, Shop & Garage Equipment | G46: 0 | H46: 0 | I46: 0 | J46: 0 | L46: 0 | M46: 0 | O46: 0
A47: 1945 | B47: Measurement & Testing Equipment | G47: 0 | H47: 0 | I47: 0 | J47: 0 | L47: 0 | M47: 0 | O47: 0
A48: 1950 | B48: Power Operated Equipment | G48: 0 | H48: 0 | I48: 0 | J48: 0 | L48: 0 | M48: 0 | O48: 0
A49: 1955 | B49: Communications Equipment | G49: 0 | H49: 0 | I49: 0 | J49: 0 | L49: 0 | M49: 0 | O49: 0
A50: 1955 | B50: Communication Equipment (Smart Meters) | G50: 0 | H50: 0 | I50: 0 | J50: 0 | L50: 0 | M50: 0 | O50: 0
A51: 1960 | B51: Miscellaneous Equipment | G51: 0 | H51: 0 | I51: 0 | J51: 0 | L51: 0 | M51: 0 | O51: 0
A52: 1970 | B52: Load Management Controls Customer Premises | G52: 0 | H52: 0 | I52: 0 | J52: 0 | L52: 0 | M52: 0 | O52: 0
A53: 1975 | B53: Load Management Controls Utility Premises | G53: 0 | H53: 0 | I53: 0 | J53: 0 | L53: 0 | M53: 0 | O53: 0
A54: 1980 | B54: System Supervisor Equipment | G54: 0 | H54: 0 | I54: 0 | J54: 0 | L54: 0 | M54: 0 | O54: 0
A55: 1985 | B55: Miscellaneous Fixed Assets | G55: 0 | H55: 0 | I55: 0 | J55: 0 | L55: 0 | M55: 0 | O55: 0
A56: 1990 | B56: Other Tangible Property | G56: 0 | H56: 0 | I56: 0 | J56: 0 | L56: 0 | M56: 0 | O56: 0
A57: 1995 | B57: Contributions & Grants | G57: 0 | H57: 0 | I57: 0 | J57: 0 | L57: 0 | M57: 0 | O57: 0
B58: Total | C58: =SUM(C20:C57) -> 0 | D58: =SUM(D20:D57) -> 0 | H58: =SUM(H20:H57) -> 0 | I58: 0 | J58: 0 | K58: 0 | L58: 0 | M58: 0 | N58: 0 | O58: 0
A60: Notes:
A62: 1 | B62: Board policy of the "half-year" rule - the applicant must ensure that additions in the year attract a half-year depreciation expense in the first year. Deviations from this standard practice must be supported in the application.
A63: 2 | B63: The applicant must provide an explanation of material variances in evidence.
A64: 3 | B64: The applicant should ensure that the years for new additions of assets are the asset useful lives determined by management in accordance with the Board's regulatory accounting policies. The capitalization and depreciation expense accounting changes should be implemented consistent with the Board’s regulatory accounting policies as set out for modified IFRS as contained in the Report of the Board, Transition to International Financial Reporting Standards, EB-2008-0408, the Kinectrics Report, and the Revised 2012 Accounting Procedures Handbook for Electricity Distributors (“APH”).
A65: 4 | B65: A recalculation should be performed to determine the average remaining life of opening balance of assets (i.e. excluding current year's additions) under the change in policies under CGAAP. For example, Asset A had a useful life of 20 years under CGAAP without the change in policies. On January 1 of the year of policy changes, Asset A was 3 years depreciated. As a result, Asset A would have a remaining service life of 17 years (20 years less 3 years) as at January 1 of the year of policy changes. Due to making the change in policies under CGAAP, management re-assessed the asset useful lives and concluded that the revised useful life of Asset A is now 30 years. Therefore, the average remaining useful life of the opening balance of Asset A is determined to be 27 years (30 years less 3 years) under the revised CGAAP as at January 1 of the year of policy changes.
A66: 5 | B66: NBV must exclude assets still on the books but which have been fully amortized or depreciated.
A67: 6 | B67: This column refers to the calculated full year depreciation but excludes the depreciation expense on assets fully depreciated during the year. This column is used for the purpose of calculating depreciation expense in the following year on the next worksheet.
A69: General: | B69: Applicants must provide a breakdown of depreciation and amortization expense in the above format for all relevant accounts. Asset Retirement Obligations (AROs), depreciation and accretion expense should be disclosed separately consistent with the Notes of historical Audited Financial Statements.

Sheet App.2-CC_DepExp_Yr2
J1: File Number: | K1: =EBNUMBER -> EB-2016-0110
J2: Exhibit: | K2: Not Applicable
J3: Tab: | K3: to WHECS
J4: Schedule:
J5: Page:
J7: Date: | K7: 2016-10-28
A9: Appendix 2-CC
A10: Depreciation and Amortization Expense
A11: Revised CGAAP (Year 2)
A13: Select the set of appendices that apply | J13: Year Reflected in Schedule Below | K13: Accounting Standard
A14: 2012 Set of Appendices (2-CA to 2-CG) | C14: Assumes the applicant made capitalization and depreciation expense accounting policy changes under CGAAP effective January 1, 2012 and has adopted IFRS for financial reporting purposes effective January 1, 2015. Assumes that the applicant is reflecting these changes in a rebasing application for the first time. | J14: 2013 | K14: Revised CGAAP
A15: 2013 Set of Appendices (2-CA to 2-CF) | C15: Assumes the applicant made capitalization and depreciation expense accounting policy changes under CGAAP effective January 1, 2013 and has adopted IFRS for financial reporting purposes effective January 1, 2015. Assumes that the applicant is reflecting these changes in a rebasing application for the first time. | J15: 2014 | K15: Revised CGAAP
A18: Account | B18: Description | C18: Additions | D18: Years (new additions only) | E18: Depreciation Rate on New Additions | F18: Current Year Depreciation Expense 1 | G18: Depreciation Expense per Apppendix 2-BA Fixed Assets, Column J (l) | H18: Variance 2 | I18: Depreciation Expense on Current Full Year Additions | J18: Less Depreciation Expense on Assets Fully Depreciated During the Year (o) | K18: Current Full Year Depreciation 3
C19: (d) | D19: (f) | E19: (g) = 1 / (f) | F19: (h)= Prior Full Year Deprecation + ((d)*0.5)/(f) | H19: (m) = (h) - (l) | I19: (n)=((d))/(f) | K19: (p) = Prior Full Year Depreciation + (n) - (o)
A20: 1611 | B20: Computer Software (Formally known as Account 1925) | E20: =IF(D20=0,0,1/D20) -> 0 | F20: =IF(D20=0,+'App.2-CB_NewCGAAP_DepExp_Yr1'!O20,+'App.2-CB_NewCGAAP_DepExp_Yr1'!O20+((C20*0.5)/D20)) -> 0 | H20: =IF(ISERROR(+F20-G20), 0, +F20-G20) -> 0 | I20: =IF(D20=0,0,+(C20)/D20) -> 0 | K20: =IF(ISERROR(+I20+'App.2-CB_NewCGAAP_DepExp_Yr1'!O20-J20), 0, +I20+'App.2-CB_NewCGAAP_DepExp_Yr1'!O20-J20) -> 0
A21: 1612 | B21: Land Rights (Formally known as Account 1906) | E21: 0 | F21: =IF(D21=0,+'App.2-CB_NewCGAAP_DepExp_Yr1'!O21,+'App.2-CB_NewCGAAP_DepExp_Yr1'!O21+((C21*0.5)/D21)) -> 0 | H21: 0 | I21: 0 | K21: =IF(ISERROR(+I21+'App.2-CB_NewCGAAP_DepExp_Yr1'!O21-J21), 0, +I21+'App.2-CB_NewCGAAP_DepExp_Yr1'!O21-J21) -> 0
A22: 1805 | B22: Land | E22: 0 | F22: =IF(D22=0,+'App.2-CB_NewCGAAP_DepExp_Yr1'!O22,+'App.2-CB_NewCGAAP_DepExp_Yr1'!O22+((C22*0.5)/D22)) -> 0 | H22: 0 | I22: 0 | K22: =IF(ISERROR(+I22+'App.2-CB_NewCGAAP_DepExp_Yr1'!O22-J22), 0, +I22+'App.2-CB_NewCGAAP_DepExp_Yr1'!O22-J22) -> 0
A23: 1808 | B23: Buildings | E23: 0 | F23: =IF(D23=0,+'App.2-CB_NewCGAAP_DepExp_Yr1'!O23,+'App.2-CB_NewCGAAP_DepExp_Yr1'!O23+((C23*0.5)/D23)) -> 0 | H23: 0 | I23: 0 | K23: =IF(ISERROR(+I23+'App.2-CB_NewCGAAP_DepExp_Yr1'!O23-J23), 0, +I23+'App.2-CB_NewCGAAP_DepExp_Yr1'!O23-J23) -> 0
A24: 1810 | B24: Leasehold Improvements | E24: 0 | F24: =IF(D24=0,+'App.2-CB_NewCGAAP_DepExp_Yr1'!O24,+'App.2-CB_NewCGAAP_DepExp_Yr1'!O24+((C24*0.5)/D24)) -> 0 | H24: 0 | I24: 0 | K24: =IF(ISERROR(+I24+'App.2-CB_NewCGAAP_DepExp_Yr1'!O24-J24), 0, +I24+'App.2-CB_NewCGAAP_DepExp_Yr1'!O24-J24) -> 0
A25: 1815 | B25: Transformer Station Equipment >50 kV | E25: 0 | F25: =IF(D25=0,+'App.2-CB_NewCGAAP_DepExp_Yr1'!O25,+'App.2-CB_NewCGAAP_DepExp_Yr1'!O25+((C25*0.5)/D25)) -> 0 | H25: 0 | I25: 0 | K25: =IF(ISERROR(+I25+'App.2-CB_NewCGAAP_DepExp_Yr1'!O25-J25), 0, +I25+'App.2-CB_NewCGAAP_DepExp_Yr1'!O25-J25) -> 0
A26: 1820 | B26: Distribution Station Equipment <50 kV | E26: 0 | F26: =IF(D26=0,+'App.2-CB_NewCGAAP_DepExp_Yr1'!O26,+'App.2-CB_NewCGAAP_DepExp_Yr1'!O26+((C26*0.5)/D26)) -> 0 | H26: 0 | I26: 0 | K26: =IF(ISERROR(+I26+'App.2-CB_NewCGAAP_DepExp_Yr1'!O26-J26), 0, +I26+'App.2-CB_NewCGAAP_DepExp_Yr1'!O26-J26) -> 0
A27: 1825 | B27: Storage Battery Equipment | E27: 0 | F27: =IF(D27=0,+'App.2-CB_NewCGAAP_DepExp_Yr1'!O27,+'App.2-CB_NewCGAAP_DepExp_Yr1'!O27+((C27*0.5)/D27)) -> 0 | H27: 0 | I27: 0 | K27: =IF(ISERROR(+I27+'App.2-CB_NewCGAAP_DepExp_Yr1'!O27-J27), 0, +I27+'App.2-CB_NewCGAAP_DepExp_Yr1'!O27-J27) -> 0
A28: 1830 | B28: Poles, Towers & Fixtures | E28: 0 | F28: =IF(D28=0,+'App.2-CB_NewCGAAP_DepExp_Yr1'!O28,+'App.2-CB_NewCGAAP_DepExp_Yr1'!O28+((C28*0.5)/D28)) -> 0 | H28: 0 | I28: 0 | K28: =IF(ISERROR(+I28+'App.2-CB_NewCGAAP_DepExp_Yr1'!O28-J28), 0, +I28+'App.2-CB_NewCGAAP_DepExp_Yr1'!O28-J28) -> 0
A29: 1835 | B29: Overhead Conductors & Devices | E29: 0 | F29: =IF(D29=0,+'App.2-CB_NewCGAAP_DepExp_Yr1'!O29,+'App.2-CB_NewCGAAP_DepExp_Yr1'!O29+((C29*0.5)/D29)) -> 0 | H29: 0 | I29: 0 | K29: =IF(ISERROR(+I29+'App.2-CB_NewCGAAP_DepExp_Yr1'!O29-J29), 0, +I29+'App.2-CB_NewCGAAP_DepExp_Yr1'!O29-J29) -> 0
A30: 1840 | B30: Underground Conduit | E30: 0 | F30: =IF(D30=0,+'App.2-CB_NewCGAAP_DepExp_Yr1'!O30,+'App.2-CB_NewCGAAP_DepExp_Yr1'!O30+((C30*0.5)/D30)) -> 0 | H30: 0 | I30: 0 | K30: =IF(ISERROR(+I30+'App.2-CB_NewCGAAP_DepExp_Yr1'!O30-J30), 0, +I30+'App.2-CB_NewCGAAP_DepExp_Yr1'!O30-J30) -> 0
A31: 1845 | B31: Underground Conductors & Devices | E31: 0 | F31: =IF(D31=0,+'App.2-CB_NewCGAAP_DepExp_Yr1'!O31,+'App.2-CB_NewCGAAP_DepExp_Yr1'!O31+((C31*0.5)/D31)) -> 0 | H31: 0 | I31: 0 | K31: =IF(ISERROR(+I31+'App.2-CB_NewCGAAP_DepExp_Yr1'!O31-J31), 0, +I31+'App.2-CB_NewCGAAP_DepExp_Yr1'!O31-J31) -> 0
A32: 1850 | B32: Line Transformers | E32: 0 | F32: =IF(D32=0,+'App.2-CB_NewCGAAP_DepExp_Yr1'!O32,+'App.2-CB_NewCGAAP_DepExp_Yr1'!O32+((C32*0.5)/D32)) -> 0 | H32: 0 | I32: 0 | K32: =IF(ISERROR(+I32+'App.2-CB_NewCGAAP_DepExp_Yr1'!O32-J32), 0, +I32+'App.2-CB_NewCGAAP_DepExp_Yr1'!O32-J32) -> 0
A33: 1855 | B33: Services (Overhead & Underground) | E33: 0 | F33: =IF(D33=0,+'App.2-CB_NewCGAAP_DepExp_Yr1'!O33,+'App.2-CB_NewCGAAP_DepExp_Yr1'!O33+((C33*0.5)/D33)) -> 0 | H33: 0 | I33: 0 | K33: =IF(ISERROR(+I33+'App.2-CB_NewCGAAP_DepExp_Yr1'!O33-J33), 0, +I33+'App.2-CB_NewCGAAP_DepExp_Yr1'!O33-J33) -> 0
A34: 1860 | B34: Meters | E34: 0 | F34: =IF(D34=0,+'App.2-CB_NewCGAAP_DepExp_Yr1'!O34,+'App.2-CB_NewCGAAP_DepExp_Yr1'!O34+((C34*0.5)/D34)) -> 0 | H34: 0 | I34: 0 | K34: =IF(ISERROR(+I34+'App.2-CB_NewCGAAP_DepExp_Yr1'!O34-J34), 0, +I34+'App.2-CB_NewCGAAP_DepExp_Yr1'!O34-J34) -> 0
A35: 1860 | B35: Meters (Smart Meters) | E35: 0 | F35: =IF(D35=0,+'App.2-CB_NewCGAAP_DepExp_Yr1'!O35,+'App.2-CB_NewCGAAP_DepExp_Yr1'!O35+((C35*0.5)/D35)) -> 0 | H35: 0 | I35: 0 | K35: =IF(ISERROR(+I35+'App.2-CB_NewCGAAP_DepExp_Yr1'!O35-J35), 0, +I35+'App.2-CB_NewCGAAP_DepExp_Yr1'!O35-J35) -> 0
A36: 1905 | B36: Land | E36: 0 | F36: =IF(D36=0,+'App.2-CB_NewCGAAP_DepExp_Yr1'!O36,+'App.2-CB_NewCGAAP_DepExp_Yr1'!O36+((C36*0.5)/D36)) -> 0 | H36: 0 | I36: 0 | K36: =IF(ISERROR(+I36+'App.2-CB_NewCGAAP_DepExp_Yr1'!O36-J36), 0, +I36+'App.2-CB_NewCGAAP_DepExp_Yr1'!O36-J36) -> 0
A37: 1908 | B37: Buildings & Fixtures | E37: 0 | F37: =IF(D37=0,+'App.2-CB_NewCGAAP_DepExp_Yr1'!O37,+'App.2-CB_NewCGAAP_DepExp_Yr1'!O37+((C37*0.5)/D37)) -> 0 | H37: 0 | I37: 0 | K37: =IF(ISERROR(+I37+'App.2-CB_NewCGAAP_DepExp_Yr1'!O37-J37), 0, +I37+'App.2-CB_NewCGAAP_DepExp_Yr1'!O37-J37) -> 0
A38: 1910 | B38: Leasehold Improvements | E38: 0 | F38: =IF(D38=0,+'App.2-CB_NewCGAAP_DepExp_Yr1'!O38,+'App.2-CB_NewCGAAP_DepExp_Yr1'!O38+((C38*0.5)/D38)) -> 0 | H38: 0 | I38: 0 | K38: =IF(ISERROR(+I38+'App.2-CB_NewCGAAP_DepExp_Yr1'!O38-J38), 0, +I38+'App.2-CB_NewCGAAP_DepExp_Yr1'!O38-J38) -> 0
A39: 1915 | B39: Office Furniture & Equipment (10 years) | E39: 0 | F39: =IF(D39=0,+'App.2-CB_NewCGAAP_DepExp_Yr1'!O39,+'App.2-CB_NewCGAAP_DepExp_Yr1'!O39+((C39*0.5)/D39)) -> 0 | H39: 0 | I39: 0 | K39: =IF(ISERROR(+I39+'App.2-CB_NewCGAAP_DepExp_Yr1'!O39-J39), 0, +I39+'App.2-CB_NewCGAAP_DepExp_Yr1'!O39-J39) -> 0
A40: 1915 | B40: Office Furniture & Equipment (5 years) | E40: 0 | F40: =IF(D40=0,+'App.2-CB_NewCGAAP_DepExp_Yr1'!O40,+'App.2-CB_NewCGAAP_DepExp_Yr1'!O40+((C40*0.5)/D40)) -> 0 | H40: 0 | I40: 0 | K40: =IF(ISERROR(+I40+'App.2-CB_NewCGAAP_DepExp_Yr1'!O40-J40), 0, +I40+'App.2-CB_NewCGAAP_DepExp_Yr1'!O40-J40) -> 0
A41: 1920 | B41: Computer Equipment - Hardware | E41: 0 | F41: =IF(D41=0,+'App.2-CB_NewCGAAP_DepExp_Yr1'!O41,+'App.2-CB_NewCGAAP_DepExp_Yr1'!O41+((C41*0.5)/D41)) -> 0 | H41: 0 | I41: 0 | K41: =IF(ISERROR(+I41+'App.2-CB_NewCGAAP_DepExp_Yr1'!O41-J41), 0, +I41+'App.2-CB_NewCGAAP_DepExp_Yr1'!O41-J41) -> 0
A42: 1920 | B42: Computer Equip.-Hardware(Post Mar. 22/04) | E42: 0 | F42: =IF(D42=0,+'App.2-CB_NewCGAAP_DepExp_Yr1'!O42,+'App.2-CB_NewCGAAP_DepExp_Yr1'!O42+((C42*0.5)/D42)) -> 0 | H42: 0 | I42: 0 | K42: =IF(ISERROR(+I42+'App.2-CB_NewCGAAP_DepExp_Yr1'!O42-J42), 0, +I42+'App.2-CB_NewCGAAP_DepExp_Yr1'!O42-J42) -> 0
A43: 1920 | B43: Computer Equip.-Hardware(Post Mar. 19/07) | E43: 0 | F43: =IF(D43=0,+'App.2-CB_NewCGAAP_DepExp_Yr1'!O43,+'App.2-CB_NewCGAAP_DepExp_Yr1'!O43+((C43*0.5)/D43)) -> 0 | H43: 0 | I43: 0 | K43: =IF(ISERROR(+I43+'App.2-CB_NewCGAAP_DepExp_Yr1'!O43-J43), 0, +I43+'App.2-CB_NewCGAAP_DepExp_Yr1'!O43-J43) -> 0
A44: 1930 | B44: Transportation Equipment | E44: 0 | F44: =IF(D44=0,+'App.2-CB_NewCGAAP_DepExp_Yr1'!O44,+'App.2-CB_NewCGAAP_DepExp_Yr1'!O44+((C44*0.5)/D44)) -> 0 | H44: 0 | I44: 0 | K44: =IF(ISERROR(+I44+'App.2-CB_NewCGAAP_DepExp_Yr1'!O44-J44), 0, +I44+'App.2-CB_NewCGAAP_DepExp_Yr1'!O44-J44) -> 0
A45: 1935 | B45: Stores Equipment | E45: 0 | F45: =IF(D45=0,+'App.2-CB_NewCGAAP_DepExp_Yr1'!O45,+'App.2-CB_NewCGAAP_DepExp_Yr1'!O45+((C45*0.5)/D45)) -> 0 | H45: 0 | I45: 0 | K45: =IF(ISERROR(+I45+'App.2-CB_NewCGAAP_DepExp_Yr1'!O45-J45), 0, +I45+'App.2-CB_NewCGAAP_DepExp_Yr1'!O45-J45) -> 0
A46: 1940 | B46: Tools, Shop & Garage Equipment | E46: 0 | F46: =IF(D46=0,+'App.2-CB_NewCGAAP_DepExp_Yr1'!O46,+'App.2-CB_NewCGAAP_DepExp_Yr1'!O46+((C46*0.5)/D46)) -> 0 | H46: 0 | I46: 0 | K46: =IF(ISERROR(+I46+'App.2-CB_NewCGAAP_DepExp_Yr1'!O46-J46), 0, +I46+'App.2-CB_NewCGAAP_DepExp_Yr1'!O46-J46) -> 0
A47: 1945 | B47: Measurement & Testing Equipment | E47: 0 | F47: =IF(D47=0,+'App.2-CB_NewCGAAP_DepExp_Yr1'!O47,+'App.2-CB_NewCGAAP_DepExp_Yr1'!O47+((C47*0.5)/D47)) -> 0 | H47: 0 | I47: 0 | K47: =IF(ISERROR(+I47+'App.2-CB_NewCGAAP_DepExp_Yr1'!O47-J47), 0, +I47+'App.2-CB_NewCGAAP_DepExp_Yr1'!O47-J47) -> 0
A48: 1950 | B48: Power Operated Equipment | E48: 0 | F48: =IF(D48=0,+'App.2-CB_NewCGAAP_DepExp_Yr1'!O48,+'App.2-CB_NewCGAAP_DepExp_Yr1'!O48+((C48*0.5)/D48)) -> 0 | H48: 0 | I48: 0 | K48: =IF(ISERROR(+I48+'App.2-CB_NewCGAAP_DepExp_Yr1'!O48-J48), 0, +I48+'App.2-CB_NewCGAAP_DepExp_Yr1'!O48-J48) -> 0
A49: 1955 | B49: Communications Equipment | E49: 0 | F49: =IF(D49=0,+'App.2-CB_NewCGAAP_DepExp_Yr1'!O49,+'App.2-CB_NewCGAAP_DepExp_Yr1'!O49+((C49*0.5)/D49)) -> 0 | H49: 0 | I49: 0 | K49: =IF(ISERROR(+I49+'App.2-CB_NewCGAAP_DepExp_Yr1'!O49-J49), 0, +I49+'App.2-CB_NewCGAAP_DepExp_Yr1'!O49-J49) -> 0
A50: 1955 | B50: Communication Equipment (Smart Meters) | E50: 0 | F50: =IF(D50=0,+'App.2-CB_NewCGAAP_DepExp_Yr1'!O50,+'App.2-CB_NewCGAAP_DepExp_Yr1'!O50+((C50*0.5)/D50)) -> 0 | H50: 0 | I50: 0 | K50: =IF(ISERROR(+I50+'App.2-CB_NewCGAAP_DepExp_Yr1'!O50-J50), 0, +I50+'App.2-CB_NewCGAAP_DepExp_Yr1'!O50-J50) -> 0
A51: 1960 | B51: Miscellaneous Equipment | E51: 0 | F51: =IF(D51=0,+'App.2-CB_NewCGAAP_DepExp_Yr1'!O51,+'App.2-CB_NewCGAAP_DepExp_Yr1'!O51+((C51*0.5)/D51)) -> 0 | H51: 0 | I51: 0 | K51: =IF(ISERROR(+I51+'App.2-CB_NewCGAAP_DepExp_Yr1'!O51-J51), 0, +I51+'App.2-CB_NewCGAAP_DepExp_Yr1'!O51-J51) -> 0
A52: 1970 | B52: Load Management Controls Customer Premises | E52: 0 | F52: =IF(D52=0,+'App.2-CB_NewCGAAP_DepExp_Yr1'!O52,+'App.2-CB_NewCGAAP_DepExp_Yr1'!O52+((C52*0.5)/D52)) -> 0 | H52: 0 | I52: 0 | K52: =IF(ISERROR(+I52+'App.2-CB_NewCGAAP_DepExp_Yr1'!O52-J52), 0, +I52+'App.2-CB_NewCGAAP_DepExp_Yr1'!O52-J52) -> 0
A53: 1975 | B53: Load Management Controls Utility Premises | E53: 0 | F53: =IF(D53=0,+'App.2-CB_NewCGAAP_DepExp_Yr1'!O53,+'App.2-CB_NewCGAAP_DepExp_Yr1'!O53+((C53*0.5)/D53)) -> 0 | H53: 0 | I53: 0 | K53: =IF(ISERROR(+I53+'App.2-CB_NewCGAAP_DepExp_Yr1'!O53-J53), 0, +I53+'App.2-CB_NewCGAAP_DepExp_Yr1'!O53-J53) -> 0
A54: 1980 | B54: System Supervisor Equipment | E54: 0 | F54: =IF(D54=0,+'App.2-CB_NewCGAAP_DepExp_Yr1'!O54,+'App.2-CB_NewCGAAP_DepExp_Yr1'!O54+((C54*0.5)/D54)) -> 0 | H54: 0 | I54: 0 | K54: =IF(ISERROR(+I54+'App.2-CB_NewCGAAP_DepExp_Yr1'!O54-J54), 0, +I54+'App.2-CB_NewCGAAP_DepExp_Yr1'!O54-J54) -> 0
A55: 1985 | B55: Miscellaneous Fixed Assets | E55: 0 | F55: =IF(D55=0,+'App.2-CB_NewCGAAP_DepExp_Yr1'!O55,+'App.2-CB_NewCGAAP_DepExp_Yr1'!O55+((C55*0.5)/D55)) -> 0 | H55: 0 | I55: 0 | K55: =IF(ISERROR(+I55+'App.2-CB_NewCGAAP_DepExp_Yr1'!O55-J55), 0, +I55+'App.2-CB_NewCGAAP_DepExp_Yr1'!O55-J55) -> 0
A56: 1990 | B56: Other Tangible Property | E56: 0 | F56: =IF(D56=0,+'App.2-CB_NewCGAAP_DepExp_Yr1'!O56,+'App.2-CB_NewCGAAP_DepExp_Yr1'!O56+((C56*0.5)/D56)) -> 0 | H56: 0 | I56: 0 | K56: =IF(ISERROR(+I56+'App.2-CB_NewCGAAP_DepExp_Yr1'!O56-J56), 0, +I56+'App.2-CB_NewCGAAP_DepExp_Yr1'!O56-J56) -> 0
A57: 1995 | B57: Contributions & Grants | E57: 0 | F57: =IF(D57=0,+'App.2-CB_NewCGAAP_DepExp_Yr1'!O57,+'App.2-CB_NewCGAAP_DepExp_Yr1'!O57+((C57*0.5)/D57)) -> 0 | H57: 0 | I57: 0 | K57: =IF(ISERROR(+I57+'App.2-CB_NewCGAAP_DepExp_Yr1'!O57-J57), 0, +I57+'App.2-CB_NewCGAAP_DepExp_Yr1'!O57-J57) -> 0
B58: Total | C58: =SUM(C20:C57) -> 0 | F58: =SUM(F20:F57) -> 0 | G58: 0 | H58: 0 | I58: 0 | J58: 0 | K58: 0
A60: Notes:
A61: 1 | B61: Board policy of the "half-year" rule - the applicant must ensure that additions in the year attract a half-year depreciation expense in the first year. Deviations from this standard practice must be supported in the application.
A62: 2 | B62: The applicant must provide an explanation of material variances in evidence.
A63: 3 | B63: This column refers to the calculated full year depreciation but excludes the depreciation expense on assets fully depreciated during the year. This column is used for the purpose of calculating depreciation expense in the following year on the next worksheet.
A65: General: | B65: Applicants must provide a breakdown of depreciation and amortization expense in the above format for all relevant accounts. Asset Retirement Obligations (AROs), depreciation and accretion expense should be disclosed separately consistent with the Notes of historical Audited Financial Statements.

Sheet App.2-CD_DepExp_Yr3
J1: File Number: | K1: =EBNUMBER -> EB-2016-0110
J2: Exhibit: | K2: Not Applicable
J3: Tab: | K3: to WHESC
J4: Schedule:
J5: Page:
J7: Date: | K7: 2016-10-28
A9: Appendix 2-CD
A10: Depreciation and Amortization Expense
A11: Revised CGAAP or MIFRS (Year 3)
A13: Select the set of appendices that apply | J13: Year Reflected in Schedule Below | K13: Accounting Standard
A14: 2012 Set of Appendices (2-CA to 2-CG) | C14: Assumes the applicant made capitalization and depreciation expense accounting policy changes under CGAAP effective January 1, 2012 and has adopted IFRS for financial reporting purposes effective January 1, 2015. Assumes that the applicant is reflecting these changes in a rebasing application for the first time. | J14: 2014 | K14: Revised CGAAP
A15: 2013 Set of Appendices (2-CA to 2-CF) | C15: Assumes the applicant made capitalization and depreciation expense accounting policy changes under CGAAP effective January 1, 2013 and has adopted IFRS for financial reporting purposes effective January 1, 2015. Assumes that the applicant is reflecting these changes in a rebasing application for the first time. | J15: 2015 | K15: MIFRS
A18: Account | B18: Description | C18: Additions | D18: Years (new additions only) | E18: Depreciation Rate on New Additions | F18: Current Year Depreciation Expense1 | G18: Depreciation Expense per Apppendix 2-BA Fixed Assets, Column J (l) | H18: Variance 2 | I18: Depreciation Expense on Current Full Year Additions | J18: Less Depreciation Expense on Assets Fully Depreciated During the Year (o) | K18: Current Full Year Depreciation 3
C19: (d) | D19: (f) | E19: (g) = 1 / (f) | F19: (h) = Prior Full Year Deprecation + ((d)*0.5)/(f) | H19: (m) = (h) - (l) | I19: (n)=((d))/(f) | K19: (p) = Prior Full Year Depreciation + (n) - (o)
A20: 1611 | B20: Computer Software (Formally known as Account 1925) | E20: =IF(D20=0,0,1/D20) -> 0 | F20: =IF(D20=0,+'App.2-CC_DepExp_Yr2'!K20,+'App.2-CC_DepExp_Yr2'!K20+((C20*0.5)/D20)) -> 0 | H20: =IF(ISERROR(+F20-G20), 0, +F20-G20) -> 0 | I20: =IF(D20=0,0,+(C20)/D20) -> 0 | K20: =IF(ISERROR(+I20+'App.2-CC_DepExp_Yr2'!K20-J20), 0, +I20+'App.2-CC_DepExp_Yr2'!K20-J20) -> 0
A21: 1612 | B21: Land Rights (Formally known as Account 1906) | E21: 0 | F21: =IF(D21=0,+'App.2-CC_DepExp_Yr2'!K21,+'App.2-CC_DepExp_Yr2'!K21+((C21*0.5)/D21)) -> 0 | H21: 0 | I21: =IF(D21=0,0,+(C21)/D21) -> 0 | K21: =IF(ISERROR(+I21+'App.2-CC_DepExp_Yr2'!K21-J21), 0, +I21+'App.2-CC_DepExp_Yr2'!K21-J21) -> 0
A22: 1805 | B22: Land | E22: 0 | F22: =IF(D22=0,+'App.2-CC_DepExp_Yr2'!K22,+'App.2-CC_DepExp_Yr2'!K22+((C22*0.5)/D22)) -> 0 | H22: 0 | I22: 0 | K22: =IF(ISERROR(+I22+'App.2-CC_DepExp_Yr2'!K22-J22), 0, +I22+'App.2-CC_DepExp_Yr2'!K22-J22) -> 0
A23: 1808 | B23: Buildings | E23: 0 | F23: =IF(D23=0,+'App.2-CC_DepExp_Yr2'!K23,+'App.2-CC_DepExp_Yr2'!K23+((C23*0.5)/D23)) -> 0 | H23: 0 | I23: 0 | K23: =IF(ISERROR(+I23+'App.2-CC_DepExp_Yr2'!K23-J23), 0, +I23+'App.2-CC_DepExp_Yr2'!K23-J23) -> 0
A24: 1810 | B24: Leasehold Improvements | E24: 0 | F24: =IF(D24=0,+'App.2-CC_DepExp_Yr2'!K24,+'App.2-CC_DepExp_Yr2'!K24+((C24*0.5)/D24)) -> 0 | H24: 0 | I24: 0 | K24: =IF(ISERROR(+I24+'App.2-CC_DepExp_Yr2'!K24-J24), 0, +I24+'App.2-CC_DepExp_Yr2'!K24-J24) -> 0
A25: 1815 | B25: Transformer Station Equipment >50 kV | E25: 0 | F25: =IF(D25=0,+'App.2-CC_DepExp_Yr2'!K25,+'App.2-CC_DepExp_Yr2'!K25+((C25*0.5)/D25)) -> 0 | H25: 0 | I25: 0 | K25: =IF(ISERROR(+I25+'App.2-CC_DepExp_Yr2'!K25-J25), 0, +I25+'App.2-CC_DepExp_Yr2'!K25-J25) -> 0
A26: 1820 | B26: Distribution Station Equipment <50 kV | E26: 0 | F26: =IF(D26=0,+'App.2-CC_DepExp_Yr2'!K26,+'App.2-CC_DepExp_Yr2'!K26+((C26*0.5)/D26)) -> 0 | H26: 0 | I26: 0 | K26: =IF(ISERROR(+I26+'App.2-CC_DepExp_Yr2'!K26-J26), 0, +I26+'App.2-CC_DepExp_Yr2'!K26-J26) -> 0
A27: 1825 | B27: Storage Battery Equipment | E27: 0 | F27: =IF(D27=0,+'App.2-CC_DepExp_Yr2'!K27,+'App.2-CC_DepExp_Yr2'!K27+((C27*0.5)/D27)) -> 0 | H27: 0 | I27: 0 | K27: =IF(ISERROR(+I27+'App.2-CC_DepExp_Yr2'!K27-J27), 0, +I27+'App.2-CC_DepExp_Yr2'!K27-J27) -> 0
A28: 1830 | B28: Poles, Towers & Fixtures | E28: 0 | F28: =IF(D28=0,+'App.2-CC_DepExp_Yr2'!K28,+'App.2-CC_DepExp_Yr2'!K28+((C28*0.5)/D28)) -> 0 | H28: 0 | I28: 0 | K28: =IF(ISERROR(+I28+'App.2-CC_DepExp_Yr2'!K28-J28), 0, +I28+'App.2-CC_DepExp_Yr2'!K28-J28) -> 0
A29: 1835 | B29: Overhead Conductors & Devices | E29: 0 | F29: =IF(D29=0,+'App.2-CC_DepExp_Yr2'!K29,+'App.2-CC_DepExp_Yr2'!K29+((C29*0.5)/D29)) -> 0 | H29: 0 | I29: 0 | K29: =IF(ISERROR(+I29+'App.2-CC_DepExp_Yr2'!K29-J29), 0, +I29+'App.2-CC_DepExp_Yr2'!K29-J29) -> 0
A30: 1840 | B30: Underground Conduit | E30: 0 | F30: =IF(D30=0,+'App.2-CC_DepExp_Yr2'!K30,+'App.2-CC_DepExp_Yr2'!K30+((C30*0.5)/D30)) -> 0 | H30: 0 | I30: 0 | K30: =IF(ISERROR(+I30+'App.2-CC_DepExp_Yr2'!K30-J30), 0, +I30+'App.2-CC_DepExp_Yr2'!K30-J30) -> 0
A31: 1845 | B31: Underground Conductors & Devices | E31: 0 | F31: =IF(D31=0,+'App.2-CC_DepExp_Yr2'!K31,+'App.2-CC_DepExp_Yr2'!K31+((C31*0.5)/D31)) -> 0 | H31: 0 | I31: 0 | K31: =IF(ISERROR(+I31+'App.2-CC_DepExp_Yr2'!K31-J31), 0, +I31+'App.2-CC_DepExp_Yr2'!K31-J31) -> 0
A32: 1850 | B32: Line Transformers | E32: 0 | F32: =IF(D32=0,+'App.2-CC_DepExp_Yr2'!K32,+'App.2-CC_DepExp_Yr2'!K32+((C32*0.5)/D32)) -> 0 | H32: 0 | I32: 0 | K32: =IF(ISERROR(+I32+'App.2-CC_DepExp_Yr2'!K32-J32), 0, +I32+'App.2-CC_DepExp_Yr2'!K32-J32) -> 0
A33: 1855 | B33: Services (Overhead & Underground) | E33: 0 | F33: =IF(D33=0,+'App.2-CC_DepExp_Yr2'!K33,+'App.2-CC_DepExp_Yr2'!K33+((C33*0.5)/D33)) -> 0 | H33: 0 | I33: 0 | K33: =IF(ISERROR(+I33+'App.2-CC_DepExp_Yr2'!K33-J33), 0, +I33+'App.2-CC_DepExp_Yr2'!K33-J33) -> 0
A34: 1860 | B34: Meters | E34: 0 | F34: =IF(D34=0,+'App.2-CC_DepExp_Yr2'!K34,+'App.2-CC_DepExp_Yr2'!K34+((C34*0.5)/D34)) -> 0 | H34: 0 | I34: 0 | K34: =IF(ISERROR(+I34+'App.2-CC_DepExp_Yr2'!K34-J34), 0, +I34+'App.2-CC_DepExp_Yr2'!K34-J34) -> 0
A35: 1860 | B35: Meters (Smart Meters) | E35: 0 | F35: =IF(D35=0,+'App.2-CC_DepExp_Yr2'!K35,+'App.2-CC_DepExp_Yr2'!K35+((C35*0.5)/D35)) -> 0 | H35: 0 | I35: 0 | K35: =IF(ISERROR(+I35+'App.2-CC_DepExp_Yr2'!K35-J35), 0, +I35+'App.2-CC_DepExp_Yr2'!K35-J35) -> 0
A36: 1905 | B36: Land | E36: 0 | F36: =IF(D36=0,+'App.2-CC_DepExp_Yr2'!K36,+'App.2-CC_DepExp_Yr2'!K36+((C36*0.5)/D36)) -> 0 | H36: 0 | I36: 0 | K36: =IF(ISERROR(+I36+'App.2-CC_DepExp_Yr2'!K36-J36), 0, +I36+'App.2-CC_DepExp_Yr2'!K36-J36) -> 0
A37: 1908 | B37: Buildings & Fixtures | E37: 0 | F37: =IF(D37=0,+'App.2-CC_DepExp_Yr2'!K37,+'App.2-CC_DepExp_Yr2'!K37+((C37*0.5)/D37)) -> 0 | H37: 0 | I37: 0 | K37: =IF(ISERROR(+I37+'App.2-CC_DepExp_Yr2'!K37-J37), 0, +I37+'App.2-CC_DepExp_Yr2'!K37-J37) -> 0
A38: 1910 | B38: Leasehold Improvements | E38: 0 | F38: =IF(D38=0,+'App.2-CC_DepExp_Yr2'!K38,+'App.2-CC_DepExp_Yr2'!K38+((C38*0.5)/D38)) -> 0 | H38: 0 | I38: 0 | K38: =IF(ISERROR(+I38+'App.2-CC_DepExp_Yr2'!K38-J38), 0, +I38+'App.2-CC_DepExp_Yr2'!K38-J38) -> 0
A39: 1915 | B39: Office Furniture & Equipment (10 years) | E39: 0 | F39: =IF(D39=0,+'App.2-CC_DepExp_Yr2'!K39,+'App.2-CC_DepExp_Yr2'!K39+((C39*0.5)/D39)) -> 0 | H39: 0 | I39: 0 | K39: =IF(ISERROR(+I39+'App.2-CC_DepExp_Yr2'!K39-J39), 0, +I39+'App.2-CC_DepExp_Yr2'!K39-J39) -> 0
A40: 1915 | B40: Office Furniture & Equipment (5 years) | E40: 0 | F40: =IF(D40=0,+'App.2-CC_DepExp_Yr2'!K40,+'App.2-CC_DepExp_Yr2'!K40+((C40*0.5)/D40)) -> 0 | H40: 0 | I40: 0 | K40: =IF(ISERROR(+I40+'App.2-CC_DepExp_Yr2'!K40-J40), 0, +I40+'App.2-CC_DepExp_Yr2'!K40-J40) -> 0
A41: 1920 | B41: Computer Equipment - Hardware | E41: 0 | F41: =IF(D41=0,+'App.2-CC_DepExp_Yr2'!K41,+'App.2-CC_DepExp_Yr2'!K41+((C41*0.5)/D41)) -> 0 | H41: 0 | I41: 0 | K41: =IF(ISERROR(+I41+'App.2-CC_DepExp_Yr2'!K41-J41), 0, +I41+'App.2-CC_DepExp_Yr2'!K41-J41) -> 0
A42: 1920 | B42: Computer Equip.-Hardware(Post Mar. 22/04) | E42: 0 | F42: =IF(D42=0,+'App.2-CC_DepExp_Yr2'!K42,+'App.2-CC_DepExp_Yr2'!K42+((C42*0.5)/D42)) -> 0 | H42: 0 | I42: 0 | K42: =IF(ISERROR(+I42+'App.2-CC_DepExp_Yr2'!K42-J42), 0, +I42+'App.2-CC_DepExp_Yr2'!K42-J42) -> 0
A43: 1920 | B43: Computer Equip.-Hardware(Post Mar. 19/07) | E43: 0 | F43: =IF(D43=0,+'App.2-CC_DepExp_Yr2'!K43,+'App.2-CC_DepExp_Yr2'!K43+((C43*0.5)/D43)) -> 0 | H43: 0 | I43: 0 | K43: =IF(ISERROR(+I43+'App.2-CC_DepExp_Yr2'!K43-J43), 0, +I43+'App.2-CC_DepExp_Yr2'!K43-J43) -> 0
A44: 1930 | B44: Transportation Equipment | E44: 0 | F44: =IF(D44=0,+'App.2-CC_DepExp_Yr2'!K44,+'App.2-CC_DepExp_Yr2'!K44+((C44*0.5)/D44)) -> 0 | H44: 0 | I44: 0 | K44: =IF(ISERROR(+I44+'App.2-CC_DepExp_Yr2'!K44-J44), 0, +I44+'App.2-CC_DepExp_Yr2'!K44-J44) -> 0
A45: 1935 | B45: Stores Equipment | E45: 0 | F45: =IF(D45=0,+'App.2-CC_DepExp_Yr2'!K45,+'App.2-CC_DepExp_Yr2'!K45+((C45*0.5)/D45)) -> 0 | H45: 0 | I45: 0 | K45: =IF(ISERROR(+I45+'App.2-CC_DepExp_Yr2'!K45-J45), 0, +I45+'App.2-CC_DepExp_Yr2'!K45-J45) -> 0
A46: 1940 | B46: Tools, Shop & Garage Equipment | E46: 0 | F46: =IF(D46=0,+'App.2-CC_DepExp_Yr2'!K46,+'App.2-CC_DepExp_Yr2'!K46+((C46*0.5)/D46)) -> 0 | H46: 0 | I46: 0 | K46: =IF(ISERROR(+I46+'App.2-CC_DepExp_Yr2'!K46-J46), 0, +I46+'App.2-CC_DepExp_Yr2'!K46-J46) -> 0
A47: 1945 | B47: Measurement & Testing Equipment | E47: 0 | F47: =IF(D47=0,+'App.2-CC_DepExp_Yr2'!K47,+'App.2-CC_DepExp_Yr2'!K47+((C47*0.5)/D47)) -> 0 | H47: 0 | I47: 0 | K47: =IF(ISERROR(+I47+'App.2-CC_DepExp_Yr2'!K47-J47), 0, +I47+'App.2-CC_DepExp_Yr2'!K47-J47) -> 0
A48: 1950 | B48: Power Operated Equipment | E48: 0 | F48: =IF(D48=0,+'App.2-CC_DepExp_Yr2'!K48,+'App.2-CC_DepExp_Yr2'!K48+((C48*0.5)/D48)) -> 0 | H48: 0 | I48: 0 | K48: =IF(ISERROR(+I48+'App.2-CC_DepExp_Yr2'!K48-J48), 0, +I48+'App.2-CC_DepExp_Yr2'!K48-J48) -> 0
A49: 1955 | B49: Communications Equipment | E49: 0 | F49: =IF(D49=0,+'App.2-CC_DepExp_Yr2'!K49,+'App.2-CC_DepExp_Yr2'!K49+((C49*0.5)/D49)) -> 0 | H49: 0 | I49: 0 | K49: =IF(ISERROR(+I49+'App.2-CC_DepExp_Yr2'!K49-J49), 0, +I49+'App.2-CC_DepExp_Yr2'!K49-J49) -> 0
A50: 1955 | B50: Communication Equipment (Smart Meters) | E50: 0 | F50: =IF(D50=0,+'App.2-CC_DepExp_Yr2'!K50,+'App.2-CC_DepExp_Yr2'!K50+((C50*0.5)/D50)) -> 0 | H50: 0 | I50: 0 | K50: =IF(ISERROR(+I50+'App.2-CC_DepExp_Yr2'!K50-J50), 0, +I50+'App.2-CC_DepExp_Yr2'!K50-J50) -> 0
A51: 1960 | B51: Miscellaneous Equipment | E51: 0 | F51: =IF(D51=0,+'App.2-CC_DepExp_Yr2'!K51,+'App.2-CC_DepExp_Yr2'!K51+((C51*0.5)/D51)) -> 0 | H51: 0 | I51: 0 | K51: =IF(ISERROR(+I51+'App.2-CC_DepExp_Yr2'!K51-J51), 0, +I51+'App.2-CC_DepExp_Yr2'!K51-J51) -> 0
A52: 1970 | B52: Load Management Controls Customer Premises | E52: 0 | F52: =IF(D52=0,+'App.2-CC_DepExp_Yr2'!K52,+'App.2-CC_DepExp_Yr2'!K52+((C52*0.5)/D52)) -> 0 | H52: 0 | I52: 0 | K52: =IF(ISERROR(+I52+'App.2-CC_DepExp_Yr2'!K52-J52), 0, +I52+'App.2-CC_DepExp_Yr2'!K52-J52) -> 0
A53: 1975 | B53: Load Management Controls Utility Premises | E53: 0 | F53: =IF(D53=0,+'App.2-CC_DepExp_Yr2'!K53,+'App.2-CC_DepExp_Yr2'!K53+((C53*0.5)/D53)) -> 0 | H53: 0 | I53: 0 | K53: =IF(ISERROR(+I53+'App.2-CC_DepExp_Yr2'!K53-J53), 0, +I53+'App.2-CC_DepExp_Yr2'!K53-J53) -> 0
A54: 1980 | B54: System Supervisor Equipment | E54: 0 | F54: =IF(D54=0,+'App.2-CC_DepExp_Yr2'!K54,+'App.2-CC_DepExp_Yr2'!K54+((C54*0.5)/D54)) -> 0 | H54: 0 | I54: 0 | K54: =IF(ISERROR(+I54+'App.2-CC_DepExp_Yr2'!K54-J54), 0, +I54+'App.2-CC_DepExp_Yr2'!K54-J54) -> 0
A55: 1985 | B55: Miscellaneous Fixed Assets | E55: 0 | F55: =IF(D55=0,+'App.2-CC_DepExp_Yr2'!K55,+'App.2-CC_DepExp_Yr2'!K55+((C55*0.5)/D55)) -> 0 | H55: 0 | I55: 0 | K55: =IF(ISERROR(+I55+'App.2-CC_DepExp_Yr2'!K55-J55), 0, +I55+'App.2-CC_DepExp_Yr2'!K55-J55) -> 0
A56: 1990 | B56: Other Tangible Property | E56: 0 | F56: =IF(D56=0,+'App.2-CC_DepExp_Yr2'!K56,+'App.2-CC_DepExp_Yr2'!K56+((C56*0.5)/D56)) -> 0 | H56: 0 | I56: 0 | K56: =IF(ISERROR(+I56+'App.2-CC_DepExp_Yr2'!K56-J56), 0, +I56+'App.2-CC_DepExp_Yr2'!K56-J56) -> 0
A57: 1995 | B57: Contributions & Grants | E57: =IF(D57=0,0,1/D57) -> 0 | F57: =IF(D57=0,+'App.2-CC_DepExp_Yr2'!K57,+'App.2-CC_DepExp_Yr2'!K57+((C57*0.5)/D57)) -> 0 | H57: 0 | I57: 0 | K57: =IF(ISERROR(+I57+'App.2-CC_DepExp_Yr2'!K57-J57), 0, +I57+'App.2-CC_DepExp_Yr2'!K57-J57) -> 0
B58: Total | C58: =SUM(C20:C57) -> 0 | F58: =SUM(F20:F57) -> 0 | G58: 0 | H58: 0 | I58: 0 | J58: 0 | K58: 0
B59: Depreciation exp. adj. from gain or loss on the retirement of assets (pool of like assets) (under MIFRS)
B60: Total Depreciation Expense | F60: =+F59+F58 -> 0
A62: Notes:
A63: 1 | B63: Board policy of the "half-year" rule - the applicant must ensure that additions in the year attract a half-year depreciation expense in the first year. Deviations from this standard practice must be supported in the application.
A64: 2 | B64: The applicant must provide an explanation of material variances in evidence.
A65: 3 | B65: This column refers to the calculated full year depreciation but excludes the depreciation expense on assets fully depreciated during the year. This column is used for the purpose of calculating depreciation expense in the following year on the next worksheet.
A67: General: | B67: Applicants must provide a breakdown of depreciation and amortization expense in the above format for all relevant accounts. Asset Retirement Obligations (AROs), depreciation and accretion expense should be disclosed separately consistent with the Notes of historical Audited Financial Statements.

Sheet App.2-CE_DepExp_Yr4
J1: File Number: | K1: =EBNUMBER -> EB-2016-0110
J2: Exhibit: | K2: Not Applicable
J3: Tab: | K3: to WHESC
J4: Schedule:
J5: Page:
J7: Date: | K7: 2016-10-28
A9: Appendix 2-CE
A10: Depreciation and Amortization Expense
A11: MIFRS (Year 4)
A13: Select the set of appendices that apply | J13: Year Reflected in Schedule Below | K13: Accounting Standard
A14: 2012 Set of Appendices (2-CA to 2-CG) | C14: Assumes the applicant made capitalization and depreciation expense accounting policy changes under CGAAP effective January 1, 2012 and has adopted IFRS for financial reporting purposes effective January 1, 2015. Assumes that the applicant is reflecting these changes in a rebasing application for the first time. | J14: 2015 | K14: MIFRS
A15: 2013 Set of Appendices (2-CA to 2-CF) | C15: Assumes the applicant made capitalization and depreciation expense accounting policy changes under CGAAP effective January 1, 2013 and has adopted IFRS for financial reporting purposes effective January 1, 2015. Assumes that the applicant is reflecting these changes in a rebasing application for the first time. | J15: 2016 | K15: MIFRS
A18: Account | B18: Description | C18: Additions | D18: Years (new additions only) | E18: Depreciation Rate on New Additions | F18: Current Year Depreciation Expense1 | G18: Depreciation Expense per Appendix 2-BA Fixed Assets, Column J (l) | H18: Variance 2 | I18: Depreciation Expense on Current Full Year Additions | J18: Less Depreciation Expense on Assets Fully Depreciated During the Year (o) | K18: Current Full Year Depreciation 3
C19: (d) | D19: (f) | E19: (g) = 1 / (f) | F19: (h)=Prior Full Year Depreciation + ((d)*0.5)/(f) | H19: (m) = (h) - (l) | I19: (n)=((d))/(f) | K19: (p) = Prior Full Year Depreciation + (n) - (o)
A20: 1611 | B20: Computer Software (Formally known as Account 1925) | E20: =IF(D20=0,0,1/D20) -> 0 | F20: =IF(D20=0,'App.2-CD_DepExp_Yr3'!K20,+'App.2-CD_DepExp_Yr3'!K20+((C20*0.5)/D20)) -> 0 | H20: =IF(ISERROR(+F20-G20), 0, +F20-G20) -> 0 | I20: =IF(D20=0,0,+(C20)/D20) -> 0 | K20: =IF(ISERROR(+I20+'App.2-CD_DepExp_Yr3'!K20-J20), 0, +I20+'App.2-CD_DepExp_Yr3'!K20-J20) -> 0
A21: 1612 | B21: Land Rights (Formally known as Account 1906) | E21: 0 | F21: =IF(D21=0,'App.2-CD_DepExp_Yr3'!K21,+'App.2-CD_DepExp_Yr3'!K21+((C21*0.5)/D21)) -> 0 | H21: 0 | I21: =IF(D21=0,0,+(C21)/D21) -> 0 | K21: =IF(ISERROR(+I21+'App.2-CD_DepExp_Yr3'!K21-J21), 0, +I21+'App.2-CD_DepExp_Yr3'!K21-J21) -> 0
A22: 1805 | B22: Land | E22: 0 | F22: =IF(D22=0,'App.2-CD_DepExp_Yr3'!K22,+'App.2-CD_DepExp_Yr3'!K22+((C22*0.5)/D22)) -> 0 | H22: 0 | I22: 0 | K22: =IF(ISERROR(+I22+'App.2-CD_DepExp_Yr3'!K22-J22), 0, +I22+'App.2-CD_DepExp_Yr3'!K22-J22) -> 0
A23: 1808 | B23: Buildings | E23: 0 | F23: =IF(D23=0,'App.2-CD_DepExp_Yr3'!K23,+'App.2-CD_DepExp_Yr3'!K23+((C23*0.5)/D23)) -> 0 | H23: 0 | I23: 0 | K23: =IF(ISERROR(+I23+'App.2-CD_DepExp_Yr3'!K23-J23), 0, +I23+'App.2-CD_DepExp_Yr3'!K23-J23) -> 0
A24: 1810 | B24: Leasehold Improvements | E24: 0 | F24: =IF(D24=0,'App.2-CD_DepExp_Yr3'!K24,+'App.2-CD_DepExp_Yr3'!K24+((C24*0.5)/D24)) -> 0 | H24: 0 | I24: 0 | K24: =IF(ISERROR(+I24+'App.2-CD_DepExp_Yr3'!K24-J24), 0, +I24+'App.2-CD_DepExp_Yr3'!K24-J24) -> 0
A25: 1815 | B25: Transformer Station Equipment >50 kV | E25: 0 | F25: =IF(D25=0,'App.2-CD_DepExp_Yr3'!K25,+'App.2-CD_DepExp_Yr3'!K25+((C25*0.5)/D25)) -> 0 | H25: 0 | I25: 0 | K25: =IF(ISERROR(+I25+'App.2-CD_DepExp_Yr3'!K25-J25), 0, +I25+'App.2-CD_DepExp_Yr3'!K25-J25) -> 0
A26: 1820 | B26: Distribution Station Equipment <50 kV | E26: 0 | F26: =IF(D26=0,'App.2-CD_DepExp_Yr3'!K26,+'App.2-CD_DepExp_Yr3'!K26+((C26*0.5)/D26)) -> 0 | H26: 0 | I26: 0 | K26: =IF(ISERROR(+I26+'App.2-CD_DepExp_Yr3'!K26-J26), 0, +I26+'App.2-CD_DepExp_Yr3'!K26-J26) -> 0
A27: 1825 | B27: Storage Battery Equipment | E27: 0 | F27: =IF(D27=0,'App.2-CD_DepExp_Yr3'!K27,+'App.2-CD_DepExp_Yr3'!K27+((C27*0.5)/D27)) -> 0 | H27: 0 | I27: 0 | K27: =IF(ISERROR(+I27+'App.2-CD_DepExp_Yr3'!K27-J27), 0, +I27+'App.2-CD_DepExp_Yr3'!K27-J27) -> 0
A28: 1830 | B28: Poles, Towers & Fixtures | E28: 0 | F28: =IF(D28=0,'App.2-CD_DepExp_Yr3'!K28,+'App.2-CD_DepExp_Yr3'!K28+((C28*0.5)/D28)) -> 0 | H28: 0 | I28: 0 | K28: =IF(ISERROR(+I28+'App.2-CD_DepExp_Yr3'!K28-J28), 0, +I28+'App.2-CD_DepExp_Yr3'!K28-J28) -> 0
A29: 1835 | B29: Overhead Conductors & Devices | E29: 0 | F29: =IF(D29=0,'App.2-CD_DepExp_Yr3'!K29,+'App.2-CD_DepExp_Yr3'!K29+((C29*0.5)/D29)) -> 0 | H29: 0 | I29: 0 | K29: =IF(ISERROR(+I29+'App.2-CD_DepExp_Yr3'!K29-J29), 0, +I29+'App.2-CD_DepExp_Yr3'!K29-J29) -> 0
A30: 1840 | B30: Underground Conduit | E30: 0 | F30: =IF(D30=0,'App.2-CD_DepExp_Yr3'!K30,+'App.2-CD_DepExp_Yr3'!K30+((C30*0.5)/D30)) -> 0 | H30: 0 | I30: 0 | K30: =IF(ISERROR(+I30+'App.2-CD_DepExp_Yr3'!K30-J30), 0, +I30+'App.2-CD_DepExp_Yr3'!K30-J30) -> 0
A31: 1845 | B31: Underground Conductors & Devices | E31: 0 | F31: =IF(D31=0,'App.2-CD_DepExp_Yr3'!K31,+'App.2-CD_DepExp_Yr3'!K31+((C31*0.5)/D31)) -> 0 | H31: 0 | I31: 0 | K31: =IF(ISERROR(+I31+'App.2-CD_DepExp_Yr3'!K31-J31), 0, +I31+'App.2-CD_DepExp_Yr3'!K31-J31) -> 0
A32: 1850 | B32: Line Transformers | E32: 0 | F32: =IF(D32=0,'App.2-CD_DepExp_Yr3'!K32,+'App.2-CD_DepExp_Yr3'!K32+((C32*0.5)/D32)) -> 0 | H32: 0 | I32: 0 | K32: =IF(ISERROR(+I32+'App.2-CD_DepExp_Yr3'!K32-J32), 0, +I32+'App.2-CD_DepExp_Yr3'!K32-J32) -> 0
A33: 1855 | B33: Services (Overhead & Underground) | E33: 0 | F33: =IF(D33=0,'App.2-CD_DepExp_Yr3'!K33,+'App.2-CD_DepExp_Yr3'!K33+((C33*0.5)/D33)) -> 0 | H33: 0 | I33: 0 | K33: =IF(ISERROR(+I33+'App.2-CD_DepExp_Yr3'!K33-J33), 0, +I33+'App.2-CD_DepExp_Yr3'!K33-J33) -> 0
A34: 1860 | B34: Meters | E34: 0 | F34: =IF(D34=0,'App.2-CD_DepExp_Yr3'!K34,+'App.2-CD_DepExp_Yr3'!K34+((C34*0.5)/D34)) -> 0 | H34: 0 | I34: 0 | K34: =IF(ISERROR(+I34+'App.2-CD_DepExp_Yr3'!K34-J34), 0, +I34+'App.2-CD_DepExp_Yr3'!K34-J34) -> 0
A35: 1860 | B35: Meters (Smart Meters) | E35: 0 | F35: =IF(D35=0,'App.2-CD_DepExp_Yr3'!K35,+'App.2-CD_DepExp_Yr3'!K35+((C35*0.5)/D35)) -> 0 | H35: 0 | I35: 0 | K35: =IF(ISERROR(+I35+'App.2-CD_DepExp_Yr3'!K35-J35), 0, +I35+'App.2-CD_DepExp_Yr3'!K35-J35) -> 0
A36: 1905 | B36: Land | E36: 0 | F36: =IF(D36=0,'App.2-CD_DepExp_Yr3'!K36,+'App.2-CD_DepExp_Yr3'!K36+((C36*0.5)/D36)) -> 0 | H36: 0 | I36: 0 | K36: =IF(ISERROR(+I36+'App.2-CD_DepExp_Yr3'!K36-J36), 0, +I36+'App.2-CD_DepExp_Yr3'!K36-J36) -> 0
A37: 1908 | B37: Buildings & Fixtures | E37: 0 | F37: =IF(D37=0,'App.2-CD_DepExp_Yr3'!K37,+'App.2-CD_DepExp_Yr3'!K37+((C37*0.5)/D37)) -> 0 | H37: 0 | I37: 0 | K37: =IF(ISERROR(+I37+'App.2-CD_DepExp_Yr3'!K37-J37), 0, +I37+'App.2-CD_DepExp_Yr3'!K37-J37) -> 0
A38: 1910 | B38: Leasehold Improvements | E38: 0 | F38: =IF(D38=0,'App.2-CD_DepExp_Yr3'!K38,+'App.2-CD_DepExp_Yr3'!K38+((C38*0.5)/D38)) -> 0 | H38: 0 | I38: 0 | K38: =IF(ISERROR(+I38+'App.2-CD_DepExp_Yr3'!K38-J38), 0, +I38+'App.2-CD_DepExp_Yr3'!K38-J38) -> 0
A39: 1915 | B39: Office Furniture & Equipment (10 years) | E39: 0 | F39: =IF(D39=0,'App.2-CD_DepExp_Yr3'!K39,+'App.2-CD_DepExp_Yr3'!K39+((C39*0.5)/D39)) -> 0 | H39: 0 | I39: 0 | K39: =IF(ISERROR(+I39+'App.2-CD_DepExp_Yr3'!K39-J39), 0, +I39+'App.2-CD_DepExp_Yr3'!K39-J39) -> 0
A40: 1915 | B40: Office Furniture & Equipment (5 years) | E40: 0 | F40: =IF(D40=0,'App.2-CD_DepExp_Yr3'!K40,+'App.2-CD_DepExp_Yr3'!K40+((C40*0.5)/D40)) -> 0 | H40: 0 | I40: 0 | K40: =IF(ISERROR(+I40+'App.2-CD_DepExp_Yr3'!K40-J40), 0, +I40+'App.2-CD_DepExp_Yr3'!K40-J40) -> 0
A41: 1920 | B41: Computer Equipment - Hardware | E41: 0 | F41: =IF(D41=0,'App.2-CD_DepExp_Yr3'!K41,+'App.2-CD_DepExp_Yr3'!K41+((C41*0.5)/D41)) -> 0 | H41: 0 | I41: 0 | K41: =IF(ISERROR(+I41+'App.2-CD_DepExp_Yr3'!K41-J41), 0, +I41+'App.2-CD_DepExp_Yr3'!K41-J41) -> 0
A42: 1920 | B42: Computer Equip.-Hardware(Post Mar. 22/04) | E42: 0 | F42: =IF(D42=0,'App.2-CD_DepExp_Yr3'!K42,+'App.2-CD_DepExp_Yr3'!K42+((C42*0.5)/D42)) -> 0 | H42: 0 | I42: 0 | K42: =IF(ISERROR(+I42+'App.2-CD_DepExp_Yr3'!K42-J42), 0, +I42+'App.2-CD_DepExp_Yr3'!K42-J42) -> 0
A43: 1920 | B43: Computer Equip.-Hardware(Post Mar. 19/07) | E43: 0 | F43: =IF(D43=0,'App.2-CD_DepExp_Yr3'!K43,+'App.2-CD_DepExp_Yr3'!K43+((C43*0.5)/D43)) -> 0 | H43: 0 | I43: 0 | K43: =IF(ISERROR(+I43+'App.2-CD_DepExp_Yr3'!K43-J43), 0, +I43+'App.2-CD_DepExp_Yr3'!K43-J43) -> 0
A44: 1930 | B44: Transportation Equipment | E44: 0 | F44: =IF(D44=0,'App.2-CD_DepExp_Yr3'!K44,+'App.2-CD_DepExp_Yr3'!K44+((C44*0.5)/D44)) -> 0 | H44: 0 | I44: 0 | K44: =IF(ISERROR(+I44+'App.2-CD_DepExp_Yr3'!K44-J44), 0, +I44+'App.2-CD_DepExp_Yr3'!K44-J44) -> 0
A45: 1935 | B45: Stores Equipment | E45: 0 | F45: =IF(D45=0,'App.2-CD_DepExp_Yr3'!K45,+'App.2-CD_DepExp_Yr3'!K45+((C45*0.5)/D45)) -> 0 | H45: 0 | I45: 0 | K45: =IF(ISERROR(+I45+'App.2-CD_DepExp_Yr3'!K45-J45), 0, +I45+'App.2-CD_DepExp_Yr3'!K45-J45) -> 0
A46: 1940 | B46: Tools, Shop & Garage Equipment | E46: 0 | F46: =IF(D46=0,'App.2-CD_DepExp_Yr3'!K46,+'App.2-CD_DepExp_Yr3'!K46+((C46*0.5)/D46)) -> 0 | H46: 0 | I46: 0 | K46: =IF(ISERROR(+I46+'App.2-CD_DepExp_Yr3'!K46-J46), 0, +I46+'App.2-CD_DepExp_Yr3'!K46-J46) -> 0
A47: 1945 | B47: Measurement & Testing Equipment | E47: 0 | F47: =IF(D47=0,'App.2-CD_DepExp_Yr3'!K47,+'App.2-CD_DepExp_Yr3'!K47+((C47*0.5)/D47)) -> 0 | H47: 0 | I47: 0 | K47: =IF(ISERROR(+I47+'App.2-CD_DepExp_Yr3'!K47-J47), 0, +I47+'App.2-CD_DepExp_Yr3'!K47-J47) -> 0
A48: 1950 | B48: Power Operated Equipment | E48: 0 | F48: =IF(D48=0,'App.2-CD_DepExp_Yr3'!K48,+'App.2-CD_DepExp_Yr3'!K48+((C48*0.5)/D48)) -> 0 | H48: 0 | I48: 0 | K48: =IF(ISERROR(+I48+'App.2-CD_DepExp_Yr3'!K48-J48), 0, +I48+'App.2-CD_DepExp_Yr3'!K48-J48) -> 0
A49: 1955 | B49: Communications Equipment | E49: 0 | F49: =IF(D49=0,'App.2-CD_DepExp_Yr3'!K49,+'App.2-CD_DepExp_Yr3'!K49+((C49*0.5)/D49)) -> 0 | H49: 0 | I49: 0 | K49: =IF(ISERROR(+I49+'App.2-CD_DepExp_Yr3'!K49-J49), 0, +I49+'App.2-CD_DepExp_Yr3'!K49-J49) -> 0
A50: 1955 | B50: Communication Equipment (Smart Meters) | E50: 0 | F50: =IF(D50=0,'App.2-CD_DepExp_Yr3'!K50,+'App.2-CD_DepExp_Yr3'!K50+((C50*0.5)/D50)) -> 0 | H50: 0 | I50: 0 | K50: =IF(ISERROR(+I50+'App.2-CD_DepExp_Yr3'!K50-J50), 0, +I50+'App.2-CD_DepExp_Yr3'!K50-J50) -> 0
A51: 1960 | B51: Miscellaneous Equipment | E51: 0 | F51: =IF(D51=0,'App.2-CD_DepExp_Yr3'!K51,+'App.2-CD_DepExp_Yr3'!K51+((C51*0.5)/D51)) -> 0 | H51: 0 | I51: 0 | K51: =IF(ISERROR(+I51+'App.2-CD_DepExp_Yr3'!K51-J51), 0, +I51+'App.2-CD_DepExp_Yr3'!K51-J51) -> 0
A52: 1970 | B52: Load Management Controls Customer Premises | E52: 0 | F52: =IF(D52=0,'App.2-CD_DepExp_Yr3'!K52,+'App.2-CD_DepExp_Yr3'!K52+((C52*0.5)/D52)) -> 0 | H52: 0 | I52: 0 | K52: =IF(ISERROR(+I52+'App.2-CD_DepExp_Yr3'!K52-J52), 0, +I52+'App.2-CD_DepExp_Yr3'!K52-J52) -> 0
A53: 1975 | B53: Load Management Controls Utility Premises | E53: 0 | F53: =IF(D53=0,'App.2-CD_DepExp_Yr3'!K53,+'App.2-CD_DepExp_Yr3'!K53+((C53*0.5)/D53)) -> 0 | H53: 0 | I53: 0 | K53: =IF(ISERROR(+I53+'App.2-CD_DepExp_Yr3'!K53-J53), 0, +I53+'App.2-CD_DepExp_Yr3'!K53-J53) -> 0
A54: 1980 | B54: System Supervisor Equipment | E54: 0 | F54: =IF(D54=0,'App.2-CD_DepExp_Yr3'!K54,+'App.2-CD_DepExp_Yr3'!K54+((C54*0.5)/D54)) -> 0 | H54: 0 | I54: 0 | K54: =IF(ISERROR(+I54+'App.2-CD_DepExp_Yr3'!K54-J54), 0, +I54+'App.2-CD_DepExp_Yr3'!K54-J54) -> 0
A55: 1985 | B55: Miscellaneous Fixed Assets | E55: 0 | F55: =IF(D55=0,'App.2-CD_DepExp_Yr3'!K55,+'App.2-CD_DepExp_Yr3'!K55+((C55*0.5)/D55)) -> 0 | H55: 0 | I55: 0 | K55: =IF(ISERROR(+I55+'App.2-CD_DepExp_Yr3'!K55-J55), 0, +I55+'App.2-CD_DepExp_Yr3'!K55-J55) -> 0
A56: 1990 | B56: Other Tangible Property | E56: 0 | F56: =IF(D56=0,'App.2-CD_DepExp_Yr3'!K56,+'App.2-CD_DepExp_Yr3'!K56+((C56*0.5)/D56)) -> 0 | H56: 0 | I56: 0 | K56: =IF(ISERROR(+I56+'App.2-CD_DepExp_Yr3'!K56-J56), 0, +I56+'App.2-CD_DepExp_Yr3'!K56-J56) -> 0
A57: 1995 | B57: Contributions & Grants | E57: 0 | F57: =IF(D57=0,'App.2-CD_DepExp_Yr3'!K57,+'App.2-CD_DepExp_Yr3'!K57+((C57*0.5)/D57)) -> 0 | H57: 0 | I57: 0 | K57: =IF(ISERROR(+I57+'App.2-CD_DepExp_Yr3'!K57-J57), 0, +I57+'App.2-CD_DepExp_Yr3'!K57-J57) -> 0
B58: Total | C58: =SUM(C20:C57) -> 0 | F58: =SUM(F20:F57) -> 0 | G58: 0 | H58: 0 | I58: 0 | J58: 0 | K58: 0
B59: Depreciation exp. adj. from gain or loss on the retirement of assets (pool of like assets)
B60: Total Depreciation Expense | F60: =SUM(F58:F59) -> 0
A61: Notes:
A62: 1 | B62: Board policy of the "half-year" rule - the applicant must ensure that additions in the year attract a half-year depreciation expense in the first year. Deviations from this standard practice must be supported in the application.
A63: 2 | B63: The applicant must provide an explanation of material variances in evidence.
A64: 3 | B64: This column refers to the calculated full year depreciation but excludes the depreciation expense on assets fully depreciated during the year. This column is used for the purpose of calculating depreciation expense in the following year on the next worksheet.
A66: General: | B66: Applicants must provide a breakdown of depreciation and amortization expense in the above format for all relevant accounts. Asset Retirement Obligations (AROs), depreciation and accretion expense should be disclosed separately consistent with the Notes of historical Audited Financial Statements.

Sheet App.2-CF_DepExp_Yr5
J1: File Number: | K1: =EBNUMBER -> EB-2016-0110
J2: Exhibit: | K2: Not Applicable
J3: Tab: | K3: to WHESC
J4: Schedule:
J5: Page:
J7: Date: | K7: 2016-10-28
A9: Appendix 2-CF
A10: Depreciation and Amortization Expense
A11: MIFRS (Year 5)
A13: Select the set of appendices that apply | J13: Year Reflected in Schedule Below | K13: Accounting Standard
A14: 2012 Set of Appendices (2-CA to 2-CG) | C14: Assumes the applicant made capitalization and depreciation expense accounting policy changes under CGAAP effective January 1, 2012 and has adopted IFRS for financial reporting purposes effective January 1, 2015. Assumes that the applicant is reflecting these changes in a rebasing application for the first time. | J14: 2016 | K14: MIFRS
A15: 2013 Set of Appendices (2-CA to 2-CF) | C15: Assumes the applicant made capitalization and depreciation expense accounting policy changes under CGAAP effective January 1, 2013 and has adopted IFRS for financial reporting purposes effective January 1, 2015. Assumes that the applicant is reflecting these changes in a rebasing application for the first time. | J15: 2017 | K15: MIFRS
A18: Account | B18: Description | C18: Additions | D18: Years (new additions only) | E18: Depreciation Rate on New Additions | F18: Current Depreciation Expense1 | G18: Depreciation Expense per Appendix 2-BA Fixed Assets, Column J (l) | H18: Variance 2 | I18: Depreciation Expense on Current Full Year Additions | J18: Less Depreciation Expense on Assets Fully Depreciated During the Year (o) | K18: Current Full Year Depreciation 3
C19: (d) | D19: (f) | E19: (g) = 1 / (f) | F19: (h)= Prior Full Year Depreciation + ((d)*0.5)/(f) | H19: (m) = (h) - (l) | I19: (n)=((d))/(f) | K19: (p) = Prior Full Year Depreciation + (n) - (o)
A20: 1611 | B20: Computer Software (Formally known as Account 1925) | E20: =IF(D20=0,0,1/D20) -> 0 | F20: =IF(D20=0,'App.2-CE_DepExp_Yr4'!K20,+'App.2-CE_DepExp_Yr4'!K20+((C20*0.5)/D20)) -> 0 | H20: =IF(ISERROR(+F20-G20), 0, +F20-G20) -> 0 | I20: =IF(D20=0,0,+(C20)/D20) -> 0 | K20: =IF(ISERROR(+I20+'App.2-CE_DepExp_Yr4'!K20-J20), 0, +'App.2-CE_DepExp_Yr4'!K20-J20) -> 0
A21: 1612 | B21: Land Rights (Formally known as Account 1906) | E21: 0 | F21: =IF(D21=0,'App.2-CE_DepExp_Yr4'!K21,+'App.2-CE_DepExp_Yr4'!K21+((C21*0.5)/D21)) -> 0 | H21: 0 | I21: =IF(D21=0,0,+(C21)/D21) -> 0 | K21: =IF(ISERROR(+I21+'App.2-CE_DepExp_Yr4'!K21-J21), 0, +'App.2-CE_DepExp_Yr4'!K21-J21) -> 0
A22: 1805 | B22: Land | E22: 0 | F22: =IF(D22=0,'App.2-CE_DepExp_Yr4'!K22,+'App.2-CE_DepExp_Yr4'!K22+((C22*0.5)/D22)) -> 0 | H22: 0 | I22: 0 | K22: =IF(ISERROR(+I22+'App.2-CE_DepExp_Yr4'!K22-J22), 0, +'App.2-CE_DepExp_Yr4'!K22-J22) -> 0
A23: 1808 | B23: Buildings | E23: 0 | F23: =IF(D23=0,'App.2-CE_DepExp_Yr4'!K23,+'App.2-CE_DepExp_Yr4'!K23+((C23*0.5)/D23)) -> 0 | H23: 0 | I23: 0 | K23: =IF(ISERROR(+I23+'App.2-CE_DepExp_Yr4'!K23-J23), 0, +'App.2-CE_DepExp_Yr4'!K23-J23) -> 0
A24: 1810 | B24: Leasehold Improvements | E24: 0 | F24: =IF(D24=0,'App.2-CE_DepExp_Yr4'!K24,+'App.2-CE_DepExp_Yr4'!K24+((C24*0.5)/D24)) -> 0 | H24: 0 | I24: 0 | K24: =IF(ISERROR(+I24+'App.2-CE_DepExp_Yr4'!K24-J24), 0, +'App.2-CE_DepExp_Yr4'!K24-J24) -> 0
A25: 1815 | B25: Transformer Station Equipment >50 kV | E25: 0 | F25: =IF(D25=0,'App.2-CE_DepExp_Yr4'!K25,+'App.2-CE_DepExp_Yr4'!K25+((C25*0.5)/D25)) -> 0 | H25: 0 | I25: 0 | K25: =IF(ISERROR(+I25+'App.2-CE_DepExp_Yr4'!K25-J25), 0, +'App.2-CE_DepExp_Yr4'!K25-J25) -> 0
A26: 1820 | B26: Distribution Station Equipment <50 kV | E26: 0 | F26: =IF(D26=0,'App.2-CE_DepExp_Yr4'!K26,+'App.2-CE_DepExp_Yr4'!K26+((C26*0.5)/D26)) -> 0 | H26: 0 | I26: 0 | K26: =IF(ISERROR(+I26+'App.2-CE_DepExp_Yr4'!K26-J26), 0, +'App.2-CE_DepExp_Yr4'!K26-J26) -> 0
A27: 1825 | B27: Storage Battery Equipment | E27: 0 | F27: =IF(D27=0,'App.2-CE_DepExp_Yr4'!K27,+'App.2-CE_DepExp_Yr4'!K27+((C27*0.5)/D27)) -> 0 | H27: 0 | I27: 0 | K27: =IF(ISERROR(+I27+'App.2-CE_DepExp_Yr4'!K27-J27), 0, +'App.2-CE_DepExp_Yr4'!K27-J27) -> 0
A28: 1830 | B28: Poles, Towers & Fixtures | E28: 0 | F28: =IF(D28=0,'App.2-CE_DepExp_Yr4'!K28,+'App.2-CE_DepExp_Yr4'!K28+((C28*0.5)/D28)) -> 0 | H28: 0 | I28: 0 | K28: =IF(ISERROR(+I28+'App.2-CE_DepExp_Yr4'!K28-J28), 0, +'App.2-CE_DepExp_Yr4'!K28-J28) -> 0
A29: 1835 | B29: Overhead Conductors & Devices | E29: 0 | F29: =IF(D29=0,'App.2-CE_DepExp_Yr4'!K29,+'App.2-CE_DepExp_Yr4'!K29+((C29*0.5)/D29)) -> 0 | H29: 0 | I29: 0 | K29: =IF(ISERROR(+I29+'App.2-CE_DepExp_Yr4'!K29-J29), 0, +'App.2-CE_DepExp_Yr4'!K29-J29) -> 0
A30: 1840 | B30: Underground Conduit | E30: 0 | F30: =IF(D30=0,'App.2-CE_DepExp_Yr4'!K30,+'App.2-CE_DepExp_Yr4'!K30+((C30*0.5)/D30)) -> 0 | H30: 0 | I30: 0 | K30: =IF(ISERROR(+I30+'App.2-CE_DepExp_Yr4'!K30-J30), 0, +'App.2-CE_DepExp_Yr4'!K30-J30) -> 0
A31: 1845 | B31: Underground Conductors & Devices | E31: 0 | F31: =IF(D31=0,'App.2-CE_DepExp_Yr4'!K31,+'App.2-CE_DepExp_Yr4'!K31+((C31*0.5)/D31)) -> 0 | H31: 0 | I31: 0 | K31: =IF(ISERROR(+I31+'App.2-CE_DepExp_Yr4'!K31-J31), 0, +'App.2-CE_DepExp_Yr4'!K31-J31) -> 0
A32: 1850 | B32: Line Transformers | E32: 0 | F32: =IF(D32=0,'App.2-CE_DepExp_Yr4'!K32,+'App.2-CE_DepExp_Yr4'!K32+((C32*0.5)/D32)) -> 0 | H32: 0 | I32: 0 | K32: =IF(ISERROR(+I32+'App.2-CE_DepExp_Yr4'!K32-J32), 0, +'App.2-CE_DepExp_Yr4'!K32-J32) -> 0
A33: 1855 | B33: Services (Overhead & Underground) | E33: 0 | F33: =IF(D33=0,'App.2-CE_DepExp_Yr4'!K33,+'App.2-CE_DepExp_Yr4'!K33+((C33*0.5)/D33)) -> 0 | H33: 0 | I33: 0 | K33: =IF(ISERROR(+I33+'App.2-CE_DepExp_Yr4'!K33-J33), 0, +'App.2-CE_DepExp_Yr4'!K33-J33) -> 0
A34: 1860 | B34: Meters | E34: 0 | F34: =IF(D34=0,'App.2-CE_DepExp_Yr4'!K34,+'App.2-CE_DepExp_Yr4'!K34+((C34*0.5)/D34)) -> 0 | H34: 0 | I34: 0 | K34: =IF(ISERROR(+I34+'App.2-CE_DepExp_Yr4'!K34-J34), 0, +'App.2-CE_DepExp_Yr4'!K34-J34) -> 0
A35: 1860 | B35: Meters (Smart Meters) | E35: 0 | F35: =IF(D35=0,'App.2-CE_DepExp_Yr4'!K35,+'App.2-CE_DepExp_Yr4'!K35+((C35*0.5)/D35)) -> 0 | H35: 0 | I35: 0 | K35: =IF(ISERROR(+I35+'App.2-CE_DepExp_Yr4'!K35-J35), 0, +'App.2-CE_DepExp_Yr4'!K35-J35) -> 0
A36: 1905 | B36: Land | E36: 0 | F36: =IF(D36=0,'App.2-CE_DepExp_Yr4'!K36,+'App.2-CE_DepExp_Yr4'!K36+((C36*0.5)/D36)) -> 0 | H36: 0 | I36: 0 | K36: =IF(ISERROR(+I36+'App.2-CE_DepExp_Yr4'!K36-J36), 0, +'App.2-CE_DepExp_Yr4'!K36-J36) -> 0
A37: 1908 | B37: Buildings & Fixtures | E37: 0 | F37: =IF(D37=0,'App.2-CE_DepExp_Yr4'!K37,+'App.2-CE_DepExp_Yr4'!K37+((C37*0.5)/D37)) -> 0 | H37: 0 | I37: 0 | K37: =IF(ISERROR(+I37+'App.2-CE_DepExp_Yr4'!K37-J37), 0, +'App.2-CE_DepExp_Yr4'!K37-J37) -> 0
A38: 1910 | B38: Leasehold Improvements | E38: 0 | F38: =IF(D38=0,'App.2-CE_DepExp_Yr4'!K38,+'App.2-CE_DepExp_Yr4'!K38+((C38*0.5)/D38)) -> 0 | H38: 0 | I38: 0 | K38: =IF(ISERROR(+I38+'App.2-CE_DepExp_Yr4'!K38-J38), 0, +'App.2-CE_DepExp_Yr4'!K38-J38) -> 0
A39: 1915 | B39: Office Furniture & Equipment (10 years) | E39: 0 | F39: =IF(D39=0,'App.2-CE_DepExp_Yr4'!K39,+'App.2-CE_DepExp_Yr4'!K39+((C39*0.5)/D39)) -> 0 | H39: 0 | I39: 0 | K39: =IF(ISERROR(+I39+'App.2-CE_DepExp_Yr4'!K39-J39), 0, +'App.2-CE_DepExp_Yr4'!K39-J39) -> 0
A40: 1915 | B40: Office Furniture & Equipment (5 years) | E40: 0 | F40: =IF(D40=0,'App.2-CE_DepExp_Yr4'!K40,+'App.2-CE_DepExp_Yr4'!K40+((C40*0.5)/D40)) -> 0 | H40: 0 | I40: 0 | K40: =IF(ISERROR(+I40+'App.2-CE_DepExp_Yr4'!K40-J40), 0, +'App.2-CE_DepExp_Yr4'!K40-J40) -> 0
A41: 1920 | B41: Computer Equipment - Hardware | E41: 0 | F41: =IF(D41=0,'App.2-CE_DepExp_Yr4'!K41,+'App.2-CE_DepExp_Yr4'!K41+((C41*0.5)/D41)) -> 0 | H41: 0 | I41: 0 | K41: =IF(ISERROR(+I41+'App.2-CE_DepExp_Yr4'!K41-J41), 0, +'App.2-CE_DepExp_Yr4'!K41-J41) -> 0
A42: 1920 | B42: Computer Equip.-Hardware(Post Mar. 22/04) | E42: 0 | F42: =IF(D42=0,'App.2-CE_DepExp_Yr4'!K42,+'App.2-CE_DepExp_Yr4'!K42+((C42*0.5)/D42)) -> 0 | H42: 0 | I42: 0 | K42: =IF(ISERROR(+I42+'App.2-CE_DepExp_Yr4'!K42-J42), 0, +'App.2-CE_DepExp_Yr4'!K42-J42) -> 0
A43: 1920 | B43: Computer Equip.-Hardware(Post Mar. 19/07) | E43: 0 | F43: =IF(D43=0,'App.2-CE_DepExp_Yr4'!K43,+'App.2-CE_DepExp_Yr4'!K43+((C43*0.5)/D43)) -> 0 | H43: 0 | I43: 0 | K43: =IF(ISERROR(+I43+'App.2-CE_DepExp_Yr4'!K43-J43), 0, +'App.2-CE_DepExp_Yr4'!K43-J43) -> 0
A44: 1930 | B44: Transportation Equipment | E44: 0 | F44: =IF(D44=0,'App.2-CE_DepExp_Yr4'!K44,+'App.2-CE_DepExp_Yr4'!K44+((C44*0.5)/D44)) -> 0 | H44: 0 | I44: 0 | K44: =IF(ISERROR(+I44+'App.2-CE_DepExp_Yr4'!K44-J44), 0, +'App.2-CE_DepExp_Yr4'!K44-J44) -> 0
A45: 1935 | B45: Stores Equipment | E45: 0 | F45: =IF(D45=0,'App.2-CE_DepExp_Yr4'!K45,+'App.2-CE_DepExp_Yr4'!K45+((C45*0.5)/D45)) -> 0 | H45: 0 | I45: 0 | K45: =IF(ISERROR(+I45+'App.2-CE_DepExp_Yr4'!K45-J45), 0, +'App.2-CE_DepExp_Yr4'!K45-J45) -> 0
A46: 1940 | B46: Tools, Shop & Garage Equipment | E46: 0 | F46: =IF(D46=0,'App.2-CE_DepExp_Yr4'!K46,+'App.2-CE_DepExp_Yr4'!K46+((C46*0.5)/D46)) -> 0 | H46: 0 | I46: 0 | K46: =IF(ISERROR(+I46+'App.2-CE_DepExp_Yr4'!K46-J46), 0, +'App.2-CE_DepExp_Yr4'!K46-J46) -> 0
A47: 1945 | B47: Measurement & Testing Equipment | E47: 0 | F47: =IF(D47=0,'App.2-CE_DepExp_Yr4'!K47,+'App.2-CE_DepExp_Yr4'!K47+((C47*0.5)/D47)) -> 0 | H47: 0 | I47: 0 | K47: =IF(ISERROR(+I47+'App.2-CE_DepExp_Yr4'!K47-J47), 0, +'App.2-CE_DepExp_Yr4'!K47-J47) -> 0
A48: 1950 | B48: Power Operated Equipment | E48: 0 | F48: =IF(D48=0,'App.2-CE_DepExp_Yr4'!K48,+'App.2-CE_DepExp_Yr4'!K48+((C48*0.5)/D48)) -> 0 | H48: 0 | I48: 0 | K48: =IF(ISERROR(+I48+'App.2-CE_DepExp_Yr4'!K48-J48), 0, +'App.2-CE_DepExp_Yr4'!K48-J48) -> 0
A49: 1955 | B49: Communications Equipment | E49: 0 | F49: =IF(D49=0,'App.2-CE_DepExp_Yr4'!K49,+'App.2-CE_DepExp_Yr4'!K49+((C49*0.5)/D49)) -> 0 | H49: 0 | I49: 0 | K49: =IF(ISERROR(+I49+'App.2-CE_DepExp_Yr4'!K49-J49), 0, +'App.2-CE_DepExp_Yr4'!K49-J49) -> 0
A50: 1955 | B50: Communication Equipment (Smart Meters) | E50: 0 | F50: =IF(D50=0,'App.2-CE_DepExp_Yr4'!K50,+'App.2-CE_DepExp_Yr4'!K50+((C50*0.5)/D50)) -> 0 | H50: 0 | I50: 0 | K50: =IF(ISERROR(+I50+'App.2-CE_DepExp_Yr4'!K50-J50), 0, +'App.2-CE_DepExp_Yr4'!K50-J50) -> 0
A51: 1960 | B51: Miscellaneous Equipment | E51: 0 | F51: =IF(D51=0,'App.2-CE_DepExp_Yr4'!K51,+'App.2-CE_DepExp_Yr4'!K51+((C51*0.5)/D51)) -> 0 | H51: 0 | I51: 0 | K51: =IF(ISERROR(+I51+'App.2-CE_DepExp_Yr4'!K51-J51), 0, +'App.2-CE_DepExp_Yr4'!K51-J51) -> 0
A52: 1970 | B52: Load Management Controls Customer Premises | E52: 0 | F52: =IF(D52=0,'App.2-CE_DepExp_Yr4'!K52,+'App.2-CE_DepExp_Yr4'!K52+((C52*0.5)/D52)) -> 0 | H52: 0 | I52: 0 | K52: =IF(ISERROR(+I52+'App.2-CE_DepExp_Yr4'!K52-J52), 0, +'App.2-CE_DepExp_Yr4'!K52-J52) -> 0
A53: 1975 | B53: Load Management Controls Utility Premises | E53: 0 | F53: =IF(D53=0,'App.2-CE_DepExp_Yr4'!K53,+'App.2-CE_DepExp_Yr4'!K53+((C53*0.5)/D53)) -> 0 | H53: 0 | I53: 0 | K53: =IF(ISERROR(+I53+'App.2-CE_DepExp_Yr4'!K53-J53), 0, +'App.2-CE_DepExp_Yr4'!K53-J53) -> 0
A54: 1980 | B54: System Supervisor Equipment | E54: 0 | F54: =IF(D54=0,'App.2-CE_DepExp_Yr4'!K54,+'App.2-CE_DepExp_Yr4'!K54+((C54*0.5)/D54)) -> 0 | H54: 0 | I54: 0 | K54: =IF(ISERROR(+I54+'App.2-CE_DepExp_Yr4'!K54-J54), 0, +'App.2-CE_DepExp_Yr4'!K54-J54) -> 0
A55: 1985 | B55: Miscellaneous Fixed Assets | E55: 0 | F55: =IF(D55=0,'App.2-CE_DepExp_Yr4'!K55,+'App.2-CE_DepExp_Yr4'!K55+((C55*0.5)/D55)) -> 0 | H55: 0 | I55: 0 | K55: =IF(ISERROR(+I55+'App.2-CE_DepExp_Yr4'!K55-J55), 0, +'App.2-CE_DepExp_Yr4'!K55-J55) -> 0
A56: 1990 | B56: Other Tangible Property | E56: 0 | F56: =IF(D56=0,'App.2-CE_DepExp_Yr4'!K56,+'App.2-CE_DepExp_Yr4'!K56+((C56*0.5)/D56)) -> 0 | H56: 0 | I56: 0 | K56: =IF(ISERROR(+I56+'App.2-CE_DepExp_Yr4'!K56-J56), 0, +'App.2-CE_DepExp_Yr4'!K56-J56) -> 0
A57: 1995 | B57: Contributions & Grants | E57: 0 | F57: =IF(D57=0,'App.2-CE_DepExp_Yr4'!K57,+'App.2-CE_DepExp_Yr4'!K57+((C57*0.5)/D57)) -> 0 | H57: 0 | I57: 0 | K57: =IF(ISERROR(+I57+'App.2-CE_DepExp_Yr4'!K57-J57), 0, +'App.2-CE_DepExp_Yr4'!K57-J57) -> 0
B58: Total | C58: =SUM(C20:C57) -> 0 | F58: =SUM(F20:F57) -> 0 | G58: 0 | H58: 0 | I58: 0 | J58: 0 | K58: 0
B59: Depreciation exp. adj. from gain or loss on the retirement of assets (pool of like assets)
B60: Total Depreciation Expense | F60: =SUM(F58:F59) -> 0
A61: Notes:
A62: 1 | B62: Board policy of the "half-year" rule - the applicant must ensure that additions in the year attract a half-year depreciation expense in the first year. Deviations from this standard practice must be supported in the application.
A63: 2 | B63: The applicant must provide an explanation of material variances in evidence.
A64: 3 | B64: This column refers to the calculated full year depreciation but excludes the depreciation expense on assets fully depreciated during the year. This column is used for the purpose of calculating depreciation expense in the following year on the next worksheet.
A66: General: | B66: Applicants must provide a breakdown of depreciation and amortization expense in the above format for all relevant accounts. Asset Retirement Obligations (AROs), depreciation and accretion expense should be disclosed separately consistent with the Notes of historical Audited Financial Statements.

Sheet App.2-CG_DepExp_Yr6
J1: File Number: | K1: =EBNUMBER -> EB-2016-0110
J2: Exhibit: | K2: Not Applicable
J3: Tab: | K3: to WHESC
J4: Schedule:
J5: Page:
J7: Date: | K7: 2016-10-28
A9: Appendix 2-CG
A10: Depreciation and Amortization Expense
A11: MIFRS (Year 6)
A13: Select the set of appendices that apply | J13: Year Reflected in Schedule Below | K13: Accounting Standard
A14: 2012 Set of Appendices (2-CA to 2-CG) | C14: Assumes the applicant made capitalization and depreciation expense accounting policy changes under CGAAP effective January 1, 2012 and has adopted IFRS for financial reporting purposes effective January 1, 2015. Assumes that the applicant is reflecting these changes in a rebasing application for the first time. | J14: 2017 | K14: MIFRS
A15: N/A | B15: 2013 Set of Appendices | C15: Not applicable as the test year depreciation is already calculated in Appendix 2-CF. Note that this appendix is not to be used even though depreciation expense calculations will flow through from previous years to this appendix. | J15: N/A | K15: N/A
A18: Account | B18: Description | C18: Additions | D18: Years (new additions only) | E18: Depreciation Rate on New Additions | F18: Current Depreciation Expense1 | G18: Depreciation Expense per Appendix 2-BA Fixed Assets, Column J (l) | H18: Variance 2
C19: (d) | D19: (f) | E19: (g) = 1 / (f) | F19: (h)= Prior Full Year Depreciation + ((d)*0.5)/(f) | H19: (m) = (h) - (l)
A20: 1611 | B20: Computer Software (Formally known as Account 1925) | E20: =IF(D20=0,0,1/D20) -> 0 | F20: =IF(D20=0,'App.2-CF_DepExp_Yr5'!K20,+'App.2-CF_DepExp_Yr5'!K20+((C20*0.5)/D20)) -> 0 | H20: =IF(ISERROR(+F20-G20), 0, +F20-G20) -> 0
A21: 1612 | B21: Land Rights (Formally known as Account 1906) | E21: 0 | F21: =IF(D21=0,'App.2-CF_DepExp_Yr5'!K21,+'App.2-CF_DepExp_Yr5'!K21+((C21*0.5)/D21)) -> 0 | H21: 0
A22: 1805 | B22: Land | E22: 0 | F22: =IF(D22=0,'App.2-CF_DepExp_Yr5'!K22,+'App.2-CF_DepExp_Yr5'!K22+((C22*0.5)/D22)) -> 0 | H22: 0
A23: 1808 | B23: Buildings | E23: 0 | F23: =IF(D23=0,'App.2-CF_DepExp_Yr5'!K23,+'App.2-CF_DepExp_Yr5'!K23+((C23*0.5)/D23)) -> 0 | H23: 0
A24: 1810 | B24: Leasehold Improvements | E24: 0 | F24: =IF(D24=0,'App.2-CF_DepExp_Yr5'!K24,+'App.2-CF_DepExp_Yr5'!K24+((C24*0.5)/D24)) -> 0 | H24: 0
A25: 1815 | B25: Transformer Station Equipment >50 kV | E25: 0 | F25: =IF(D25=0,'App.2-CF_DepExp_Yr5'!K25,+'App.2-CF_DepExp_Yr5'!K25+((C25*0.5)/D25)) -> 0 | H25: 0
A26: 1820 | B26: Distribution Station Equipment <50 kV | E26: 0 | F26: =IF(D26=0,'App.2-CF_DepExp_Yr5'!K26,+'App.2-CF_DepExp_Yr5'!K26+((C26*0.5)/D26)) -> 0 | H26: 0
A27: 1825 | B27: Storage Battery Equipment | E27: 0 | F27: =IF(D27=0,'App.2-CF_DepExp_Yr5'!K27,+'App.2-CF_DepExp_Yr5'!K27+((C27*0.5)/D27)) -> 0 | H27: 0
A28: 1830 | B28: Poles, Towers & Fixtures | E28: 0 | F28: =IF(D28=0,'App.2-CF_DepExp_Yr5'!K28,+'App.2-CF_DepExp_Yr5'!K28+((C28*0.5)/D28)) -> 0 | H28: 0
A29: 1835 | B29: Overhead Conductors & Devices | E29: 0 | F29: =IF(D29=0,'App.2-CF_DepExp_Yr5'!K29,+'App.2-CF_DepExp_Yr5'!K29+((C29*0.5)/D29)) -> 0 | H29: 0
A30: 1840 | B30: Underground Conduit | E30: 0 | F30: =IF(D30=0,'App.2-CF_DepExp_Yr5'!K30,+'App.2-CF_DepExp_Yr5'!K30+((C30*0.5)/D30)) -> 0 | H30: 0
A31: 1845 | B31: Underground Conductors & Devices | E31: 0 | F31: =IF(D31=0,'App.2-CF_DepExp_Yr5'!K31,+'App.2-CF_DepExp_Yr5'!K31+((C31*0.5)/D31)) -> 0 | H31: 0
A32: 1850 | B32: Line Transformers | E32: 0 | F32: =IF(D32=0,'App.2-CF_DepExp_Yr5'!K32,+'App.2-CF_DepExp_Yr5'!K32+((C32*0.5)/D32)) -> 0 | H32: 0
A33: 1855 | B33: Services (Overhead & Underground) | E33: 0 | F33: =IF(D33=0,'App.2-CF_DepExp_Yr5'!K33,+'App.2-CF_DepExp_Yr5'!K33+((C33*0.5)/D33)) -> 0 | H33: 0
A34: 1860 | B34: Meters | E34: 0 | F34: =IF(D34=0,'App.2-CF_DepExp_Yr5'!K34,+'App.2-CF_DepExp_Yr5'!K34+((C34*0.5)/D34)) -> 0 | H34: 0
A35: 1860 | B35: Meters (Smart Meters) | E35: 0 | F35: =IF(D35=0,'App.2-CF_DepExp_Yr5'!K35,+'App.2-CF_DepExp_Yr5'!K35+((C35*0.5)/D35)) -> 0 | H35: 0
A36: 1905 | B36: Land | E36: 0 | F36: =IF(D36=0,'App.2-CF_DepExp_Yr5'!K36,+'App.2-CF_DepExp_Yr5'!K36+((C36*0.5)/D36)) -> 0 | H36: 0
A37: 1908 | B37: Buildings & Fixtures | E37: 0 | F37: =IF(D37=0,'App.2-CF_DepExp_Yr5'!K37,+'App.2-CF_DepExp_Yr5'!K37+((C37*0.5)/D37)) -> 0 | H37: 0
A38: 1910 | B38: Leasehold Improvements | E38: 0 | F38: =IF(D38=0,'App.2-CF_DepExp_Yr5'!K38,+'App.2-CF_DepExp_Yr5'!K38+((C38*0.5)/D38)) -> 0 | H38: 0
A39: 1915 | B39: Office Furniture & Equipment (10 years) | E39: 0 | F39: =IF(D39=0,'App.2-CF_DepExp_Yr5'!K39,+'App.2-CF_DepExp_Yr5'!K39+((C39*0.5)/D39)) -> 0 | H39: 0
A40: 1915 | B40: Office Furniture & Equipment (5 years) | E40: 0 | F40: =IF(D40=0,'App.2-CF_DepExp_Yr5'!K40,+'App.2-CF_DepExp_Yr5'!K40+((C40*0.5)/D40)) -> 0 | H40: 0
A41: 1920 | B41: Computer Equipment - Hardware | E41: 0 | F41: =IF(D41=0,'App.2-CF_DepExp_Yr5'!K41,+'App.2-CF_DepExp_Yr5'!K41+((C41*0.5)/D41)) -> 0 | H41: 0
A42: 1920 | B42: Computer Equip.-Hardware(Post Mar. 22/04) | E42: 0 | F42: =IF(D42=0,'App.2-CF_DepExp_Yr5'!K42,+'App.2-CF_DepExp_Yr5'!K42+((C42*0.5)/D42)) -> 0 | H42: 0
A43: 1920 | B43: Computer Equip.-Hardware(Post Mar. 19/07) | E43: 0 | F43: =IF(D43=0,'App.2-CF_DepExp_Yr5'!K43,+'App.2-CF_DepExp_Yr5'!K43+((C43*0.5)/D43)) -> 0 | H43: 0
A44: 1930 | B44: Transportation Equipment | E44: 0 | F44: =IF(D44=0,'App.2-CF_DepExp_Yr5'!K44,+'App.2-CF_DepExp_Yr5'!K44+((C44*0.5)/D44)) -> 0 | H44: 0
A45: 1935 | B45: Stores Equipment | E45: 0 | F45: =IF(D45=0,'App.2-CF_DepExp_Yr5'!K45,+'App.2-CF_DepExp_Yr5'!K45+((C45*0.5)/D45)) -> 0 | H45: 0
A46: 1940 | B46: Tools, Shop & Garage Equipment | E46: 0 | F46: =IF(D46=0,'App.2-CF_DepExp_Yr5'!K46,+'App.2-CF_DepExp_Yr5'!K46+((C46*0.5)/D46)) -> 0 | H46: 0
A47: 1945 | B47: Measurement & Testing Equipment | E47: 0 | F47: =IF(D47=0,'App.2-CF_DepExp_Yr5'!K47,+'App.2-CF_DepExp_Yr5'!K47+((C47*0.5)/D47)) -> 0 | H47: 0
A48: 1950 | B48: Power Operated Equipment | E48: 0 | F48: =IF(D48=0,'App.2-CF_DepExp_Yr5'!K48,+'App.2-CF_DepExp_Yr5'!K48+((C48*0.5)/D48)) -> 0 | H48: 0
A49: 1955 | B49: Communications Equipment | E49: 0 | F49: =IF(D49=0,'App.2-CF_DepExp_Yr5'!K49,+'App.2-CF_DepExp_Yr5'!K49+((C49*0.5)/D49)) -> 0 | H49: 0
A50: 1955 | B50: Communication Equipment (Smart Meters) | E50: 0 | F50: =IF(D50=0,'App.2-CF_DepExp_Yr5'!K50,+'App.2-CF_DepExp_Yr5'!K50+((C50*0.5)/D50)) -> 0 | H50: 0
A51: 1960 | B51: Miscellaneous Equipment | E51: 0 | F51: =IF(D51=0,'App.2-CF_DepExp_Yr5'!K51,+'App.2-CF_DepExp_Yr5'!K51+((C51*0.5)/D51)) -> 0 | H51: 0
A52: 1970 | B52: Load Management Controls Customer Premises | E52: 0 | F52: =IF(D52=0,'App.2-CF_DepExp_Yr5'!K52,+'App.2-CF_DepExp_Yr5'!K52+((C52*0.5)/D52)) -> 0 | H52: 0
A53: 1975 | B53: Load Management Controls Utility Premises | E53: 0 | F53: =IF(D53=0,'App.2-CF_DepExp_Yr5'!K53,+'App.2-CF_DepExp_Yr5'!K53+((C53*0.5)/D53)) -> 0 | H53: 0
A54: 1980 | B54: System Supervisor Equipment | E54: 0 | F54: =IF(D54=0,'App.2-CF_DepExp_Yr5'!K54,+'App.2-CF_DepExp_Yr5'!K54+((C54*0.5)/D54)) -> 0 | H54: 0
A55: 1985 | B55: Miscellaneous Fixed Assets | E55: 0 | F55: =IF(D55=0,'App.2-CF_DepExp_Yr5'!K55,+'App.2-CF_DepExp_Yr5'!K55+((C55*0.5)/D55)) -> 0 | H55: 0
A56: 1990 | B56: Other Tangible Property | E56: 0 | F56: =IF(D56=0,'App.2-CF_DepExp_Yr5'!K56,+'App.2-CF_DepExp_Yr5'!K56+((C56*0.5)/D56)) -> 0 | H56: 0
A57: 1995 | B57: Contributions & Grants | E57: 0 | F57: =IF(D57=0,'App.2-CF_DepExp_Yr5'!K57,+'App.2-CF_DepExp_Yr5'!K57+((C57*0.5)/D57)) -> 0 | H57: 0
B58: Total | C58: =SUM(C20:C57) -> 0 | F58: =SUM(F20:F57) -> 0 | G58: =SUM(G20:G57) -> 0 | H58: =SUM(H20:H57) -> 0
B59: Depreciation exp. adj. from gain or loss on the retirement of assets (pool of like assets)
B60: Total Depreciation Expense | F60: =SUM(F58:F59) -> 0
A61: Notes:
A62: 1 | B62: Board policy of the "half-year" rule - the applicant must ensure that additions in the year attract a half-year depreciation expense in the first year. Deviations from this standard practice must be supported in the application.
A63: 2 | B63: The applicant must provide an explanation of material variances in evidence.
A66: General: | B66: Applicants must provide a breakdown of depreciation and amortization expense in the above format for all relevant accounts. Asset Retirement Obligations (AROs), depreciation and accretion expense should be disclosed separately consistent with the Notes of historical Audited Financial Statements.

Sheet App.2-CH_DepExp
K1: File Number: | L1: =EBNUMBER -> EB-2016-0110
K2: Exhibit: | L2: 4
K3: Tab:
K4: Schedule:
K5: Page: | L5: 50-54
K7: Date: | L7: 2016-10-28
A9: Appendix 2-CH1
A10: Depreciation and Amortization Expense
A11: Revised CGAAP or MIFRS
A13: Assumes the applicant changed capitalization and depreciation policies and reflected these changes in a prior rebasing application
F15: Accounting Standard | G15: Revised CGAAP
F16: Year | G16: 2013
A18: Account | B18: Description | C18: Opening Regulatory Gross PP&E as at Jan. 1 | D18: Correction Accounting | E18: Opening Regulatory Gross PP&E as at Jan. 1 | F18: Less Fully Depreciated | G18: Net for Depreciation | H18: Additions | I18: Total for Depreciation 2 | J18: Years | K18: Depreciation Rate | L18: Early Write Off of Assets | M18: Current Year Depreciation Expense | N18: Depreciation Expense per Appendix 2-BA Fixed Assets, Column J (l) | O18: Variance 3
C19: Before Adj | D19: Adjustment | E19: (a) | F19: (b) | G19: (c) | H19: (d) | I19: (e) = (c) + ½ x (d) | J19: (f) | K19: (g) = 1 / (f) | L19: Z | M19: (h) = (e)/(f)+Z | O19: (m) = (h) - (l)
A20: 1611 | B20: Computer Software (Formally known as Account 1925) | C20: =1089119 -> 1089119 | E20: =1089119 -> 1089119 | F20: 394095 | G20: =E20-F20 -> 695024 | H20: 16621 | I20: =G20+0.5*H20 -> 703334.5 | J20: 5 | K20: =IF(J20=0,0,1/J20) -> 0.2 | M20: =IF(J20=0,0,I20/J20) -> 140666.9 | N20: 140667 | O20: =IF(ISERROR(+M20-N20), 0, +M20-N20) -> -0.1
A21: 1612 | B21: Land Rights (Formally known as Account 1806) | C21: =70296 -> 70296 | E21: =70296 -> 70296 | F21: 54284 | G21: =E21-F21 -> 16012 | I21: =G21+0.5*H21 -> 16012 | J21: 25 | K21: 0.04 | M21: 640.48 | N21: 640 | O21: 0.48
A22: 1805 | B22: Land | C22: 158686 | E22: 158686 | G22: 158686 | I22: 158686 | K22: 0 | M22: 0 | O22: 0
A23: 1808 | B23: Buildings | C23: =96568 -> 96568 | E23: =96568 -> 96568 | F23: 22401 | G23: 74167 | I23: 74167 | J23: 60 | K23: 0.01666666667 | M23: 1236.116667 | N23: 1236 | O23: 0.1166666667
A24: 1810 | B24: Leasehold Improvements | G24: 0 | I24: 0 | K24: 0 | M24: 0 | O24: 0
A25: 1815 | B25: Transformer Station Equipment >50 kV | C25: =467359 -> 467359 | E25: =467359 -> 467359 | G25: 467359 | I25: 467359 | J25: 31.457 | K25: 0.03178942684 | M25: 14857.07474 | N25: 14857 | O25: 0.07473694249
A26: 1820 | B26: Distribution Station Equipment <50 kV | C26: =4223152 -> 4223152 | E26: =4223152 -> 4223152 | F26: 1211649 | G26: 3011503 | H26: 3532 | I26: 3013269 | J26: 35 | K26: 0.02857142857 | M26: 86093.4 | N26: 86093 | O26: 0.4
A27: 1825 | B27: Storage Battery Equipment | G27: 0 | I27: 0 | K27: 0 | M27: 0 | O27: 0
A28: 1830 | B28: Poles, Towers & Fixtures | C28: =7201902 -> 7201902 | E28: =7201902 -> 7201902 | F28: 591498 | G28: 6610404 | H28: 786758 | I28: 7003783 | J28: 50 | K28: 0.02 | M28: 140075.66 | N28: 140076 | O28: -0.34
A29: 1835 | B29: Overhead Conductors & Devices | C29: =12748640 -> 12748640 | E29: =12748640 -> 12748640 | F29: 6698811 | G29: 6049829 | H29: 174979 | I29: 6137318.5 | J29: 50 | K29: 0.02 | M29: 122746.37 | N29: 122746 | O29: 0.37
A30: 1840 | B30: Underground Conduit | C30: =916576 -> 916576 | E30: =916576 -> 916576 | F30: 63454 | G30: 853122 | H30: 154014 | I30: 930129 | J30: 50 | K30: 0.02 | M30: 18602.58 | N30: 18603 | O30: -0.42
A31: 1845 | B31: Underground Conductors & Devices | C31: =11873205 -> 11873205 | E31: =11873205 -> 11873205 | F31: 5231952 | G31: 6641253 | H31: 666205 | I31: 6974355.5 | J31: 30 | K31: 0.03333333333 | M31: 232478.5167 | N31: 232479 | O31: -0.4833333333
A32: 1850 | B32: Line Transformers | C32: =6781896 -> 6781896 | E32: =6781896 -> 6781896 | F32: 2397649 | G32: 4384247 | H32: 337635 | I32: 4553064.5 | J32: 40 | K32: 0.025 | M32: 113826.6125 | N32: 113827 | O32: -0.3875
A33: 1855 | B33: Services (Overhead & Underground) | C33: =699038 -> 699038 | E33: =699038 -> 699038 | F33: 47390 | G33: 651648 | H33: 27157 | I33: 665226.5 | J33: 40 | K33: 0.025 | M33: 16630.6625 | N33: 16631 | O33: -0.3375
A34: 1860 | B34: Meters | C34: 97019 | E34: 97019 | F34: 97019 | G34: 0 | I34: 0 | K34: 0 | M34: 0 | O34: 0
A35: 1860 | B35: Meters (Smart Meters) | C35: =2899712 -> 2899712 | E35: =2899712 -> 2899712 | G35: 2899712 | H35: 65532 | I35: 2932478 | J35: 15 | K35: 0.06666666667 | M35: =IF(J35=0,0,I35/J35)-1 -> 195497.5333 | N35: 195498 | O35: -0.4666666667
A36: 1865 | B36: Other Installations on Customer Premises | C36: 8010 | E36: 8010 | F36: 8010 | G36: 0 | I36: 0 | K36: 0 | M36: =IF(J36=0,0,I36/J36) -> 0 | O36: 0
A37: 1905 | B37: Land | G37: 0 | I37: 0 | K37: 0 | M37: 0 | O37: 0
A38: 1908 | B38: Buildings & Fixtures | C38: =2485177 -> 2485177 | E38: =2485177 -> 2485177 | G38: 2485177 | H38: 22165 | I38: 2496259.5 | J38: 35.7035 | K38: 0.02800845855 | M38: 69916.38075 | N38: 69916 | O38: 0.3807469856
A39: 1910 | B39: Leasehold Improvements | G39: 0 | I39: 0 | K39: 0 | M39: 0 | O39: 0
A40: 1915 | B40: Office Furniture & Equipment (10 years) | C40: =101345 -> 101345 | E40: =101345 -> 101345 | F40: 11910 | G40: 89435 | H40: 1403 | I40: 90136.5 | J40: 10 | K40: 0.1 | M40: 9013.65 | N40: 9014 | O40: -0.35
A41: 1915 | B41: Office Furniture & Equipment (5 years) | G41: 0 | I41: 0 | K41: 0 | M41: 0 | O41: 0
A42: 1920 | B42: Computer Equipment - Hardware | C42: =301070 -> 301070 | E42: =301070 -> 301070 | F42: 233660 | G42: 67410 | H42: 14809 | I42: 74814.5 | J42: 4 | K42: 0.25 | M42: 18703.625 | N42: 18704 | O42: -0.375
A43: 1920 | B43: Computer Equip.-Hardware(Post Mar. 22/04) | G43: 0 | I43: 0 | K43: 0 | M43: 0 | O43: 0
A44: 1920 | B44: Computer Equip.-Hardware(Post Mar. 19/07) | G44: 0 | I44: 0 | K44: 0 | M44: 0 | O44: 0
A45: 1930 | B45: Transportation Equipment | C45: =1391448 -> 1391448 | E45: =1391448 -> 1391448 | F45: 944180 | G45: 447268 | H45: 325615 | I45: 610075.5 | J45: 15 | K45: 0.06666666667 | M45: 40671.7 | N45: 40672 | O45: -0.3
A46: 1935 | B46: Stores Equipment | C46: =30023 -> 30023 | E46: =30023 -> 30023 | F46: 22421 | G46: 7602 | I46: 7602 | J46: 10 | K46: 0.1 | M46: 760.2 | N46: 760 | O46: 0.2
A47: 1940 | B47: Tools, Shop & Garage Equipment | C47: =114950 -> 114950 | E47: =114950 -> 114950 | F47: 47475 | G47: 67475 | I47: 67475 | J47: 10 | K47: 0.1 | M47: 6747.5 | N47: 6748 | O47: =IF(ISERROR(+M47-N47), 0, +M47-N47) -> -0.5
A48: 1945 | B48: Measurement & Testing Equipment | C48: =26058 -> 26058 | E48: =26058 -> 26058 | F48: 8710 | G48: 17348 | H48: -711 | I48: 16992.5 | J48: 10 | K48: 0.1 | M48: 1699.25 | N48: 1699 | O48: 0.25
A49: 1950 | B49: Power Operated Equipment | G49: 0 | I49: 0 | K49: 0 | M49: 0 | O49: 0
A50: 1955 | B50: Communications Equipment | C50: =282461 -> 282461 | E50: =282461 -> 282461 | F50: 57315 | G50: 225146 | I50: 225146 | J50: 10.1875 | K50: 0.0981595092 | M50: 22100.22086 | N50: 22100 | O50: 0.2208588957
A51: 1955 | B51: Communication Equipment (Smart Meters) | G51: 0 | I51: 0 | K51: 0 | M51: 0 | O51: 0
A52: 1960 | B52: Miscellaneous Equipment | C52: =315235 -> 315235 | E52: =315235 -> 315235 | F52: 37040 | G52: 278195 | I52: 278195 | J52: 25 | K52: 0.04 | M52: 11127.8 | N52: 11128 | O52: -0.2
A53: 1970 | B53: Load Management Controls - Customer Premises | G53: 0 | I53: 0 | K53: 0 | M53: 0 | O53: 0
A54: 1975 | B54: Load Management Controls Utility Premises | G54: 0 | I54: 0 | K54: 0 | M54: 0 | O54: 0
A55: 1980 | B55: System Supervisor Equipment | C55: 1143045 | E55: 1143045 | F55: 609552 | G55: 533493 | H55: 4047 | I55: 535516.5 | J55: 15 | K55: 0.06666666667 | M55: 35701.1 | N55: 35701 | O55: 0.1
A56: 1985 | B56: Miscellaneous Fixed Assets | G56: 0 | I56: 0 | K56: 0 | M56: 0 | O56: 0
A57: 1990 | B57: Other Tangible Property | G57: 0 | I57: 0 | K57: 0 | M57: 0 | O57: 0
A58: 1995/2440 | B58: Contributions & Grants/Deferred Credits | C58: =-2563013 -> -2563013 | E58: =-2563013 -> -2563013 | G58: -2563013 | H58: -625629 | I58: -2875827.5 | J58: 33.2193 | K58: 0.0301029823 | M58: -86570.98434 | N58: -86571 | O58: 0.01566258169
B59: Total | C59: =SUM(C20:C58)+1 -> 52958978 | E59: =SUM(E20:E58)+1 -> 52958978 | F59: =SUM(F20:F58) -> 18790475 | G59: =SUM(G20:G58) -> 34168502 | H59: =SUM(H20:H58)+1 -> 1974133 | I59: =SUM(I20:I58) -> 35155568 | M59: =SUM(M20:M58)+2 -> 1213224.349 | N59: =SUM(N20:N58) -> 1213224 | O59: =SUM(O20:O58) -> -1.651327928
B60: Depreciation exp. adj. from gain or loss on the retirement of assets (pool of like assets) (under MIFRS)
B61: Total Depreciation Expense | M61: =SUM(M59:M60) -> 1213224.349
F65: Accounting Standard | G65: MIFRS
F66: Year | G66: 2014
A68: Account | B68: Description | C68: Opening Regulatory Gross PP&E as at Jan. 1 | D68: Correction Accounting | E68: Opening Regulatory Gross PP&E as at Jan. 1 | F68: Less Fully Depreciated | G68: Net for Depreciation | H68: Additions | I68: Total for Depreciation 2 | J68: Years | K68: Depreciation Rate | L68: Early Write Off of Assets | M68: Current Year Depreciation Expense | N68: Depreciation Expense per Appendix 2-BA Fixed Assets, Column J (l) | O68: Variance 3
C69: Before Adj | D69: Adjustment | E69: (a) | F69: (b) | G69: (c) | H69: (d) | I69: (e) = (c) + ½ x (d) | J69: (f) | K69: (g) = 1 / (f) | L69: Z | M69: (h) = (e)/(f)+Z | O69: (m) = (h) - (l)
A70: 1611 | B70: Computer Software (Formally known as Account 1925) | C70: 740843 | E70: 740843 | F70: 127650 | G70: =E70-F70 -> 613193 | H70: 146486 | I70: =G70+0.5*H70 -> 686436 | J70: 5 | K70: =IF(J70=0,0,1/J70) -> 0.2 | M70: =IF(J70=0,0,I70/J70) -> 137287.2 | N70: 137287 | O70: =IF(ISERROR(+M70-N70), 0, +M70-N70) -> 0.2
A71: 1612 | B71: Land Rights (Formally known as Account 1806) | C71: 70296 | E71: 70296 | F71: 54284 | G71: =E71-F71 -> 16012 | I71: =G71+0.5*H71 -> 16012 | J71: 25 | K71: 0.04 | M71: 640.48 | N71: 640 | O71: 0.48
A72: 1805 | B72: Land | C72: 158686 | E72: 158686 | G72: 158686 | I72: 158686 | K72: 0 | M72: 0 | O72: 0
A73: 1808 | B73: Buildings | C73: 96568 | E73: 96568 | F73: 22401 | G73: 74167 | I73: 74167 | J73: 60 | K73: 0.01666666667 | M73: 1236.116667 | N73: 1236 | O73: 0.1166666667
A74: 1810 | B74: Leasehold Improvements | G74: 0 | I74: 0 | K74: 0 | M74: 0 | O74: 0
A75: 1815 | B75: Transformer Station Equipment >50 kV | C75: 467359 | E75: 467359 | G75: 467359 | I75: 467359 | J75: 31.457 | K75: 0.03178942684 | M75: 14857.07474 | N75: 14857 | O75: 0.07473694249
A76: 1820 | B76: Distribution Station Equipment <50 kV | C76: 4026866 | E76: 4026866 | F76: 1362161 | G76: 2664705 | I76: 2664705 | J76: 35 | K76: 0.02857142857 | M76: 76134.42857 | N76: 76134 | O76: 0.4285714286
A77: 1825 | B77: Storage Battery Equipment | G77: 0 | I77: 0 | K77: 0 | M77: 0 | O77: 0
A78: 1830 | B78: Poles, Towers & Fixtures | C78: 7988660 | E78: 7988660 | F78: 591498 | G78: 7397162 | H78: 973203 | I78: 7883763.5 | J78: 50 | K78: 0.02 | M78: 157675.27 | N78: 157676 | O78: -0.73
A79: 1835 | B79: Overhead Conductors & Devices | C79: 12923619 | E79: 12923619 | F79: 6698811 | G79: 6224808 | H79: 202465 | I79: 6326040.5 | J79: 50 | K79: 0.02 | M79: 126520.81 | N79: 126520 | O79: 0.81
A80: 1840 | B80: Underground Conduit | C80: 1070590 | E80: 1070590 | F80: 63454 | G80: 1007136 | H80: 72305 | I80: 1043288.5 | J80: 50 | K80: 0.02 | M80: 20865.77 | N80: 20866 | O80: -0.23
A81: 1845 | B81: Underground Conductors & Devices | C81: 12539410 | E81: 12539410 | F81: 5858700 | G81: 6680710 | H81: 280038 | I81: 6820729 | J81: 30 | K81: 0.03333333333 | M81: 227357.6333 | N81: 227357 | O81: 0.6333333333
A82: 1850 | B82: Line Transformers | C82: 7079513 | E82: 7079513 | F82: 2359500 | G82: 4720013 | H82: 319776 | I82: 4879901 | J82: 40 | K82: 0.025 | M82: 121997.525 | N82: 121999 | O82: -1.475
A83: 1855 | B83: Services (Overhead & Underground) | C83: 726195 | E83: 726195 | F83: 47390 | G83: 678805 | H83: 82721 | I83: 720165.5 | J83: 40 | K83: 0.025 | M83: 18004.1375 | N83: 18005 | O83: -0.8625
A84: 1860 | B84: Meters | C84: 38777 | E84: 38777 | F84: 38777 | G84: 0 | I84: 0 | K84: 0 | M84: 0 | N84: 0 | O84: 0
A85: 1860 | B85: Meters (Smart Meters) | C85: 2965244 | E85: 2965244 | G85: 2965244 | H85: 63482 | I85: 2996985 | J85: 15 | K85: 0.06666666667 | M85: =IF(J85=0,0,I85/J85)-1 -> 199798 | N85: 199799 | O85: -1
A86: 1865 | B86: Other Installations on Customer Premises | G86: 0 | I86: 0 | K86: 0 | M86: =IF(J86=0,0,I86/J86) -> 0 | O86: 0
A87: 1905 | B87: Land | G87: 0 | I87: 0 | K87: 0 | M87: 0 | O87: 0
A88: 1908 | B88: Buildings & Fixtures | C88: 2503254 | E88: 2503254 | G88: 2503254 | H88: 33433 | I88: 2519970.5 | J88: 35.561 | K88: 0.02812069402 | M88: 70863.31937 | N88: 70862 | O88: 1.319366722
A89: 1910 | B89: Leasehold Improvements | G89: 0 | I89: 0 | K89: 0 | M89: 0 | O89: 0
A90: 1915 | B90: Office Furniture & Equipment (10 years) | C90: 102748 | E90: 102748 | F90: 13500 | G90: 89248 | I90: 89248 | J90: 10 | K90: 0.1 | M90: 8924.8 | N90: 8924 | O90: 0.8
A91: 1915 | B91: Office Furniture & Equipment (5 years) | G91: 0 | I91: 0 | K91: 0 | M91: 0 | O91: 0
A92: 1920 | B92: Computer Equipment - Hardware | C92: 146372 | E92: 146372 | F92: 74560 | G92: 71812 | H92: 118498 | I92: 131061 | J92: 4 | K92: 0.25 | M92: 32765.25 | N92: 32764 | O92: 1.25
A93: 1920 | B93: Computer Equip.-Hardware(Post Mar. 22/04) | G93: 0 | I93: 0 | K93: 0 | M93: 0 | O93: 0
A94: 1920 | B94: Computer Equip.-Hardware(Post Mar. 19/07) | G94: 0 | I94: 0 | K94: 0 | M94: 0 | O94: 0
A95: 1930 | B95: Transportation Equipment | C95: 1584212 | E95: 1584212 | F95: 770250 | G95: 813962 | H95: 88771 | I95: 858347.5 | J95: 15 | K95: 0.06666666667 | M95: 57223.16667 | N95: 57223 | O95: 0.1666666667
A96: 1935 | B96: Stores Equipment | C96: 30023 | E96: 30023 | F96: 22950 | G96: 7073 | I96: 7073 | J96: 10 | K96: 0.1 | M96: 707.3 | N96: 707 | O96: 0.3
A97: 1940 | B97: Tools, Shop & Garage Equipment - 10 years | C97: 79681 | E97: 79681 | F97: 12206 | G97: 67475 | H97: 0 | I97: 67475 | J97: 10 | K97: 0.1 | L97: 1440 | M97: =IF(J97=0,0,I97/J97)+L97 -> 8187.5 | N97: =8786-598 -> 8188 | O97: =IF(ISERROR(+M97-N97), 0, +M97-N97)+1 -> 0.5
A98: 1940 | B98: Tools, Shop & Garage Equipment - 5 years | C98: 0 | E98: 0 | F98: 0 | G98: 0 | H98: 5980 | I98: 2990 | J98: 5 | K98: 0.2 | M98: 598 | N98: 598 | O98: =IF(ISERROR(+M98-N98), 0, +M98-N98)+1 -> 1
A99: 1945 | B99: Measurement & Testing Equipment | C99: 20451 | E99: 20451 | F99: 8995 | G99: 11456 | I99: 11456 | J99: 10 | K99: 0.1 | M99: 1145.6 | N99: 1146 | O99: =IF(ISERROR(+M99-N99), 0, +M99-N99) -> -0.4
A100: 1950 | B100: Power Operated Equipment | G100: 0 | I100: 0 | K100: 0 | M100: 0 | O100: 0
A101: 1955 | B101: Communications Equipment | C101: 225965 | E101: 225965 | F101: 33955 | G101: 192010 | H101: 72266 | I101: 228143 | J101: 10.1875 | K101: 0.0981595092 | M101: 22394.40491 | N101: 22394 | O101: 0.4049079755
A102: 1955 | B102: Communication Equipment (Smart Meters) | G102: 0 | I102: 0 | K102: 0 | M102: 0 | O102: 0
A103: 1960 | B103: Miscellaneous Equipment | C103: 315235 | E103: 315235 | F103: 37040 | G103: 278195 | I103: 278195 | J103: 25 | K103: 0.04 | M103: 11127.8 | N103: 11128 | O103: -0.2
A104: 1970 | B104: Load Management Controls - Customer Premises | G104: 0 | I104: 0 | K104: 0 | M104: 0 | O104: 0
A105: 1975 | B105: Load Management Controls Utility Premises | G105: 0 | I105: 0 | K105: 0 | M105: 0 | O105: 0
A106: 1980 | B106: System Supervisor Equipment | C106: =687996 -> 687996 | E106: =687996 -> 687996 | F106: 150960 | G106: 537036 | I106: 537036 | J106: 15 | K106: 0.06666666667 | M106: 35802.4 | N106: =35802 -> 35802 | O106: 0.4
A107: 1985 | B107: Miscellaneous Fixed Assets | G107: 0 | I107: 0 | K107: 0 | M107: 0 | O107: 0
A108: 1990 | B108: Other Tangible Property | G108: 0 | I108: 0 | K108: 0 | M108: 0 | O108: 0
A109: 1995/2440 | B109: Contributions & Grants/Deferred Credits | C109: -3188642 | E109: -3188642 | G109: -3188642 | H109: -178205 | I109: -3277744.5 | J109: 33.1765 | K109: 0.03014181725 | M109: -98797.17571 | N109: -98797 | O109: -0.1757117237
B110: Total | C110: =SUM(C70:C109)+1 -> 53399922 | E110: =SUM(E70:E109)+1 -> 53399922 | F110: =SUM(F70:F109) -> 18349042 | G110: =SUM(G70:G109) -> 35050879 | H110: =SUM(H70:H109)-1 -> 2281218 | I110: =SUM(I70:I109) -> 36191488.5 | M110: =SUM(M70:M109)-2 -> 1253314.811 | N110: =SUM(N70:N109) -> 1253315 | O110: =SUM(O70:O109) -> 3.811038011
B111: Depreciation exp. adj. from gain or loss on the retirement of assets (pool of like assets) (under MIFRS)
B112: Total Depreciation Expense | M112: =SUM(M110:M111) -> 1253314.811
F116: Accounting Standard | G116: MIFRS
F117: Year | G117: 2015
A119: Account | B119: Description | C119: Opening Regulatory Gross PP&E as at Jan. 1 | D119: Correction Accounting | E119: Opening Regulatory Gross PP&E as at Jan. 1 | F119: Less Fully Depreciated | G119: Net for Depreciation | H119: Additions | I119: Total for Depreciation 2 | J119: Years | K119: Depreciation Rate | L119: Early Write Off of Assets | M119: Current Year Depreciation Expense | N119: Depreciation Expense per Appendix 2-BA Fixed Assets, Column J (l) | O119: Variance 3
C120: Before Adj | D120: Adjustment | E120: (a) | F120: (b) | G120: (c) | H120: (d) | I120: (e) = (c) + ½ x (d) | J120: (f) | K120: (g) = 1 / (f) | L120: Z | M120: (h) = (e)/(f)+Z | O120: (m) = (h) - (l)
A121: 1611 | B121: Computer Software (Formally known as Account 1925) | C121: 887329 | E121: 887329 | F121: 354324 | G121: =E121-F121 -> 533005 | H121: 10640 | I121: =G121+0.5*H121 -> 538325 | J121: 5 | K121: =IF(J121=0,0,1/J121) -> 0.2 | M121: =IF(J121=0,0,I121/J121) -> 107665 | N121: 107665 | O121: =IF(ISERROR(+M121-N121), 0, +M121-N121) -> 0
A122: 1612 | B122: Land Rights (Formally known as Account 1806) | C122: 70296 | E122: 70296 | F122: 54284 | G122: =E122-F122 -> 16012 | I122: =G122+0.5*H122 -> 16012 | J122: 25 | K122: 0.04 | M122: 640.48 | N122: 640 | O122: 0.48
A123: 1805 | B123: Land | C123: 158686 | E123: 158686 | G123: 158686 | I123: 158686 | K123: 0 | M123: 0 | O123: 0
A124: 1808 | B124: Buildings | C124: 96568 | E124: 96568 | F124: 22401 | G124: 74167 | I124: 74167 | J124: 60 | K124: 0.01666666667 | M124: 1236.116667 | N124: 1236 | O124: 0.1166666667
A125: 1810 | B125: Leasehold Improvements | G125: 0 | I125: 0 | K125: 0 | M125: 0 | O125: 0
A126: 1815 | B126: Transformer Station Equipment >50 kV | C126: 467359 | E126: 467359 | G126: 467359 | I126: 467359 | J126: 31.457 | K126: 0.03178942684 | M126: 14857.07474 | N126: 14857 | O126: 0.07473694249
A127: 1820 | B127: Distribution Station Equipment <50 kV | C127: 4026866 | E127: 4026866 | F127: 975620 | G127: 3051246 | H127: 137899 | I127: 3120195.5 | J127: 35 | K127: 0.02857142857 | M127: 89148.44286 | N127: 89148 | O127: 0.4428571429
A128: 1825 | B128: Storage Battery Equipment | G128: 0 | I128: 0 | K128: 0 | M128: 0 | O128: 0
A129: 1830 | B129: Poles, Towers & Fixtures | C129: 8961863 | D129: =-88852-304761 -> -393613 | E129: =C129+D129 -> 8568250 | F129: 575359 | G129: 7992891 | H129: 715872 | I129: 8350827 | J129: 50 | K129: 0.02 | M129: =IF(J129=0,0,I129/J129)+L129 -> 167016.54 | N129: 167017 | O129: -0.46
A130: 1835 | B130: Overhead Conductors & Devices | C130: 13126084 | E130: 13126084 | F130: 6698811 | G130: 6427273 | H130: 291539 | I130: 6573042.5 | J130: 50 | K130: 0.02 | M130: 131460.85 | N130: 131460 | O130: 0.85
A131: 1840 | B131: Underground Conduit | C131: 1142895 | E131: 1142895 | F131: 63454 | G131: 1079441 | H131: 175209 | I131: 1167045.5 | J131: 50 | K131: 0.02 | M131: 23340.91 | N131: 23341 | O131: -0.09
A132: 1845 | B132: Underground Conductors & Devices | C132: 12819448 | D132: -2144360 | E132: =C132+D132 -> 10675088 | F132: 5901091 | G132: 4773997 | H132: 518127 | I132: 5033060.5 | J132: 30 | K132: 0.03333333333 | M132: 167768.6833 | N132: 167769 | O132: -0.3166666667
A133: 1850 | B133: Line Transformers | C133: 7349654 | D133: -736211 | E133: =C133+D133 -> 6613443 | F133: 2281219 | G133: 4332224 | H133: 348934 | I133: 4506691 | J133: 40 | K133: 0.025 | M133: 112667.275 | N133: 112667 | O133: 0.275
A134: 1855 | B134: Services (Overhead & Underground) | C134: 808916 | E134: 808916 | F134: 47381 | G134: 761535 | H134: 51055 | I134: 787062.5 | J134: 40 | K134: 0.025 | M134: 19676.5625 | N134: 19677 | O134: -0.4375
A135: 1860 | B135: Meters | C135: 38777 | E135: 38777 | F135: 38777 | G135: 0 | I135: 0 | K135: 0 | M135: 0 | O135: 0
A136: 1860 | B136: Meters (Smart Meters) | C136: 3028726 | D136: -3310 | E136: =C136+D136 -> 3025416 | G136: 3025416 | H136: 50858 | I136: 3050845 | J136: 15 | K136: 0.06666666667 | M136: =IF(J136=0,0,I136/J136)-1 -> 203388.6667 | N136: 203390 | O136: -1.333333333
A137: 1865 | B137: Other Installations on Customer Premises | G137: 0 | I137: 0 | K137: 0 | M137: =IF(J137=0,0,I137/J137) -> 0 | O137: 0
A138: 1905 | B138: Land | G138: 0 | I138: 0 | K138: 0 | M138: 0 | O138: 0
A139: 1908 | B139: Buildings & Fixtures | C139: 2536687 | E139: 2536687 | G139: 2536687 | H139: 18710 | I139: 2546042 | J139: 35.135 | K139: 0.02846164793 | M139: 72464.55102 | N139: 72466 | O139: -1.448982496
A140: 1910 | B140: Leasehold Improvements | G140: 0 | I140: 0 | K140: 0 | M140: 0 | O140: 0
A141: 1915 | B141: Office Furniture & Equipment (10 years) | C141: 90446 | E141: 90446 | F141: 5050 | G141: 85396 | I141: 85396 | J141: 10 | K141: 0.1 | M141: 8539.6 | N141: 8540 | O141: -0.4
A142: 1915 | B142: Office Furniture & Equipment (5 years) | G142: 0 | I142: 0 | K142: 0 | M142: 0 | O142: 0
A143: 1920 | B143: Computer Equipment - Hardware | C143: 184429 | E143: 184429 | F143: 31302 | G143: 153127 | H143: 67324 | I143: 186789 | J143: 4 | K143: 0.25 | M143: 46697.25 | N143: 46697 | O143: 0.25
A144: 1920 | B144: Computer Equip.-Hardware(Post Mar. 22/04) | G144: 0 | I144: 0 | K144: 0 | M144: 0 | O144: 0
A145: 1920 | B145: Computer Equip.-Hardware(Post Mar. 19/07) | G145: 0 | I145: 0 | K145: 0 | M145: 0 | O145: 0
A146: 1930 | B146: Transportation Equipment | C146: 1672983 | E146: 1672983 | F146: 739519 | G146: 933464 | H146: 31498 | I146: 949213 | J146: 15 | K146: 0.06666666667 | M146: 63280.86667 | N146: 63281 | O146: -0.1333333333
A147: 1935 | B147: Stores Equipment | C147: 30023 | E147: 30023 | F147: 22979 | G147: 7044 | I147: 7044 | J147: 10 | K147: 0.1 | M147: 704.4 | N147: 704 | O147: 0.4
A148: 1940 | B148: Tools, Shop & Garage Equipment - 10 years | C148: =83043-5980 -> 77063 | E148: =C148+D148 -> 77063 | F148: 30251 | G148: 46812 | I148: 46812 | J148: 10 | K148: 0.1 | M148: 4681.2 | N148: =5878-1196 -> 4682 | O148: =IF(ISERROR(+M148-N148), 0, +M148-N148)+1 -> 0.2
A149: 1940 | B149: Tools, Shop & Garage Equipment - 5 years | C149: 5980 | E149: =C149+D149 -> 5980 | G149: 5980 | I149: 5980 | J149: 5 | K149: 0.2 | M149: 1196 | N149: =598*2 -> 1196 | O149: =IF(ISERROR(+M149-N149), 0, +M149-N149)+1 -> 1
A150: 1945 | B150: Measurement & Testing Equipment | C150: 20451 | E150: 20451 | F150: 12739 | G150: 7712 | I150: 7712 | J150: 10 | K150: 0.1 | M150: 771.2 | N150: 771 | O150: =IF(ISERROR(+M150-N150), 0, +M150-N150) -> 0.2
A151: 1950 | B151: Power Operated Equipment | G151: 0 | I151: 0 | K151: 0 | M151: 0 | O151: 0
A152: 1955 | B152: Communications Equipment | C152: 298231 | E152: 298231 | F152: 6072 | G152: 292159 | I152: 292159 | J152: 10.1875 | K152: 0.0981595092 | M152: 28678.18405 | N152: 28678 | O152: 0.1840490798
A153: 1955 | B153: Communication Equipment (Smart Meters) | G153: 0 | I153: 0 | K153: 0 | M153: 0 | O153: 0
A154: 1960 | B154: Miscellaneous Equipment | C154: 315235 | E154: 315235 | F154: 37040 | G154: 278195 | I154: 278195 | J154: 25 | K154: 0.04 | M154: 11127.8 | N154: 11128 | O154: -0.2
A155: 1970 | B155: Load Management Controls - Customer Premises | G155: 0 | I155: 0 | K155: 0 | M155: 0 | O155: 0
A156: 1975 | B156: Load Management Controls Utility Premises | G156: 0 | I156: 0 | K156: 0 | M156: 0 | O156: 0
A157: 1980 | B157: System Supervisor Equipment Devices | C157: =519820+168176 -> 687996 | E157: =C157+D157 -> 687996 | F157: 224501 | G157: 463495 | H157: 88737 | I157: 507863.5 | J157: 13.8 | K157: 0.07246376812 | M157: 36801.7029 | N157: =36802 -> 36802 | O157: -0.2971014493
A158: 1985 | B158: Miscellaneous Fixed Assets | G158: 0 | I158: 0 | K158: 0 | M158: 0 | O158: 0
A159: 1990 | B159: Other Tangible Property | G159: 0 | I159: 0 | K159: 0 | M159: 0 | O159: 0
A160: 1995/2440 | B160: Contributions & Grants/Deferred Credits | C160: -3366847 | D160: =3277495 -> 3277495 | E160: =C160+D160 -> -89352 | G160: -89352 | H160: -421828 | I160: -300266 | J160: 31.269 | K160: 0.03198055582 | M160: =IF(J160=0,0,I160/J160)+2 -> -9600.673574 | N160: -9603 | O160: 2.326425533
B161: Total | C161: =SUM(C121:C160)-1 -> 55536143 | D161: =SUM(D121:D160)-1 -> 0 | E161: =SUM(E121:E160)-1 -> 55536144 | F161: =SUM(F121:F160) -> 18122174 | G161: =SUM(G121:G160) -> 37413971 | H161: =SUM(H121:H160) -> 2084574 | I161: =SUM(I121:I160) -> 38456258 | M161: =SUM(M121:M160) -> 1304208.683 | N161: =SUM(N121:N160) -> 1304209 | O161: =SUM(O121:O160) -> 1.682818086
B162: Depreciation exp. adj. from gain or loss on the retirement of assets (pool of like assets) (under MIFRS)
B163: Total Depreciation Expense | M163: =SUM(M161:M162) -> 1304208.683
F167: Accounting Standard | G167: MIFRS
F168: Year | G168: 2016
A170: Account | B170: Description | C170: Opening Regulatory Gross PP&E as at Jan. 1 | D170: Correction Accounting | E170: Opening Regulatory Gross PP&E as at Jan. 1 | F170: Less Fully Depreciated | G170: Net for Depreciation | H170: Additions | I170: Total for Depreciation 2 | J170: Years | K170: Depreciation Rate | L170: Early Write Off of Assets | M170: Current Year Depreciation Expense | N170: Depreciation Expense per Appendix 2-BA Fixed Assets, Column J (l) | O170: Variance 3
C171: Before Adj | D171: Adjustment | E171: (a) | F171: (b) | G171: (c) | H171: (d) | I171: (e) = (c) + ½ x (d) | J171: (f) | K171: (g) = 1 / (f) | L171: Z | M171: (h) = (e)/(f)+Z | O171: (m) = (h) - (l)
A172: 1611 | B172: Computer Software (Formally known as Account 1925) | C172: 897969 | E172: 897969 | F172: 421395 | G172: =E172-F172 -> 476574 | H172: 100490 | I172: =G172+0.5*H172 -> 526819 | J172: 5 | K172: =IF(J172=0,0,1/J172) -> 0.2 | M172: =IF(J172=0,0,I172/J172) -> 105363.8 | N172: 105364 | O172: =IF(ISERROR(+M172-N172), 0, +M172-N172) -> -0.2
A173: 1612 | B173: Land Rights (Formally known as Account 1806) | C173: 70296 | E173: 70296 | F173: 54284 | G173: =E173-F173 -> 16012 | I173: =G173+0.5*H173 -> 16012 | J173: 25 | K173: 0.04 | M173: 640.48 | N173: 640 | O173: 0.48
A174: 1805 | B174: Land | C174: 158686 | E174: 158686 | G174: 158686 | I174: 158686 | K174: 0 | M174: 0 | O174: 0
A175: 1808 | B175: Buildings | C175: 96568 | E175: 96568 | F175: 22401 | G175: 74167 | I175: 74167 | J175: 60 | K175: 0.01666666667 | M175: 1236.116667 | N175: 1236 | O175: 0.1166666667
A176: 1810 | B176: Leasehold Improvements | G176: 0 | I176: 0 | K176: 0 | M176: 0 | O176: 0
A177: 1815 | B177: Transformer Station Equipment >50 kV | C177: 467359 | E177: 467359 | G177: 467359 | I177: 467359 | J177: 31.457 | K177: 0.03178942684 | M177: 14857.07474 | N177: 14857 | O177: 0.07473694249
A178: 1820 | B178: Distribution Station Equipment <50 kV | C178: 4164765 | E178: 4164765 | F178: 1360251 | G178: 2804514 | H178: 200000 | I178: 2904514 | J178: 35 | K178: 0.02857142857 | M178: 82986.11429 | N178: 82986 | O178: 0.1142857143
A179: 1825 | B179: Storage Battery Equipment | G179: 0 | I179: 0 | K179: 0 | M179: 0 | O179: 0
A180: 1830 | B180: Poles, Towers & Fixtures | C180: 9283201 | E180: 9283201 | F180: 575359 | G180: 8707842 | H180: 768000 | I180: 9091842 | J180: 50 | K180: 0.02 | M180: 181836.84 | N180: 181838 | O180: -1.16
A181: 1835 | B181: Overhead Conductors & Devices | C181: 13417623 | E181: 13417623 | F181: 6698811 | G181: 6718812 | H181: 120000 | I181: 6778812 | J181: 50 | K181: 0.02 | M181: 135576.24 | N181: 135576 | O181: 0.24
A182: 1840 | B182: Underground Conduit | C182: 1318104 | E182: 1318104 | F182: 63454 | G182: 1254650 | H182: 165000 | I182: 1337150 | J182: 50 | K182: 0.02 | M182: 26743 | N182: 26743 | O182: 0
A183: 1845 | B183: Underground Conductors & Devices | C183: 11193215 | E183: 11193215 | F183: 5901091 | G183: 5292124 | H183: 271000 | I183: 5427624 | J183: 30 | K183: 0.03333333333 | M183: 180920.8 | N183: 180921 | O183: -0.2
A184: 1850 | B184: Line Transformers | C184: 6941437 | E184: 6941437 | F184: 2274101 | G184: 4667336 | H184: 259000 | I184: 4796836 | J184: 40 | K184: 0.025 | M184: 119920.9 | N184: 119921 | O184: -0.1
A185: 1855 | B185: Services (Overhead & Underground) | C185: 859971 | E185: 859971 | F185: 47390 | G185: 812581 | H185: 40000 | I185: 832581 | J185: 40 | K185: 0.025 | M185: 20814.525 | N185: 20815 | O185: -0.475
A186: 1860 | B186: Meters | C186: 38777 | E186: 38777 | F186: 38777 | G186: 0 | I186: 0 | K186: 0 | M186: 0 | O186: 0
A187: 1860 | B187: Meters (Smart Meters) | C187: 3016950 | E187: 3016950 | G187: 3016950 | H187: 60000 | I187: 3046950 | J187: 15 | K187: 0.06666666667 | M187: =IF(J187=0,0,I187/J187)-1 -> 203129 | N187: 203125 | O187: 4
A188: 1865 | B188: Other Installations on Customer Premises | G188: 0 | I188: 0 | K188: 0 | M188: =IF(J188=0,0,I188/J188) -> 0 | O188: 0
A189: 1905 | B189: Land | G189: 0 | I189: 0 | K189: 0 | M189: 0 | O189: 0
A190: 1908 | B190: Buildings & Fixtures | C190: 2555397 | E190: 2555397 | G190: 2555397 | H190: 70000 | I190: 2590397 | J190: 33.685 | K190: 0.02968680422 | M190: 76900.60858 | N190: 76902 | O190: -1.391420514
A191: 1910 | B191: Leasehold Improvements | G191: 0 | I191: 0 | K191: 0 | M191: 0 | O191: 0
A192: 1915 | B192: Office Furniture & Equipment (10 years) | C192: 90446 | E192: 90446 | F192: 33699 | G192: 56747 | I192: 56747 | J192: 10 | K192: 0.1 | M192: 5674.7 | N192: 5675 | O192: -0.3
A193: 1915 | B193: Office Furniture & Equipment (5 years) | G193: 0 | I193: 0 | K193: 0 | M193: 0 | O193: 0
A194: 1920 | B194: Computer Equipment - Hardware | C194: 251753 | E194: 251753 | F194: 52898 | G194: 198855 | H194: 25000 | I194: 211355 | J194: 4 | K194: 0.25 | M194: 52838.75 | N194: 52839 | O194: -0.25
A195: 1920 | B195: Computer Equip.-Hardware(Post Mar. 22/04) | G195: 0 | I195: 0 | K195: 0 | M195: 0 | O195: 0
A196: 1920 | B196: Computer Equip.-Hardware(Post Mar. 19/07) | G196: 0 | I196: 0 | K196: 0 | M196: 0 | O196: 0
A197: 1930 | B197: Transportation Equipment | C197: 1704481 | E197: 1704481 | F197: 789212 | G197: 915269 | H197: 754100 | I197: 1292319 | J197: 15 | K197: 0.06666666667 | M197: 86154.6 | N197: 86155 | O197: -0.4
A198: 1935 | B198: Stores Equipment | C198: 30023 | E198: 30023 | F198: 30023 | G198: 0 | I198: 0 | J198: 10 | K198: 0.1 | M198: 0 | N198: 0 | O198: 0
A199: 1940 | B199: Tools, Shop & Garage Equipment - 10 years | C199: 77063 | E199: 77063 | F199: 40735 | G199: 36328 | H199: 0 | I199: 36328 | J199: 10 | K199: 0.1 | M199: 3632.8 | N199: =5381-1196-551 -> 3634 | O199: =IF(ISERROR(+M199-N199), 0, +M199-N199)+1 -> -0.2
A200: 1940 | B200: Tools, Shop & Garage Equipment - 5 years | C200: 5980 | E200: 5980 | G200: 5980 | H200: 5500 | I200: 8730 | J200: 5 | K200: 0.2 | M200: 1746 | N200: =1196+551 -> 1747 | O200: =IF(ISERROR(+M200-N200), 0, +M200-N200)+1 -> 0
A201: 1945 | B201: Measurement & Testing Equipment | C201: 20451 | E201: 20451 | F201: 12745 | G201: 7706 | I201: 7706 | J201: 10 | K201: 0.1 | M201: 770.6 | N201: 771 | O201: =IF(ISERROR(+M201-N201), 0, +M201-N201) -> -0.4
A202: 1950 | B202: Power Operated Equipment | G202: 0 | I202: 0 | K202: 0 | M202: 0 | O202: 0
A203: 1955 | B203: Communications Equipment | C203: 298231 | E203: 298231 | F203: 6072 | G203: 292159 | I203: 292159 | J203: 10.1875 | K203: 0.0981595092 | M203: 28678.18405 | N203: 28678 | O203: 0.1840490798
A204: 1955 | B204: Communication Equipment (Smart Meters) | G204: 0 | I204: 0 | K204: 0 | M204: 0 | O204: 0
A205: 1960 | B205: Miscellaneous Equipment | C205: 315235 | E205: 315235 | F205: 37040 | G205: 278195 | I205: 278195 | J205: 25 | K205: 0.04 | M205: 11127.8 | N205: 11128 | O205: -0.2
A206: 1970 | B206: Load Management Controls - Customer Premises | G206: 0 | I206: 0 | K206: 0 | M206: 0 | O206: 0
A207: 1975 | B207: Load Management Controls Utility Premises | G207: 0 | I207: 0 | K207: 0 | M207: 0 | O207: 0
A208: 1980 | B208: System Supervisor Equipment | C208: =776733 -> 776733 | E208: =776733 -> 776733 | F208: 249430 | G208: 527303 | I208: 527303 | J208: 12.5 | K208: 0.08 | M208: 42184.24 | N208: 42184 | O208: 0.24
A209: 1985 | B209: Miscellaneous Fixed Assets | G209: 0 | I209: 0 | K209: 0 | M209: 0 | O209: 0
A210: 1990 | B210: Other Tangible Property | G210: 0 | I210: 0 | K210: 0 | M210: 0 | O210: 0
A211: 1995/2440 | B211: Contributions & Grants/Deferred Credits | C211: -511181 | E211: -511181 | G211: -511181 | H211: -53000 | I211: -537681 | J211: 31.47 | K211: 0.03177629488 | M211: -17085.51001 | N211: -17086 | O211: 0.4899904671
B212: Total | C212: =SUM(C172:C211)-1 -> 57539532 | E212: =SUM(E172:E211)-1 -> 57539532 | F212: =SUM(F172:F211) -> 18709168 | G212: =SUM(G172:G211) -> 38830365 | H212: =SUM(H172:H211) -> 2785090 | I212: =SUM(I172:I211) -> 40222910 | M212: =SUM(M172:M211)+2 -> 1366649.663 | N212: =SUM(N172:N211)+1 -> 1366650 | O212: =SUM(O172:O211) -> 0.6633083567
B213: Depreciation exp. adj. from gain or loss on the retirement of assets (pool of like assets) (under MIFRS)
B214: Total Depreciation Expense | M214: =SUM(M212:M213) -> 1366649.663
F218: Accounting Standard | G218: MIFRS
F219: Year | G219: 2017
A221: Account | B221: Description | C221: Opening Regulatory Gross PP&E as at Jan. 1 | D221: Correction Accounting | E221: Opening Regulatory Gross PP&E as at Jan. 1 | F221: Less Fully Depreciated | G221: Net for Depreciation | H221: Additions | I221: Total for Depreciation 2 | J221: Years | K221: Depreciation Rate | L221: Early Write Off of Assets | M221: Current Year Depreciation Expense | N221: Depreciation Expense per Appendix 2-BA Fixed Assets, Column J (l) | O221: Variance 3
... 49 more rows

Sheet App.2-D_Overhead
F1: File Number: | G1: =EBNUMBER -> EB-2016-0110
F2: Exhibit: | G2: 2
F3: Tab:
F4: Schedule:
F5: Page: | G5: 60
F7: Date: | G7: 2016-10-28
A9: Appendix 2-D
A10: Overhead Expense
A12: Applicants are to provide a breakdown of OM&A before capitalization in the below table. OM&A before capitalization may be broken down by cost center, program, drivers or another format best suited to focus on capitalized vs. uncapitalized OM&A.
A14: OM&A Before Capitalization
B15: =F15-4 -> 2013 | C15: =F15-3 -> 2014 | D15: =F15-2 -> 2015 | E15: =F15-1 -> 2016 | F15: =TestYear -> 2017
B16: Historical Year | C16: Historical Year | D16: Historical Year | E16: Bridge Year | F16: Test Year
A17: Operations & Maintenance Before Capitalization | B17: =2886152+B34 -> 3335150 | C17: =2926724+C34 -> 3367809 | D17: =3154558+D34 -> 3632276 | E17: =3255419+E34 -> 3753795 | F17: =3392703+F34 -> 3911353
A18: Billing and Collecting | B18: 1379546 | C18: 1591426 | D18: 1382233 | E18: 1475391 | F18: 1539473
A19: Community Relations | B19: 116716 | C19: 89463 | D19: 128286 | E19: 137204 | F19: 144123
A20: Administrative & General | B20: 1811046 | C20: 1610379 | D20: 1651361 | E20: 1809522 | F20: 1923608
A27: Total OM&A Before Capitalization (B) | B27: =SUM(B17:B26) -> 6642458 | C27: =SUM(C17:C26) -> 6659077 | D27: =SUM(D17:D26) -> 6794156 | E27: =SUM(E17:E26) -> 7175912 | F27: =SUM(F17:F26) -> 7518557
A29: Applicants are to provide a breakdown of capitalized OM&A in the below table. Capitalized OM&A may be broken down using the categories listed in the table below if possible. Otherwise, applicants are to provide its own break down of capitalized OM&A.
A31: Capitalized OM&A | G31: Directly | H31: Explanation for Change in Overhead Capitalized
B32: =F32-4 -> 2013 | C32: =F32-3 -> 2014 | D32: =F32-2 -> 2015 | E32: =F32-1 -> 2016 | F32: =TestYear -> 2017 | G32: Attributable?
B33: Historical Year | C33: Historical Year | D33: Historical Year | E33: Bridge Year | F33: Test Year | G33: (Yes/No)
A34: direct employee wages & benefits | B34: 448998 | C34: 441085 | D34: 477718 | E34: 498376 | F34: 518650 | G34: Yes | H34: 2013 COS Reflected changes.
A35: costs of site preparation | H35: No stores, engineering, administration overheads
A36: initial delivery and handling costs | H36: are capitalized.
A37: costs of testing whether the asset is functioning properly | H37: No vehicle costs or depreciation are capitalized
A38: professional fees
A40: costs of opening a new facility
A41: costs of introducing a new product or service (including costs of advertising and promotional activities)
A42: costs of conducting business in a new location or with a new class of customer (including costs of staff training)
A43: administration and other general overhead costs
A45: Insert description of additional item(s) and new rows if needed
A47: Total Capitalized OM&A (A) | B47: =SUM(B34:B46) -> 448998 | C47: =SUM(C34:C46) -> 441085 | D47: =SUM(D34:D46) -> 477718 | E47: =SUM(E34:E46) -> 498376 | F47: =SUM(F34:F46) -> 518650
A49: % of Capitalized OM&A (=A/B) | B49: =IF(ISERROR(B47/B27),"0%",B47/B27) -> 0.0675951583 | C49: =IF(ISERROR(C47/C27),"0%",C47/C27) -> 0.06623815883 | D49: =IF(ISERROR(D47/D27),"0%",D47/D27) -> 0.07031307494 | E49: =IF(ISERROR(E47/E27),"0%",E47/E27) -> 0.06945124188 | F49: =IF(ISERROR(F47/F27),"0%",F47/F27) -> 0.06898265186

Sheet App.2-EA_Account 1575 (2015)
H1: File Number: | I1: =EBNUMBER -> EB-2016-0110
H2: Exhibit: | I2: 9
H3: Tab:
H4: Schedule:
H5: Page: | I5: 15
H7: Date: | I7: 2016-10-28
A9: Appendix 2-EA
A10: Account 1575 - IFRS-CGAAP Transitional PP&E Amounts
A11: 2015 Adopters of IFRS for Financial Reporting Purposes
A13: For applicants that adopted IFRS on January 1, 2015 for financial reporting purposes
B17: =RebaseYear &" Rebasing Year" -> 2013 Rebasing Year | C17: =TestYear-3 -> 2014 | D17: =TestYear-2 -> 2015 | E17: =CONCATENATE(TestYear-1," Bridge Year") -> 2016 Bridge Year | F17: =CONCATENATE(TestYear," Rebasing Year") -> 2017 Rebasing Year
A18: Reporting Basis | B18: CGAAP | C18: CGAAP | D18: CGAAP | E18: MIFRS | F18: MIFRS
B19: Forecast | C19: Actual | D19: Actual | E19: Forecast | F19: Forecast
D20: $ | E20: $
A21: PP&E Values under CGAAP
A22: Opening net PP&E - Note 1 | C22: 25872710 | D22: =+C25 -> 26894319 | E22: =+D25 -> 27665588
A23: Net Additions - Note 4 | C23: 2136221 | D23: 2063634 | E23: 2498138
A24: Net Depreciation (amounts should be negative) - Note 4 | C24: -1114612 | D24: -1292365 | E24: -1084347
A25: Closing net PP&E (1) | C25: =C22+C23+C24 -> 26894319 | D25: =SUM(D22:D24) -> 27665588 | E25: =SUM(E22:E24) -> 29079379
A27: PP&E Values under MIFRS (Starts from 2014, the transition year)
A28: Opening net PP&E - Note 1 | C28: 25872710 | D28: =+C31 -> 26894319 | E28: =+D31 -> 27630302
A29: Net Additions - Note 4 | C29: 2136221 | D29: 2003389 | E29: 2438138
A30: Net Depreciation (amounts should be negative) - Note 4 | C30: -1114612 | D30: -1267406 | E30: -1053667
A31: Closing net PP&E (2) | C31: =SUM(C28:C30) -> 26894319 | D31: =SUM(D28:D30) -> 27630302 | E31: =SUM(E28:E30) -> 29014773
A33: Difference in Closing net PP&E, former CGAAP vs. revised CGAAP | C33: =C25-C31 -> 0 | D33: =D25-D31 -> 35286 | E33: =E25-E31+1 -> 64607
A36: Effect on Deferral and Variance Account Rate Riders
A37: Closing balance in Account 1576 | F37: =IF(ISERROR(E33), 0, E33) -> 64607 | H37: WACC
A38: Return on Rate Base Associated with Account 1576 balance at WACC - Note 2 | F38: =E33*I37*I38 -> 0 | G38: # of years of rate rider disposition period
A39: Amount included in Deferral and Variance Account Rate Rider Calculation | F39: =F37+F38 -> 64607
A41: Notes:
A42: 1 For an applicant that adopted IFRS on January 1, 2015, the PP&E values as of January 1, 2014 under both CGAAP and MIFRS should be the same.
A43: 2 Return on rate base associated with deferred balance is calculated as:
A44: the deferral account closing balance as of 2016 x WACC X # of years of rate rider disposition period
A45: * Please note that the calculation should be adjusted once WACC is updated and finalized in the rate application.
A46: 3 The PP&E deferral account is cleared by including the total balance in the deferral and variance account rate rider calculation.
A47: 4 Net additions are additions net of disposals; Net depreciation is additions to depreciation net of disposals.

Sheet App.2-EB_Account 1576 (2012)
J1: File Number: | K1: =EBNUMBER -> EB-2016-0110
J2: Exhibit: | K2: Not Applicable
J3: Tab: | K3: to WHESC
J4: Schedule:
J5: Page:
J7: Date: | K7: 2016-10-28
A9: Appendix 2-EB
A10: Account 1576 - Accounting Changes under CGAAP
A11: 2012 Changes in Accounting Policies under CGAAP
A13: For applicants with a balance in Account 1576 and made capitalization and depreciation expense accounting policy changes under CGAAP effective January 1, 2012
B17: 2011 Rebasing Year | C17: 2012 | D17: 2013 | E17: 2014 | F17: 2015 | G17: 2016 | H17: 2017 Rebasing Year
A18: Reporting Basis | B18: CGAAP | C18: CGAAP | D18: CGAAP | E18: CGAAP | F18: MIFRS - Note 5 | G18: MIFRS | H18: MIFRS
B19: Forecast | C19: Actual | D19: Actual | E19: Actual | F19: Actual | G19: Forecast | H19: Forecast
C20: $ | D20: $ | E20: $ | G20: $
A21: PP&E Values under former CGAAP
A22: Opening net PP&E - Note 1 | D22: =+C25 -> 0 | E22: =+D25 -> 0 | F22: =+D25 -> 0 | G22: =+E25 -> 0
A23: Net Additions - Note 4
A24: Net Depreciation (amounts should be negative) - Note 4
A25: Closing net PP&E (1) | C25: =C22+C23+C24 -> 0 | D25: =D22+D23+D24 -> 0 | E25: =E22+E23+E24 -> 0 | F25: =F22+F23+F24 -> 0 | G25: =G22+G23+G24 -> 0
A27: PP&E Values under revised CGAAP (Starts from 2012)
A28: Opening net PP&E - Note 1 | D28: =+C31 -> 0 | E28: =+D31 -> 0 | F28: =+D31 -> 0 | G28: =+E31 -> 0
A29: Net Additions - Note 4
A30: Net Depreciation (amounts should be negative) - Note 4
A31: Closing net PP&E (2) | C31: =SUM(C28:C30) -> 0 | D31: =SUM(D28:D30) -> 0 | E31: =SUM(E28:E30) -> 0 | F31: =SUM(F28:F30) -> 0 | G31: =SUM(G28:G30) -> 0
A33: Difference in Closing net PP&E, former CGAAP vs. revised CGAAP | C33: =C25-C31 -> 0 | D33: =D25-D31 -> 0 | E33: =E25-E31 -> 0 | F33: =F25-F31 -> 0 | G33: =G25-G31 -> 0
A36: Effect on Deferral and Variance Account Rate Riders
A37: Closing balance in Account 1576 | H37: =IF(ISERROR(G33), 0, G33) -> 0 | J37: WACC
A38: Return on Rate Base Associated with Account 1576 balance at WACC - Note 2 | H38: =G33*K37*K38 -> 0 | I38: # of years of rate rider disposition period
A39: Amount included in Deferral and Variance Account Rate Rider Calculation | H39: =H37+H38 -> 0
A41: Notes:
A42: 1 For an applicant that made the capitalization and depreciation expense accounting policy changes on January 1, 2012, the PP&E values as of January 1, 2012 under both former CGAAP and revised CGAAP should be the same.
A43: 2 Return on rate base associated with Account 1576 balance is calculated as:
A44: the variance account ending balance as of 2016 x WACC X # of years of rate rider disposition period
A45: * Please note that the calculation should be adjusted once WACC is updated and finalized in the rate application.
A46: 3 Account 1576 is cleared by including the total balance in the deferral and variance account rate rider calculation.
A47: 4 Net additions are additions net of disposals; Net depreciation is additions to depreciation net of disposals.
A48: 5 Differences due to the adoption of MIFRS are to be shown separately in Account 1575 in Appendix 2-EA as Accounts 1575 and 1576 cannot be used interchangably.

Sheet App.2-EC_Account 1576 (2013)
I1: File Number: | J1: =EBNUMBER -> EB-2016-0110
I2: Exhibit: | J2: Not Applicable
I3: Tab: | J3: to WHESC
I4: Schedule:
I5: Page:
I7: Date: | J7: 2016-10-28
A9: Appendix 2-EC
A10: Account 1576 - Accounting Changes under CGAAP
A11: 2013 Changes in Accounting Policies under CGAAP
A13: For applicants with a balance in Account 1576 and made capitalization and depreciation expense accounting policy changes under CGAAP effective January 1, 2013
B17: 2012 Rebasing Year | C17: 2013 | D17: 2014 | E17: 2015 | F17: 2016 | G17: 2017 Rebasing Year
A18: Reporting Basis | B18: CGAAP | C18: CGAAP | D18: CGAAP | E18: MIFRS - Note 5 | F18: MIFRS | G18: MIFRS
B19: Actual | C19: Actual | D19: Actual | E19: Actual | F19: Forecast | G19: Forecast
C20: $ | D20: $ | F20: $
A21: PP&E Values under former CGAAP
A22: Opening net PP&E - Note 1 | D22: =+C25 -> 0 | E22: =+D25 -> 0 | F22: =+D25 -> 0
A23: Net Additions - Note 4
A24: Net Depreciation (amounts should be negative) - Note 4
A25: Closing net PP&E (1) | C25: =C22+C23+C24 -> 0 | D25: =D22+D23+D24 -> 0 | E25: =E22+E23+E24 -> 0 | F25: =F22+F23+F24 -> 0
A27: PP&E Values under revised CGAAP (Starts from 2012)
A28: Opening net PP&E - Note 1 | D28: =+C31 -> 0 | E28: =+D31 -> 0 | F28: =+D31 -> 0
A29: Net Additions - Note 4
A30: Net Depreciation (amounts should be negative) - Note 4
A31: Closing net PP&E (2) | C31: =SUM(C28:C30) -> 0 | D31: =SUM(D28:D30) -> 0 | E31: =SUM(E28:E30) -> 0 | F31: =SUM(F28:F30) -> 0
A33: Difference in Closing net PP&E, former CGAAP vs. revised CGAAP | C33: =C25-C31 -> 0 | D33: =D25-D31 -> 0 | E33: =E25-E31 -> 0 | F33: =F25-F31 -> 0
A36: Effect on Deferral and Variance Account Rate Riders
A37: Closing balance in Account 1576 | G37: =IF(ISERROR(F33), 0, F33) -> 0 | I37: WACC
A38: Return on Rate Base Associated with Account 1576 balance at WACC - Note 2 | G38: =F33*J37*J38 -> 0 | H38: # of years of rate rider disposition period
A39: Amount included in Deferral and Variance Account Rate Rider Calculation | G39: =G37+G38 -> 0
A41: Notes:
A42: 1 For an applicant that made the capitalization and depreciation expense accounting policy changes on January 1, 2013, the PP&E values as of January 1, 2013 under both former CGAAP and revised CGAAP should be the same.
A43: 2 Return on rate base associated with Account 1576 balance is calculated as:
A44: the variance account ending balance as of 2016 x WACC X # of years of rate rider disposition period
A45: * Please note that the calculation should be adjusted once WACC is updated and finalized in the rate application.
A46: 3 Account 1576 is cleared by including the total balance in the deferral and variance account rate rider calculation.
A47: 4 Net additions are additions net of disposals; Net depreciation is additions to depreciation net of disposals.
A48: 5 Differences due to the adoption of MIFRS are to be shown separately in Account 1575 in Appendix 2-EA as Accounts 1575 and 1576 cannot be used interchangably.

Sheet App.2-FA Proposed REG Invest.
J1: File Number: | K1: =EBNUMBER -> EB-2016-0110
J2: Exhibit: | K2: Not Applicable
J3: Tab: | K3: to WHESC
J4: Schedule:
J5: Page:
J7: Date: | K7: 2016-10-28
A9: Appendix 2-FA
A10: Renewable Generation Connection Investment Summary (past investments or over the future rate setting period)
A12: Enter the details of the Renewable Generation Connection projects as described in the appropriate section of the Filing Requirements.
A13: All costs entered on this page will be transferred to the appropriate cells in the appendices that follow.
A14: For Part A, Renewable Enabling Improvements (REI), these amounts will be transferred to Appendix 2 - FB
A15: For Part B, Expansions, these amounts will be transferred to Appendix 2 - FC
A17: If there are more than five projects proposed to be in-service in a certain year, please amend the tables below and ensure that the formulae for the Total Amounts in any given rate year are updated.
A18: Based on the current methodology and allocation, amounts allocated represent 6% for REI Connection Investments and 17% for Expansion Investments. (EB-2009-0349, 6-10-2010, p. 15, note 9)
A20: There are two scenarios described below. Separate sets of spreadsheets (2-FA, 2-FB, 2-FC) should be submited for each scenario as required.
A21: Scenario 1: Past Investments with No Recovery. The distributor has made investments in the past (during the IRM Years), but has not received approval for these projects and therefore did not receive
A22: revenue from the IESO under Regulation 330/09 and did not receive ratepayer revenue for the direct benefit portion of the investment.
A23: The WCA percentage, debt percentages, interest rates, kWh, tax rates, amortization period, CCA Class and percentage should correspond to the distributor's last Cost of Service approval.
A24: The Direct Benefit portion of the calculated Revenue Requirement for each year should be summed and can be applied for recovery from the distributor's ratepayers through a rate rider.
A25: The Provincial Recovery portion of the calculated Revenue Requirement for each year should be summed and can be applied for recovery from the IESO through a separate order.
A27: Scenario 2: Investments in the Test Year and Beyond. Distributor plans to make investments in 2017 and/or beyond. These investments should be added to 2-FA in the appropriate year.
A28: The WCA percentage, debt percentages, interest rates, kWh, tax rates, amortization period, CCA Class and percentage should correspond to the distributor's current application.
A30: Part A | G30: Test Year
A31: REI Investments (Direct Benefit at 6%) | C31: =D31-1 -> 2013 | D31: =E31-1 -> 2014 | E31: =F31-1 -> 2015 | F31: =G31-1 -> 2016 | G31: =TestYear -> 2017 | H31: =G31+1 -> 2018 | I31: =H31+1 -> 2019 | J31: =I31+1 -> 2020 | K31: =J31+1 -> 2021
A32: Project 1
A33: Name: REI Connection Project
A34: Capital Costs | C34: 0 | D34: 0 | E34: 0 | F34: 0 | G34: 0 | H34: 0 | I34: 0 | J34: 0 | K34: 0
A35: OM&A (Start-Up) | C35: 0 | D35: 0 | E35: 0 | F35: 0 | G35: 0 | H35: 0 | I35: 0 | J35: 0 | K35: 0
A36: OM&A (Ongoing) | C36: 0 | D36: 0 | E36: 0 | F36: 0 | G36: 0 | H36: 0 | I36: 0 | J36: 0 | K36: 0
A38: Project 2
A39: Name: REI Connection Project
A40: Capital Costs | C40: 0 | D40: 0 | E40: 0 | F40: 0 | G40: 0 | H40: 0 | I40: 0 | J40: 0 | K40: 0
A41: OM&A (Start-Up) | C41: 0 | D41: 0 | E41: 0 | F41: 0 | G41: 0 | H41: 0 | I41: 0 | J41: 0 | K41: 0
A42: OM&A (Ongoing) | C42: 0 | D42: 0 | E42: 0 | F42: 0 | G42: 0 | H42: 0 | I42: 0 | J42: 0 | K42: 0
A44: Project 3
A45: Name: REI Connection Project
A46: Capital Costs | C46: 0 | D46: 0 | E46: 0 | F46: 0 | G46: 0 | H46: 0 | I46: 0 | J46: 0 | K46: 0
A47: OM&A (Start-Up) | C47: 0 | D47: 0 | E47: 0 | F47: 0 | G47: 0 | H47: 0 | I47: 0 | J47: 0 | K47: 0
A48: OM&A (Ongoing) | C48: 0 | D48: 0 | E48: 0 | F48: 0 | G48: 0 | H48: 0 | I48: 0 | J48: 0 | K48: 0
A50: Project 4
A51: Name: REI Connection Project
A52: Capital Costs | C52: 0 | D52: 0 | E52: 0 | F52: 0 | G52: 0 | H52: 0 | I52: 0 | J52: 0 | K52: 0
A53: OM&A (Start-Up) | C53: 0 | D53: 0 | E53: 0 | F53: 0 | G53: 0 | H53: 0 | I53: 0 | J53: 0 | K53: 0
A54: OM&A (Ongoing) | C54: 0 | D54: 0 | E54: 0 | F54: 0 | G54: 0 | H54: 0 | I54: 0 | J54: 0 | K54: 0
A56: Project 5
A57: Name: REI Connection Project
A58: Capital Costs | C58: 0 | D58: 0 | E58: 0 | F58: 0 | G58: 0 | H58: 0 | I58: 0 | J58: 0 | K58: 0
A59: OM&A (Start-Up) | C59: 0 | D59: 0 | E59: 0 | F59: 0 | G59: 0 | H59: 0 | I59: 0 | J59: 0 | K59: 0
A60: OM&A (Ongoing) | C60: 0 | D60: 0 | E60: 0 | F60: 0 | G60: 0 | H60: 0 | I60: 0 | J60: 0 | K60: 0
A62: Total Capital Costs | C62: =SUM(C58,C52,C46,C40,C34) -> 0 | D62: 0 | E62: 0 | F62: 0 | G62: =SUM(G58,G52,G46,G40,G34) -> 0 | H62: =SUM(H58,H52,H46,H40,H34) -> 0 | I62: 0 | J62: 0 | K62: 0
A63: Total OM&A (Start-Up) | C63: 0 | D63: 0 | E63: 0 | F63: 0 | G63: =SUM(G59,G53,G47,G41,G35) -> 0 | H63: 0 | I63: 0 | J63: 0 | K63: 0
A64: Total OM&A (Ongoing) | C64: 0 | D64: 0 | E64: 0 | F64: 0 | G64: =SUM(G60,G54,G48,G42,G36) -> 0 | H64: 0 | I64: 0 | J64: 0 | K64: 0
A67: Part B | G67: Test Year
A68: Expansion Investments (Direct Benefit at 17%) | C68: =D68-1 -> 2013 | D68: =E68-1 -> 2014 | E68: =F68-1 -> 2015 | F68: =G68-1 -> 2016 | G68: =TestYear -> 2017 | H68: =G68+1 -> 2018 | I68: =H68+1 -> 2019 | J68: =I68+1 -> 2020 | K68: =J68+1 -> 2021
A69: Project 1
A70: Name: Expansion Connection Project
A71: Capital Costs | C71: 0 | D71: 88852 | E71: 0 | F71: 0 | G71: 0 | H71: 0 | I71: 0 | J71: 0 | K71: 0
A72: OM&A (Start-Up) | C72: 0 | D72: 0 | E72: 0 | F72: 0 | G72: 0 | H72: 0 | I72: 0 | J72: 0 | K72: 0
A73: OM&A (Ongoing) | C73: 0 | D73: 0 | E73: 0 | F73: 0 | G73: 0 | H73: 0 | I73: 0 | J73: 0 | K73: 0
A75: Project 2
A76: Name: Expansion Connection Project
A77: Capital Costs | C77: 0 | D77: 0 | E77: 0 | F77: 0 | G77: 0 | H77: 0 | I77: 0 | J77: 0 | K77: 0
A78: OM&A (Start-Up) | C78: 0 | D78: 0 | E78: 0 | F78: 0 | G78: 0 | H78: 0 | I78: 0 | J78: 0 | K78: 0
A79: OM&A (Ongoing) | C79: 0 | D79: 0 | E79: 0 | F79: 0 | G79: 0 | H79: 0 | I79: 0 | J79: 0 | K79: 0
A81: Project 3
A82: Name: Expansion Connection Project
A83: Capital Costs | C83: 0 | D83: 0 | E83: 0 | F83: 0 | G83: 0 | H83: 0 | I83: 0 | J83: 0 | K83: 0
A84: OM&A (Start-Up) | C84: 0 | D84: 0 | E84: 0 | F84: 0 | G84: 0 | H84: 0 | I84: 0 | J84: 0 | K84: 0
A85: OM&A (Ongoing) | C85: 0 | D85: 0 | E85: 0 | F85: 0 | G85: 0 | H85: 0 | I85: 0 | J85: 0 | K85: 0
A87: Project 4
A88: Name: Expansion Connection Project
A89: Capital Costs | C89: 0 | D89: 0 | E89: 0 | F89: 0 | G89: 0 | H89: 0 | I89: 0 | J89: 0 | K89: 0
A90: OM&A (Start-Up) | C90: 0 | D90: 0 | E90: 0 | F90: 0 | G90: 0 | H90: 0 | I90: 0 | J90: 0 | K90: 0
A91: OM&A (Ongoing) | C91: 0 | D91: 0 | E91: 0 | F91: 0 | G91: 0 | H91: 0 | I91: 0 | J91: 0 | K91: 0
A93: Project 5
A94: Name: Expansion Connection Project
A95: Capital Costs | C95: 0 | D95: 0 | E95: 0 | F95: 0 | G95: 0 | H95: 0 | I95: 0 | J95: 0 | K95: 0
A96: OM&A (Start-Up) | C96: 0 | D96: 0 | E96: 0 | F96: 0 | G96: 0 | H96: 0 | I96: 0 | J96: 0 | K96: 0
A97: OM&A (Ongoing) | C97: 0 | D97: 0 | E97: 0 | F97: 0 | G97: 0 | H97: 0 | I97: 0 | J97: 0 | K97: 0
A99: Total Capital Costs | C99: =SUM(C95,C89,C83,C77,C71) -> 0 | D99: 88852 | E99: 0 | F99: 0 | G99: =SUM(G95,G89,G83,G77,G71) -> 0 | H99: =SUM(H95,H89,H83,H77,H71) -> 0 | I99: 0 | J99: 0 | K99: 0
A100: Total OM&A (Start-Up) | C100: 0 | D100: 0 | E100: 0 | F100: 0 | G100: =SUM(G96,G90,G84,G78,G72) -> 0 | H100: 0 | I100: 0 | J100: 0 | K100: 0
A101: Total OM&A (Ongoing) | C101: 0 | D101: 0 | E101: 0 | F101: 0 | G101: =SUM(G97,G91,G85,G79,G73) -> 0 | H101: 0 | I101: 0 | J101: 0 | K101: 0

Sheet App.2-FB Calc of REG Improvemnt
N1: File Number: | O1: =EBNUMBER -> EB-2016-0110
N2: Exhibit: | O2: Not Applicable
N3: Tab: | O3: to WHESC
N4: Schedule:
N5: Page:
N7: Date: | O7: 2016-10-28
A9: Appendix 2-FB
A10: Calculation of Renewable Generation Connection Direct Benefits/Provincial Amount: Renewable Enabling Improvement Investments
A12: This table will calculate the distributor/provincial shares of the investments entered in Part A of Appendix 2-FA.
A13: Enter values in green shaded cells: WCA percentage, debt percentages, interest rates, kWh, tax rates, amortization period, CCA Class and percentage.
A14: For historical investments, enter these variables for your last cost of service test year. For 2017 and beyond, enter variables as in the application.
A15: Rate Riders are not calculated for the Test Year as these assets and costs are already in the distributor's rate base/revenue requirement.
C17: =F17-1 -> 2013 | F17: =I17-1 -> 2014 | I17: =L17-1 -> 2015 | L17: =BridgeYear -> 2016 | O17: =CONCATENATE(TestYear," Test Year") -> 2017 Test Year | R17: =TestYear+1 -> 2018 | U17: =R17+1 -> 2019 | V17: 2016 | X17: =U17+1 -> 2020 | AA17: =X17+1 -> 2021
D18: Direct Benefit | E18: Provincial | G18: Direct Benefit | H18: Provincial | J18: Direct Benefit | K18: Provincial | M18: Direct Benefit | N18: Provincial | P18: Direct Benefit | Q18: Provincial | S18: Direct Benefit | T18: Provincial | V18: Direct Benefit | W18: Provincial | Y18: Direct Benefit | Z18: Provincial | AB18: Direct Benefit | AC18: Provincial
C19: Total | D19: 0.06 | E19: 0.94 | F19: Total | G19: 0.06 | H19: 0.94 | I19: Total | J19: 0.06 | K19: 0.94 | L19: Total | M19: 0.06 | N19: 0.94 | O19: Total | P19: 0.06 | Q19: 0.94 | R19: Total | S19: 0.06 | T19: 0.94 | U19: Total | V19: 0.06 | W19: 0.94 | X19: Total | Y19: 0.06 | Z19: 0.94 | AA19: Total | AB19: 0.06 | AC19: 0.94
A20: Net Fixed Assets (average) | C20: =D82 -> 0 | D20: =C20*D19 -> 0 | E20: =C20*E19 -> 0 | F20: =E82 -> 0 | G20: =F20*G19 -> 0 | H20: =F20*H19 -> 0 | I20: =F82 -> 0 | J20: =I20*J19 -> 0 | K20: =I20*K19 -> 0 | L20: =G82 -> 0 | M20: =L20*M19 -> 0 | N20: =L20*N19 -> 0 | O20: =H82 -> 0 | P20: =O20*P19 -> 0 | Q20: =O20*Q19 -> 0 | R20: =I82 -> 0 | S20: =R20*S19 -> 0 | T20: =R20*T19 -> 0 | U20: =J82 -> 0 | V20: =U20*V19 -> 0 | W20: =U20*W19 -> 0 | X20: =K82 -> 0 | Y20: =X20*Y19 -> 0 | Z20: =X20*Z19 -> 0 | AA20: =L82 -> 0 | AB20: =AA20*AB19 -> 0 | AC20: =AA20*AC19 -> 0
A21: Incremental OM&A (on-going, N/A for Provincial Recovery) | C21: ='App.2-FA Proposed REG Invest.'!C64 -> 0 | D21: =C21 -> 0 | F21: ='App.2-FA Proposed REG Invest.'!D64 -> 0 | G21: =F21 -> 0 | I21: ='App.2-FA Proposed REG Invest.'!E64 -> 0 | J21: =I21 -> 0 | L21: ='App.2-FA Proposed REG Invest.'!F64 -> 0 | M21: =L21 -> 0 | O21: ='App.2-FA Proposed REG Invest.'!G64 -> 0 | P21: =O21 -> 0 | R21: ='App.2-FA Proposed REG Invest.'!H64 -> 0 | S21: =R21 -> 0 | U21: ='App.2-FA Proposed REG Invest.'!I64 -> 0 | V21: =U21 -> 0 | X21: ='App.2-FA Proposed REG Invest.'!J64 -> 0 | Y21: =X21 -> 0 | AA21: ='App.2-FA Proposed REG Invest.'!K64 -> 0 | AB21: =AA21 -> 0
A22: Incremental OM&A (start-up, applicable for Provincial Recovery) | C22: ='App.2-FA Proposed REG Invest.'!C63 -> 0 | D22: =C22*D19 -> 0 | E22: =C22*E19 -> 0 | F22: ='App.2-FA Proposed REG Invest.'!D63 -> 0 | G22: =F22*G19 -> 0 | H22: =F22*H19 -> 0 | I22: ='App.2-FA Proposed REG Invest.'!E63 -> 0 | J22: =I22*J19 -> 0 | K22: =I22*K19 -> 0 | L22: ='App.2-FA Proposed REG Invest.'!F63 -> 0 | M22: =L22*M19 -> 0 | N22: =L22*N19 -> 0 | O22: ='App.2-FA Proposed REG Invest.'!G63 -> 0 | P22: =O22*P19 -> 0 | Q22: =O22*Q19 -> 0 | R22: ='App.2-FA Proposed REG Invest.'!H63 -> 0 | S22: =R22*S19 -> 0 | T22: =R22*T19 -> 0 | U22: ='App.2-FA Proposed REG Invest.'!I63 -> 0 | V22: =U22*V19 -> 0 | W22: =U22*W19 -> 0 | X22: ='App.2-FA Proposed REG Invest.'!J63 -> 0 | Y22: =X22*Y19 -> 0 | Z22: =X22*Z19 -> 0 | AA22: ='App.2-FA Proposed REG Invest.'!K63 -> 0 | AB22: =AA22*AB19 -> 0 | AC22: =AA22*AC19 -> 0
A23: WCA | D23: =(D21+D22)*$B$23 -> 0 | E23: =E22*$B$23 -> 0 | G23: =(G21+G22)*$B$23 -> 0 | H23: =H22*$B$23 -> 0 | J23: =(J21+J22)*$B$23 -> 0 | K23: =K22*$B$23 -> 0 | M23: =(M21+M22)*$B$23 -> 0 | N23: =N22*$B$23 -> 0 | P23: =(P21+P22)*$B$23 -> 0 | Q23: =Q22*$B$23 -> 0 | S23: =(S21+S22)*$B$23 -> 0 | T23: =T22*$B$23 -> 0 | V23: =(V21+V22)*$B$23 -> 0 | W23: =W22*$B$23 -> 0 | Y23: =(Y21+Y22)*$B$23 -> 0 | Z23: =Z22*$B$23 -> 0 | AB23: =(AB21+AB22)*$B$23 -> 0 | AC23: =AC22*$B$23 -> 0
A24: Rate Base | D24: =SUM(D20+D23) -> 0 | E24: =SUM(E20+E23) -> 0 | G24: =SUM(G20+G23) -> 0 | H24: =SUM(H20+H23) -> 0 | J24: =SUM(J20+J23) -> 0 | K24: =SUM(K20+K23) -> 0 | M24: =SUM(M20+M23) -> 0 | N24: =SUM(N20+N23) -> 0 | P24: =SUM(P20+P23) -> 0 | Q24: =SUM(Q20+Q23) -> 0 | S24: =SUM(S20+S23) -> 0 | T24: =SUM(T20+T23) -> 0 | V24: =SUM(V20+V23) -> 0 | W24: =SUM(W20+W23) -> 0 | Y24: =SUM(Y20+Y23) -> 0 | Z24: =SUM(Z20+Z23) -> 0 | AB24: =SUM(AB20+AB23) -> 0 | AC24: =SUM(AC20+AC23) -> 0
A27: Deemed ST Debt | D27: =D24*$B$27 -> 0 | E27: =E24*$B$27 -> 0 | G27: =G24*$B$27 -> 0 | H27: =H24*$B$27 -> 0 | J27: =J24*$B$27 -> 0 | K27: =K24*$B$27 -> 0 | M27: =M24*$B$27 -> 0 | N27: =N24*$B$27 -> 0 | P27: =P24*$B$27 -> 0 | Q27: =Q24*$B$27 -> 0 | S27: =S24*$B$27 -> 0 | T27: =T24*$B$27 -> 0 | V27: =V24*$B$27 -> 0 | W27: =W24*$B$27 -> 0 | Y27: =Y24*$B$27 -> 0 | Z27: =Z24*$B$27 -> 0 | AB27: =AB24*$B$27 -> 0 | AC27: =AC24*$B$27 -> 0
A28: Deemed LT Debt | D28: =D24*$B$28 -> 0 | E28: =E24*$B$28 -> 0 | G28: =G24*$B$28 -> 0 | H28: =H24*$B$28 -> 0 | J28: =J24*$B$28 -> 0 | K28: =K24*$B$28 -> 0 | M28: =M24*$B$28 -> 0 | N28: =N24*$B$28 -> 0 | P28: =P24*$B$28 -> 0 | Q28: =Q24*$B$28 -> 0 | S28: =S24*$B$28 -> 0 | T28: =T24*$B$28 -> 0 | V28: =V24*$B$28 -> 0 | W28: =W24*$B$28 -> 0 | Y28: =Y24*$B$28 -> 0 | Z28: =Z24*$B$28 -> 0 | AB28: =AB24*$B$28 -> 0 | AC28: =AC24*$B$28 -> 0
A29: Deemed Equity | D29: =D24*$B$29 -> 0 | E29: =E24*$B$29 -> 0 | G29: =G24*$B$29 -> 0 | H29: =H24*$B$29 -> 0 | J29: =J24*$B$29 -> 0 | K29: =K24*$B$29 -> 0 | M29: =M24*$B$29 -> 0 | N29: =N24*$B$29 -> 0 | P29: =P24*$B$29 -> 0 | Q29: =Q24*$B$29 -> 0 | S29: =S24*$B$29 -> 0 | T29: =T24*$B$29 -> 0 | V29: =V24*$B$29 -> 0 | W29: =W24*$B$29 -> 0 | Y29: =Y24*$B$29 -> 0 | Z29: =Z24*$B$29 -> 0 | AB29: =AB24*$B$29 -> 0 | AC29: =AC24*$B$29 -> 0
A31: ST Interest | D31: =D27*$B31 -> 0 | E31: 0 | G31: =G27*$B31 -> 0 | H31: 0 | J31: =J27*$B31 -> 0 | K31: 0 | M31: =M27*$B31 -> 0 | N31: 0 | P31: =P27*$B31 -> 0 | Q31: 0 | S31: =S27*$B31 -> 0 | T31: 0 | V31: =V27*$B31 -> 0 | W31: 0 | Y31: =Y27*$B31 -> 0 | Z31: 0 | AB31: =AB27*$B31 -> 0 | AC31: 0
A32: LT Interest | D32: 0 | E32: 0 | G32: 0 | H32: 0 | J32: 0 | K32: 0 | M32: 0 | N32: 0 | P32: 0 | Q32: 0 | S32: 0 | T32: 0 | V32: 0 | W32: 0 | Y32: 0 | Z32: 0 | AB32: 0 | AC32: 0
A33: ROE | D33: 0 | E33: 0 | G33: 0 | H33: 0 | J33: 0 | K33: 0 | M33: 0 | N33: 0 | P33: 0 | Q33: 0 | S33: 0 | T33: 0 | V33: 0 | W33: 0 | Y33: 0 | Z33: 0 | AB33: 0 | AC33: 0
A34: Cost of Capital Total | D34: =SUM(D31:D33) -> 0 | E34: =SUM(E31:E33) -> 0 | G34: =SUM(G31:G33) -> 0 | H34: =SUM(H31:H33) -> 0 | J34: =SUM(J31:J33) -> 0 | K34: =SUM(K31:K33) -> 0 | M34: =SUM(M31:M33) -> 0 | N34: =SUM(N31:N33) -> 0 | P34: =SUM(P31:P33) -> 0 | Q34: =SUM(Q31:Q33) -> 0 | S34: =SUM(S31:S33) -> 0 | T34: =SUM(T31:T33) -> 0 | V34: =SUM(V31:V33) -> 0 | W34: =SUM(W31:W33) -> 0 | Y34: =SUM(Y31:Y33) -> 0 | Z34: =SUM(Z31:Z33) -> 0 | AB34: =SUM(AB31:AB33) -> 0 | AC34: =SUM(AC31:AC33) -> 0
A36: OM&A | D36: =D21+D22 -> 0 | E36: =E22 -> 0 | G36: =G21+G22 -> 0 | H36: =H22 -> 0 | J36: =J21+J22 -> 0 | K36: =K22 -> 0 | M36: =M21+M22 -> 0 | N36: =N22 -> 0 | P36: =P21+P22 -> 0 | Q36: =Q22 -> 0 | S36: =S21+S22 -> 0 | T36: =T22 -> 0 | V36: =V21+V22 -> 0 | W36: =W22 -> 0 | Y36: =Y21+Y22 -> 0 | Z36: =Z22 -> 0 | AB36: =AB21+AB22 -> 0 | AC36: =AC22 -> 0
A37: Amortization | C37: =D77 -> 0 | D37: =C37*D$19 -> 0 | E37: =C37*E$19 -> 0 | F37: =E77 -> 0 | G37: =F37*G$19 -> 0 | H37: =F37*H$19 -> 0 | I37: =F77 -> 0 | J37: =I37*J$19 -> 0 | K37: =I37*K$19 -> 0 | L37: =G77 -> 0 | M37: =L37*M$19 -> 0 | N37: =L37*N$19 -> 0 | O37: =H77 -> 0 | P37: =O37*P$19 -> 0 | Q37: =O37*Q$19 -> 0 | R37: =I76+I77 -> 0 | S37: =R37*S$19 -> 0 | T37: =R37*T$19 -> 0 | U37: =J76+J77 -> 0 | V37: =U37*V$19 -> 0 | W37: =U37*W$19 -> 0 | X37: =K76+K77 -> 0 | Y37: =X37*Y$19 -> 0 | Z37: =X37*Z$19 -> 0 | AA37: =L76+L77 -> 0 | AB37: =AA37*AB$19 -> 0 | AC37: =AA37*AC$19 -> 0
A38: Grossed-up PILs | D38: =D65 -> 0 | E38: =E65 -> 0 | G38: =G65 -> 0 | H38: =H65 -> 0 | J38: =J65 -> 0 | K38: =K65 -> 0 | M38: =M65 -> 0 | N38: =N65 -> 0 | P38: =P65 -> 0 | Q38: =Q65 -> 0 | S38: =S65 -> 0 | T38: =T65 -> 0 | V38: =V65 -> 0 | W38: =W65 -> 0 | Y38: =Y65 -> 0 | Z38: =Z65 -> 0 | AB38: =AB65 -> 0 | AC38: =AC65 -> 0
A40: Revenue Requirement | D40: =SUM(D34:D38) -> 0 | E40: =SUM(E34:E38) -> 0 | G40: =SUM(G34:G38) -> 0 | H40: =SUM(H34:H38) -> 0 | J40: =SUM(J34:J38) -> 0 | K40: =SUM(K34:K38) -> 0 | M40: =SUM(M34:M38) -> 0 | N40: =SUM(N34:N38) -> 0 | P40: =SUM(P34:P38) -> 0 | Q40: =SUM(Q34:Q38) -> 0 | S40: =SUM(S34:S38) -> 0 | T40: =SUM(T34:T38) -> 0 | V40: =SUM(V34:V38) -> 0 | W40: =SUM(W34:W38) -> 0 | Y40: =SUM(Y34:Y38) -> 0 | Z40: =SUM(Z34:Z38) -> 0 | AB40: =SUM(AB34:AB38) -> 0 | AC40: =SUM(AC34:AC38) -> 0
A43: Provincial Rate Protection | E43: =E40 -> 0 | H43: =H40 -> 0 | K43: =K40 -> 0 | N43: =N40 -> 0 | Q43: =Q40 -> 0 | T43: =T40 -> 0 | W43: =W40 -> 0 | Z43: =Z40 -> 0 | AC43: =AC40 -> 0
A45: Monthly Amount Paid by IESO | E45: =E43/12 -> 0 | H45: =H43/12 -> 0 | K45: =K43/12 -> 0 | N45: =N43/12 -> 0 | Q45: =Q43/12 -> 0 | T45: =T43/12 -> 0 | W45: =W43/12 -> 0 | Z45: =Z43/12 -> 0 | AC45: =AC43/12 -> 0
A47: Note 1: The difference between the actual costs of approved eligible investments and revenue received from the IESO should be recorded in a variance account. The Board may provide
A48: regulatory accounting guidance regarding a variance account either in an individual proceeding or on a generic basis.
A49: Note 2: For the 2016 Test Year, Costs and Revenues of the Direct Benefit are to be included in the test year applicant Rate Base and Revenues.
A51: PILs Calculation
D52: =C17 -> 2013 | G52: =F17 -> 2014 | J52: =I17 -> 2015 | M52: =L17 -> 2016 | P52: =O17 -> 2017 Test Year | S52: =R17 -> 2018 | V52: =U17 -> 2019 | Y52: =X17 -> 2020 | AB52: =AA17 -> 2021
A53: Income Tax | D53: Direct Benefit | E53: Provincial | G53: Direct Benefit | H53: Provincial | J53: Direct Benefit | K53: Provincial | M53: Direct Benefit | N53: Provincial | P53: Direct Benefit | Q53: Provincial | S53: Direct Benefit | T53: Provincial | V53: Direct Benefit | W53: Provincial | Y53: Direct Benefit | Z53: Provincial | AB53: Direct Benefit | AC53: Provincial
X54: Total | AA54: Total
A55: Net Income - ROE on Rate Base | D55: =D33 -> 0 | E55: =E33 -> 0 | G55: =G33 -> 0 | H55: =H33 -> 0 | J55: =J33 -> 0 | K55: =K33 -> 0 | M55: =M33 -> 0 | N55: =N33 -> 0 | P55: =P33 -> 0 | Q55: =Q33 -> 0 | S55: =S33 -> 0 | T55: =T33 -> 0 | V55: =V33 -> 0 | W55: =W33 -> 0 | Y55: =Y33 -> 0 | Z55: =Z33 -> 0 | AB55: =AB33 -> 0 | AC55: =AC33 -> 0
A56: Amortization (6% DB and 94% P) | D56: =D37 -> 0 | E56: =E37 -> 0 | G56: =G37 -> 0 | H56: =H37 -> 0 | J56: =J37 -> 0 | K56: =K37 -> 0 | M56: =M37 -> 0 | N56: =N37 -> 0 | P56: =P37 -> 0 | Q56: =Q37 -> 0 | S56: =S37 -> 0 | T56: =T37 -> 0 | V56: =V37 -> 0 | W56: =W37 -> 0 | Y56: =Y37 -> 0 | Z56: =Z37 -> 0 | AB56: =AB37 -> 0 | AC56: =AC37 -> 0
A57: CCA (6% DB and 94% P) | D57: =-D94*D$19 -> 0 | E57: =-D94*E$19 -> 0 | G57: =-E94*G19 -> 0 | H57: =-E94*H$19 -> 0 | J57: =-F94*J$19 -> 0 | K57: =-F94*K$19 -> 0 | M57: =-G94*M$19 -> 0 | N57: =-G94*N$19 -> 0 | P57: =-H94*P$19 -> 0 | Q57: =-H94*Q$19 -> 0 | S57: =-I94*S$19 -> 0 | T57: =-I94*T$19 -> 0 | V57: =-J94*V$19 -> 0 | W57: =-J94*W$19 -> 0 | Y57: =-K94*Y$19 -> 0 | Z57: =-K94*Z$19 -> 0 | AB57: =-L94*AB$19 -> 0 | AC57: =-L94*AC$19 -> 0
A58: Taxable income | D58: =SUM(D55:D57) -> 0 | E58: =SUM(E55:E57) -> 0 | G58: =SUM(G55:G57) -> 0 | H58: =SUM(H55:H57) -> 0 | J58: =SUM(J55:J57) -> 0 | K58: =SUM(K55:K57) -> 0 | M58: =SUM(M55:M57) -> 0 | N58: =SUM(N55:N57) -> 0 | P58: =SUM(P55:P57) -> 0 | Q58: =SUM(Q55:Q57) -> 0 | S58: =SUM(S55:S57) -> 0 | T58: =SUM(T55:T57) -> 0 | V58: =SUM(V55:V57) -> 0 | W58: =SUM(W55:W57) -> 0 | Y58: =SUM(Y55:Y57) -> 0 | Z58: =SUM(Z55:Z57) -> 0 | AB58: =SUM(AB55:AB57) -> 0 | AC58: =SUM(AC55:AC57) -> 0
A60: Tax Rate (to be entered)
A62: Income Taxes Payable | D62: =D58*D60 -> 0 | E62: =E58*E60 -> 0 | G62: =G58*G60 -> 0 | H62: =H58*H60 -> 0 | J62: =J58*J60 -> 0 | K62: =K58*K60 -> 0 | M62: =M58*M60 -> 0 | N62: =N58*N60 -> 0 | P62: =P58*P60 -> 0 | Q62: =Q58*Q60 -> 0 | S62: =S58*S60 -> 0 | T62: =T58*T60 -> 0 | V62: =V58*V60 -> 0 | W62: =W58*W60 -> 0 | Y62: =Y58*Y60 -> 0 | Z62: =Z58*Z60 -> 0 | AB62: =AB58*AB60 -> 0 | AC62: =AC58*AC60 -> 0
A63: Gross Up
A64: Income Taxes Payable | D64: =D62/(1-D60) -> 0 | E64: =E62/(1-E60) -> 0 | G64: =G62/(1-G60) -> 0 | H64: =H62/(1-H60) -> 0 | J64: =J62/(1-J60) -> 0 | K64: =K62/(1-K60) -> 0 | M64: =M62/(1-M60) -> 0 | N64: =N62/(1-N60) -> 0 | P64: =P62/(1-P60) -> 0 | Q64: =Q62/(1-Q60) -> 0 | S64: =S62/(1-S60) -> 0 | T64: =T62/(1-T60) -> 0 | V64: =V62/(1-V60) -> 0 | W64: =W62/(1-W60) -> 0 | Y64: =Y62/(1-Y60) -> 0 | Z64: =Z62/(1-Z60) -> 0 | AB64: =AB62/(1-AB60) -> 0 | AC64: =AC62/(1-AC60) -> 0
A65: Grossed Up PILs | D65: =SUM(D64:D64) -> 0 | E65: =SUM(E64:E64) -> 0 | G65: =SUM(G64:G64) -> 0 | H65: =SUM(H64:H64) -> 0 | J65: =SUM(J64:J64) -> 0 | K65: =SUM(K64:K64) -> 0 | M65: =SUM(M64:M64) -> 0 | N65: =SUM(N64:N64) -> 0 | P65: =SUM(P64:P64) -> 0 | Q65: =SUM(Q64:Q64) -> 0 | S65: =SUM(S64:S64) -> 0 | T65: =SUM(T64:T64) -> 0 | V65: =SUM(V64:V64) -> 0 | W65: =SUM(W64:W64) -> 0 | Y65: =SUM(Y64:Y64) -> 0 | Z65: =SUM(Z64:Z64) -> 0 | AB65: =SUM(AB64:AB64) -> 0 | AC65: =SUM(AC64:AC64) -> 0
D68: =E68-1 -> 2013 | E68: =F68-1 -> 2014 | F68: =G68-1 -> 2015 | G68: =H68-1 -> 2016 | H68: =TestYear -> 2017 | I68: =H68+1 -> 2018 | J68: =I68+1 -> 2019 | K68: =J68+1 -> 2020 | L68: =K68+1 -> 2021
A69: Net Fixed Assets
B70: Enter applicable amortization in years: | C70: 50
A71: Opening Gross Fixed Assets | E71: =D73 -> 0 | F71: 0 | G71: 0 | H71: 0 | I71: 0 | J71: 0 | K71: 0 | L71: 0
A72: Gross Capital Additions | D72: ='App.2-FA Proposed REG Invest.'!C62 -> 0 | E72: ='App.2-FA Proposed REG Invest.'!D62 -> 0 | F72: ='App.2-FA Proposed REG Invest.'!E62 -> 0 | G72: ='App.2-FA Proposed REG Invest.'!F62 -> 0 | H72: ='App.2-FA Proposed REG Invest.'!G62 -> 0 | I72: ='App.2-FA Proposed REG Invest.'!H62 -> 0 | J72: ='App.2-FA Proposed REG Invest.'!I62 -> 0 | K72: ='App.2-FA Proposed REG Invest.'!J62 -> 0 | L72: ='App.2-FA Proposed REG Invest.'!K62 -> 0
A73: Closing Gross Fixed Assets | D73: =SUM(D71:D72) -> 0 | E73: 0 | F73: 0 | G73: 0 | H73: 0 | I73: 0 | J73: 0 | K73: 0 | L73: 0
A75: Opening Accumulated Amortization | E75: =+D78 -> 0 | F75: =E78 -> 0 | G75: 0 | H75: 0 | I75: 0 | J75: 0 | K75: 0 | L75: 0
A76: Current Year Amortization (before additions) | D76: =IF(ISERROR(D71/$C$70), 0, D71/$C$70) -> 0 | E76: 0 | F76: 0 | G76: 0 | H76: 0 | I76: 0 | J76: 0 | K76: 0 | L76: 0
A77: Additions (half year) | D77: =D72/$C$70/2 -> 0 | E77: =E72/$C$70/2 -> 0 | F77: =F72/$C$70/2 -> 0 | G77: =G72/$C$70/2 -> 0 | H77: =H72/$C$70/2 -> 0 | I77: =I72/C70/2 -> 0 | J77: =J72/C70/2 -> 0 | K77: =K72/C70/2 -> 0 | L77: =L72/C70/2 -> 0
A78: Closing Accumulated Amortization | D78: =SUM(D75+D76+D77) -> 0 | E78: =SUM(E75+E76+E77) -> 0 | F78: =SUM(F75+F76+F77) -> 0 | G78: =SUM(G75+G76+G77) -> 0 | H78: =SUM(H75+H76+H77) -> 0 | I78: =SUM(I75:I77) -> 0 | J78: =SUM(J75:J77) -> 0 | K78: =SUM(K75:K77) -> 0 | L78: =SUM(L75:L77) -> 0
A80: Opening Net Fixed Assets | D80: =D71-D75 -> 0 | E80: =E71-E75 -> 0 | F80: =F71-F75 -> 0 | G80: =G71-G75 -> 0 | H80: =H71-H75 -> 0 | I80: =H81 -> 0 | J80: =I81 -> 0 | K80: =J81 -> 0 | L80: =K81 -> 0
A81: Closing Net Fixed Assets | D81: =D73-D78 -> 0 | E81: 0 | F81: 0 | G81: 0 | H81: 0 | I81: 0 | J81: 0 | K81: 0 | L81: 0
A82: Average Net Fixed Assets | D82: =SUM(D80:D81)/2 -> 0 | E82: 0 | F82: 0 | G82: 0 | H82: 0 | I82: 0 | J82: 0 | K82: 0 | L82: 0
A84: UCC for PILs Calculation
D85: =D68 -> 2013 | E85: =E68 -> 2014 | F85: 2015 | G85: 2016 | H85: 2017 | I85: 2018 | J85: 2019 | K85: 2020 | L85: 2021
A87: Opening UCC | E87: =D95 -> 0 | F87: 0 | G87: 0 | H87: 0 | I87: 0 | J87: 0 | K87: 0 | L87: 0
A88: Capital Additions (from Appendix 2-FA) | D88: =D72 -> 0 | E88: 0 | F88: 0 | G88: 0 | H88: 0 | I88: 0 | J88: 0 | K88: 0 | L88: 0
A89: UCC Before Half Year Rule | D89: =SUM(D87:D88) -> 0 | E89: 0 | F89: 0 | G89: 0 | H89: 0 | I89: 0 | J89: 0 | K89: 0 | L89: 0
A90: Half Year Rule (1/2 Additions - Disposals) | D90: =D88/2 -> 0 | E90: 0 | F90: 0 | G90: 0 | H90: 0 | I90: 0 | J90: 0 | K90: 0 | L90: 0
A91: Reduced UCC | D91: =D89-D90 -> 0 | E91: 0 | F91: 0 | G91: 0 | H91: 0 | I91: 0 | J91: 0 | K91: 0 | L91: 0
A92: CCA Rate Class (to be entered) | C92: 47 | D92: =C92 -> 47 | E92: =D92 -> 47 | F92: 47 | G92: 47 | H92: 47 | I92: 47 | J92: 47 | K92: 47 | L92: 47
A93: CCA Rate (to be entered) | C93: 0.08 | D93: =C93 -> 0.08 | E93: 0.08 | F93: 0.08 | G93: 0.08 | H93: 0.08 | I93: 0.08 | J93: 0.08 | K93: 0.08 | L93: 0.08
A94: CCA | D94: =D91*D93 -> 0 | E94: 0 | F94: 0 | G94: 0 | H94: 0 | I94: 0 | J94: 0 | K94: 0 | L94: 0
A95: Closing UCC | D95: =D89-D94 -> 0 | E95: 0 | F95: 0 | G95: 0 | H95: 0 | I95: 0 | J95: 0 | K95: 0 | L95: 0

Sheet App.2-FC Calc of REG Expansion
N1: File Number: | O1: =EBNUMBER -> EB-2016-0110
N2: Exhibit: | O2: 2
N3: Tab:
N4: Schedule:
N5: Page: | O5: 62
N7: Date: | O7: 2016-10-28
A9: Appendix 2-FC
A10: Calculation of Renewable Generation Connection Direct Benefits/Provincial Amount: Renewable Expansion Investments
A12: This table will calculate the distributor/provincial shares of the investments entered in Part B of Appendix 2-FA.
A13: Enter values in green shaded cells: WCA percentage, debt percentages, interest rates, kWh, tax rates, amortization period, CCA Class and percentage.
A14: For historical investments, enter these variables for your last cost of service test year. For 2016 and beyond, enter variables as in the application.
A15: Rate Riders are not calculated for the Test Year as these assets and costs are already in the distributor's rate base.
D18: =G18-1 -> 2013 | G18: =J18-1 -> 2014 | J18: =M18-1 -> 2015 | M18: =BridgeYear -> 2016 | P18: =CONCATENATE(TestYear," Test Year") -> 2017 Test Year | S18: =TestYear+1 -> 2018 | T18: 2016 | V18: =S18+1 -> 2019 | Y18: =V18+1 -> 2020 | AB18: =Y18+1 -> 2021
E19: Direct Benefit | F19: Provincial | H19: Direct Benefit | I19: Provincial | K19: Direct Benefit | L19: Provincial | N19: Direct Benefit | O19: Provincial | Q19: Direct Benefit | R19: Provincial | T19: Direct Benefit | U19: Provincial | W19: Direct Benefit | X19: Provincial | Z19: Direct Benefit | AA19: Provincial | AC19: Direct Benefit | AD19: Provincial
D20: Total | E20: 0.17 | F20: 0.83 | G20: Total | H20: 0.17 | I20: 0.83 | J20: Total | K20: 0.17 | L20: 0.83 | M20: Total | N20: 0.17 | O20: 0.83 | P20: Total | Q20: 0.17 | R20: 0.83 | S20: Total | T20: 0.17 | U20: 0.83 | V20: Total | W20: 0.17 | X20: 0.83 | Y20: Total | Z20: 0.17 | AA20: 0.83 | AB20: Total | AC20: 0.17 | AD20: 0.83
A21: Net Fixed Assets (average) | D21: =D82 -> 0 | E21: =D21*E20 -> 0 | F21: =D21*F20 -> 0 | G21: =E82 -> 43981.74 | H21: =G21*H20 -> 7476.8958 | I21: =G21*I20 -> 36504.8442 | J21: =F82 -> 87074.96 | K21: =J21*K20 -> 14802.7432 | L21: =J21*L20 -> 72272.2168 | M21: =G82 -> 85297.92 | N21: =M21*N20 -> 14500.6464 | O21: =M21*O20 -> 70797.2736 | P21: =H82 -> 83520.88 | Q21: =P21*Q20 -> 14198.5496 | R21: =P21*R20 -> 69322.3304 | S21: =I82 -> 81743.84 | T21: =S21*T20 -> 13896.4528 | U21: =S21*U20 -> 67847.3872 | V21: =J82 -> 79966.8 | W21: =V21*W20 -> 13594.356 | X21: =V21*X20 -> 66372.444 | Y21: =K82 -> 78189.76 | Z21: =Y21*Z20 -> 13292.2592 | AA21: =Y21*AA20 -> 64897.5008 | AB21: =L82 -> 76412.72 | AC21: =AB21*AC20 -> 12990.1624 | AD21: =AB21*AD20 -> 63422.5576
A22: Incremental OM&A (on-going, N/A for Provincial Recovery) | D22: ='App.2-FA Proposed REG Invest.'!C101 -> 0 | E22: =D22 -> 0 | G22: ='App.2-FA Proposed REG Invest.'!D$101 -> 0 | H22: =G22 -> 0 | J22: ='App.2-FA Proposed REG Invest.'!E$101 -> 0 | K22: =J22 -> 0 | M22: ='App.2-FA Proposed REG Invest.'!F$101 -> 0 | N22: =M22 -> 0 | P22: ='App.2-FA Proposed REG Invest.'!G$101 -> 0 | Q22: =P22 -> 0 | S22: ='App.2-FA Proposed REG Invest.'!H$101 -> 0 | T22: =S22 -> 0 | V22: ='App.2-FA Proposed REG Invest.'!I$101 -> 0 | W22: =V22 -> 0 | Y22: ='App.2-FA Proposed REG Invest.'!J$101 -> 0 | Z22: =Y22 -> 0 | AB22: ='App.2-FA Proposed REG Invest.'!K$101 -> 0 | AC22: =AB22 -> 0
A23: Incremental OM&A (start-up, applicable for Provincial Recovery) | D23: ='App.2-FA Proposed REG Invest.'!C100 -> 0 | E23: =D23*E20 -> 0 | F23: =D23*F20 -> 0 | G23: ='App.2-FA Proposed REG Invest.'!D$100 -> 0 | H23: =G23*H20 -> 0 | I23: =G23*I20 -> 0 | J23: ='App.2-FA Proposed REG Invest.'!E$100 -> 0 | K23: =J23*K20 -> 0 | L23: =J23*L20 -> 0 | M23: ='App.2-FA Proposed REG Invest.'!F$100 -> 0 | N23: =M23*N20 -> 0 | O23: =M23*O20 -> 0 | P23: ='App.2-FA Proposed REG Invest.'!G$100 -> 0 | Q23: =P23*Q20 -> 0 | R23: =P23*R20 -> 0 | S23: ='App.2-FA Proposed REG Invest.'!H$100 -> 0 | T23: =S23*T20 -> 0 | U23: =S23*U20 -> 0 | V23: ='App.2-FA Proposed REG Invest.'!I$100 -> 0 | W23: =V23*W20 -> 0 | X23: =V23*X20 -> 0 | Y23: ='App.2-FA Proposed REG Invest.'!J$100 -> 0 | Z23: =Y23*Z20 -> 0 | AA23: =Y23*AA20 -> 0 | AB23: ='App.2-FA Proposed REG Invest.'!K$100 -> 0 | AC23: =AB23*AC20 -> 0 | AD23: =AB23*AD20 -> 0
A24: WCA | B24: 0.12 | E24: =(E22+E23)*$B$24 -> 0 | F24: =F23*$B$24 -> 0 | H24: =(H22+H23)*$B$24 -> 0 | I24: =I23*$B$24 -> 0 | K24: =(K22+K23)*$B$24 -> 0 | L24: =L23*$B$24 -> 0 | N24: =(N22+N23)*$B$24 -> 0 | O24: =O23*$B$24 -> 0 | Q24: =(Q22+Q23)*$B$24 -> 0 | R24: =R23*$B$24 -> 0 | T24: =(T22+T23)*$B$24 -> 0 | U24: =U23*$B$24 -> 0 | W24: =(W22+W23)*$B$24 -> 0 | X24: =X23*$B$24 -> 0 | Z24: =(Z22+Z23)*$B$24 -> 0 | AA24: =AA23*$B$24 -> 0 | AC24: =(AC22+AC23)*$B$24 -> 0 | AD24: =AD23*$B$24 -> 0
A25: Rate Base | E25: =SUM(E21+E24) -> 0 | F25: =SUM(F21+F24) -> 0 | H25: =SUM(H21+H24) -> 7476.8958 | I25: =SUM(I21+I24) -> 36504.8442 | K25: =SUM(K21+K24) -> 14802.7432 | L25: =SUM(L21+L24) -> 72272.2168 | N25: =SUM(N21+N24) -> 14500.6464 | O25: =SUM(O21+O24) -> 70797.2736 | Q25: =SUM(Q21+Q24) -> 14198.5496 | R25: =SUM(R21+R24) -> 69322.3304 | T25: =SUM(T21+T24) -> 13896.4528 | U25: =SUM(U21+U24) -> 67847.3872 | W25: =SUM(W21+W24) -> 13594.356 | X25: =SUM(X21+X24) -> 66372.444 | Z25: =SUM(Z21+Z24) -> 13292.2592 | AA25: =SUM(AA21+AA24) -> 64897.5008 | AC25: =SUM(AC21+AC24) -> 12990.1624 | AD25: =SUM(AD21+AD24) -> 63422.5576
A28: Deemed ST Debt | B28: 0.04 | E28: =E25*$B$28 -> 0 | F28: =F25*$B$28 -> 0 | H28: =H25*$B$28 -> 299.075832 | I28: =I25*$B$28 -> 1460.193768 | K28: =K25*$B$28 -> 592.109728 | L28: =L25*$B$28 -> 2890.888672 | N28: =N25*$B$28 -> 580.025856 | O28: =O25*$B$28 -> 2831.890944 | Q28: =Q25*$B$28 -> 567.941984 | R28: =R25*$B$28 -> 2772.893216 | T28: =T25*$B$28 -> 555.858112 | U28: =U25*$B$28 -> 2713.895488 | W28: =W25*$B$28 -> 543.77424 | X28: =X25*$B$28 -> 2654.89776 | Z28: =Z25*$B$28 -> 531.690368 | AA28: =AA25*$B$28 -> 2595.900032 | AC28: =AC25*$B$28 -> 519.606496 | AD28: =AD25*$B$28 -> 2536.902304
A29: Deemed LT Debt | B29: 0.56 | E29: =E25*$B$29 -> 0 | F29: =F25*$B$29 -> 0 | H29: =H25*$B$29 -> 4187.061648 | I29: =I25*$B$29 -> 20442.71275 | K29: =K25*$B$29 -> 8289.536192 | L29: =L25*$B$29 -> 40472.44141 | N29: =N25*$B$29 -> 8120.361984 | O29: =O25*$B$29 -> 39646.47322 | Q29: =Q25*$B$29 -> 7951.187776 | R29: =R25*$B$29 -> 38820.50502 | T29: =T25*$B$29 -> 7782.013568 | U29: =U25*$B$29 -> 37994.53683 | W29: =W25*$B$29 -> 7612.83936 | X29: =X25*$B$29 -> 37168.56864 | Z29: =Z25*$B$29 -> 7443.665152 | AA29: =AA25*$B$29 -> 36342.60045 | AC29: =AC25*$B$29 -> 7274.490944 | AD29: =AD25*$B$29 -> 35516.63226
A30: Deemed Equity | B30: 0.4 | E30: =E25*$B$30 -> 0 | F30: =F25*$B$30 -> 0 | H30: =H25*$B$30 -> 2990.75832 | I30: =I25*$B$30 -> 14601.93768 | K30: =K25*$B$30 -> 5921.09728 | L30: =L25*$B$30 -> 28908.88672 | N30: =N25*$B$30 -> 5800.25856 | O30: =O25*$B$30 -> 28318.90944 | Q30: =Q25*$B$30 -> 5679.41984 | R30: =R25*$B$30 -> 27728.93216 | T30: =T25*$B$30 -> 5558.58112 | U30: =U25*$B$30 -> 27138.95488 | W30: =W25*$B$30 -> 5437.7424 | X30: =X25*$B$30 -> 26548.9776 | Z30: =Z25*$B$30 -> 5316.90368 | AA30: =AA25*$B$30 -> 25959.00032 | AC30: =AC25*$B$30 -> 5196.06496 | AD30: =AD25*$B$30 -> 25369.02304
A32: ST Interest | B32: 0.0208 | E32: =E28*$B$32 -> 0 | F32: =F28*$B$32 -> 0 | H32: =H28*$B$32 -> 6.220777306 | I32: =I28*$B$32 -> 30.37203037 | K32: =K28*$B$32 -> 12.31588234 | L32: =L28*$B$32 -> 60.13048438 | N32: =N28*$B$32 -> 12.0645378 | O32: =O28*$B$32 -> 58.90333164 | Q32: =Q28*$B$32 -> 11.81319327 | R32: =R28*$B$32 -> 57.67617889 | T32: =T28*$B$32 -> 11.56184873 | U32: =U28*$B$32 -> 56.44902615 | W32: =W28*$B$32 -> 11.31050419 | X32: =X28*$B$32 -> 55.22187341 | Z32: =Z28*$B$32 -> 11.05915965 | AA32: =AA28*$B$32 -> 53.99472067 | AC32: =AC28*$B$32 -> 10.80781512 | AD32: =AD28*$B$32 -> 52.76756792
A33: LT Interest | B33: 0.0378 | E33: =E29*$B$33 -> 0 | F33: =F29*$B$33 -> 0 | H33: =H29*$B$33 -> 158.2709303 | I33: =I29*$B$33 -> 772.734542 | K33: =K29*$B$33 -> 313.3444681 | L33: =L29*$B$33 -> 1529.858285 | N33: =N29*$B$33 -> 306.949683 | O33: =O29*$B$33 -> 1498.636688 | Q33: =Q29*$B$33 -> 300.5548979 | R33: =R29*$B$33 -> 1467.41509 | T33: =T29*$B$33 -> 294.1601129 | U33: =U29*$B$33 -> 1436.193492 | W33: =W29*$B$33 -> 287.7653278 | X33: =X29*$B$33 -> 1404.971895 | Z33: =Z29*$B$33 -> 281.3705427 | AA33: =AA29*$B$33 -> 1373.750297 | AC33: =AC29*$B$33 -> 274.9757577 | AD33: =AD29*$B$33 -> 1342.528699
A34: ROE | B34: 0.0893 | E34: =E30*$B$34 -> 0 | F34: =F30*$B$34 -> 0 | H34: =H30*$B$34 -> 267.074718 | I34: =I30*$B$34 -> 1303.953035 | K34: =K30*$B$34 -> 528.7539871 | L34: =L30*$B$34 -> 2581.563584 | N34: =N30*$B$34 -> 517.9630894 | O34: =O30*$B$34 -> 2528.878613 | Q34: =Q30*$B$34 -> 507.1721917 | R34: =R30*$B$34 -> 2476.193642 | T34: =T30*$B$34 -> 496.381294 | U34: =U30*$B$34 -> 2423.508671 | W34: =W30*$B$34 -> 485.5903963 | X34: =X30*$B$34 -> 2370.8237 | Z34: =Z30*$B$34 -> 474.7994986 | AA34: =AA30*$B$34 -> 2318.138729 | AC34: =AC30*$B$34 -> 464.0086009 | AD34: =AD30*$B$34 -> 2265.453757
A35: Cost of Capital Total | E35: =SUM(E32:E34) -> 0 | F35: =SUM(F32:F34) -> 0 | H35: =SUM(H32:H34) -> 431.5664256 | I35: =SUM(I32:I34) -> 2107.059607 | K35: =SUM(K32:K34) -> 854.4143375 | L35: =SUM(L32:L34) -> 4171.552354 | N35: =SUM(N32:N34) -> 836.9773102 | O35: =SUM(O32:O34) -> 4086.418632 | Q35: =SUM(Q32:Q34) -> 819.5402829 | R35: =SUM(R32:R34) -> 4001.284911 | T35: =SUM(T32:T34) -> 802.1032556 | U35: =SUM(U32:U34) -> 3916.151189 | W35: =SUM(W32:W34) -> 784.6662283 | X35: =SUM(X32:X34) -> 3831.017468 | Z35: =SUM(Z32:Z34) -> 767.229201 | AA35: =SUM(AA32:AA34) -> 3745.883746 | AC35: =SUM(AC32:AC34) -> 749.7921737 | AD35: =SUM(AD32:AD34) -> 3660.750025
A37: OM&A | E37: =E22+E23 -> 0 | F37: =F23 -> 0 | H37: =H22+H23 -> 0 | I37: =I23 -> 0 | K37: =K22+K23 -> 0 | L37: =L23 -> 0 | N37: =N22+N23 -> 0 | O37: =O23 -> 0 | Q37: =Q22+Q23 -> 0 | R37: =R23 -> 0 | T37: =T22+T23 -> 0 | U37: =U23 -> 0 | W37: =W22+W23 -> 0 | X37: =X23 -> 0 | Z37: =Z22+Z23 -> 0 | AA37: =AA23 -> 0 | AC37: =AC22+AC23 -> 0 | AD37: =AD23 -> 0
A38: Amortization | D38: =D78 -> 0 | E38: =D38*E$20 -> 0 | F38: =D38*F$20 -> 0 | G38: =E78 -> 888.52 | H38: =G38*H$20 -> 151.0484 | I38: =G38*I$20 -> 737.4716 | J38: =F78 -> 2665.56 | K38: =J38*K$20 -> 453.1452 | L38: =J38*L$20 -> 2212.4148 | M38: =G78 -> 4442.6 | N38: =M38*N$20 -> 755.242 | O38: =M38*O$20 -> 3687.358 | P38: =H76+H77 -> 1777.04 | Q38: =P38*Q$20 -> 302.0968 | R38: =P38*R$20 -> 1474.9432 | S38: =I76+I77 -> 1777.04 | T38: =S38*T$20 -> 302.0968 | U38: =S38*U$20 -> 1474.9432 | V38: =J76+J77 -> 1777.04 | W38: =V38*W$20 -> 302.0968 | X38: =V38*X$20 -> 1474.9432 | Y38: =K76+K77 -> 1777.04 | Z38: =Y38*Z$20 -> 302.0968 | AA38: =Y38*AA$20 -> 1474.9432 | AB38: =L76+L77 -> 1777.04 | AC38: =AB38*AC$20 -> 302.0968 | AD38: =AB38*AD$20 -> 1474.9432
A39: Grossed-up PILs | E39: =E66 -> 0 | F39: =F66 -> 0 | H39: =H66 -> -67.08663638 | I39: =I66 -> -327.5406364 | K39: =K66 -> -64.23186272 | L39: =L66 -> -313.6026239 | N39: =N66 -> 74.25679089 | O39: =O66 -> 362.5478614 | Q39: =Q66 -> -62.22949114 | R39: =R66 -> -303.8263391 | T39: =T66 -> -37.79954718 | U39: =U66 -> -184.5507303 | W39: =W66 -> -15.63524639 | X39: =X66 -> -76.33679121 | Z39: =Z66 -> 4.444662669 | AA39: =AA66 -> 21.70041185 | AC39: =AC66 -> 22.60693134 | AD39: =AD66 -> 110.3750177
A41: Revenue Requirement | E41: =SUM(E35:E39) -> 0 | F41: =SUM(F35:F39) -> 0 | H41: =SUM(H35:H39) -> 515.5281892 | I41: =SUM(I35:I39) -> 2516.990571 | K41: =SUM(K35:K39) -> 1243.327675 | L41: =SUM(L35:L39) -> 6070.36453 | N41: =SUM(N35:N39) -> 1666.476101 | O41: =SUM(O35:O39) -> 8136.324494 | Q41: =SUM(Q35:Q39) -> 1059.407592 | R41: =SUM(R35:R39) -> 5172.401772 | T41: =SUM(T35:T39) -> 1066.400508 | U41: =SUM(U35:U39) -> 5206.543659 | W41: =SUM(W35:W39) -> 1071.127782 | X41: =SUM(X35:X39) -> 5229.623876 | Z41: =SUM(Z35:Z39) -> 1073.770664 | AA41: =SUM(AA35:AA39) -> 5242.527358 | AC41: =SUM(AC35:AC39) -> 1074.495905 | AD41: =SUM(AD35:AD39) -> 5246.068242
A44: Provincial Rate Protection | F44: =F41 -> 0 | I44: =I41 -> 2516.990571 | L44: =L41 -> 6070.36453 | O44: =O41 -> 8136.324494 | R44: =R41 -> 5172.401772 | U44: =U41 -> 5206.543659 | X44: =X41 -> 5229.623876 | AA44: =AA41 -> 5242.527358 | AD44: =AD41 -> 5246.068242
A46: Monthly Amount Paid by IESO | F46: =F44/12 -> 0 | I46: =I44/12 -> 209.7492142 | L46: =L44/12 -> 505.8637108 | O46: =O44/12 -> 678.0270411 | R46: =R44/12 -> 431.033481 | U46: =U44/12 -> 433.8786382 | X46: =X44/12 -> 435.8019897 | AA46: =AA44/12 -> 436.8772798 | AD46: =AD44/12 -> 437.1723535
A48: Note 1: The difference between the actual costs of approved eligible investments and revenue received from the IESO should be recorded in a variance account. The Board may provide
A49: regulatory accounting guidance regarding a variance account either in an individual proceeding or on a generic basis.
A50: Note 2: For the 2016 Test Year, Costs and Revenues of the Direct Benefit are to be included in the test year applicant Rate Base and Revenues.
A52: PILs Calculation
E53: =D18 -> 2013 | H53: =G18 -> 2014 | K53: =J18 -> 2015 | N53: =M18 -> 2016 | Q53: =P18 -> 2017 Test Year | T53: =S18 -> 2018 | W53: =V18 -> 2019 | Z53: =Y18 -> 2020 | AC53: =AB18 -> 2021
A54: Income Tax | E54: Direct Benefit | F54: Provincial | H54: Direct Benefit | I54: Provincial | K54: Direct Benefit | L54: Provincial | N54: Direct Benefit | O54: Provincial | Q54: Direct Benefit | R54: Provincial | T54: Direct Benefit | U54: Provincial | W54: Direct Benefit | X54: Provincial | Z54: Direct Benefit | AA54: Provincial | AC54: Direct Benefit | AD54: Provincial
V55: Total | Y55: Total | AB55: Total
A56: Net Income - ROE on Rate Base | E56: =E34 -> 0 | F56: =F34 -> 0 | H56: =H34 -> 267.074718 | I56: =I34 -> 1303.953035 | K56: =K34 -> 528.7539871 | L56: =L34 -> 2581.563584 | N56: =N34 -> 517.9630894 | O56: =O34 -> 2528.878613 | Q56: =Q34 -> 507.1721917 | R56: =R34 -> 2476.193642 | T56: =T34 -> 496.381294 | U56: =U34 -> 2423.508671 | W56: =W34 -> 485.5903963 | X56: =X34 -> 2370.8237 | Z56: =Z34 -> 474.7994986 | AA56: =AA34 -> 2318.138729 | AC56: =AC34 -> 464.0086009 | AD56: =AD34 -> 2265.453757
A57: Amortization (17% DB and 83% P) | E57: =E38 -> 0 | F57: =F38 -> 0 | H57: =H38 -> 151.0484 | I57: =I38 -> 737.4716 | K57: =K38 -> 453.1452 | L57: =L38 -> 2212.4148 | N57: =N38 -> 755.242 | O57: =O38 -> 3687.358 | Q57: =Q38 -> 302.0968 | R57: =R38 -> 1474.9432 | T57: =T38 -> 302.0968 | U57: =U38 -> 1474.9432 | W57: =W38 -> 302.0968 | X57: =X38 -> 1474.9432 | Z57: =Z38 -> 302.0968 | AA57: =AA38 -> 1474.9432 | AC57: =AC38 -> 302.0968 | AD57: =AD38 -> 1474.9432
A58: CCA (17% DB and 83% P) | E58: =-D94*E$20 -> 0 | F58: =-D94*F$20 -> 0 | H58: =-E94*H$20 -> -604.1936 | I58: =-E94*I$20 -> -2949.8864 | K58: =-F94*K$20 -> -1160.051712 | L58: =-F94*L$20 -> -5663.781888 | N58: =-G94*N$20 -> -1067.247575 | O58: =-G94*O$20 -> -5210.679337 | Q58: =-H94*Q$20 -> -981.867769 | R58: =-H94*R$20 -> -4793.82499 | T58: =-I94*T$20 -> -903.3183475 | U58: =-I94*U$20 -> -4410.318991 | W58: =-J94*W$20 -> -831.0528797 | X58: =-J94*X$20 -> -4057.493472 | Z58: =-K94*Z$20 -> -764.5686493 | AA58: =-K94*AA$20 -> -3732.893994 | AC58: =-L94*AC$20 -> -703.4031574 | AD58: =-L94*AD$20 -> -3434.262474
A59: Taxable income | E59: =SUM(E56:E58) -> 0 | F59: =SUM(F56:F58) -> 0 | H59: =SUM(H56:H58) -> -186.070482 | I59: =SUM(I56:I58) -> -908.4617652 | K59: =SUM(K56:K58) -> -178.1525249 | L59: =SUM(L56:L58) -> -869.8035039 | N59: =SUM(N56:N58) -> 205.9575144 | O59: =SUM(O56:O58) -> 1005.557276 | Q59: =SUM(Q56:Q58) -> -172.5987773 | R59: =SUM(R56:R58) -> -842.6881481 | T59: =SUM(T56:T58) -> -104.8402535 | U59: =SUM(U56:U58) -> -511.86712 | W59: =SUM(W56:W58) -> -43.36568339 | X59: =SUM(X56:X58) -> -211.7265719 | Z59: =SUM(Z56:Z58) -> 12.32764929 | AA59: =SUM(AA56:AA58) -> 60.18793476 | AC59: =SUM(AC56:AC58) -> 62.70224354 | AD59: =SUM(AD56:AD58) -> 306.1344832
A61: Tax Rate (to be entered) | E61: 0.265 | F61: 0.265 | H61: 0.265 | I61: 0.265 | K61: 0.265 | L61: 0.265 | N61: 0.265 | O61: 0.265 | Q61: 0.265 | R61: 0.265 | T61: 0.265 | U61: 0.265 | W61: 0.265 | X61: 0.265 | Z61: 0.265 | AA61: 0.265 | AC61: 0.265 | AD61: 0.265
A63: Income Taxes Payable | E63: =E59*E61 -> 0 | F63: =F59*F61 -> 0 | H63: =H59*H61 -> -49.30867774 | I63: =I59*I61 -> -240.7423678 | K63: =K59*K61 -> -47.2104191 | L63: =L59*L61 -> -230.4979285 | N63: =N59*N61 -> 54.57874131 | O63: =O59*O61 -> 266.4726781 | Q63: =Q59*Q61 -> -45.73867599 | R63: =R59*R61 -> -223.3123593 | T63: =T59*T61 -> -27.78266718 | U63: =U59*U61 -> -135.6447868 | W63: =W59*W61 -> -11.4919061 | X63: =X59*X61 -> -56.10754154 | Z63: =Z59*Z61 -> 3.266827061 | AA63: =AA59*AA61 -> 15.94980271 | AC63: =AC59*AC61 -> 16.61609454 | AD63: =AD59*AD61 -> 81.12563804
A64: Gross Up
A65: Income Taxes Payable | E65: =E63/(1-E61) -> 0 | F65: =F63/(1-F61) -> 0 | H65: =H63/(1-H61) -> -67.08663638 | I65: =I63/(1-I61) -> -327.5406364 | K65: =K63/(1-K61) -> -64.23186272 | L65: =L63/(1-L61) -> -313.6026239 | N65: =N63/(1-N61) -> 74.25679089 | O65: =O63/(1-O61) -> 362.5478614 | Q65: =Q63/(1-Q61) -> -62.22949114 | R65: =R63/(1-R61) -> -303.8263391 | T65: =T63/(1-T61) -> -37.79954718 | U65: =U63/(1-U61) -> -184.5507303 | W65: =W63/(1-W61) -> -15.63524639 | X65: =X63/(1-X61) -> -76.33679121 | Z65: =Z63/(1-Z61) -> 4.444662669 | AA65: =AA63/(1-AA61) -> 21.70041185 | AC65: =AC63/(1-AC61) -> 22.60693134 | AD65: =AD63/(1-AD61) -> 110.3750177
A66: Grossed Up PILs | E66: =SUM(E65:E65) -> 0 | F66: =SUM(F65:F65) -> 0 | H66: =SUM(H65:H65) -> -67.08663638 | I66: =SUM(I65:I65) -> -327.5406364 | K66: =SUM(K65:K65) -> -64.23186272 | L66: =SUM(L65:L65) -> -313.6026239 | N66: =SUM(N65:N65) -> 74.25679089 | O66: =SUM(O65:O65) -> 362.5478614 | Q66: =SUM(Q65:Q65) -> -62.22949114 | R66: =SUM(R65:R65) -> -303.8263391 | T66: =SUM(T65:T65) -> -37.79954718 | U66: =SUM(U65:U65) -> -184.5507303 | W66: =SUM(W65:W65) -> -15.63524639 | X66: =SUM(X65:X65) -> -76.33679121 | Z66: =SUM(Z65:Z65) -> 4.444662669 | AA66: =SUM(AA65:AA65) -> 21.70041185 | AC66: =SUM(AC65:AC65) -> 22.60693134 | AD66: =SUM(AD65:AD65) -> 110.3750177
A69: Net Fixed Assets | D69: 2011 | E69: 2012 | F69: 2013 | G69: 2014 | H69: 2015 | I69: 2016 | J69: 2017 | K69: 2018 | L69: 2019
B70: Enter applicable amortization in years: | C70: 50
A71: Opening Gross Fixed Assets | E71: =D73 -> 0 | F71: 88852 | G71: 88852 | H71: 88852 | I71: 88852 | J71: 88852 | K71: 88852 | L71: 88852
A72: Gross Capital Additions | D72: ='App.2-FA Proposed REG Invest.'!C99 -> 0 | E72: ='App.2-FA Proposed REG Invest.'!D99 -> 88852 | F72: ='App.2-FA Proposed REG Invest.'!E99 -> 0 | G72: ='App.2-FA Proposed REG Invest.'!F99 -> 0 | H72: ='App.2-FA Proposed REG Invest.'!G99 -> 0 | I72: ='App.2-FA Proposed REG Invest.'!H99 -> 0 | J72: ='App.2-FA Proposed REG Invest.'!I99 -> 0 | K72: ='App.2-FA Proposed REG Invest.'!J99 -> 0 | L72: ='App.2-FA Proposed REG Invest.'!K99 -> 0
A73: Closing Gross Fixed Assets | D73: =SUM(D71:D72) -> 0 | E73: 88852 | F73: 88852 | G73: 88852 | H73: 88852 | I73: 88852 | J73: 88852 | K73: 88852 | L73: 88852
A75: Opening Accumulated Amortization | E75: =+D78 -> 0 | F75: =E78 -> 888.52 | G75: 2665.56 | H75: 4442.6 | I75: 6219.64 | J75: 7996.68 | K75: 9773.72 | L75: 11550.76
A76: Current Year Amortization (before additions) | E76: =IF(ISERROR(E71/$C$70), 0, E71/$C$70) -> 0 | F76: =IF(ISERROR(F71/$C$70), 0, F71/$C$70) -> 1777.04 | G76: =IF(ISERROR(G71/$C$70), 0, G71/$C$70) -> 1777.04 | H76: =H71/$C$70 -> 1777.04 | I76: =I71/$C$70 -> 1777.04 | J76: =J71/$C$70 -> 1777.04 | K76: =K71/$C$70 -> 1777.04 | L76: =L71/$C$70 -> 1777.04
A77: Additions (half year) | D77: =D72/C70/2 -> 0 | E77: =E72/C70/2 -> 888.52 | F77: =F72/C70/2 -> 0 | G77: =G72/C70/2 -> 0 | H77: =H72/C70/2 -> 0 | I77: =I72/C70/2 -> 0 | J77: =J72/C70/2 -> 0 | K77: =K72/C70/2 -> 0 | L77: =L72/C70/2 -> 0
A78: Closing Accumulated Amortization | D78: =SUM(D75+D77) -> 0 | E78: =SUM(E75:E77) -> 888.52 | F78: 2665.56 | G78: 4442.6 | H78: 6219.64 | I78: 7996.68 | J78: 9773.72 | K78: 11550.76 | L78: 13327.8
A80: Opening Net Fixed Assets | D80: =D71-D75 -> 0 | E80: =E71-E75 -> 0 | F80: =F71-F75 -> 87963.48 | G80: =G71-G75 -> 86186.44 | H80: =G81 -> 84409.4 | I80: =H81 -> 82632.36 | J80: =I81 -> 80855.32 | K80: =J81 -> 79078.28 | L80: =K81 -> 77301.24
A81: Closing Net Fixed Assets | D81: =D73-D78 -> 0 | E81: 87963.48 | F81: 86186.44 | G81: 84409.4 | H81: 82632.36 | I81: 80855.32 | J81: 79078.28 | K81: 77301.24 | L81: 75524.2
A82: Average Net Fixed Assets | D82: =SUM(D80:D81)/2 -> 0 | E82: 43981.74 | F82: 87074.96 | G82: 85297.92 | H82: 83520.88 | I82: 81743.84 | J82: 79966.8 | K82: 78189.76 | L82: 76412.72
A84: UCC for PILs Calculation
D85: 2014 | E85: 2014 | F85: 2014 | G85: 2014 | H85: 2015 | I85: 2016 | J85: 2017 | K85: 2018 | L85: 2019
A87: Opening UCC | E87: =D95 -> 0 | F87: 85297.92 | G87: 78474.0864 | H87: 72196.15949 | I87: 66420.46673 | J87: 61106.82939 | K87: 56218.28304 | L87: 51720.8204
A88: Capital Additions (from Appendix 2-FA) | D88: =D72 -> 0 | E88: 88852 | F88: 0 | G88: 0 | H88: 0 | I88: 0 | J88: 0 | K88: 0 | L88: 0
A89: UCC Before Half Year Rule | D89: =SUM(D87:D88) -> 0 | E89: 88852 | F89: 85297.92 | G89: 78474.0864 | H89: 72196.15949 | I89: 66420.46673 | J89: 61106.82939 | K89: 56218.28304 | L89: 51720.8204
A90: Half Year Rule (1/2 Additions - Disposals) | D90: =D88/2 -> 0 | E90: 44426 | F90: 0 | G90: 0 | H90: 0 | I90: 0 | J90: 0 | K90: 0 | L90: 0
A91: Reduced UCC | D91: =D89-D90 -> 0 | E91: 44426 | F91: 85297.92 | G91: 78474.0864 | H91: 72196.15949 | I91: 66420.46673 | J91: 61106.82939 | K91: 56218.28304 | L91: 51720.8204
A92: CCA Rate Class (to be entered) | C92: 47 | D92: =$C$92 -> 47 | E92: =$C$92 -> 47 | F92: 47 | G92: 47 | H92: 47 | I92: 47 | J92: 47 | K92: 47 | L92: 47
A93: CCA Rate (to be entered) | C93: 0.08 | D93: =$C$93 -> 0.08 | E93: =$C$93 -> 0.08 | F93: 0.08 | G93: 0.08 | H93: 0.08 | I93: 0.08 | J93: 0.08 | K93: 0.08 | L93: 0.08
A94: CCA | D94: =D91*D$93 -> 0 | E94: 3554.08 | F94: 6823.8336 | G94: 6277.926912 | H94: 5775.692759 | I94: 5313.637338 | J94: 4888.546351 | K94: 4497.462643 | L94: 4137.665632
A95: Closing UCC | D95: =D89-D94 -> 0 | E95: 85297.92 | F95: 78474.0864 | G95: 72196.15949 | H95: 66420.46673 | I95: 61106.82939 | J95: 56218.28304 | K95: 51720.8204 | L95: 47583.15476

Sheet App.2-G SQI
M1: File Number: | O1: =EBNUMBER -> EB-2016-0110
M2: Exhibit: | O2: 2
M3: Tab:
M4: Schedule:
M5: Page: | O5: 64
M7: Date: | O7: 2016-10-28
A9: Appendix 2-G
A10: Service Reliability and Quality Indicators
A11: 2011 - 2015
A13: Service Reliability
A15: Index | B15: Including outages caused by loss of supply | G15: Excluding outages caused by loss of supply | L15: Excluding Major Event Days
B16: =TestYear-6 -> 2011 | C16: =TestYear-5 -> 2012 | D16: =TestYear-4 -> 2013 | E16: =TestYear-3 -> 2014 | F16: =TestYear-2 -> 2015 | G16: =B16 -> 2011 | H16: 2012 | I16: 2013 | J16: 2014 | K16: 2015 | L16: 2011 | M16: 2012 | N16: 2013 | O16: 2014 | P16: 2015
A17: SAIDI | B17: 2.84 | C17: 1.26 | D17: 4.99 | E17: 1.53 | F17: 1.95 | G17: 2.84 | H17: 1.26 | I17: 4.86 | J17: 1.53 | K17: 1.74 | L17: 1.66 | M17: 1.26 | N17: 0.98 | O17: 1.53 | P17: 1.74
A18: SAIFI | B18: 1.92 | C18: 1.33 | D18: 3.6 | E18: 1.76 | F18: 1.68 | G18: 1.92 | H18: 1.33 | I18: 2.34 | J18: 1.76 | K18: 1.39 | L18: 1.29 | M18: 1.33 | N18: 1.14 | O18: 1.76 | P18: 1.39
A20: 5 Year Historical Average
A21: SAIDI | F21: =IF(ISERROR(AVERAGE(B17:F17)), "", AVERAGE(B17:F17)) -> 2.514 | K21: =IF(ISERROR(AVERAGE(G17:K17)), "", AVERAGE(G17:K17)) -> 2.446 | P21: =IF(ISERROR(AVERAGE(L17:P17)), "", AVERAGE(L17:P17)) -> 1.434
A22: SAIFI | F22: =IF(ISERROR(AVERAGE(B18:F18)), "", AVERAGE(B18:F18)) -> 2.058 | K22: =IF(ISERROR(AVERAGE(G18:K18)), "", AVERAGE(G18:K18)) -> 1.748 | P22: =IF(ISERROR(AVERAGE(L18:P18)), "", AVERAGE(L18:P18)) -> 1.382
A24: SAIDI = System Average Interruption Duration Index
A25: SAIFI = System Average Interruption Frequency Index
A27: Service Quality
A29: Indicator | E29: OEB Minimum Standard | G29: =B16 -> 2011 | H29: =C16 -> 2012 | I29: =D16 -> 2013 | J29: =E16 -> 2014 | K29: =F16 -> 2015
A30: Low Voltage Connections | E30: 0.9 | G30: 1 | H30: 1 | I30: 1 | J30: 0.94 | K30: 1
A31: High Voltage Connections | E31: 0.9 | G31: N/A | H31: N/A | I31: N/A | J31: N/A | K31: N/A
A32: Telephone Accessibility | E32: 0.65 | G32: 0.999 | H32: 0.984 | I32: 0.99 | J32: 0.969 | K32: 0.9851
A33: Appointments Met | E33: 0.9 | G33: 0.997 | H33: 0.997 | I33: 0.994 | J33: 0.997 | K33: 0.985
A34: Written Response to Enquires | E34: 0.8 | G34: 1 | H34: 1 | I34: 1 | J34: 1 | K34: 1
A35: Emergency Urban Response | E35: 0.8 | G35: 1 | H35: 1 | I35: 1 | J35: 1 | K35: 1
A36: Emergency Rural Response | E36: 0.8 | G36: N/A | H36: N/A | I36: N/A | J36: N/A | K36: N/A
A37: Telephone Call Abandon Rate | E37: 0.1 | G37: 0.0143 | H37: 0.0149 | I37: 0.0171 | J37: 0.0235 | K37: 0.0093
A38: Appointment Scheduling | E38: 0.9 | G38: 1 | H38: 1 | I38: 0.9983 | J38: 0.955 | K38: 0.94
A39: Rescheduling a Missed Appointment | E39: 1 | G39: 1 | H39: 1 | I39: 1 | J39: 1 | K39: 1
A40: Reconnection Performance Standard | E40: 0.85 | G40: 1 | H40: 1 | I40: 1 | J40: 1 | K40: 1

Sheet App.2-H_Other_Oper_Rev
J1: File Number: | K1: =EBNUMBER -> EB-2016-0110
J2: Exhibit: | K2: 3
J3: Tab:
J4: Schedule:
J5: Page: | K5: 32
J7: Date: | K7: 2016-10-28
A9: Appendix 2-H
A10: Other Operating Revenue
A12: USoA # | B12: USoA Description | C12: 2011 Actual | D12: 2012 Actual | E12: 2013 COS | F12: =I13-2 & " Actual" -> 2013 Actual | G12: =I13-1 & " Actual" -> 2014 Actual | H12: =I13 & " Actual" & CHAR(178) -> 2015 Actual² | I12: ="Actual Year" & CHAR(178) -> Actual Year² | J12: ="Bridge Year" & CHAR(178) -> Bridge Year² | K12: Test Year
C13: 2011 | D13: 2012 | E13: 2013 | F13: =G13-1 -> 2013 | G13: =H13-1 -> 2014 | H13: =I13 -> 2015 | I13: =J13-1 -> 2015 | J13: =BridgeYear -> 2016 | K13: =TestYear -> 2017
B14: Reporting Basis | C14: CGAAP | D14: CGAAP | E14: CGAAP | F14: CGAAP | G14: MIFRS | H14: MIFRS | I14: MIFRS | J14: MIFRS | K14: MIFRS
A15: 4235 | B15: Account Status Fees | C15: 1798 | D15: 1480 | E15: 2143 | F15: 976 | G15: 1113 | H15: 1078 | I15: 1078 | J15: 1096 | K15: 1096
A16: 4235 | B16: NSF Charges | C16: 4515 | D16: 4770 | E16: 4253 | F16: 4485 | G16: 4200 | H16: 3768 | I16: 3768 | J16: 3984 | K16: 3984
A17: 4235 | B17: Occupancy Related | C17: 93305 | D17: 100020 | E17: 95564 | F17: 100770 | G17: 105746 | H17: 102780 | I17: 102780 | J17: 104263 | K17: 104263
A18: 4235 | B18: Disconnect/Reconnect | C18: 14440 | D18: 21880 | E18: 19622 | F18: 56260 | G18: 54828 | H18: 50047 | I18: 50047 | J18: 52438 | K18: 52438
A19: 4235 | B19: Markup Work Orders | C19: 43354 | D19: 31799 | E19: 34193 | F19: 23474 | G19: 25878 | H19: 30217 | I19: 30217 | J19: 28048 | K19: 28048
A20: 4235 | B20: Total Specific Service Charges | C20: =SUM(C15:C19) -> 157412 | D20: 159949 | E20: =SUM(E15:E19) -> 155775 | F20: 185965 | G20: 191765 | H20: 187890 | I20: 187890 | J20: 189829 | K20: 189829
A21: 4225 | B21: Late Payment Charges | C21: 143690 | D21: 69590 | E21: 71971 | F21: 63356 | G21: 74709 | H21: 72853 | I21: 72853 | J21: 73781 | K21: 73781
A22: 4082 | B22: Retail Services Revenues | C22: 30135 | D22: 23854 | E22: 20515 | F22: 20155 | G22: 18745 | H22: 17071 | I22: 17071 | J22: 10339 | K22: 10339
A23: 4084 | B23: Service Trans Revenues | C23: 789 | D23: 757 | E23: 789 | F23: 498 | G23: 479 | H23: 377 | I23: 377 | J23: 377 | K23: 377
A24: 4086 | B24: SSA Administration | C24: 59382 | D24: 62206 | E24: 61575 | F24: 63829 | G24: 64764 | H24: 65515 | I24: 65515 | J24: 66156 | K24: 66774
A25: 4086 | B25: SSA Administration-Microfits | C25: 0 | D25: 891 | E25: 1425 | F25: 1876 | G25: 2840 | H25: 3398 | I25: 3398 | J25: 4536 | K25: 10800
A26: 4210 | B26: Rent from Property-Poles | C26: 130085 | D26: 129990 | E26: 129990 | F26: 130448 | G26: 130672 | H26: 139958 | I26: 139958 | J26: 139958 | K26: 139958
A27: 4210 | B27: Rent from Property-Buildings | C27: 21466 | D27: 22064 | E27: 22679 | F27: 22617 | G27: 23180 | H27: 23644 | I27: 23644 | J27: 24117 | K27: 24599
B28: Other Operating Revenue | C28: =SUM(C22:C27) -> 241857 | D28: 239762 | E28: =SUM(E22:E27) -> 236973 | F28: 239423 | G28: 240680 | H28: 249963 | I28: 249963 | J28: 245483 | K28: 252847
A29: 4305 | B29: Regulatory Credits | C29: 0 | D29: -573531 | E29: 0 | F29: 95589 | G29: 143387 | H29: 143382 | I29: 143382 | J29: 143382 | K29: 0
A30: 4355 | B30: Gain/(Loss) Sale of Assets | C30: 14409 | D30: 14455 | E30: 7911 | F30: 10119 | G30: 16672 | H30: 184 | I30: 184 | J30: 8428 | K30: 8428
A31: 4355 | B31: Gain/(Loss) Early Retired Assets | C31: 0 | D31: 0 | E31: 0 | F31: 0 | G31: 0 | H31: 0 | I31: 0 | J31: 0 | K31: -29320
A32: 4390 | B32: Scrap Metal Sales | C32: 9812 | D32: 29327 | E32: 16570 | F32: 33853 | G32: 26543 | H32: 23992 | I32: 23992 | J32: 25268 | K32: 25268
A33: 4390 | B33: Miscellaneous | C33: 8023 | D33: 3488 | E33: 9657 | F33: 4277 | G33: 4713 | H33: 3909 | I33: 3909 | J33: 4311 | K33: 4311
A34: 4405 | B34: Interest Income | C34: 104122 | D34: 97760 | E34: 76143 | F34: 102840 | G34: 48265 | H34: 38381 | I34: 38381 | J34: 9811 | K34: 4906
B35: Other Income or Deductions | C35: =SUM(C29:C34) -> 136366 | D35: -428501 | E35: 110281 | F35: 246678 | G35: 239580 | H35: 209848 | I35: 209848 | J35: 191200 | K35: 13593
A37: Specific Service Charges | C37: =C20 -> 157412 | D37: 159949 | E37: 155775 | F37: 185965 | G37: 191765 | H37: 187890 | I37: 187890 | J37: 189829 | K37: 189829
A38: Late Payment Charges | C38: =C21 -> 143690 | D38: 69590 | E38: 71971 | F38: 63356 | G38: 74709 | H38: 72853 | I38: 72853 | J38: 73781 | K38: 73781
A39: Other Operating Revenues | C39: =C28 -> 241857 | D39: 239762 | E39: 236973 | F39: 239423 | G39: 240680 | H39: 249963 | I39: 249963 | J39: 245483 | K39: 252847
A40: Other Income or Deductions | C40: =C35 -> 136366 | D40: -428501 | E40: =E35 -> 110281 | F40: 246678 | G40: 239580 | H40: 209848 | I40: 209848 | J40: 191200 | K40: 13593
A41: Total | C41: =SUM(C37:C40) -> 679325 | D41: 40800 | E41: =SUM(E37:E40) -> 575000 | F41: 735422 | G41: 746734 | H41: 720554 | I41: 720554 | J41: 700293 | K41: 530050
A43: Description | F43: Account(s)
A44: Specific Service Charges: | F44: 4235
A45: Late Payment Charges: | F45: 4225
A46: Other Distribution Revenues: | F46: 4080, 4082, 4084, 4090, 4205, 4210, 4215, 4220, 4240, 4245
A47: Other Income and Expenses: | F47: 4305, 4310, 4315, 4320, 4325, 4330, 4335, 4340, 4345, 4350, 4355, 4360, 4365, 4370, 4375, 4380, 4385, 4390, 4395, 4398, 4405, 4415
A50: Note: Add all applicable accounts listed above to the table and include all relevant information.
A52: Account Breakdown Details
A54: For each "Other Operating Revenue" and "Other Income or Deductions" Account, a detailed breakdown of the account components is required. See the example below for Account 4405, Interest and Dividend Income.
A57: Account 4405 - Interest and Dividend Income
C58: 2011 Actual | D58: 2012 Actual | E58: 2013 Cos | F58: =F12 -> 2013 Actual | G58: 2014 Actual | H58: 2015 Actual² | I58: Actual Year² | J58: Bridge Year² | K58: Test Year
C59: 2011 | D59: 2012 | E59: 2013 | F59: 2013 | G59: 2014 | H59: 2015 | I59: =I13 -> 2015 | J59: =J13 -> 2016 | K59: =K13 -> 2017
A60: Reporting Basis | C60: =IF(C14=0, "", C14) -> CGAAP | D60: CGAAP | E60: CGAAP | F60: CGAAP | G60: MIFRS | H60: MIFRS | I60: MIFRS | J60: MIFRS | K60: MIFRS
A61: Short-term Investment Interest
A62: Bank Deposit Interest | C62: 97396 | D62: 82519 | E62: 76143 | F62: 83170 | G62: 34120 | H62: 29155 | I62: 29155 | J62: 9811 | K62: 4906
A63: Miscellaneous Interest Revenue | C63: 6726 | D63: 15241 | E63: 0 | F63: 0 | G63: 0 | H63: 0 | I63: 0 | J63: 0 | K63: 0
A64: RSVA Interest Income | F64: 19670 | G64: 14145 | H64: 9226 | I64: 9226
A66: Total | C66: =SUM(C61:C65) -> 104122 | D66: 97760 | E66: =SUM(E61:E65) -> 76143 | F66: =SUM(F61:F65) -> 102840 | G66: 48265 | H66: 38381 | I66: 38381 | J66: 9811 | K66: 4906
A69: Notes:
A70: 1 | B70: List and specify any other interest revenue.
A71: 2 | B71: In the transition year to IFRS, the applicant is to present information in both MIFRS and CGAAP. For the typical applicant that adopted IFRS on January 1, 2015, 2014 must be presented in both a CGAAP and MIFRS basis.

Sheet App_2-I LF_CDM
G1: File Number: | H1: =EBNUMBER -> EB-2016-0110
G2: Exhibit: | H2: 3
G3: Tab: | H3: Appendix 3-B
G4: Schedule:
G5: Page:
G7: Date: | H7: 2016-10-28
A9: Appendix 2-I
A10: Load Forecast CDM Adjustment Work Form (2017)
A12: Appendix 2-I was initially developed to help determine what would be the amount of CDM savings needed in each year to cumulatively achieve the four year 2011-2014 CDM target. This then determined the amount of kWh (and with translation, kW of demand) savings that were converted into dollar balances for the LRAMVA, and also to determine the related adjustment to the load forecast to account for OPA-reported savings. Beginning for the 2015 year, it has been adjusted because the persistence of 2011-2014 CDM programs will be an adjustment to the load forecast in addition to the estimated savings for the first year (2015) for the new 2015-2020 CDM plan.
A14: 2017 is the third year of the six-year (2015-2020) Conservation First program. Final results for the 2011-14 program were issued in the fall of 2015, and the program in completed, although in some instances disposition of the amounts has been deferred. For the purposes of the 2015-2020 LRAMVA, and the impact of CDM on the load forecast, CDM programs in 2014 and earlier are implicit in the historical data on which the base load forecast is developed. Only impacts of 2015 to 2017 CDM programs need to be reflected in the manual load forecast adjustment and for the LRAMVA threshold amount in 2017 and carrying forward, although the half-year impact of 2015 CDM programs on the 2015 historical data is also assumed to be reflected in the base load forecast.
A16: The new six year (2015-2020) CDM program works similarly to the previous 2011-2014 CDM program, meaning that distributors will offer programs each year that, over the six years (from January 1, 2015 to December 31, 2020) will strive to cumulatively achieve savings meeting the new six year CDM target. In other words, distributors will be able to offer and execute programs on a basis so that cumulatively over the period, the measured impacts, including persistence, of the CDM programs will accumulate towards achieving each distributor's 2015-2020 CDM target.
A18: 2015-2020 CDM Program - 2017, third year of the current CDM plan
A20: For the first year of the new 2015-2020 CDM plan, it is assumed that each year's program will achieve an equal amount of new CDM savings. The new targets for 2015-2020 do not take into account persistence beyond the first year, but the IESO will encourage distributors to promote and implement CDM plans that will have longer term persistence of savings. This results in each year's program being about 1/6 (18.67%) of the cumulative 2015-2020 CDM target for kWh savings. A distributor may propose an alternative approach but would be expected to document in its application why it believes that its proposal is more reasonable. In its proposal, the distributor should ensure that the sum of the results for each year's CDM program from 2015 to 2020 add up to its 2015-2020 CDM target as established by the IESO.
A22: 6 Year (2015-2020) kWh Target:
A23: 25500
B24: 2015 | C24: 2016 | D24: 2017 | E24: 2018 | F24: 2019 | G24: 2020 | H24: Total
A25: %
A26: 2015 CDM Programs | B26: =B34/$H$40 -> 0.1857235294 | C26: =C34/$H$40 -> 0 | D26: 0 | E26: 0 | F26: 0 | G26: 0 | H26: =SUM(B26:G26) -> 0.1857235294
A27: 2016 CDM Programs | C27: 0.1589803922 | D27: 0 | E27: 0 | F27: 0 | G27: 0 | H27: =SUM(B27:G27) -> 0.1589803922
A28: 2017 CDM Programs | D28: 0.1705882353 | E28: 0 | F28: 0 | G28: 0 | H28: =SUM(B28:G28) -> 0.1705882353
A29: 2018 CDM Programs | E29: 0.1693333333 | F29: 0 | G29: 0 | H29: =SUM(E29:G29) -> 0.1693333333
A30: 2019 CDM Programs | F30: 0.1692156863 | G30: 0 | H30: =SUM(F30:G30) -> 0.1692156863
A31: 2020 CDM Programs | G31: =G39/$H$40 -> 0.1461588235 | H31: =SUM(B31:G31) -> 0.1461588235
A32: Total in Year | B32: =SUM(B26:B31) -> 0.1857235294 | C32: =SUM(C26:C31) -> 0.1589803922 | D32: =SUM(D26:D31) -> 0.1705882353 | E32: =SUM(E26:E29) -> 0.1693333333 | F32: =SUM(F26:F30) -> 0.1692156863 | G32: =SUM(G26:G31) -> 0.1461588235 | H32: =SUM(B32:G32) -> 1
A33: kWh
A34: =A26 -> 2015 CDM Programs | B34: 4735.95 | H34: =SUM(B34:G34) -> 4735.95
A35: 2016 CDM Programs | C35: 4054 | E35: 0 | F35: 0 | G35: 0 | H35: =SUM(B35:G35) -> 4054 | K35: 2011 | L35: 2012 | M35: 2013 | N35: 2014
A36: 2017 CDM Programs | D36: 4350 | F36: 0 | G36: 0 | H36: =SUM(B36:G36) -> 4350 | J36: 2011 CDM Programs | K36: =50% -> 0.5 | L36: 1 | M36: 1 | N36: 1
A37: 2018 CDM Programs | E37: 4318 | G37: 0 | H37: =SUM(E37:G37) -> 4318 | J37: 2012 CDM Programs | L37: 0.5 | M37: 1 | N37: 1
A38: 2019 CDM Programs | F38: 4315 | H38: =SUM(F38:G38) -> 4315 | J38: 2013 CDM Programs | M38: 0.5 | N38: 1
A39: 2020 CDM Programs | G39: 3727.05 | H39: =SUM(B39:G39) -> 3727.05 | J39: 2014 CDM Programs | N39: 0.5
A40: Total in Year | B40: =SUM(B34:B39) -> 4735.95 | C40: =SUM(C34:C39) -> 4054 | D40: =SUM(D34:D39) -> 4350 | E40: =SUM(E34:E37) -> 4318 | F40: =SUM(F34:F38) -> 4315 | G40: =SUM(G34:G39) -> 3727.05 | H40: =SUM(H34:H39) -> 25500
A42: Note: The default formulae in the above table assume that 1/21 of the 2015-2020 kWh CDM target is required each year so that, including persistence, 100% of the kWh target is achieved by the end of 2020. The distributor can input the 2015 CDM savings, including persistence from 2016 to 2020, once the reports become available. The distributor can also input estimates or forecasts of the 2016 and 2017 CDM programs if it believes that these are more realistic; such information would typically be derived from the CDM plans that the distributor has filed with the IESO. Similarly, CDM savings and persistence into future years can be estimated for 2018, 2019 and 2020 CDM programs. However, the distributor will have to support its proposals for estimated or forecasted savings, particularly beyond the 2017 test year. The sum of cumulative savings, including persistence, should equal the target entered into cell A25. | H42: Total does not match 6 year CDM target
A44: Determination of 2017 Load Forecast Adjustment
A46: The Board determined that the "net" number should be used in its Decision and Order with respect to Centre Wellington Hydro Ltd.'s 2013 Cost of Service rates (EB-2012-0113). This approach has also been used in Settlement Agreements accepted by the Board in other 2013 and 2014 applications. The distributor should select whether the adjustment is done on a "net" or "gross" basis, but must support a proposal for the adjustment being done on a "gross" basis. Sheet 2-I defaults to the adjustment being done on a "net" basis consistent with Board policy and practice.
A48: From each of the 2006-2010 CDM Final Report, and the 2011, 2012, 2013, 2014 and 2015 CDM Final Reports, issued by the OPA/IESO for the distributor, the distributor should input the "gross" and "net" results of the cumulative CDM savings for 2014 into cells D84 to E88. The model will calculate the cumulative savings for all programs from 2006 to 2012 and determine the "net" to "gross" factor "g".
A50: Net-to-Gross Conversion
A52: Is CDM adjustment being done on a "net" or "gross" basis? | F52: net
C54: "Gross" | D54: "Net" | E54: Difference | F54: "Net-to-Gross" Conversion Factor
A55: Persistence of Historical CDM programs to 2015 | C55: kWh | D55: kWh | E55: kWh | F55: ('g')
A56: 2006-2010 CDM programs | E56: =IF(ISBLANK(D56),"",C56-D56) -> 
A57: 2011 CDM program
A58: 2012 CDM program
A59: 2013 CDM program
A60: 2014 CDM program
A61: 2015 CDM program
A62: 2006 to 2015 OPA CDM programs: Persistence to 2017 | C62: =SUM(C56:C61) -> 0 | D62: =SUM(D56:D61) -> 0 | E62: =C62-D62 -> 0 | F62: =IF(D62=0,0,IF(F52="net",0,E62/D62)) -> 0
A64: The default values below represent the factor used for how each year's CDM program is factored into the manual CDM adjustment. Distributors can choose alternative weights of "0", "0.5" or "1" from the drop-down menu for each cell, but must support its alternatives.
A66: These factors do not mean that CDM programs are excluded, but the assumption that impacts of previous year CDM programs are already implicitly reflected in the actual data for historical years that are used to derive the load forecast prior to any manual CDM adjustment for the 2017 test year.
A68: Weight Factor for Inclusion in CDM Adjustment to 2017 Load Forecast
B69: 2015 | C69: 2016 | D69: 2017 | E69: 2018 | F69: 2019 | G69: 2020
A70: Weight Factor for each year's CDM program impact on 2014 load forecast | B70: 0 | C70: 1 | D70: 0.5 | E70: 0 | F70: 0 | G70: 0 | H70: Distributor can select "0", "0.5", or "1" from drop-down list
A71: Default Value selection rationale. | B71: Default is 0, but one option is for full year impact of persistence of 2015 CDM programs on 2017 load forecast, but 50% impact in base forecast (first year impact of 2014 CDM programs on 2014 actuals, which is part of the data for the load forecast. | C71: Full year impact of persistence of 2015 programs on 2015 load forecast. 2015 CDM program impacts are not in the base forecast. | D71: Only 50% of 2016 CDM programs are assumed to impact the 2016 load forecast based on the "half-year" rule. | E71: 2018, 2019 and 2020 are future years beyond the 2017 test year. No impacts of CDM programs beyond the 2017 test year are factored into the test year load forecast.
A73: 2015-2020 LRAMVA and 2017 CDM adjustment to Load Forecast
A75: One manual adjustment for CDM impacts to the 2017 load forecast is made. There is a different but related threshold amount that is used for the 2017 LRAMVA amount for Account 1568.
A77: The Amount used for the CDM threshold of the LRAMVA is the kWh that will be used to determine the base amount for the LRAMVA balance for 2017, for assessing performance against the five-year target.
A79: If used to determine the manual CDM adjustment for the system purchased kWh, the proposed loss factor should correspond with the proposed total loss factor calculated in Appendix 2-R
A81: The Manual Adjustment for the 2017 Load Forecast is the amount manually subtracted from the system-wide load forecast (either based on a purchased or billed basis) derived from the base forecast from historical data.
A83: If the distributor has developed their load forecast on a system purchased basis, then the manual adjustment should be on a system purchased basis, including the adjustment for losses. If the load forecast has been developed on a billed basis, either on a system basis or on a class-specific basis, the manual adjustment should be on a billed basis, excluding losses.
A85: The distributor should determine the allocation of the savings to all customer classes in a reasonable manner (e.g. taking into account what programs and what IESO-measured impacts were directed at specific customer classes), for both the LRAMVA and for the load forecast adjustment.
B87: 2015 | C87: 2016 | D87: 2017 | E87: 2018 | F87: 2019 | G87: 2020 | H87: Total for 2017
A89: Amount used for CDM threshold for LRAMVA (2017) | B89: =D34 -> 0 | C89: =C35 -> 4054 | D89: =D36 -> 4350 | H89: =SUM(B89:G89) -> 8404
A91: Manual Adjustment for 2017 Load Forecast (billed basis) | B91: =B89*(1+F62)*B70 -> 0 | C91: =C89*(1+F62)*C70 -> 4054 | D91: =D89*(1+F62)*D70 -> 2175 | E91: =E89*(1+E62)*E70 -> 0 | F91: =F89*(1+F62)*F70 -> 0 | G91: =G89*(1+F62)*G70 -> 0 | H91: =SUM(B91:G91) -> 6229
A93: Proposed Loss Factor (TLF) | B93: 0.0409177298 | C93: Format: X.XX%
A94: Manual Adjustment for 2017 Load Forecast (system purchased basis) | B94: =B91*(1+$B93) -> 0 | C94: 4219.880477 | D94: 2263.996062 | E94: 0 | F94: 0 | G94: 0 | H94: =SUM(B94:G94) -> 6483.876539
A96: Manual adjustment uses "gross" versus "net" (i.e. numbers multiplied by (1 + g). The Weight factor is also used to calculate the impact of each year's program on the CDM adjustment to the 2017 load forecast.

Sheet App.2-IA_Load_Forecast_Instrct
Q1: File Number: | R1: =EBNUMBER -> EB-2016-0110
Q2: Exhibit: | R2: Information
Q3: Tab: | R3: Purposes
Q4: Schedule: | R4: Only
Q5: Page:
Q7: Date: | R7: 2016-10-28
B9: Appendix 2-IA
B10: Instructions on Customer, Connections, Load Forecast and Revenues Data and Analysis
B12: This sheet requires no inputs, but serves as a summary of the hiostorical and forecasted data to be provided with respect to:
B14: 1) | C14: Customers and connections
B15: 2) | C15: Consumption (kWh)
B16: 3) | C16: Demand (kW or kCA) for applicable demand-billed customer classes
B17: 4) | C17: Revenues
B19: The spreadsheet summarizes the data provided and the analyses (variance or year-over-year) that are required. Data are required to be provided on a customer class level. Consumption (kWh) must also be provided on a total distribution system level.
B21: Appendix 2-IB (formerly 2-IA) is the appendix spreadsheet that the distributor populates, and the spreadsheet is laid out for inputting the necessary data. The spreadsheet also calculates necessary statistics such as average consumption per customer/connection per year, and variances and % annual changes, as necessary.
B23: The distributor is required to provide suitable documentation in Exhibit 3 of its Application, in accordance with section 2.3.2 of Chaoter 2 of the Filing Requirements. This would include explanations for material variations or of trends in the data.
B25: The distributor is also required to input its test year customer/connection and load forecast in Sheet 10 - Load Forecast of the Revenue Requirement Work Form. This sheet should also be updated to reflect changes in the load forecast made through the stages of processing of the rates application.
B27: The applicant must demonstrate the historical accuracy of its load forecast approach for at least the past 5 years. Such analysis will cover both customer/connections and consumption (kWh) and demand (kW or kVA) by providing the following, as shown in the following table:
D29: Calendar Year | F29: Customers / Connections | I29: Consumption (kWh) (3) | M29: Demand (kW or kVA) | Q29: Revenues
D30: (for 2017 Cost of Service) | I30: Weather-actual | J30: Weather-normalized | M30: Weather-actual | N30: Weather-normalized | Q30: Weather-actual | R30: Weather-normalized
C31: Historical | D31: 2011 | F31: Actual | I31: Actual | J31: Actual (1) | M31: Actual | N31: Actual (1) | Q31: Actual
C32: Historical | D32: 2012 | F32: Actual | I32: Actual | J32: Actual (1) | M32: Actual | N32: Actual (1) | Q32: Actual
C33: Historical | D33: 2013 | F33: Actual | G33: Board-approved (2) | I33: Actual | J33: Actual (1) | K33: Board-approved (2) | M33: Actual | N33: Actual (1) | O33: Board-approved (2) | Q33: Actual
C34: Historical | D34: 2014 | F34: Actual | I34: Actual | J34: Actual (1) | M34: Actual | N34: Actual (1) | Q34: Actual
C35: Historical | D35: 2015 | F35: Actual | I35: Actual | J35: Actual (1) | M35: Actual | N35: Actual (1) | Q35: Actual
C36: Bridge Year (Forecast) | D36: 2016 | F36: Forecast | J36: Forecast | N36: Forecast | R36: Forecast
C37: Test Year (Forecast) | D37: 2017 | F37: Forecast | J37: Forecast | N37: Forecast | R37: Forecast
B40: Notes:
B42: (1) | C42: “Weather-normalized actuals” are estimated by replacing the actual weather-related values (typically Heating Degree Days (HDD) and Cooling Degree Days (CDD)) by the “typical” or “weather-normalized” values. These “weather-normalized HDD and CDD values would be the same as used to estimate the Bridge Year and Test Year forecasts.
B43: (2) | C43: For 2017 Cost of Service rebasers, the typical situation is that 2013 would have been the most recent cost of service rebasing application. If the most recent rebasing application was for a rate year other than 2013, that year should be used. An applicant must provide historical information back to the greater of: a) at least five (5) historical actual years; or b) to its last cost of service application.
B44: (3) | C44: Consumption must be provided on a total distribution system basis as well as at a customer class level.
B45: (4) | C45: Revenues exclude commodity charges.

Sheet App.2-IB_Load_Forecast_Analysis
T1: File Number: | U1: =EBNUMBER -> EB-2016-0110
T2: Exhibit: | U2: 3
T3: Tab: | U3: Appendix 3-B
T4: Schedule:
T5: Page:
T7: Date: | U7: 2016-10-28
B9: Appendix 2-IB
B10: Customer, Connections, Load Forecast and Revenues Data and Analysis
B12: This sheet requires no inputs, but serves as a summary of the hiostorical and forecasted data to be provided with respect to:
B14: 1) | C14: Customers and connections
B15: 2) | C15: Consumption (kWh)
B16: 3) | C16: Demand (kW or kCA) for applicable demand-billed customer classes
B17: 4) | C17: Revenues
B19: The spreadsheet summarizes the data provided and the analyses (variance or year-over-year) that are required. Data are required to be provided on a customer class level. Consumption (kWh) must also be provided on a total distribution system level.
B21: Appendix 2-IB (formerly 2-IA) is the appendix spreadsheet that the distributor populates, and the spreadsheet is laid out for inputting the necessary data. The spreadsheet also calculates necessary statistics such as average consumption per customer/connection per year, and variances and % annual changes, as necessary.
B23: The distributor is required to provide suitable documentation in Exhibit 3 of its Application, in accordance with section 2.3.2 of Chaoter 2 of the Filing Requirements. This would include explanations for material variations or of trends in the data.
B25: The distributor is also required to input its test year customer/connection and load forecast in Sheet 10 - Load Forecast of the Revenue Requirement Work Form. This sheet should also be updated to reflect changes in the load forecast made through the stages of processing of the rates application.
B27: The applicant must demonstrate the historical accuracy of its load forecast approach for at least the past 5 years. Such analysis will cover both customer/connections and consumption (kWh) and demand (kW or kVA) by providing the following, as shown in the following table:
B29: This sheet is to be filled in accordance with the instructions documented in section 2.3.2 of Chapter 2 of the Filing Requirements for Distribution Rate Applications, in terms of one set of tables per customer class.
B31: Color coding for Cells: | F31: Data input | K31: Drop-down List
F33: No data entry required | K33: Blank or calculated value
B35: Distribution System (Total)
D37: Calendar Year | K37: Consumption (kWh) (3)
D38: =CONCATENATE("(for ",TestYear," Cost of Service") -> (for 2017 Cost of Service | L38: Actual (Weather actual) | M38: Weather-normalized | O38: Weather-normalized
C39: Historical | D39: =D40-1 -> 2011 | K39: Actual | L39: ='[11]Exhibit 3 Tables'!B40*1000000 -> 429972781 | M39: ='[11]Exhibit 3 Tables'!D40*1000000 -> 429235021.9 | N39: =IF(D39=RebaseYear,"Board-approved","") -> 
C40: Historical | D40: 2012 | K40: Actual | L40: ='[11]Exhibit 3 Tables'!B41*1000000 -> 405481205.3 | M40: ='[11]Exhibit 3 Tables'!D41*1000000 -> 409226956.4
C41: Historical | D41: 2013 | K41: Actual | L41: ='[11]Exhibit 3 Tables'!B42*1000000 -> 399002323 | M41: ='[11]Exhibit 3 Tables'!D42*1000000 -> 401300330.9 | N41: Board-approved | O41: ='[11]Exhibit 3 Tables'!$D$29*1000000 -> 421635734.4
C42: Historical | D42: 2014 | K42: Actual | L42: ='[11]Exhibit 3 Tables'!B43*1000000 -> 380885629 | M42: ='[11]Exhibit 3 Tables'!D43*1000000 -> 384400533.7
C43: Historical | D43: 2015 | K43: Actual | L43: ='[11]Exhibit 3 Tables'!B44*1000000 -> 356369056 | M43: ='[11]Exhibit 3 Tables'!D44*1000000 -> 359257023.4
C44: Bridge Year | D44: 2016 | K44: Forecast | M44: ='[11]Exhibit 3 Tables'!D45*1000000 -> 343801434.9
C45: Test Year | D45: =TestYear -> 2017 | K45: Forecast | M45: ='[11]Exhibit 3 Tables'!D46*1000000 -> 347356298
O46: =SUM(O39:O44) -> 421635734.4
C47: Variance Analysis | K47: Year | L47: Year-over-year | O47: Versus Board-approved
D48: =D39 -> 2011 | K48: =D48 -> 2011
D49: 2012 | K49: =D49 -> 2012 | L49: =IF(L39=0,"",L40/L39-1) -> -0.05696075835 | M49: -0.0466133109
D50: 2013 | K50: 2013 | L50: -0.01597825556 | M50: -0.01936975412
D51: 2014 | K51: 2014 | L51: -0.04540498377 | M51: -0.04211259227
D52: 2015 | K52: 2015 | L52: -0.06436728281 | M52: -0.06540966531
D53: 2016 | K53: 2016 | L53: =IF(K44="Forecast","",IF(L43=0,"",L44/L43-1)) ->  | M53: =IF(M43=0,"",M44/M43-1) -> -0.04302097791
D54: 2017 | K54: 2017 | L54: =IF(K45="Forecast","",IF(L44=0,"",L45/L44-1)) ->  | M54: =IF(M44=0,"",M45/M44-1) -> 0.0103398725 | O54: =IF(O46=0,"",M45/O46-1) -> -0.1761696896
D55: Geometric Mean | K55: Geometric Mean | L55: =IF(L39=0,"",(L43/L39)^(1/($D43-$D39-1))-1) -> -0.06066679601 | M55: =IF(M39=0,"",(M45/M39)^(1/($D45-$D39-1))-1) -> -0.0414472762 | O55: =IF(O46=0,"",(M45/O46)^(1/(TestYear-RebaseYear-1))-1) -> -0.06255472991
B57: Customer Class Analysis (one for each Customer Class, excluding MicroFIT and Standby)
B59: 1 | C59: Customer Class: | D59: Residential | H59: Is the customer class billed on consumption (kWh) or demand (kW or kVA)? | N59: kWh
D61: Calendar Year | F61: Customers | K61: Consumption (kWh) (3) | Q61: =CONCATENATE("Consumption (kWh) per ",LEFT(F61,LEN(F61)-1)) -> Consumption (kWh) per Customer
D62: =CONCATENATE("(for ",TestYear," Cost of Service") -> (for 2017 Cost of Service | L62: Actual (Weather actual) | M62: Weather-normalized | O62: Weather-normalized | R62: =L62 -> Actual (Weather actual) | S62: =M62 -> Weather-normalized | U62: =O62 -> Weather-normalized
C63: Historical | D63: =D64-1 -> 2011 | F63: =K39 -> Actual | G63: ='[11]Exhibit 3 Tables'!$B$96 -> 19716.90278 | H63: =IF(D63=RebaseYear,"Board-approved","") ->  | K63: =F63 -> Actual | L63: ='[11]Exhibit 3 Tables'!$B$60*1000000 -> 158621921 | M63: ='[11]Exhibit 3 Tables'!$B$75*1000000 -> 158349753.2 | N63: =H63 ->  | Q63: =K63 -> Actual | R63: =IF(G63=0,"",L63/G63) -> 8044.971504 | S63: =IF(G63=0,"",M63/G63) -> 8031.167722 | T63: =N63 ->  | U63: =IF(T63="","",IF(I63=0,"",O63/I63)) -> 
C64: Historical | D64: 2012 | F64: =K40 -> Actual | G64: ='[11]Exhibit 3 Tables'!$B$97 -> 20109.83333 | K64: =F64 -> Actual | L64: ='[11]Exhibit 3 Tables'!$B$61*1000000 -> 159179968 | M64: ='[11]Exhibit 3 Tables'!$B$76*1000000 -> 160650439.5 | N64: =H64 ->  | Q64: =K64 -> Actual | R64: =IF(G64=0,"",L64/G64) -> 7915.528953 | S64: =IF(G64=0,"",M64/G64) -> 7988.650964 | T64: =N64 ->  | U64: =IF(T64="","",IF(I64=0,"",O64/I64)) -> 
C65: Historical | D65: 2013 | F65: Actual | G65: ='[11]Exhibit 3 Tables'!$B$99 -> 20265.75 | H65: Board-approved | I65: ='[11]Exhibit 3 Tables'!$B$98 -> 20432.24625 | K65: Actual | L65: ='[11]Exhibit 3 Tables'!$B$62*1000000 -> 158724607 | M65: ='[11]Exhibit 3 Tables'!$B$78*1000000 -> 159638763.1 | N65: Board-approved | O65: ='[11]Exhibit 3 Tables'!$B$77*1000000 -> 162565618.5 | Q65: Actual | R65: =IF(G65=0,"",L65/G65) -> 7832.160517 | S65: =IF(G65=0,"",M65/G65) -> 7877.268943 | T65: Board-approved | U65: =IF(T65="","",IF(I65=0,"",O65/I65)) -> 7956.326315
C66: Historical | D66: 2014 | F66: Actual | G66: ='[11]Exhibit 3 Tables'!$B$100 -> 20472.16667 | K66: Actual | L66: ='[11]Exhibit 3 Tables'!$B$63*1000000 -> 158185053 | M66: ='[11]Exhibit 3 Tables'!$B$79*1000000 -> 159644822.9 | Q66: Actual | R66: =IF(G66=0,"",L66/G66) -> 7726.834955 | S66: =IF(G66=0,"",M66/G66) -> 7798.140056
C67: Historical | D67: 2015 | F67: Actual | G67: ='[11]Exhibit 3 Tables'!$B$101 -> 20635.5 | K67: Actual | L67: ='[11]Exhibit 3 Tables'!$B$64*1000000 -> 157973719 | M67: ='[11]Exhibit 3 Tables'!$B$80*1000000 -> 159253917 | Q67: Actual | R67: 7655.434518 | S67: 7717.473141
C68: Bridge Year | D68: 2016 | F68: Forecast | G68: ='[11]Exhibit 3 Tables'!$B$102 -> 20837.76161 | K68: Forecast | M68: ='[11]Exhibit 3 Tables'!$B$81*1000000 -> 155389123.4 | Q68: Forecast | R68: 0 | S68: 7457.092863
C69: Test Year | D69: =TestYear -> 2017 | F69: Forecast | G69: ='[11]Exhibit 3 Tables'!$B$103 -> 21042.00572 | K69: Forecast | M69: ='[11]Exhibit 3 Tables'!$B$82*1000000 -> 161051509.9 | Q69: Forecast | R69: 0 | S69: 7653.809813
I70: =SUM(I63:I68) -> 20432.24625 | O70: =SUM(O63:O68) -> 162565618.5 | U70: =SUM(U63:U68) -> 7956.326315
C71: Variance Analysis | D71: Year | G71: Year-over-year | I71: Test Year Versus Board-approved | K71: Year | L71: Year-over-year | O71: =I71 -> Test Year Versus Board-approved | Q71: Year | R71: Year-over-year | U71: =O71 -> Test Year Versus Board-approved
D72: =D63 -> 2011 | K72: =D72 -> 2011 | Q72: =K72 -> 2011
D73: 2012 | G73: =IF(G63=0,"",G64/G63-1) -> 0.01992861455 | K73: =D73 -> 2012 | L73: =IF(L63=0,"",L64/L63-1) -> 0.003518095081 | M73: 0.01452914351 | Q73: =K73 -> 2012 | R73: =IF(R63="","",IF(R63=0,"",R64/R63-1)) -> -0.01608987064 | S73: =IF(S63="","",IF(S63=0,"",S64/S63-1)) -> -0.005293969561
D74: 2013 | G74: =IF(G64=0,"",G65/G64-1) -> 0.007753255041 | K74: 2013 | L74: -0.002860667744 | M74: -0.00629737697 | Q74: 2013 | R74: =IF(R64="","",IF(R64=0,"",R65/R64-1)) -> -0.01053226346 | S74: -0.013942532
D75: 2014 | G75: =IF(G65=0,"",G66/G65-1) -> 0.01018549359 | K75: 2014 | L75: -0.003399309094 | M75: 3.795968271e-05 | Q75: 2014 | R75: -0.0134478299 | S75: -0.0100452184
D76: 2015 | G76: =IF(G66=0,"",G67/G66-1) -> 0.007978312017 | K76: 2015 | L76: -0.001335992219 | M76: -0.002448597479 | Q76: 2015 | R76: -0.009240580006 | S76: -0.01034437881
D77: 2016 | G77: 0.009801633791 | K77: 2016 | L77: =IF(K68="Forecast","",IF(L67=0,"",L68/L67-1)) ->  | M77: =IF(M67=0,"",M68/M67-1) -> -0.02426812263 | Q77: 2016 | R77: =IF(Q68="Forecast","",IF(R67=0,"",R68/R67-1)) ->  | S77: =IF(S67="","",IF(S67=0,"",S68/S67-1)) -> -0.03373905853
D78: 2017 | G78: 0.009801633791 | I78: =IF(I70=0,"",G69/I70-1) -> 0.02984299753 | K78: 2017 | L78: =IF(K69="Forecast","",IF(L68=0,"",L69/L68-1)) ->  | M78: =IF(M68=0,"",M69/M68-1) -> 0.03644004389 | O78: =IF(O70=0,"",M69/O70-1) -> -0.009313830437 | Q78: 2017 | R78: =IF(Q69="Forecast","",IF(R68=0,"",R69/R68-1)) ->  | S78: =IF(S68="","",IF(S68=0,"",S69/S68-1)) -> 0.02637984452 | U78: =IF(U70=0,"",S69/U70-1) -> -0.03802213353
D79: Geometric Mean | G79: =IF(G63=0,"",(G69/G63)^(1/($D69-$D63-1))-1) -> 0.01309387078 | I79: =IF(I70=0,"",(G69/I70)^(1/(TestYear-RebaseYear-1))-1) -> 0.009850318479 | K79: Geometric Mean | L79: =IF(L63=0,"",(L67/L63)^(1/($D67-$D63-1))-1) -> -0.001364012734 | M79: =IF(M63=0,"",(M69/M63)^(1/($D69-$D63-1))-1) -> 0.003389338229 | O79: =IF(O70=0,"",(M69/O70)^(1/(TestYear-RebaseYear-1))-1) -> -0.003114298935 | Q79: Geometric Mean | R79: =IF(R63="","",IF(R63=0,"",(R67/R63)^(1/($D67-$D63-1))-1)) -> -0.01640771871 | S79: =IF(S63="","",IF(S63=0,"",(S69/S63)^(1/($D69-$D63-1))-1)) -> -0.009579104985 | U79: =IF(U70=0,"",(S69/U70)^(1/(TestYear-RebaseYear-1))-1) -> -0.01283815747
D82: Calendar Year | F82: Revenues | K82: =IF(ISBLANK(N59),"",CONCATENATE("Demand (",N59,")")) -> Demand (kWh) | Q82: =CONCATENATE("Demand (",N59,") per ",LEFT(F61,LEN(F61)-1)) -> Demand (kWh) per Customer
D83: =CONCATENATE("(for ",TestYear," Cost of Service") -> (for 2017 Cost of Service | L83: Actual (Weather actual) | M83: Weather-normalized | O83: =M83 -> Weather-normalized | R83: =L83 -> Actual (Weather actual) | S83: =M83 -> Weather-normalized | U83: =O83 -> Weather-normalized
C84: Historical | D84: =D85-1 -> 2011 | F84: =F63 -> Actual | G84: 5629382 | H84: =IF(D84=RebaseYear,"Board-approved","") ->  | K84: =K63 -> Actual | N84: =N63 ->  | Q84: =K84 -> Actual | R84: =IF(G84=0,"",L84/G84) -> 0 | S84: =IF(G84=0,"",M84/G84) -> 0 | T84: =N84 ->  | U84: =IF(T84="","",IF(I84=0,"",O84/I84)) -> 
C85: Historical | D85: 2012 | F85: Actual | G85: 6218897 | K85: Actual | Q85: =K85 -> Actual | R85: =IF(G85=0,"",L85/G85) -> 0 | S85: =IF(G85=0,"",M85/G85) -> 0 | T85: =N85 ->  | U85: =IF(T85="","",IF(I85=0,"",O85/I85)) -> 
C86: Historical | D86: 2013 | F86: Actual | G86: 6035509 | H86: Board-approved | I86: 6007417 | K86: Actual | N86: Board-approved | Q86: Actual | R86: 0 | S86: 0 | T86: Board-approved | U86: 0
C87: Historical | D87: 2014 | F87: Actual | G87: 6008631 | K87: Actual | Q87: Actual | R87: 0 | S87: 0
C88: Historical | D88: 2015 | F88: Actual | G88: 6086712 | K88: Actual | Q88: Actual | R88: 0 | S88: 0
C89: Bridge Year (Forecast) | D89: 2016 | F89: Forecast | G89: 6269169 | K89: Forecast | Q89: Forecast | R89: 0 | S89: 0
C90: Test Year (Forecast) | D90: =TestYear -> 2017 | F90: Forecast | G90: 7178370 | K90: Forecast | Q90: Forecast | R90: 0 | S90: 0
I91: =SUM(I84:I89) -> 6007417 | O91: =SUM(O84:O89) -> 0 | U91: =SUM(U84:U89) -> 0
C92: Variance Analysis | D92: Year | G92: Year-over-year | I92: =I71 -> Test Year Versus Board-approved | K92: Year | L92: Year-over-year | O92: =I92 -> Test Year Versus Board-approved | Q92: Year | R92: Year-over-year | U92: =O92 -> Test Year Versus Board-approved
D93: =D84 -> 2011 | K93: =D93 -> 2011 | Q93: =K93 -> 2011
D94: 2012 | G94: =IF(G84=0,"",G85/G84-1) -> 0.1047210866 | K94: =D94 -> 2012 | L94: =IF(L84=0,"",L85/L84-1) ->  | Q94: =K94 -> 2012 | R94: =IF(R84="","",IF(R84=0,"",R85/R84-1)) ->  | S94: =IF(S84="","",IF(S84=0,"",S85/S84-1)) -> 
D95: 2013 | G95: -0.02948883058 | K95: 2013 | Q95: 2013 | R95: =IF(R85="","",IF(R85=0,"",R86/R85-1)) -> 
D96: 2014 | G96: -0.004453311229 | K96: 2014 | Q96: 2014
D97: 2015 | G97: 0.01299480697 | K97: 2015 | Q97: 2015
D98: 2016 | G98: 0.02997628276 | K98: 2016 | L98: =IF(K89="Forecast","",IF(L88=0,"",L89/L88-1)) ->  | M98: =IF(M88=0,"",M89/M88-1) ->  | Q98: 2016 | R98: =IF(Q89="Forecast","",IF(R88=0,"",R89/R88-1)) ->  | S98: =IF(S88="","",IF(S88=0,"",S89/S88-1)) -> 
D99: 2017 | G99: 0.1450273553 | I99: =IF(I91=0,"",G90/I91-1) -> 0.1949178823 | K99: 2017 | L99: =IF(K90="Forecast","",IF(L89=0,"",L90/L89-1)) ->  | M99: =IF(M89=0,"",M90/M89-1) ->  | O99: =IF(O91=0,"",M90/O91-1) ->  | Q99: 2017 | R99: =IF(Q90="Forecast","",IF(R89=0,"",R90/R89-1)) ->  | S99: =IF(S89="","",IF(S89=0,"",S90/S89-1)) ->  | U99: =IF(U91=0,"",S90/U91-1) -> 
D100: Geometric Mean | G100: =IF(G84=0,"",(G90/G84)^(1/($D90-$D84-1))-1) -> 0.04981560467 | I100: =IF(I91=0,"",(G90/I91)^(1/(TestYear-RebaseYear-1))-1) -> 0.06115629201 | K100: Geometric Mean | L100: =IF(L84=0,"",(L88/L84)^(1/($D88-$D84-1))-1) ->  | M100: =IF(M84=0,"",(M90/M84)^(1/($D90-$D84-1))-1) ->  | O100: =IF(O91=0,"",(M90/O91)^(1/(TestYear-RebaseYear-1))-1) ->  | Q100: Geometric Mean | R100: =IF(R84="","",IF(R84=0,"",(R88/R84)^(1/($D88-$D84-1))-1)) ->  | S100: =IF(S84="","",IF(S84=0,"",(S90/S84)^(1/($D90-$D84-1))-1)) ->  | U100: =IF(U91=0,"",(S90/U91)^(1/(TestYear-RebaseYear-1))-1) -> 
B102: 2 | C102: Customer Class: | D102: GS < 50 kW | H102: Is the customer class billed on consumption (kWh) or demand (kW or kVA)? | N102: kWh
D104: Calendar Year | F104: Customers | K104: Consumption (kWh) (3) | Q104: =CONCATENATE("Consumption (kWh) per ",LEFT(F104,LEN(F104)-1)) -> Consumption (kWh) per Customer
D105: =CONCATENATE("(for ",TestYear," Cost of Service") -> (for 2017 Cost of Service | L105: Actual (Weather actual) | M105: Weather-normalized | O105: Weather-normalized | R105: =L105 -> Actual (Weather actual) | S105: =M105 -> Weather-normalized | U105: =O105 -> Weather-normalized
C106: Historical | D106: =D107-1 -> 2011 | F106: =F63 -> Actual | G106: ='[11]Exhibit 3 Tables'!$C$96 -> 1690.805556 | H106: =IF(D106=RebaseYear,"Board-approved","") ->  | K106: =F106 -> Actual | L106: ='[11]Exhibit 3 Tables'!$C$60*1000000 -> 54435719 | M106: ='[11]Exhibit 3 Tables'!$C$75*1000000 -> 54342316.7 | N106: =H106 ->  | Q106: =K106 -> Actual | R106: =IF(G106=0,"",L106/G106) -> 32195.13848 | S106: =IF(G106=0,"",M106/G106) -> 32139.89718 | T106: =N106 ->  | U106: =IF(T106="","",IF(I106=0,"",O106/I106)) -> 
C107: Historical | D107: 2012 | F107: =F64 -> Actual | G107: ='[11]Exhibit 3 Tables'!$C$97 -> 1698.833333 | K107: =F107 -> Actual | L107: ='[11]Exhibit 3 Tables'!$C$61*1000000 -> 50022065 | M107: ='[11]Exhibit 3 Tables'!$C$76*1000000 -> 50484158.44 | N107: =H107 ->  | Q107: =K107 -> Actual | R107: =IF(G107=0,"",L107/G107) -> 29444.95144 | S107: =IF(G107=0,"",M107/G107) -> 29716.95778 | T107: =N107 ->  | U107: =IF(T107="","",IF(I107=0,"",O107/I107)) -> 
C108: Historical | D108: 2013 | F108: Actual | G108: ='[11]Exhibit 3 Tables'!$C$99 -> 1698.5 | H108: Board-approved | I108: ='[11]Exhibit 3 Tables'!$C$98 -> 1695.799451 | K108: Actual | L108: ='[11]Exhibit 3 Tables'!$C$62*1000000 -> 52726527 | M108: ='[11]Exhibit 3 Tables'!$C$78*1000000 -> 53030199.35 | N108: Board-approved | O108: ='[11]Exhibit 3 Tables'!$C$77*1000000 -> 54784534.15 | Q108: Actual | R108: 31042.995 | S108: 31221.78355 | T108: Board-approved | U108: 32306.02187
C109: Historical | D109: 2014 | F109: Actual | G109: ='[11]Exhibit 3 Tables'!$C$100 -> 1742.833333 | K109: Actual | L109: ='[11]Exhibit 3 Tables'!$C$63*1000000 -> 53903009 | M109: ='[11]Exhibit 3 Tables'!$C$79*1000000 -> 54400439 | Q109: Actual | R109: 30928.3785 | S109: 31213.79306
C110: Historical | D110: 2015 | F110: Actual | G110: ='[11]Exhibit 3 Tables'!$C$101 -> 1769.083333 | K110: Actual | L110: ='[11]Exhibit 3 Tables'!$C$64*1000000 -> 54312604 | M110: ='[11]Exhibit 3 Tables'!$C$80*1000000 -> 54752746.12 | Q110: Actual | R110: 30700.98676 | S110: 30949.78348
C111: Bridge Year | D111: 2016 | F111: Forecast | G111: ='[11]Exhibit 3 Tables'!$C$102 -> 1776.16911 | K111: Forecast | M111: ='[11]Exhibit 3 Tables'!$C$81*1000000 -> 53099922.58 | Q111: Forecast | R111: 0 | S111: 29895.7584
C112: Test Year | D112: =TestYear -> 2017 | F112: Forecast | G112: ='[11]Exhibit 3 Tables'!$C$103 -> 1783.283267 | K112: Forecast | M112: ='[11]Exhibit 3 Tables'!$C$82*1000000 -> 54658680.33 | Q112: Forecast | R112: 0 | S112: 30650.58779
I113: =SUM(I106:I111) -> 1695.799451 | O113: =SUM(O106:O111) -> 54784534.15 | U113: =SUM(U106:U111) -> 32306.02187
C114: Variance Analysis | D114: Year | G114: Year-over-year | I114: Test Year Versus Board-approved | K114: Year | L114: Year-over-year | O114: =I114 -> Test Year Versus Board-approved | Q114: Year | R114: Year-over-year | U114: =O114 -> Test Year Versus Board-approved
D115: =D106 -> 2011 | K115: =D115 -> 2011 | Q115: =K115 -> 2011
D116: 2012 | G116: =IF(G106=0,"",G107/G106-1) -> 0.004747901231 | K116: =D116 -> 2012 | L116: =IF(L106=0,"",L107/L106-1) -> -0.08108010845 | M116: -0.07099730927 | Q116: =K116 -> 2012 | R116: =IF(R106="","",IF(R106=0,"",R107/R106-1)) -> -0.08542243241 | S116: -0.07538727914
D117: 2013 | G117: -0.0001962130874 | K117: 2013 | L117: 0.05406538095 | M117: 0.05043247218 | Q117: 2013 | R117: 0.05427224296 | S117: 0.05063862123
D118: 2014 | G118: 0.02610146207 | K118: 2014 | L118: 0.02231290523 | M118: 0.02583885525 | Q118: 2014 | R118: -0.003692185408 | S118: -0.0002559267598
D119: 2015 | G119: 0.01506168117 | K119: 2015 | L119: 0.007598740916 | M119: 0.006476181526 | Q119: 2015 | R119: =IF(R109="","",IF(R109=0,"",R110/R109-1)) -> -0.007352203706 | S119: -0.008458106343
D120: 2016 | G120: 0.004005337826 | K120: 2016 | L120: =IF(K111="Forecast","",IF(L110=0,"",L111/L110-1)) ->  | M120: =IF(M110=0,"",M111/M110-1) -> -0.03018704371 | Q120: 2016 | R120: =IF(Q111="Forecast","",IF(R110=0,"",R111/R110-1)) ->  | S120: -0.03405597585
D121: 2017 | G121: 0.004005337826 | I121: =IF(I113=0,"",G112/I113-1) -> 0.05158853892 | K121: 2017 | L121: =IF(K112="Forecast","",IF(L111=0,"",L112/L111-1)) ->  | M121: =IF(M111=0,"",M112/M111-1) -> 0.02935517935 | O121: =IF(O113=0,"",M112/O113-1) -> -0.002297250893 | Q121: 2017 | R121: =IF(Q112="Forecast","",IF(R111=0,"",R112/R111-1)) ->  | S121: 0.0252487119 | U121: =IF(U113=0,"",S112/U113-1) -> -0.05124227568
D122: Geometric Mean | G122: =IF(G106=0,"",(G112/G106)^(1/($D112-$D106-1))-1) -> 0.01070713988 | I122: =IF(I113=0,"",(G112/I113)^(1/(TestYear-RebaseYear-1))-1) -> 0.01690866527 | K122: Geometric Mean | L122: =IF(L106=0,"",(L110/L106)^(1/($D110-$D106-1))-1) -> -0.0007544551859 | M122: =IF(M106=0,"",(M112/M106)^(1/($D112-$D106-1))-1) -> 0.001161634244 | O122: =IF(O113=0,"",(M112/O113)^(1/(TestYear-RebaseYear-1))-1) -> -0.0007663374207 | Q122: Geometric Mean | R122: =IF(R106="","",IF(R106=0,"",(R110/R106)^(1/($D110-$D106-1))-1)) -> -0.01571542548 | S122: =IF(S106="","",IF(S106=0,"",(S112/S106)^(1/($D112-$D106-1))-1)) -> -0.009444383303 | U122: =IF(U113=0,"",(S112/U113)^(1/(TestYear-RebaseYear-1))-1) -> -0.01738111129
